Workbook

Sheet Overview
A2: Labour Force Survey Historical Data Series
A4: Below is a list of tables which are available each month on the Department for the Economy (DfE) website:
A5: Labour Force Survey Tables
A6: This platform expands the data range available and allows users to access each tables data back to 1995 with yearly output.
A7: Full data sets are available on request, see details below.
A9: Table No. | B9: Title
A10: 2.1a | B10: Northern Ireland Labour Market Structure: Seasonally Adjusted
A11: 2.1b | B11: Northern Ireland Labour Market Structure: Not Seasonally Adjusted
A12: 2.2 | B12: Economic Activity by Age
A13: 2.3 | B13: Economic Activity By Age Rates
A14: 2.4a | B14: Economically inactive who want work: Reasons (16+)
A15: 2.4b | B15: Economically inactive who do not want work: Reasons (16-64)
A16: 2.5 | B16: Economic inactivity by age
A17: 2.6 | B17: Employment by category
A18: 2.7 | B18: Actual weekly hours of work
A19: 2.8 | B19: Employment by age
A20: 2.9 | B20: Unemployment by age (Totals Only)
A21: 2.10 | B21: Unemployment by duration (Totals Only)
A23: For further information see:
A24: Brian Grogan
A25: Colby House
A26: Stranmillis Court
A27: Belfast BT9 5RR
A28: Tel: 02890529311
A29: brian.grogan@nisra.gov.uk

Sheet Output
C1: Instructions: | D1: 1 - ENABLE Macros & Links
A2: Table | B2: 2.1a | D2: 2 - Select Table & Period from GREY boxes | M2: 2.1a | N2: Jan-Mar
A3: Period | B3: Apr-Jun | D3: 3 - Click on UPDATE FORMAT button | M3: 2.1b | N3: Feb-Apr
A4: Title | B4: =VLOOKUP(B2,[1]Overview!A10:B21,2,FALSE) -> Northern Ireland Labour Market Structure: Seasonally Adjusted | M4: 2.2 | N4: Mar-May
A5: 1 | B5: =IF(VLOOKUP($A5,INDIRECT(CONCATENATE("'",$B$2,"'!A4:K1000")),2,FALSE)=0,"",VLOOKUP($A5,INDIRECT(CONCATENATE("'",$B$2,"'!A4:K1000")),2,FALSE)) -> Total | C5: =IF(VLOOKUP($A5,INDIRECT(CONCATENATE("'",$B$2,"'!A4:K1000")),3,FALSE)=0,"",VLOOKUP($A5,INDIRECT(CONCATENATE("'",$B$2,"'!A4:K1000")),3,FALSE)) -> Total | D5: =IF(VLOOKUP($A5,INDIRECT(CONCATENATE("'",$B$2,"'!A4:K1000")),4,FALSE)=0,"",VLOOKUP($A5,INDIRECT(CONCATENATE("'",$B$2,"'!A4:K1000")),4,FALSE)) -> Active | E5: =IF(VLOOKUP($A5,INDIRECT(CONCATENATE("'",$B$2,"'!A4:K1000")),5,FALSE)=0,"",VLOOKUP($A5,INDIRECT(CONCATENATE("'",$B$2,"'!A4:K1000")),5,FALSE)) -> Employment | F5: =IF(VLOOKUP($A5,INDIRECT(CONCATENATE("'",$B$2,"'!A4:K1000")),6,FALSE)=0,"",VLOOKUP($A5,INDIRECT(CONCATENATE("'",$B$2,"'!A4:K1000")),6,FALSE)) -> Unemployed | G5: =IF(VLOOKUP($A5,INDIRECT(CONCATENATE("'",$B$2,"'!A4:K1000")),7,FALSE)=0,"",VLOOKUP($A5,INDIRECT(CONCATENATE("'",$B$2,"'!A4:K1000")),7,FALSE)) -> Economically Inactive | H5: =IF(VLOOKUP($A5,INDIRECT(CONCATENATE("'",$B$2,"'!A4:K1000")),8,FALSE)=0,"",VLOOKUP($A5,INDIRECT(CONCATENATE("'",$B$2,"'!A4:K1000")),8,FALSE)) -> Unemployment | I5: =IF(VLOOKUP($A5,INDIRECT(CONCATENATE("'",$B$2,"'!A4:K1000")),9,FALSE)=0,"",VLOOKUP($A5,INDIRECT(CONCATENATE("'",$B$2,"'!A4:K1000")),9,FALSE)) -> Activity | J5: =IF(VLOOKUP($A5,INDIRECT(CONCATENATE("'",$B$2,"'!A4:K1000")),10,FALSE)=0,"",VLOOKUP($A5,INDIRECT(CONCATENATE("'",$B$2,"'!A4:K1000")),10,FALSE)) -> Employment | K5: =IF(VLOOKUP($A5,INDIRECT(CONCATENATE("'",$B$2,"'!A4:K1000")),11,FALSE)=0,"",VLOOKUP($A5,INDIRECT(CONCATENATE("'",$B$2,"'!A4:K1000")),11,FALSE)) ->  | M5: 2.3 | N5: Apr-Jun
A6: 2 | B6: =IF(VLOOKUP($A6,INDIRECT(CONCATENATE("'",$B$2,"'!A4:K1000")),2,FALSE)=0,"",VLOOKUP($A6,INDIRECT(CONCATENATE("'",$B$2,"'!A4:K1000")),2,FALSE)) -> (16+) | C6: =IF(VLOOKUP($A6,INDIRECT(CONCATENATE("'",$B$2,"'!A4:K1000")),3,FALSE)=0,"",VLOOKUP($A6,INDIRECT(CONCATENATE("'",$B$2,"'!A4:K1000")),3,FALSE)) -> (16-64) | D6: =IF(VLOOKUP($A6,INDIRECT(CONCATENATE("'",$B$2,"'!A4:K1000")),4,FALSE)=0,"",VLOOKUP($A6,INDIRECT(CONCATENATE("'",$B$2,"'!A4:K1000")),4,FALSE)) -> (16+) | E6: =IF(VLOOKUP($A6,INDIRECT(CONCATENATE("'",$B$2,"'!A4:K1000")),5,FALSE)=0,"",VLOOKUP($A6,INDIRECT(CONCATENATE("'",$B$2,"'!A4:K1000")),5,FALSE)) -> (16+) | F6: =IF(VLOOKUP($A6,INDIRECT(CONCATENATE("'",$B$2,"'!A4:K1000")),6,FALSE)=0,"",VLOOKUP($A6,INDIRECT(CONCATENATE("'",$B$2,"'!A4:K1000")),6,FALSE)) -> (16+) | G6: =IF(VLOOKUP($A6,INDIRECT(CONCATENATE("'",$B$2,"'!A4:K1000")),7,FALSE)=0,"",VLOOKUP($A6,INDIRECT(CONCATENATE("'",$B$2,"'!A4:K1000")),7,FALSE)) -> (16+) | H6: =IF(VLOOKUP($A6,INDIRECT(CONCATENATE("'",$B$2,"'!A4:K1000")),8,FALSE)=0,"",VLOOKUP($A6,INDIRECT(CONCATENATE("'",$B$2,"'!A4:K1000")),8,FALSE)) -> (16+ Rate) | I6: =IF(VLOOKUP($A6,INDIRECT(CONCATENATE("'",$B$2,"'!A4:K1000")),9,FALSE)=0,"",VLOOKUP($A6,INDIRECT(CONCATENATE("'",$B$2,"'!A4:K1000")),9,FALSE)) -> (16-64 Rate) | J6: =IF(VLOOKUP($A6,INDIRECT(CONCATENATE("'",$B$2,"'!A4:K1000")),10,FALSE)=0,"",VLOOKUP($A6,INDIRECT(CONCATENATE("'",$B$2,"'!A4:K1000")),10,FALSE)) -> (16-64 Rate) | K6: =IF(VLOOKUP($A6,INDIRECT(CONCATENATE("'",$B$2,"'!A4:K1000")),11,FALSE)=0,"",VLOOKUP($A6,INDIRECT(CONCATENATE("'",$B$2,"'!A4:K1000")),11,FALSE)) ->  | M6: 2.4a | N6: May-Jul
A7: 3 | B7: A | D7: C | E7: D | F7: E | G7: F | H7: G | I7: H | J7: I | M7: 2.4b | N7: Jun-Aug
A8: Total | M8: 2.5 | N8: Jul-Sep
A9: =CONCATENATE($B$3," 1995") -> Apr-Jun 1995 | B9: =IF(VLOOKUP($A$9,INDIRECT(CONCATENATE("'",$B$2,"'!A9:K1000")),2,FALSE)=0,"",VLOOKUP($A$9,INDIRECT(CONCATENATE("'",$B$2,"'!A9:K1000")),2,FALSE)) -> 1207000 | C9: =IF(VLOOKUP(A9,INDIRECT(CONCATENATE("'",$B$2,"'!A9:K1000")),3,FALSE)=0,"",VLOOKUP(A9,INDIRECT(CONCATENATE("'",$B$2,"'!A9:K1000")),3,FALSE)) -> 1005000 | D9: =IF(VLOOKUP(A9,INDIRECT(CONCATENATE("'",$B$2,"'!A9:K1000")),4,FALSE)=0,"",VLOOKUP(A9,INDIRECT(CONCATENATE("'",$B$2,"'!A9:K1000")),4,FALSE)) -> 708000 | E9: =IF(VLOOKUP(A9,INDIRECT(CONCATENATE("'",$B$2,"'!A9:K1000")),5,FALSE)=0,"",VLOOKUP(A9,INDIRECT(CONCATENATE("'",$B$2,"'!A9:K1000")),5,FALSE)) -> 631000 | F9: =IF(VLOOKUP(A9,INDIRECT(CONCATENATE("'",$B$2,"'!A9:K1000")),6,FALSE)=0,"",VLOOKUP(A9,INDIRECT(CONCATENATE("'",$B$2,"'!A9:K1000")),6,FALSE)) -> 77000 | G9: =IF(VLOOKUP(A9,INDIRECT(CONCATENATE("'",$B$2,"'!A9:K1000")),7,FALSE)=0,"",VLOOKUP(A9,INDIRECT(CONCATENATE("'",$B$2,"'!A9:K1000")),7,FALSE)) -> 499000 | H9: =IF(VLOOKUP(A9,INDIRECT(CONCATENATE("'",$B$2,"'!A9:K1000")),8,FALSE)=0,"",VLOOKUP(A9,INDIRECT(CONCATENATE("'",$B$2,"'!A9:K1000")),8,FALSE)) -> 0.109 | I9: =IF(VLOOKUP(A9,INDIRECT(CONCATENATE("'",$B$2,"'!A9:K1000")),9,FALSE)=0,"",VLOOKUP(A9,INDIRECT(CONCATENATE("'",$B$2,"'!A9:K1000")),9,FALSE)) -> 0.691 | J9: =IF(VLOOKUP(A9,INDIRECT(CONCATENATE("'",$B$2,"'!A9:K1000")),10,FALSE)=0,"",VLOOKUP(A9,INDIRECT(CONCATENATE("'",$B$2,"'!A9:K1000")),10,FALSE)) -> 0.614 | K9: =IF(VLOOKUP(A9,INDIRECT(CONCATENATE("'",$B$2,"'!A9:K1000")),11,FALSE)=0,"",VLOOKUP(A9,INDIRECT(CONCATENATE("'",$B$2,"'!A9:K1000")),11,FALSE)) ->  | M9: 2.6 | N9: Aug-Oct
A10: =CONCATENATE($B$3," 1996") -> Apr-Jun 1996 | B10: =IF(VLOOKUP(A10,INDIRECT(CONCATENATE("'",$B$2,"'!A9:K1000")),2,FALSE)=0,"",VLOOKUP(A10,INDIRECT(CONCATENATE("'",$B$2,"'!A9:K1000")),2,FALSE)) -> 1220000 | C10: =IF(VLOOKUP(A10,INDIRECT(CONCATENATE("'",$B$2,"'!A9:K1000")),3,FALSE)=0,"",VLOOKUP(A10,INDIRECT(CONCATENATE("'",$B$2,"'!A9:K1000")),3,FALSE)) -> 1016000 | D10: =IF(VLOOKUP(A10,INDIRECT(CONCATENATE("'",$B$2,"'!A9:K1000")),4,FALSE)=0,"",VLOOKUP(A10,INDIRECT(CONCATENATE("'",$B$2,"'!A9:K1000")),4,FALSE)) -> 723000 | E10: =IF(VLOOKUP(A10,INDIRECT(CONCATENATE("'",$B$2,"'!A9:K1000")),5,FALSE)=0,"",VLOOKUP(A10,INDIRECT(CONCATENATE("'",$B$2,"'!A9:K1000")),5,FALSE)) -> 646000 | F10: =IF(VLOOKUP(A10,INDIRECT(CONCATENATE("'",$B$2,"'!A9:K1000")),6,FALSE)=0,"",VLOOKUP(A10,INDIRECT(CONCATENATE("'",$B$2,"'!A9:K1000")),6,FALSE)) -> 77000 | G10: =IF(VLOOKUP(A10,INDIRECT(CONCATENATE("'",$B$2,"'!A9:K1000")),7,FALSE)=0,"",VLOOKUP(A10,INDIRECT(CONCATENATE("'",$B$2,"'!A9:K1000")),7,FALSE)) -> 497000 | H10: =IF(VLOOKUP(A10,INDIRECT(CONCATENATE("'",$B$2,"'!A9:K1000")),8,FALSE)=0,"",VLOOKUP(A10,INDIRECT(CONCATENATE("'",$B$2,"'!A9:K1000")),8,FALSE)) -> 0.106 | I10: =IF(VLOOKUP(A10,INDIRECT(CONCATENATE("'",$B$2,"'!A9:K1000")),9,FALSE)=0,"",VLOOKUP(A10,INDIRECT(CONCATENATE("'",$B$2,"'!A9:K1000")),9,FALSE)) -> 0.701 | J10: =IF(VLOOKUP(A10,INDIRECT(CONCATENATE("'",$B$2,"'!A9:K1000")),10,FALSE)=0,"",VLOOKUP(A10,INDIRECT(CONCATENATE("'",$B$2,"'!A9:K1000")),10,FALSE)) -> 0.625 | K10: =IF(VLOOKUP(A10,INDIRECT(CONCATENATE("'",$B$2,"'!A9:K1000")),11,FALSE)=0,"",VLOOKUP(A10,INDIRECT(CONCATENATE("'",$B$2,"'!A9:K1000")),11,FALSE)) ->  | M10: 2.7 | N10: Sep-Nov
A11: =CONCATENATE($B$3," 1997") -> Apr-Jun 1997 | B11: =IF(VLOOKUP(A11,INDIRECT(CONCATENATE("'",$B$2,"'!A9:K1000")),2,FALSE)=0,"",VLOOKUP(A11,INDIRECT(CONCATENATE("'",$B$2,"'!A9:K1000")),2,FALSE)) -> 1232000 | C11: 1026000 | D11: 745000 | E11: 685000 | F11: 61000 | G11: 486000 | H11: 0.081 | I11: 0.715 | J11: 0.656 | M11: 2.8 | N11: Oct-Dec
A12: =CONCATENATE($B$3," 1998") -> Apr-Jun 1998 | B12: =IF(VLOOKUP(A12,INDIRECT(CONCATENATE("'",$B$2,"'!A9:K1000")),2,FALSE)=0,"",VLOOKUP(A12,INDIRECT(CONCATENATE("'",$B$2,"'!A9:K1000")),2,FALSE)) -> 1241000 | C12: 1034000 | D12: 740000 | E12: 688000 | F12: 51000 | G12: 501000 | H12: 0.07 | I12: 0.707 | J12: 0.657 | M12: 2.9 | N12: Nov-Jan
A13: =CONCATENATE($B$3," 1999") -> Apr-Jun 1999 | B13: 1247000 | C13: 1040000 | D13: 749000 | E13: 692000 | F13: 57000 | G13: 498000 | H13: 0.076 | I13: 0.706 | J13: 0.651 | M13: 2.10 | N13: Dec-Feb
A14: =CONCATENATE($B$3," 2000") -> Apr-Jun 2000 | B14: 1256000 | C14: 1047000 | D14: =IF(VLOOKUP(A14,INDIRECT(CONCATENATE("'",$B$2,"'!A9:K1000")),4,FALSE)=0,"",VLOOKUP(A14,INDIRECT(CONCATENATE("'",$B$2,"'!A9:K1000")),4,FALSE)) -> 727000 | E14: 678000 | F14: 49000 | G14: 528000 | H14: 0.067 | I14: 0.683 | J14: 0.637
A15: =CONCATENATE($B$3," 2001") -> Apr-Jun 2001 | B15: 1268000 | C15: 1057000 | D15: 752000 | E15: 706000 | F15: 45000 | G15: 516000 | H15: 0.06 | I15: 0.702 | J15: 0.659
A16: =CONCATENATE($B$3," 2002") -> Apr-Jun 2002 | B16: 1283000 | C16: 1069000 | D16: 763000 | E16: 721000 | F16: 42000 | G16: 519000 | H16: 0.055 | I16: 0.701 | J16: 0.661
A17: =CONCATENATE($B$3," 2003") -> Apr-Jun 2003 | B17: 1296000 | C17: 1080000 | D17: 783000 | E17: 744000 | F17: 40000 | G17: 513000 | H17: 0.051 | I17: 0.713 | J17: 0.676
A18: =CONCATENATE($B$3," 2004") -> Apr-Jun 2004 | B18: 1310000 | C18: 1091000 | D18: 760000 | E18: 722000 | F18: 38000 | G18: 550000 | H18: 0.05 | I18: 0.688 | J18: 0.654
A19: =CONCATENATE($B$3," 2005") -> Apr-Jun 2005 | B19: 1326000 | C19: 1104000 | D19: 790000 | E19: 752000 | F19: 38000 | G19: 536000 | H19: 0.049 | I19: 0.704 | J19: 0.669
A20: =CONCATENATE($B$3," 2006") -> Apr-Jun 2006 | B20: 1343000 | C20: 1118000 | D20: 812000 | E20: 778000 | F20: 34000 | G20: 532000 | H20: 0.042 | I20: 0.712 | J20: 0.683
A21: =CONCATENATE($B$3," 2007") -> Apr-Jun 2007 | B21: 1362000 | C21: 1133000 | D21: 825000 | E21: 795000 | F21: 29000 | G21: 537000 | H21: 0.036 | I21: 0.715 | J21: 0.689
A22: =CONCATENATE($B$3," 2008") -> Apr-Jun 2008 | B22: 1379000 | C22: 1144000 | D22: 833000 | E22: 801000 | F22: 32000 | G22: 546000 | H22: 0.039 | I22: 0.715 | J22: 0.687
A23: =CONCATENATE($B$3," 2009") -> Apr-Jun 2009 | B23: 1392000 | C23: 1151000 | D23: 806000 | E23: 754000 | F23: 52000 | G23: 586000 | H23: 0.065 | I23: 0.685 | J23: 0.64
A24: =CONCATENATE($B$3," 2010") -> Apr-Jun 2010 | B24: 1404000 | C24: 1157000 | D24: 838000 | E24: 782000 | F24: 56000 | G24: 566000 | H24: 0.066 | I24: 0.711 | J24: 0.663
A25: =CONCATENATE($B$3," 2011") -> Apr-Jun 2011 | B25: 1413000 | C25: 1159000 | D25: 868000 | E25: 805000 | F25: 64000 | G25: 545000 | H25: 0.073 | I25: 0.732 | J25: 0.677
A26: =CONCATENATE($B$3," 2012") -> Apr-Jun 2012 | B26: 1421000 | C26: 1160000 | D26: 862000 | E26: 795000 | F26: 67000 | G26: 559000 | H26: 0.078 | I26: 0.726 | J26: 0.668
A27: =CONCATENATE($B$3," 2013") -> Apr-Jun 2013 | B27: 1426000 | C27: 1160000 | D27: 855000 | E27: 791000 | F27: 64000 | G27: 571000 | H27: 0.075 | I27: 0.716 | J27: 0.661
A28: =CONCATENATE($B$3," 2014") -> Apr-Jun 2014 | B28: 1435000 | C28: 1163000 | D28: 877000 | E28: 818000 | F28: 58000 | G28: 559000 | H28: 0.067 | I28: 0.732 | J28: 0.682
A29: =CONCATENATE($B$3," 2015") -> Apr-Jun 2015 | B29: 1445000 | C29: 1166000 | D29: 870000 | E29: 813000 | F29: 57000 | G29: 575000 | H29: 0.065 | I29: 0.726 | J29: 0.677
A30: =CONCATENATE($B$3," 2016") -> Apr-Jun 2016 | B30: 1454000 | C30: 1169000 | D30: 887000 | E30: 834000 | F30: 53000 | G30: 566000 | H30: 0.06 | I30: 0.736 | J30: 0.691
A31: =CONCATENATE($B$3," 2017") -> Apr-Jun 2017 | B31: 1461000 | C31: 1171000 | D31: 881000 | E31: 834000 | F31: 47000 | G31: 581000 | H31: 0.053 | I31: 0.731 | J31: 0.692
A32: Male
A33: =CONCATENATE($B$3," 1995") -> Apr-Jun 1995 | B33: =IF(VLOOKUP(A33,INDIRECT(CONCATENATE("'",$B$2,"'!M9:W1000")),2,FALSE)=0,"",VLOOKUP(A33,INDIRECT(CONCATENATE("'",$B$2,"'!M9:W1000")),2,FALSE)) -> 578000 | C33: =IF(VLOOKUP(A33,INDIRECT(CONCATENATE("'",$B$2,"'!M9:W1000")),3,FALSE)=0,"",VLOOKUP(A33,INDIRECT(CONCATENATE("'",$B$2,"'!M9:W1000")),3,FALSE)) -> 496000 | D33: =IF(VLOOKUP(A33,INDIRECT(CONCATENATE("'",$B$2,"'!M9:W1000")),4,FALSE)=0,"",VLOOKUP(A33,INDIRECT(CONCATENATE("'",$B$2,"'!M9:W1000")),4,FALSE)) -> 406000 | E33: =IF(VLOOKUP(A33,INDIRECT(CONCATENATE("'",$B$2,"'!M9:W1000")),5,FALSE)=0,"",VLOOKUP(A33,INDIRECT(CONCATENATE("'",$B$2,"'!M9:W1000")),5,FALSE)) -> 349000 | F33: =IF(VLOOKUP(A33,INDIRECT(CONCATENATE("'",$B$2,"'!M9:W1000")),6,FALSE)=0,"",VLOOKUP(A33,INDIRECT(CONCATENATE("'",$B$2,"'!M9:W1000")),6,FALSE)) -> 57000 | G33: =IF(VLOOKUP(A33,INDIRECT(CONCATENATE("'",$B$2,"'!M9:W1000")),7,FALSE)=0,"",VLOOKUP(A33,INDIRECT(CONCATENATE("'",$B$2,"'!M9:W1000")),7,FALSE)) -> 172000 | H33: =IF(VLOOKUP(A33,INDIRECT(CONCATENATE("'",$B$2,"'!M9:W1000")),8,FALSE)=0,"",VLOOKUP(A33,INDIRECT(CONCATENATE("'",$B$2,"'!M9:W1000")),8,FALSE)) -> 0.141 | I33: =IF(VLOOKUP(A33,INDIRECT(CONCATENATE("'",$B$2,"'!M9:W1000")),9,FALSE)=0,"",VLOOKUP(A33,INDIRECT(CONCATENATE("'",$B$2,"'!M9:W1000")),9,FALSE)) -> 0.799 | J33: =IF(VLOOKUP(A33,INDIRECT(CONCATENATE("'",$B$2,"'!M9:W1000")),10,FALSE)=0,"",VLOOKUP(A33,INDIRECT(CONCATENATE("'",$B$2,"'!M9:W1000")),10,FALSE)) -> 0.684 | K33: =IF(VLOOKUP(A33,INDIRECT(CONCATENATE("'",$B$2,"'!M9:W1000")),11,FALSE)=0,"",VLOOKUP(A33,INDIRECT(CONCATENATE("'",$B$2,"'!M9:W1000")),11,FALSE)) -> 
A34: =CONCATENATE($B$3," 1996") -> Apr-Jun 1996 | B34: =IF(VLOOKUP(A34,INDIRECT(CONCATENATE("'",$B$2,"'!M9:W1000")),2,FALSE)=0,"",VLOOKUP(A34,INDIRECT(CONCATENATE("'",$B$2,"'!M9:W1000")),2,FALSE)) -> 585000 | C34: =IF(VLOOKUP(A34,INDIRECT(CONCATENATE("'",$B$2,"'!M9:W1000")),3,FALSE)=0,"",VLOOKUP(A34,INDIRECT(CONCATENATE("'",$B$2,"'!M9:W1000")),3,FALSE)) -> 501000 | D34: =IF(VLOOKUP(A34,INDIRECT(CONCATENATE("'",$B$2,"'!M9:W1000")),4,FALSE)=0,"",VLOOKUP(A34,INDIRECT(CONCATENATE("'",$B$2,"'!M9:W1000")),4,FALSE)) -> 411000 | E34: =IF(VLOOKUP(A34,INDIRECT(CONCATENATE("'",$B$2,"'!M9:W1000")),5,FALSE)=0,"",VLOOKUP(A34,INDIRECT(CONCATENATE("'",$B$2,"'!M9:W1000")),5,FALSE)) -> 357000 | F34: =IF(VLOOKUP(A34,INDIRECT(CONCATENATE("'",$B$2,"'!M9:W1000")),6,FALSE)=0,"",VLOOKUP(A34,INDIRECT(CONCATENATE("'",$B$2,"'!M9:W1000")),6,FALSE)) -> 55000 | G34: =IF(VLOOKUP(A34,INDIRECT(CONCATENATE("'",$B$2,"'!M9:W1000")),7,FALSE)=0,"",VLOOKUP(A34,INDIRECT(CONCATENATE("'",$B$2,"'!M9:W1000")),7,FALSE)) -> 173000 | H34: =IF(VLOOKUP(A34,INDIRECT(CONCATENATE("'",$B$2,"'!M9:W1000")),8,FALSE)=0,"",VLOOKUP(A34,INDIRECT(CONCATENATE("'",$B$2,"'!M9:W1000")),8,FALSE)) -> 0.133 | I34: =IF(VLOOKUP(A34,INDIRECT(CONCATENATE("'",$B$2,"'!M9:W1000")),9,FALSE)=0,"",VLOOKUP(A34,INDIRECT(CONCATENATE("'",$B$2,"'!M9:W1000")),9,FALSE)) -> 0.804 | J34: =IF(VLOOKUP(A34,INDIRECT(CONCATENATE("'",$B$2,"'!M9:W1000")),10,FALSE)=0,"",VLOOKUP(A34,INDIRECT(CONCATENATE("'",$B$2,"'!M9:W1000")),10,FALSE)) -> 0.695 | K34: =IF(VLOOKUP(A34,INDIRECT(CONCATENATE("'",$B$2,"'!M9:W1000")),11,FALSE)=0,"",VLOOKUP(A34,INDIRECT(CONCATENATE("'",$B$2,"'!M9:W1000")),11,FALSE)) -> 
A35: =CONCATENATE($B$3," 1997") -> Apr-Jun 1997 | B35: 590000 | C35: 506000 | D35: 420000 | E35: 377000 | F35: 43000 | G35: 170000 | H35: 0.102 | I35: 0.813 | J35: 0.728
A36: =CONCATENATE($B$3," 1998") -> Apr-Jun 1998 | B36: 595000 | C36: 510000 | D36: 421000 | E36: 386000 | F36: 35000 | G36: 174000 | H36: 0.084 | I36: 0.811 | J36: 0.742
A37: =CONCATENATE($B$3," 1999") -> Apr-Jun 1999 | B37: 598000 | C37: 512000 | D37: 417000 | E37: 382000 | F37: =IF(VLOOKUP(A37,INDIRECT(CONCATENATE("'",$B$2,"'!M9:W1000")),6,FALSE)=0,"",VLOOKUP(A37,INDIRECT(CONCATENATE("'",$B$2,"'!M9:W1000")),6,FALSE)) -> 35000 | G37: 181000 | H37: 0.084 | I37: 0.794 | J37: 0.725
A38: =CONCATENATE($B$3," 2000") -> Apr-Jun 2000 | B38: 602000 | C38: 515000 | D38: 409000 | E38: 378000 | F38: =IF(VLOOKUP(A38,INDIRECT(CONCATENATE("'",$B$2,"'!M9:W1000")),6,FALSE)=0,"",VLOOKUP(A38,INDIRECT(CONCATENATE("'",$B$2,"'!M9:W1000")),6,FALSE)) -> 32000 | G38: 193000 | H38: 0.077 | I38: 0.774 | J38: 0.713
A39: =CONCATENATE($B$3," 2001") -> Apr-Jun 2001 | B39: 609000 | C39: 521000 | D39: 425000 | E39: 395000 | F39: 30000 | G39: 184000 | H39: 0.072 | I39: 0.801 | J39: 0.743
A40: =CONCATENATE($B$3," 2002") -> Apr-Jun 2002 | B40: 617000 | C40: 527000 | D40: 425000 | E40: 399000 | F40: 26000 | G40: 192000 | H40: 0.062 | I40: 0.785 | J40: 0.735
A41: =CONCATENATE($B$3," 2003") -> Apr-Jun 2003 | B41: 625000 | C41: 533000 | D41: 439000 | E41: 414000 | F41: 25000 | G41: 186000 | H41: 0.058 | I41: 0.805 | J41: 0.758
A42: =CONCATENATE($B$3," 2004") -> Apr-Jun 2004 | B42: 632000 | C42: 539000 | D42: 425000 | E42: 399000 | F42: 26000 | G42: 207000 | H42: 0.061 | I42: 0.774 | J42: 0.726
A43: =CONCATENATE($B$3," 2005") -> Apr-Jun 2005 | B43: 640000 | C43: 546000 | D43: 432000 | E43: 408000 | F43: 24000 | G43: 208000 | H43: 0.057 | I43: 0.776 | J43: 0.731
A44: =CONCATENATE($B$3," 2006") -> Apr-Jun 2006 | B44: 649000 | C44: 553000 | D44: 446000 | E44: 423000 | F44: 23000 | G44: 203000 | H44: 0.051 | I44: 0.789 | J44: 0.748
A45: =CONCATENATE($B$3," 2007") -> Apr-Jun 2007 | B45: 659000 | C45: 560000 | D45: 453000 | E45: 435000 | F45: 17000 | G45: 206000 | H45: 0.038 | I45: 0.79 | J45: 0.759
A46: =CONCATENATE($B$3," 2008") -> Apr-Jun 2008 | B46: 667000 | C46: 565000 | D46: 456000 | E46: 434000 | F46: 22000 | G46: 211000 | H46: 0.049 | I46: 0.791 | J46: 0.752
A47: =CONCATENATE($B$3," 2009") -> Apr-Jun 2009 | B47: 674000 | C47: 569000 | D47: 439000 | E47: 403000 | F47: 36000 | G47: 235000 | H47: 0.081 | I47: 0.752 | J47: 0.689
A48: =CONCATENATE($B$3," 2010") -> Apr-Jun 2010 | B48: 680000 | C48: 571000 | D48: 458000 | E48: 418000 | F48: 41000 | G48: 221000 | H48: 0.089 | I48: 0.782 | J48: 0.71
A49: =CONCATENATE($B$3," 2011") -> Apr-Jun 2011 | B49: 685000 | C49: 573000 | D49: 463000 | E49: 422000 | F49: 40000 | G49: 222000 | H49: 0.087 | I49: 0.791 | J49: 0.72
A50: =CONCATENATE($B$3," 2012") -> Apr-Jun 2012 | B50: 689000 | C50: 573000 | D50: 462000 | E50: 418000 | F50: 45000 | G50: 227000 | H50: 0.097 | I50: 0.787 | J50: 0.709
A51: =CONCATENATE($B$3," 2013") -> Apr-Jun 2013 | B51: 692000 | C51: 573000 | D51: 462000 | E51: 417000 | F51: 45000 | G51: 229000 | H51: =IF(VLOOKUP(A51,INDIRECT(CONCATENATE("'",$B$2,"'!M9:W1000")),8,FALSE)=0,"",VLOOKUP(A51,INDIRECT(CONCATENATE("'",$B$2,"'!M9:W1000")),8,FALSE)) -> 0.097 | I51: 0.783 | J51: 0.704
A52: =CONCATENATE($B$3," 2014") -> Apr-Jun 2014 | B52: 696000 | C52: 574000 | D52: 469000 | E52: 430000 | F52: 40000 | G52: 227000 | H52: 0.085 | I52: 0.793 | J52: 0.724
A53: =CONCATENATE($B$3," 2015") -> Apr-Jun 2015 | B53: 702000 | C53: 576000 | D53: 468000 | E53: 432000 | F53: 36000 | G53: 234000 | H53: 0.076 | I53: 0.786 | J53: 0.724
A54: =CONCATENATE($B$3," 2016") -> Apr-Jun 2016 | B54: 707000 | C54: 578000 | D54: 479000 | E54: 444000 | F54: 34000 | G54: 228000 | H54: 0.072 | I54: 0.794 | J54: 0.734
A55: =CONCATENATE($B$3," 2017") -> Apr-Jun 2017 | B55: 711000 | C55: 579000 | D55: 468000 | E55: 435000 | F55: 33000 | G55: 244000 | H55: 0.071 | I55: 0.779 | J55: 0.722
A56: Female
A57: =CONCATENATE($B$3," 1995") -> Apr-Jun 1995 | B57: =IF(VLOOKUP(A57,INDIRECT(CONCATENATE("'",$B$2,"'!Y9:AI1000")),2,FALSE)=0,"",VLOOKUP(A57,INDIRECT(CONCATENATE("'",$B$2,"'!Y9:AI1000")),2,FALSE)) -> 629000 | C57: =IF(VLOOKUP(A57,INDIRECT(CONCATENATE("'",$B$2,"'!Y9:AI1000")),3,FALSE)=0,"",VLOOKUP(A57,INDIRECT(CONCATENATE("'",$B$2,"'!Y9:AI1000")),3,FALSE)) -> 509000 | D57: =IF(VLOOKUP(A57,INDIRECT(CONCATENATE("'",$B$2,"'!Y9:AI1000")),4,FALSE)=0,"",VLOOKUP(A57,INDIRECT(CONCATENATE("'",$B$2,"'!Y9:AI1000")),4,FALSE)) -> 302000 | E57: =IF(VLOOKUP(A57,INDIRECT(CONCATENATE("'",$B$2,"'!Y9:AI1000")),5,FALSE)=0,"",VLOOKUP(A57,INDIRECT(CONCATENATE("'",$B$2,"'!Y9:AI1000")),5,FALSE)) -> 282000 | F57: =IF(VLOOKUP(A57,INDIRECT(CONCATENATE("'",$B$2,"'!Y9:AI1000")),6,FALSE)=0,"",VLOOKUP(A57,INDIRECT(CONCATENATE("'",$B$2,"'!Y9:AI1000")),6,FALSE)) -> 20000 | G57: =IF(VLOOKUP(A57,INDIRECT(CONCATENATE("'",$B$2,"'!Y9:AI1000")),7,FALSE)=0,"",VLOOKUP(A57,INDIRECT(CONCATENATE("'",$B$2,"'!Y9:AI1000")),7,FALSE)) -> 327000 | H57: =IF(VLOOKUP(A57,INDIRECT(CONCATENATE("'",$B$2,"'!Y9:AI1000")),8,FALSE)=0,"",VLOOKUP(A57,INDIRECT(CONCATENATE("'",$B$2,"'!Y9:AI1000")),8,FALSE)) -> 0.067 | I57: =IF(VLOOKUP(A57,INDIRECT(CONCATENATE("'",$B$2,"'!Y9:AI1000")),9,FALSE)=0,"",VLOOKUP(A57,INDIRECT(CONCATENATE("'",$B$2,"'!Y9:AI1000")),9,FALSE)) -> 0.586 | J57: =IF(VLOOKUP(A57,INDIRECT(CONCATENATE("'",$B$2,"'!Y9:AI1000")),10,FALSE)=0,"",VLOOKUP(A57,INDIRECT(CONCATENATE("'",$B$2,"'!Y9:AI1000")),10,FALSE)) -> 0.546 | K57: =IF(VLOOKUP(A57,INDIRECT(CONCATENATE("'",$B$2,"'!Y9:AI1000")),11,FALSE)=0,"",VLOOKUP(A57,INDIRECT(CONCATENATE("'",$B$2,"'!Y9:AI1000")),11,FALSE)) -> 
A58: =CONCATENATE($B$3," 1996") -> Apr-Jun 1996 | B58: =IF(VLOOKUP(A58,INDIRECT(CONCATENATE("'",$B$2,"'!Y9:AI1000")),2,FALSE)=0,"",VLOOKUP(A58,INDIRECT(CONCATENATE("'",$B$2,"'!Y9:AI1000")),2,FALSE)) -> 635000 | C58: =IF(VLOOKUP(A58,INDIRECT(CONCATENATE("'",$B$2,"'!Y9:AI1000")),3,FALSE)=0,"",VLOOKUP(A58,INDIRECT(CONCATENATE("'",$B$2,"'!Y9:AI1000")),3,FALSE)) -> 515000 | D58: =IF(VLOOKUP(A58,INDIRECT(CONCATENATE("'",$B$2,"'!Y9:AI1000")),4,FALSE)=0,"",VLOOKUP(A58,INDIRECT(CONCATENATE("'",$B$2,"'!Y9:AI1000")),4,FALSE)) -> 312000 | E58: =IF(VLOOKUP(A58,INDIRECT(CONCATENATE("'",$B$2,"'!Y9:AI1000")),5,FALSE)=0,"",VLOOKUP(A58,INDIRECT(CONCATENATE("'",$B$2,"'!Y9:AI1000")),5,FALSE)) -> 290000 | F58: =IF(VLOOKUP(A58,INDIRECT(CONCATENATE("'",$B$2,"'!Y9:AI1000")),6,FALSE)=0,"",VLOOKUP(A58,INDIRECT(CONCATENATE("'",$B$2,"'!Y9:AI1000")),6,FALSE)) -> 22000 | G58: =IF(VLOOKUP(A58,INDIRECT(CONCATENATE("'",$B$2,"'!Y9:AI1000")),7,FALSE)=0,"",VLOOKUP(A58,INDIRECT(CONCATENATE("'",$B$2,"'!Y9:AI1000")),7,FALSE)) -> 323000 | H58: =IF(VLOOKUP(A58,INDIRECT(CONCATENATE("'",$B$2,"'!Y9:AI1000")),8,FALSE)=0,"",VLOOKUP(A58,INDIRECT(CONCATENATE("'",$B$2,"'!Y9:AI1000")),8,FALSE)) -> 0.071 | I58: =IF(VLOOKUP(A58,INDIRECT(CONCATENATE("'",$B$2,"'!Y9:AI1000")),9,FALSE)=0,"",VLOOKUP(A58,INDIRECT(CONCATENATE("'",$B$2,"'!Y9:AI1000")),9,FALSE)) -> 0.6 | J58: =IF(VLOOKUP(A58,INDIRECT(CONCATENATE("'",$B$2,"'!Y9:AI1000")),10,FALSE)=0,"",VLOOKUP(A58,INDIRECT(CONCATENATE("'",$B$2,"'!Y9:AI1000")),10,FALSE)) -> 0.556 | K58: =IF(VLOOKUP(A58,INDIRECT(CONCATENATE("'",$B$2,"'!Y9:AI1000")),11,FALSE)=0,"",VLOOKUP(A58,INDIRECT(CONCATENATE("'",$B$2,"'!Y9:AI1000")),11,FALSE)) -> 
A59: =CONCATENATE($B$3," 1997") -> Apr-Jun 1997 | B59: 641000 | C59: 520000 | D59: 325000 | E59: 307000 | F59: 18000 | G59: 316000 | H59: 0.054 | I59: 0.619 | J59: 0.585
A60: =CONCATENATE($B$3," 1998") -> Apr-Jun 1998 | B60: 646000 | C60: 524000 | D60: 319000 | E60: 303000 | F60: 16000 | G60: 327000 | H60: 0.051 | I60: 0.605 | J60: 0.574
A61: =CONCATENATE($B$3," 1999") -> Apr-Jun 1999 | B61: 649000 | C61: 528000 | D61: 332000 | E61: 310000 | F61: 22000 | G61: 318000 | H61: 0.066 | I61: 0.621 | J61: 0.579
A62: =CONCATENATE($B$3," 2000") -> Apr-Jun 2000 | B62: 654000 | C62: 532000 | D62: 318000 | E62: 301000 | F62: 17000 | G62: 336000 | H62: 0.054 | I62: 0.595 | J62: 0.563
A63: =CONCATENATE($B$3," 2001") -> Apr-Jun 2001 | B63: 659000 | C63: 536000 | D63: 327000 | E63: 312000 | F63: 15000 | G63: 332000 | H63: 0.046 | I63: 0.605 | J63: 0.577
A64: =CONCATENATE($B$3," 2002") -> Apr-Jun 2002 | B64: 666000 | C64: 542000 | D64: 338000 | E64: 323000 | F64: 16000 | G64: 327000 | H64: 0.047 | I64: 0.619 | J64: 0.59
A65: =CONCATENATE($B$3," 2003") -> Apr-Jun 2003 | B65: 672000 | C65: 547000 | D65: 344000 | E65: 330000 | F65: 14000 | G65: 327000 | H65: 0.042 | I65: 0.623 | J65: 0.597
A66: =CONCATENATE($B$3," 2004") -> Apr-Jun 2004 | B66: 678000 | C66: 552000 | D66: 335000 | E66: 323000 | F66: 12000 | G66: 343000 | H66: 0.036 | I66: 0.605 | J66: 0.583
A67: =CONCATENATE($B$3," 2005") -> Apr-Jun 2005 | B67: 686000 | C67: 558000 | D67: 358000 | E67: 344000 | F67: 14000 | G67: 328000 | H67: 0.039 | I67: 0.633 | J67: 0.608
A68: =CONCATENATE($B$3," 2006") -> Apr-Jun 2006 | B68: 694000 | C68: 565000 | D68: 366000 | E68: 355000 | F68: 11000 | G68: 328000 | H68: 0.029 | I68: 0.638 | J68: 0.618
A69: =CONCATENATE($B$3," 2007") -> Apr-Jun 2007 | B69: 704000 | C69: 573000 | D69: 372000 | E69: 360000 | F69: 12000 | G69: 331000 | H69: 0.033 | I69: 0.641 | J69: 0.62
A70: =CONCATENATE($B$3," 2008") -> Apr-Jun 2008 | B70: 712000 | C70: 579000 | D70: 377000 | E70: 367000 | F70: 10000 | G70: 335000 | H70: 0.026 | I70: 0.64 | J70: 0.623
A71: =CONCATENATE($B$3," 2009") -> Apr-Jun 2009 | B71: 718000 | C71: 583000 | D71: 367000 | E71: 350000 | F71: 17000 | G71: 351000 | H71: 0.046 | I71: 0.62 | J71: 0.592
A72: =CONCATENATE($B$3," 2010") -> Apr-Jun 2010 | B72: 724000 | C72: 585000 | D72: 379000 | E72: 365000 | F72: 15000 | G72: 345000 | H72: 0.039 | I72: 0.642 | J72: 0.616
A73: =CONCATENATE($B$3," 2011") -> Apr-Jun 2011 | B73: 728000 | C73: 587000 | D73: 406000 | E73: 382000 | F73: 23000 | G73: 323000 | H73: 0.057 | I73: 0.675 | J73: 0.635
A74: =CONCATENATE($B$3," 2012") -> Apr-Jun 2012 | B74: 732000 | C74: 587000 | D74: 400000 | E74: 377000 | F74: 23000 | G74: 332000 | H74: 0.057 | I74: 0.667 | J74: 0.629
A75: =CONCATENATE($B$3," 2013") -> Apr-Jun 2013 | B75: 735000 | C75: 587000 | D75: 393000 | E75: 374000 | F75: 19000 | G75: 342000 | H75: 0.048 | I75: 0.651 | J75: 0.619
A76: =CONCATENATE($B$3," 2014") -> Apr-Jun 2014 | B76: 739000 | C76: 589000 | D76: 407000 | E76: 388000 | F76: 19000 | G76: 332000 | H76: 0.046 | I76: 0.672 | J76: 0.64
A77: =CONCATENATE($B$3," 2015") -> Apr-Jun 2015 | B77: 743000 | C77: 590000 | D77: 402000 | E77: 381000 | F77: 21000 | G77: 341000 | H77: 0.052 | I77: 0.667 | J77: 0.631
A78: =CONCATENATE($B$3," 2016") -> Apr-Jun 2016 | B78: 747000 | C78: 592000 | D78: 408000 | E78: 390000 | F78: 18000 | G78: 338000 | H78: 0.045 | I78: 0.68 | J78: 0.649
A79: =CONCATENATE($B$3," 2017") -> Apr-Jun 2017 | B79: 750000 | C79: 592000 | D79: 413000 | E79: 400000 | F79: 13000 | G79: 337000 | H79: 0.032 | I79: 0.684 | J79: 0.662
A81: Please Note
A82: - Data is unavailable
A83: * Sample size too small for a reliable estimate
A84: =IF(VLOOKUP(1,INDIRECT(CONCATENATE("'",$B$2,"'!A256:b400")),2,FALSE)=0,"",VLOOKUP(1,INDIRECT(CONCATENATE("'",$B$2,"'!A256:b400")),2,FALSE)) -> Relationship between columns: A=C+F; C=D+E; G=E/C, H=economically active of working age/total population of working age,
A85: =IF(VLOOKUP(2,INDIRECT(CONCATENATE("'",$B$2,"'!A256:b400")),2,FALSE)=0,"",VLOOKUP(2,INDIRECT(CONCATENATE("'",$B$2,"'!A256:b400")),2,FALSE)) -> I=in employment of working age/total population of working age.
A86: =IF(VLOOKUP(3,INDIRECT(CONCATENATE("'",$B$2,"'!A256:b400")),2,FALSE)=0,"",VLOOKUP(3,INDIRECT(CONCATENATE("'",$B$2,"'!A256:b400")),2,FALSE)) -> A and B are underlying population estimates and are therefore not seasonally adjusted
A87: =IF(VLOOKUP(4,INDIRECT(CONCATENATE("'",$B$2,"'!A256:b400")),2,FALSE)=0,"",VLOOKUP(4,INDIRECT(CONCATENATE("'",$B$2,"'!A256:b400")),2,FALSE)) -> Figures may not sum due to rounding.
A88: =IF(VLOOKUP(5,INDIRECT(CONCATENATE("'",$B$2,"'!A256:b400")),2,FALSE)=0,"",VLOOKUP(5,INDIRECT(CONCATENATE("'",$B$2,"'!A256:b400")),2,FALSE)) -> The term 'working-age' refers to the 16-64 population for both males and females. See notes for further details.
A89: =IF(VLOOKUP(6,INDIRECT(CONCATENATE("'",$B$2,"'!A256:b400")),2,FALSE)=0,"",VLOOKUP(6,INDIRECT(CONCATENATE("'",$B$2,"'!A256:b400")),2,FALSE)) -> LFS estimates have been revised to incorporate the latest population figures. See note 16 for further information.
A90: =IF(VLOOKUP(7,INDIRECT(CONCATENATE("'",$B$2,"'!A256:b400")),2,FALSE)=0,"",VLOOKUP(7,INDIRECT(CONCATENATE("'",$B$2,"'!A256:b400")),2,FALSE)) -> As figures are based on a sample survey and in order to achieve a large enough sample size the figures are based
A91: =IF(VLOOKUP(8,INDIRECT(CONCATENATE("'",$B$2,"'!A256:b400")),2,FALSE)=0,"",VLOOKUP(8,INDIRECT(CONCATENATE("'",$B$2,"'!A256:b400")),2,FALSE)) -> on what are called 'Rolling Monthly Quarters'. Figures from this period should be only compared to non-overlapping
A92: =IF(VLOOKUP(9,INDIRECT(CONCATENATE("'",$B$2,"'!A256:b400")),2,FALSE)=0,"",VLOOKUP(9,INDIRECT(CONCATENATE("'",$B$2,"'!A256:b400")),2,FALSE)) -> periods e.g. Figures from Jan-Mar can be compared to Apr-Jun, Jul-Sep Oct-Dec.

Sheet Notes
F1: LABOUR FORCE SURVEY
A3: The Labour Force Survey (LFS) is a sample survey carried out by interviewing individuals about their personal circumstances and work. It is the biggest regular household survey in Northern Ireland and provides a rich source of information on the labour force using internationally agreed concepts and definitions. The sample of addresses for the LFS is obtained from the Valuation & Lands Agency list of domestic properties in Northern Ireland (only private household addresses are eligible as the LFS is a survey of the private household population).
A5: The quarterly survey has been designed to give reliable estimates for each quarter, as well as estimates of change over consecutive quarters. These aims have been achieved by using an unclustered sample with a large element of overlap between quarters. The theoretical sample for each quarter consists of around 3,250 addresses, made up of five 'waves', each containing approximately 650 private households. Every sampled address is interviewed in five successive quarters, such that in any one quarter one wave will be receiving their first interview, one wave their second and so on, with one wave receiving their fifth and final interview. This results in an 80% sample overlap between quarters.
A7: The results of the LFS are usually quoted to the nearest 1,000 following the grossing of sample numbers to population levels. This process involves assigning a weight or “grossing factor” to each individual participating in the survey in accordance with that person’s age and sex. In this way the final grossed results give the population total for Northern Ireland and reflect the distributions by sex and age shown by the population figures.
A9: Because the LFS is a sample survey, results are subject to sampling error, i.e. the actual proportion of the population in private households with a particular characteristic may differ from the proportion of the LFS sample with that characteristic. See Note 14 for details of sampling errors from the latest LFS results.
F12: NOTES AND DEFINITIONS
A14: 1. In Employment There are two ways of looking at employment: the number of people in employment or the number of jobs. These two concepts represent different things as one person can have more than one job. The LFS counts the number of people in employment. The LFS defines employment as those people aged 16 and over who did at least one hour’s paid work in the reference week (either as an employee or self-employed); those who had a job which they were temporarily away from (on holiday for example); those participating in government training and employment programmes; and those doing unpaid family work.
A15: 2. Employees The division between employees and self-employed is based on survey respondents' own assessment of their employment status. Note that there are revisions to the component employee and self-employment series back to Spring 1992. These arise from improvements to the LFS editing procedures, based on the SOC 2000 Occupational Classification, which allow data edits to be removed which previously re-classified some self-employed as employees.
A16: 3. Unpaid Family Workers The separate identification of this group in the LFS is in accordance with international recommendations. It comprises of persons doing unpaid work for a business they own or for a business that a relative owns.
A17: 4. Full-time/Part-time The classification of employees, self-employed, those on government work-related training programmes and unpaid family workers in their main job as full-time or part-time is on the basis of self-assessment. People on Government supported training and employment programmes who are at college in the survey reference week are classified, by convention, as part-time.
A18: 5. Temporary Employees These are defined as those employees who say that their main job is non permanent in one of the following ways: fixed period contract; agency temping; casual work; seasonal work; other temporary work.
A19: 6. Working Age Working age is taken as ages 16 to 64 for both males and females.
A20: 7. Employment Rate (working age) The number of working age in employment as a percentage of the total population of working age.
A21: 8. Discouraged Workers This is a sub-group of the economically inactive population, defined as those neither in employment nor unemployed who said they would like a job and whose main reason for not seeking work was because they believed there were no jobs available.
A22: 9. Unemployment The LFS measure of unemployment refers to people without a job who were available to start work in the two weeks following their LFS interview and had either looked for work in the four weeks prior to interview or were waiting to start a job they had already obtained. This definition of unemployment is in accordance with that adopted by the 14th International Conference of Labour Statisticians and promulgated by the International Labour Organisation in 1987. The unemployment rate is the percentage of economically active people who are unemployed.
A23: 10. Duration of Unemployment Duration of unemployment is defined as the shorter of the following two periods: (a) duration of active search for work; and (b) length of time since employment. The short-term unemployed are those people who have been unemployed for under 1 year while the long-term unemployed are defined as those who have been unemployed for 1 year or more.
A24: 11. Economically Active People aged 16 and over who are either in employment or unemployed.
A25: 12. Economic Activity Rate (working age) The number of people who are in employment or unemployed as a percentage of the total population of working age.
A26: 13. Economically Inactive People who are neither in employment nor unemployed. This group includes, for example, all those who were looking after a home or retired. Although most LFS analyses is for the 16 plus population, this group would also include all people aged under 16.
A27: 14. Sampling The Labour Force Survey is a sample survey, and as such, estimates obtained from it are subject to sampling variability. If we drew many samples each would give a different result. The ranges shown for the LFS data in the table below represent 95% confidence intervals. We would expect that in 95% of samples the range would contain the true value.
A28: 15. Publication Threshold It is the nature of a sampling variability that the smaller the group whose size is being estimated, the (proportionately) less precise that estimate is. LFS estimates of under 8,000 are not published as they are likely to be unreliable.
A29: 16. LFS Revisions LFS microdata have recently been revised to incorporate the latest population estimates. The revisions affect LFS data from the period May - July 2012 onwards and were first published in May 2017. The magnitude of the revisions are relatively small, with the revisions to the unemployment rate falling within +/-0.1 percentage points and the working age employment rate within +/- 0.2 percentage points. The procedures being applied to the NI LFS results are consistent with those applied by the Office for National Statistics to other UK regions. More information on the revision policy concerning labour market statistics can be found through the link below: http://www.ons.gov.uk/ons/guide-method/method-quality/specific/labour-market/articles-and-reports/revisions-to-labour-force-survey-estimates.pdf
A30: 17. Working Age The ‘working age’ definition, used in the calculation of employment and economic inactivity rates, was changed in August 2010 to include those aged from 16 to 64 for both men and women. Previously these rates were based on upper age limits of 59 for women and 64 for men, reflecting the state pension ages in the UK. The change in definition follows a UK wide public consultation on the issue and the approach being applied to Northern Ireland labour market statistics mirrors the approach that the Office for National Statistics (ONS) are applying to other UK regions. Please note that there are no implications for the headline unemployment rate, which will continue to be based on the economically active population aged 16 and over.

Sheet 2.1a
AH1: 1000
A2: TABLE 2.1a | M2: TABLE 2.1a | Y2: TABLE 2.1a
A3: Northern Ireland Labour Market Structure: SEASONALLY ADJUSTED - Total | M3: Northern Ireland Labour Market Structure: SEASONALLY ADJUSTED - Males | Y3: Northern Ireland Labour Market Structure: SEASONALLY ADJUSTED - Females
A4: 1 | B4: Total | C4: Total | D4: Active | E4: Employment | F4: Unemployed | G4: Economically Inactive | H4: Unemployment | I4: Activity | J4: Employment | M4: 1 | N4: Total | O4: Total | P4: Active | Q4: Employment | R4: Unemployed | S4: Economically | T4: Unemployment | U4: Activity | V4: Employment | Y4: 1 | Z4: Total | AA4: Total | AB4: Active | AC4: Employment | AD4: Unemployed | AE4: Economically | AF4: Unemployment | AG4: Activity | AH4: Employment
A5: 2 | B5: (16+) | C5: (16-64) | D5: (16+) | E5: (16+) | F5: (16+) | G5: (16+) | H5: (16+ Rate) | I5: (16-64 Rate) | J5: (16-64 Rate) | M5: 2 | N5: (16+) | O5: (16-64) | P5: (16+) | Q5: (16+) | R5: (16+) | S5: (16+) | T5: (16+ Rate) | U5: (16-64 Rate) | V5: (16-64 Rate) | Y5: 2 | Z5: (16+) | AA5: (16-64) | AB5: (16+) | AC5: (16+) | AD5: (16+) | AE5: (16+) | AF5: (16+ Rate) | AG5: (16-64 Rate) | AH5: (16-64 Rate)
A6: 3 | B6: A | C6: B | D6: C | E6: D | F6: E | G6: F | H6: G | I6: H | J6: I | M6: 3 | N6: A | O6: B | P6: C | Q6: D | R6: E | S6: F | T6: G | U6: H | V6: I | Y6: 3 | Z6: A | AA6: B | AB6: C | AC6: D | AD6: E | AE6: F | AF6: G | AG6: H | AH6: I
A7: ALL PERSONS | M7: MEN | Y7: WOMEN
A8: Mar-May 1992 | B8: 1176000 | C8: 979000 | D8: 704000 | E8: 618000 | F8: 86000 | G8: 472000 | H8: 0.123 | I8: 0.707 | J8: 0.619 | M8: Mar-May 1992 | N8: 563000 | O8: 482000 | P8: 405000 | Q8: 344000 | R8: 60000 | S8: 158000 | T8: 0.149 | U8: 0.822 | V8: 0.697 | Y8: Mar-May 1992 | Z8: 613000 | AA8: 496000 | AB8: 299000 | AC8: 273000 | AD8: 26000 | AE8: 314000 | AF8: 0.087 | AG8: 0.595 | AH8: 0.543
A9: Mar-May 1993 | B9: 1189000 | C9: 990000 | D9: 695000 | E9: 605000 | F9: 89000 | G9: 495000 | H9: 0.128 | I9: 0.691 | J9: 0.601 | M9: Mar-May 1993 | N9: 570000 | O9: 489000 | P9: 409000 | Q9: 345000 | R9: 64000 | S9: 161000 | T9: 0.156 | U9: 0.821 | V9: 0.691 | Y9: Mar-May 1993 | Z9: 619000 | AA9: 501000 | AB9: 285000 | AC9: 260000 | AD9: 25000 | AE9: 334000 | AF9: 0.089 | AG9: 0.563 | AH9: 0.513
A10: Mar-May 1994 | B10: 1198000 | C10: 998000 | D10: 691000 | E10: 610000 | F10: 81000 | G10: 507000 | H10: 0.118 | I10: 0.681 | J10: 0.6 | M10: Mar-May 1994 | N10: 574000 | O10: 493000 | P10: 402000 | Q10: 341000 | R10: 61000 | S10: 172000 | T10: 0.151 | U10: 0.799 | V10: 0.676 | Y10: Mar-May 1994 | Z10: 624000 | AA10: 505000 | AB10: 289000 | AC10: 268000 | AD10: 21000 | AE10: 335000 | AF10: 0.071 | AG10: 0.566 | AH10: 0.525
A11: Nov-Jan 1995 | B11: - | C11: - | D11: - | E11: - | F11: - | G11: - | H11: - | I11: - | J11: - | M11: Nov-Jan 1995 | N11: - | O11: - | P11: - | Q11: - | R11: - | S11: - | T11: - | U11: - | V11: - | Y11: Nov-Jan 1995 | Z11: - | AA11: - | AB11: - | AC11: - | AD11: - | AE11: - | AF11: - | AG11: - | AH11: -
A12: Dec-Feb 1995 | B12: 1204000 | C12: 1003000 | D12: 691000 | E12: 613000 | F12: 78000 | G12: 513000 | H12: 0.113 | I12: 0.677 | J12: 0.599 | M12: Dec-Feb 1995 | N12: 577000 | O12: 495000 | P12: 402000 | Q12: 345000 | R12: 57000 | S12: 175000 | T12: 0.142 | U12: 0.795 | V12: 0.68 | Y12: Dec-Feb 1995 | Z12: 628000 | AA12: 508000 | AB12: 289000 | AC12: 267000 | AD12: 21000 | AE12: 339000 | AF12: 0.074 | AG12: 0.562 | AH12: 0.52
A13: Jan-Mar 1995 | B13: 1205000 | C13: 1003000 | D13: 697000 | E13: 619000 | F13: 78000 | G13: 508000 | H13: 0.112 | I13: 0.682 | J13: 0.604 | M13: Jan-Mar 1995 | N13: 577000 | O13: 495000 | P13: 403000 | Q13: 347000 | R13: 55000 | S13: 174000 | T13: 0.137 | U13: 0.795 | V13: 0.683 | Y13: Jan-Mar 1995 | Z13: 628000 | AA13: 508000 | AB13: 294000 | AC13: 272000 | AD13: 23000 | AE13: 333000 | AF13: 0.077 | AG13: 0.572 | AH13: 0.528
A14: Feb-Apr 1995 | B14: 1206000 | C14: 1004000 | D14: 709000 | E14: 628000 | F14: 80000 | G14: 497000 | H14: 0.113 | I14: 0.692 | J14: 0.612 | M14: Feb-Apr 1995 | N14: 578000 | O14: 495000 | P14: 408000 | Q14: 349000 | R14: 58000 | S14: 170000 | T14: 0.143 | U14: 0.803 | V14: 0.686 | Y14: Feb-Apr 1995 | Z14: 628000 | AA14: 509000 | AB14: 301000 | AC14: 279000 | AD14: 22000 | AE14: 327000 | AF14: 0.074 | AG14: 0.584 | AH14: 0.54
A15: Mar-May 1995 | B15: 1206000 | C15: 1005000 | D15: 710000 | E15: 630000 | F15: 79000 | G15: 497000 | H15: 0.112 | I15: 0.692 | J15: 0.613 | M15: Mar-May 1995 | N15: 578000 | O15: 495000 | P15: 407000 | Q15: 350000 | R15: 57000 | S15: 171000 | T15: 0.141 | U15: 0.8 | V15: 0.685 | Y15: Mar-May 1995 | Z15: 629000 | AA15: 509000 | AB15: 303000 | AC15: 281000 | AD15: 22000 | AE15: 326000 | AF15: 0.073 | AG15: 0.586 | AH15: 0.542
A16: Apr-Jun 1995 | B16: 1207000 | C16: 1005000 | D16: 708000 | E16: 631000 | F16: 77000 | G16: 499000 | H16: 0.109 | I16: 0.691 | J16: 0.614 | M16: Apr-Jun 1995 | N16: 578000 | O16: 496000 | P16: 406000 | Q16: 349000 | R16: 57000 | S16: 172000 | T16: 0.141 | U16: 0.799 | V16: 0.684 | Y16: Apr-Jun 1995 | Z16: 629000 | AA16: 509000 | AB16: 302000 | AC16: 282000 | AD16: 20000 | AE16: 327000 | AF16: 0.067 | AG16: 0.586 | AH16: 0.546
A17: May-Jul 1995 | B17: 1208000 | C17: 1005000 | D17: 709000 | E17: 636000 | F17: 74000 | G17: 498000 | H17: 0.104 | I17: 0.693 | J17: 0.619 | M17: May-Jul 1995 | N17: 578000 | O17: 496000 | P17: 405000 | Q17: 352000 | R17: 54000 | S17: 173000 | T17: 0.132 | U17: 0.8 | V17: 0.692 | Y17: May-Jul 1995 | Z17: 629000 | AA17: 510000 | AB17: 304000 | AC17: 284000 | AD17: 20000 | AE17: 325000 | AF17: 0.066 | AG17: 0.588 | AH17: 0.549
A18: Jun-Aug 1995 | B18: 1208000 | C18: 1006000 | D18: 711000 | E18: 634000 | F18: 77000 | G18: 497000 | H18: 0.108 | I18: 0.694 | J18: 0.617 | M18: Jun-Aug 1995 | N18: 579000 | O18: 496000 | P18: 406000 | Q18: 350000 | R18: 56000 | S18: 172000 | T18: 0.137 | U18: 0.802 | V18: 0.69 | Y18: Jun-Aug 1995 | Z18: 630000 | AA18: 510000 | AB18: 305000 | AC18: 284000 | AD18: 21000 | AE18: 325000 | AF18: 0.07 | AG18: 0.589 | AH18: 0.547
A19: Jul-Sep 1995 | B19: 1209000 | C19: 1007000 | D19: 712000 | E19: 639000 | F19: 73000 | G19: 498000 | H19: 0.102 | I19: 0.695 | J19: 0.622 | M19: Jul-Sep 1995 | N19: 579000 | O19: 496000 | P19: 404000 | Q19: 349000 | R19: 55000 | S19: 175000 | T19: 0.135 | U19: 0.797 | V19: 0.687 | Y19: Jul-Sep 1995 | Z19: 630000 | AA19: 510000 | AB19: 308000 | AC19: 290000 | AD19: 18000 | AE19: 323000 | AF19: 0.059 | AG19: 0.595 | AH19: 0.56
A20: Aug-Oct 1995 | B20: 1211000 | C20: 1008000 | D20: 721000 | E20: 643000 | F20: 78000 | G20: 490000 | H20: 0.108 | I20: 0.702 | J20: 0.625 | M20: Aug-Oct 1995 | N20: 580000 | O20: 497000 | P20: 408000 | Q20: 350000 | R20: 57000 | S20: 172000 | T20: 0.141 | U20: 0.803 | V20: 0.687 | Y20: Aug-Oct 1995 | Z20: 631000 | AA20: 511000 | AB20: 313000 | AC20: 292000 | AD20: 21000 | AE20: 318000 | AF20: 0.066 | AG20: 0.605 | AH20: 0.564
A21: Sep-Nov 1995 | B21: 1212000 | C21: 1009000 | D21: 723000 | E21: 648000 | F21: 75000 | G21: 489000 | H21: 0.103 | I21: 0.703 | J21: 0.629 | M21: Sep-Nov 1995 | N21: 580000 | O21: 498000 | P21: 408000 | Q21: 353000 | R21: 55000 | S21: 172000 | T21: 0.135 | U21: 0.802 | V21: 0.692 | Y21: Sep-Nov 1995 | Z21: 631000 | AA21: 511000 | AB21: 314000 | AC21: 295000 | AD21: 19000 | AE21: 317000 | AF21: 0.062 | AG21: 0.606 | AH21: 0.568
A22: Oct-Dec 1995 | B22: 1213000 | C22: 1010000 | D22: 725000 | E22: 652000 | F22: 73000 | G22: 488000 | H22: 0.1 | I22: 0.705 | J22: 0.632 | M22: Oct-Dec 1995 | N22: 581000 | O22: 498000 | P22: 410000 | Q22: 357000 | R22: 52000 | S22: 171000 | T22: 0.128 | U22: 0.805 | V22: 0.701 | Y22: Oct-Dec 1995 | Z22: 632000 | AA22: 512000 | AB22: 316000 | AC22: 295000 | AD22: 21000 | AE22: 316000 | AF22: 0.065 | AG22: 0.607 | AH22: 0.566
A23: Nov-Jan 1996 | B23: 1214000 | C23: 1011000 | D23: 728000 | E23: 660000 | F23: 69000 | G23: 486000 | H23: 0.094 | I23: 0.706 | J23: 0.639 | M23: Nov-Jan 1996 | N23: 582000 | O23: 498000 | P23: 411000 | Q23: 361000 | R23: 50000 | S23: 170000 | T23: 0.123 | U23: 0.807 | V23: 0.706 | Y23: Nov-Jan 1996 | Z23: 632000 | AA23: 512000 | AB23: 317000 | AC23: 299000 | AD23: 18000 | AE23: 316000 | AF23: 0.057 | AG23: 0.609 | AH23: 0.573
A24: Dec-Feb 1996 | B24: 1215000 | C24: 1012000 | D24: 727000 | E24: 659000 | F24: 69000 | G24: 488000 | H24: 0.094 | I24: 0.704 | J24: 0.637 | M24: Dec-Feb 1996 | N24: 582000 | O24: 499000 | P24: 412000 | Q24: 362000 | R24: 50000 | S24: 170000 | T24: 0.123 | U24: 0.807 | V24: 0.705 | Y24: Dec-Feb 1996 | Z24: 633000 | AA24: 513000 | AB24: 315000 | AC24: 297000 | AD24: 18000 | AE24: 318000 | AF24: 0.057 | AG24: 0.605 | AH24: 0.57
A25: Jan-Mar 1996 | B25: 1216000 | C25: 1013000 | D25: 729000 | E25: 663000 | F25: 67000 | G25: 487000 | H25: 0.091 | I25: 0.705 | J25: 0.639 | M25: Jan-Mar 1996 | N25: 583000 | O25: 500000 | P25: 417000 | Q25: 367000 | R25: 50000 | S25: 166000 | T25: 0.12 | U25: 0.812 | V25: 0.712 | Y25: Jan-Mar 1996 | Z25: 634000 | AA25: 513000 | AB25: 313000 | AC25: 296000 | AD25: 17000 | AE25: 321000 | AF25: 0.053 | AG25: 0.601 | AH25: 0.569
A26: Feb-Apr 1996 | B26: 1218000 | C26: 1014000 | D26: 726000 | E26: 656000 | F26: 70000 | G26: 491000 | H26: 0.096 | I26: 0.703 | J26: 0.634 | M26: Feb-Apr 1996 | N26: 583000 | O26: 500000 | P26: 416000 | Q26: 364000 | R26: 52000 | S26: 168000 | T26: 0.124 | U26: 0.812 | V26: 0.708 | Y26: Feb-Apr 1996 | Z26: 634000 | AA26: 514000 | AB26: 311000 | AC26: 292000 | AD26: 18000 | AE26: 324000 | AF26: 0.059 | AG26: 0.597 | AH26: 0.561
A27: Mar-May 1996 | B27: 1219000 | C27: 1015000 | D27: 725000 | E27: 654000 | F27: 71000 | G27: 494000 | H27: 0.097 | I27: 0.701 | J27: 0.631 | M27: Mar-May 1996 | N27: 584000 | O27: 501000 | P27: 414000 | Q27: 363000 | R27: 51000 | S27: 170000 | T27: 0.122 | U27: 0.807 | V27: 0.706 | Y27: Mar-May 1996 | Z27: 635000 | AA27: 514000 | AB27: 311000 | AC27: 291000 | AD27: 20000 | AE27: 324000 | AF27: 0.064 | AG27: 0.597 | AH27: 0.559
A28: Apr-Jun 1996 | B28: 1220000 | C28: 1016000 | D28: 723000 | E28: 646000 | F28: 77000 | G28: 497000 | H28: 0.106 | I28: 0.701 | J28: 0.625 | M28: Apr-Jun 1996 | N28: 585000 | O28: 501000 | P28: 411000 | Q28: 357000 | R28: 55000 | S28: 173000 | T28: 0.133 | U28: 0.804 | V28: 0.695 | Y28: Apr-Jun 1996 | Z28: 635000 | AA28: 515000 | AB28: 312000 | AC28: 290000 | AD28: 22000 | AE28: 323000 | AF28: 0.071 | AG28: 0.6 | AH28: 0.556
A29: May-Jul 1996 | B29: 1221000 | C29: 1017000 | D29: 725000 | E29: 652000 | F29: 73000 | G29: 496000 | H29: 0.101 | I29: 0.701 | J29: 0.629 | M29: May-Jul 1996 | N29: 585000 | O29: 502000 | P29: 413000 | Q29: 362000 | R29: 51000 | S29: 172000 | T29: 0.124 | U29: 0.805 | V29: 0.704 | Y29: May-Jul 1996 | Z29: 636000 | AA29: 516000 | AB29: 312000 | AC29: 290000 | AD29: 22000 | AE29: 324000 | AF29: 0.07 | AG29: 0.599 | AH29: 0.557
A30: Jun-Aug 1996 | B30: 1222000 | C30: 1018000 | D30: 729000 | E30: 655000 | F30: 73000 | G30: 494000 | H30: 0.1 | I30: 0.703 | J30: 0.632 | M30: Jun-Aug 1996 | N30: 586000 | O30: 502000 | P30: 413000 | Q30: 364000 | R30: 49000 | S30: 172000 | T30: 0.12 | U30: 0.805 | V30: 0.707 | Y30: Jun-Aug 1996 | Z30: 637000 | AA30: 516000 | AB30: 315000 | AC30: 292000 | AD30: 24000 | AE30: 321000 | AF30: 0.075 | AG30: 0.604 | AH30: 0.559
A31: Jul-Sep 1996 | B31: 1223000 | C31: 1019000 | D31: 732000 | E31: 659000 | F31: 73000 | G31: 491000 | H31: 0.099 | I31: 0.705 | J31: 0.634 | M31: Jul-Sep 1996 | N31: 586000 | O31: 502000 | P31: 413000 | Q31: 365000 | R31: 49000 | S31: 173000 | T31: 0.118 | U31: 0.803 | V31: 0.707 | Y31: Jul-Sep 1996 | Z31: 637000 | AA31: 516000 | AB31: 318000 | AC31: 294000 | AD31: 24000 | AE31: 319000 | AF31: 0.075 | AG31: 0.609 | AH31: 0.563
A32: Aug-Oct 1996 | B32: 1224000 | C32: 1020000 | D32: 730000 | E32: 660000 | F32: 71000 | G32: 494000 | H32: 0.097 | I32: 0.703 | J32: 0.634 | M32: Aug-Oct 1996 | N32: 587000 | O32: 503000 | P32: 412000 | Q32: 365000 | R32: 48000 | S32: 174000 | T32: 0.116 | U32: 0.8 | V32: 0.706 | Y32: Aug-Oct 1996 | Z32: 637000 | AA32: 517000 | AB32: 318000 | AC32: 295000 | AD32: 23000 | AE32: 320000 | AF32: 0.072 | AG32: 0.608 | AH32: 0.563
A33: Sep-Nov 1996 | B33: 1225000 | C33: 1021000 | D33: 726000 | E33: 655000 | F33: 71000 | G33: 499000 | H33: 0.098 | I33: 0.698 | J33: 0.628 | M33: Sep-Nov 1996 | N33: 587000 | O33: 503000 | P33: 414000 | Q33: 365000 | R33: 49000 | S33: 173000 | T33: 0.118 | U33: 0.801 | V33: 0.704 | Y33: Sep-Nov 1996 | Z33: 638000 | AA33: 517000 | AB33: 312000 | AC33: 290000 | AD33: 22000 | AE33: 326000 | AF33: 0.07 | AG33: 0.597 | AH33: 0.555
A34: Oct-Dec 1996 | B34: 1226000 | C34: 1021000 | D34: 726000 | E34: 659000 | F34: 67000 | G34: 500000 | H34: 0.093 | I34: 0.696 | J34: 0.631 | M34: Oct-Dec 1996 | N34: 588000 | O34: 504000 | P34: 416000 | Q34: 369000 | R34: 47000 | S34: 172000 | T34: 0.112 | U34: 0.803 | V34: 0.711 | Y34: Oct-Dec 1996 | Z34: 638000 | AA34: 518000 | AB34: 310000 | AC34: 290000 | AD34: 21000 | AE34: 328000 | AF34: 0.067 | AG34: 0.592 | AH34: 0.552
A35: Nov-Jan 1997 | B35: 1227000 | C35: 1022000 | D35: 729000 | E35: 662000 | F35: 66000 | G35: 498000 | H35: 0.091 | I35: 0.7 | J35: 0.635 | M35: Nov-Jan 1997 | N35: 588000 | O35: 504000 | P35: 418000 | Q35: 371000 | R35: 47000 | S35: 170000 | T35: 0.113 | U35: 0.809 | V35: 0.716 | Y35: Nov-Jan 1997 | Z35: 639000 | AA35: 518000 | AB35: 311000 | AC35: 292000 | AD35: 19000 | AE35: 328000 | AF35: 0.061 | AG35: 0.593 | AH35: 0.556
A36: Dec-Feb 1997 | B36: 1228000 | C36: 1023000 | D36: 733000 | E36: 663000 | F36: 69000 | G36: 495000 | H36: 0.094 | I36: 0.704 | J36: 0.637 | M36: Dec-Feb 1997 | N36: 589000 | O36: 505000 | P36: 415000 | Q36: 367000 | R36: 48000 | S36: 173000 | T36: 0.117 | U36: 0.805 | V36: 0.71 | Y36: Dec-Feb 1997 | Z36: 639000 | AA36: 518000 | AB36: 317000 | AC36: 297000 | AD36: 21000 | AE36: 322000 | AF36: 0.065 | AG36: 0.606 | AH36: 0.566
A37: Jan-Mar 1997 | B37: 1229000 | C37: 1024000 | D37: 735000 | E37: 671000 | F37: 64000 | G37: 493000 | H37: 0.087 | I37: 0.706 | J37: 0.643 | M37: Jan-Mar 1997 | N37: 589000 | O37: 505000 | P37: 414000 | Q37: 370000 | R37: 44000 | S37: 175000 | T37: 0.106 | U37: 0.802 | V37: 0.715 | Y37: Jan-Mar 1997 | Z37: 640000 | AA37: 519000 | AB37: 321000 | AC37: 301000 | AD37: 20000 | AE37: 319000 | AF37: 0.063 | AG37: 0.613 | AH37: 0.574
A38: Feb-Apr 1997 | B38: 1230000 | C38: 1025000 | D38: 737000 | E38: 676000 | F38: 62000 | G38: 492000 | H38: 0.084 | I38: 0.708 | J38: 0.648 | M38: Feb-Apr 1997 | N38: 589000 | O38: 505000 | P38: 414000 | Q38: 373000 | R38: 41000 | S38: 176000 | T38: 0.099 | U38: 0.803 | V38: 0.722 | Y38: Feb-Apr 1997 | Z38: 640000 | AA38: 519000 | AB38: 323000 | AC38: 303000 | AD38: 21000 | AE38: 317000 | AF38: 0.064 | AG38: 0.616 | AH38: 0.576
A39: Mar-May 1997 | B39: 1231000 | C39: 1025000 | D39: 738000 | E39: 680000 | F39: 57000 | G39: 493000 | H39: 0.078 | I39: 0.706 | J39: 0.651 | M39: Mar-May 1997 | N39: 590000 | O39: 506000 | P39: 415000 | Q39: 377000 | R39: 39000 | S39: 175000 | T39: 0.093 | U39: 0.802 | V39: 0.726 | Y39: Mar-May 1997 | Z39: 641000 | AA39: 520000 | AB39: 322000 | AC39: 304000 | AD39: 19000 | AE39: 318000 | AF39: 0.057 | AG39: 0.613 | AH39: 0.578
A40: Apr-Jun 1997 | B40: 1232000 | C40: 1026000 | D40: 745000 | E40: 685000 | F40: 61000 | G40: 486000 | H40: 0.081 | I40: 0.715 | J40: 0.656 | M40: Apr-Jun 1997 | N40: 590000 | O40: 506000 | P40: 420000 | Q40: 377000 | R40: 43000 | S40: 170000 | T40: 0.102 | U40: 0.813 | V40: 0.728 | Y40: Apr-Jun 1997 | Z40: 641000 | AA40: 520000 | AB40: 325000 | AC40: 307000 | AD40: 18000 | AE40: 316000 | AF40: 0.054 | AG40: 0.619 | AH40: 0.585
A41: May-Jul 1997 | B41: 1232000 | C41: 1027000 | D41: 745000 | E41: 684000 | F41: 61000 | G41: 487000 | H41: 0.083 | I41: 0.713 | J41: 0.654 | M41: May-Jul 1997 | N41: 591000 | O41: 507000 | P41: 423000 | Q41: 378000 | R41: 45000 | S41: 168000 | T41: 0.105 | U41: 0.815 | V41: 0.728 | Y41: May-Jul 1997 | Z41: 641000 | AA41: 520000 | AB41: 323000 | AC41: 306000 | AD41: 17000 | AE41: 319000 | AF41: 0.052 | AG41: 0.614 | AH41: 0.582
A42: Jun-Aug 1997 | B42: 1233000 | C42: 1028000 | D42: 750000 | E42: 688000 | F42: 62000 | G42: 483000 | H42: 0.082 | I42: 0.716 | J42: 0.656 | M42: Jun-Aug 1997 | N42: 591000 | O42: 507000 | P42: 425000 | Q42: 381000 | R42: 45000 | S42: 166000 | T42: 0.105 | U42: 0.818 | V42: 0.73 | Y42: Jun-Aug 1997 | Z42: 642000 | AA42: 521000 | AB42: 324000 | AC42: 308000 | AD42: 17000 | AE42: 317000 | AF42: 0.052 | AG42: 0.617 | AH42: 0.585
A43: Jul-Sep 1997 | B43: 1234000 | C43: 1029000 | D43: 754000 | E43: 689000 | F43: 65000 | G43: 480000 | H43: 0.086 | I43: 0.721 | J43: 0.658 | M43: Jul-Sep 1997 | N43: 592000 | O43: 507000 | P43: 428000 | Q43: 382000 | R43: 46000 | S43: 164000 | T43: 0.107 | U43: 0.824 | V43: 0.734 | Y43: Jul-Sep 1997 | Z43: 642000 | AA43: 521000 | AB43: 326000 | AC43: 308000 | AD43: 19000 | AE43: 316000 | AF43: 0.057 | AG43: 0.62 | AH43: 0.584
A44: Aug-Oct 1997 | B44: 1235000 | C44: 1029000 | D44: 756000 | E44: 690000 | F44: 66000 | G44: 478000 | H44: 0.088 | I44: 0.722 | J44: 0.658 | M44: Aug-Oct 1997 | N44: 592000 | O44: 508000 | P44: 431000 | Q44: 385000 | R44: 46000 | S44: 161000 | T44: 0.108 | U44: 0.831 | V44: 0.74 | Y44: Aug-Oct 1997 | Z44: 643000 | AA44: 522000 | AB44: 325000 | AC44: 305000 | AD44: 20000 | AE44: 318000 | AF44: 0.061 | AG44: 0.616 | AH44: 0.578
A45: Sep-Nov 1997 | B45: 1235000 | C45: 1030000 | D45: 756000 | E45: 691000 | F45: 65000 | G45: 479000 | H45: 0.086 | I45: 0.722 | J45: 0.659 | M45: Sep-Nov 1997 | N45: 592000 | O45: 508000 | P45: 431000 | Q45: 387000 | R45: 45000 | S45: 161000 | T45: 0.104 | U45: 0.831 | V45: 0.743 | Y45: Sep-Nov 1997 | Z45: 643000 | AA45: 522000 | AB45: 325000 | AC45: 305000 | AD45: 20000 | AE45: 318000 | AF45: 0.063 | AG45: 0.617 | AH45: 0.578
A46: Oct-Dec 1997 | B46: 1236000 | C46: 1030000 | D46: 754000 | E46: 688000 | F46: 66000 | G46: 482000 | H46: 0.088 | I46: 0.719 | J46: 0.655 | M46: Oct-Dec 1997 | N46: 593000 | O46: 508000 | P46: 430000 | Q46: 385000 | R46: 45000 | S46: 163000 | T46: 0.104 | U46: 0.827 | V46: 0.739 | Y46: Oct-Dec 1997 | Z46: 643000 | AA46: 522000 | AB46: 324000 | AC46: 302000 | AD46: 21000 | AE46: 320000 | AF46: 0.066 | AG46: 0.615 | AH46: 0.574
A47: Nov-Jan 1998 | B47: 1237000 | C47: 1031000 | D47: 750000 | E47: 686000 | F47: 64000 | G47: 487000 | H47: 0.085 | I47: 0.715 | J47: 0.653 | M47: Nov-Jan 1998 | N47: 593000 | O47: 508000 | P47: 429000 | Q47: 386000 | R47: 43000 | S47: 164000 | T47: 0.1 | U47: 0.823 | V47: 0.739 | Y47: Nov-Jan 1998 | Z47: 644000 | AA47: 523000 | AB47: 321000 | AC47: 300000 | AD47: 21000 | AE47: 323000 | AF47: 0.066 | AG47: 0.609 | AH47: 0.569
A48: Dec-Feb 1998 | B48: 1238000 | C48: 1032000 | D48: 747000 | E48: 684000 | F48: 62000 | G48: 491000 | H48: 0.084 | I48: 0.711 | J48: 0.651 | M48: Dec-Feb 1998 | N48: 593000 | O48: 509000 | P48: 427000 | Q48: 385000 | R48: 42000 | S48: 166000 | T48: 0.099 | U48: 0.82 | V48: 0.737 | Y48: Dec-Feb 1998 | Z48: 644000 | AA48: 523000 | AB48: 319000 | AC48: 299000 | AD48: 20000 | AE48: 325000 | AF48: 0.063 | AG48: 0.606 | AH48: 0.568
A49: Jan-Mar 1998 | B49: 1239000 | C49: 1032000 | D49: 746000 | E49: 682000 | F49: 64000 | G49: 493000 | H49: 0.085 | I49: 0.711 | J49: 0.65 | M49: Jan-Mar 1998 | N49: 594000 | O49: 509000 | P49: 427000 | Q49: 383000 | R49: 44000 | S49: 167000 | T49: 0.104 | U49: 0.818 | V49: 0.732 | Y49: Jan-Mar 1998 | Z49: 645000 | AA49: 523000 | AB49: 319000 | AC49: 299000 | AD49: 19000 | AE49: 326000 | AF49: 0.061 | AG49: 0.606 | AH49: 0.569
A50: Feb-Apr 1998 | B50: 1239000 | C50: 1033000 | D50: 741000 | E50: 679000 | F50: 62000 | G50: 498000 | H50: 0.084 | I50: 0.708 | J50: 0.648 | M50: Feb-Apr 1998 | N50: 594000 | O50: 509000 | P50: 423000 | Q50: 380000 | R50: 43000 | S50: 171000 | T50: 0.101 | U50: 0.813 | V50: 0.73 | Y50: Feb-Apr 1998 | Z50: 645000 | AA50: 523000 | AB50: 318000 | AC50: 299000 | AD50: 19000 | AE50: 327000 | AF50: 0.06 | AG50: 0.605 | AH50: 0.569
A51: Mar-May 1998 | B51: 1240000 | C51: 1034000 | D51: 741000 | E51: 686000 | F51: 55000 | G51: 499000 | H51: 0.075 | I51: 0.708 | J51: 0.654 | M51: Mar-May 1998 | N51: 595000 | O51: 510000 | P51: 422000 | Q51: 385000 | R51: 38000 | S51: 172000 | T51: 0.089 | U51: 0.812 | V51: 0.738 | Y51: Mar-May 1998 | Z51: 645000 | AA51: 524000 | AB51: 319000 | AC51: 301000 | AD51: 18000 | AE51: 327000 | AF51: 0.055 | AG51: 0.606 | AH51: 0.572
A52: Apr-Jun 1998 | B52: 1241000 | C52: 1034000 | D52: 740000 | E52: 688000 | F52: 51000 | G52: 501000 | H52: 0.07 | I52: 0.707 | J52: 0.657 | M52: Apr-Jun 1998 | N52: 595000 | O52: 510000 | P52: 421000 | Q52: 386000 | R52: 35000 | S52: 174000 | T52: 0.084 | U52: 0.811 | V52: 0.742 | Y52: Apr-Jun 1998 | Z52: 646000 | AA52: 524000 | AB52: 319000 | AC52: 303000 | AD52: 16000 | AE52: 327000 | AF52: 0.051 | AG52: 0.605 | AH52: 0.574
A53: May-Jul 1998 | B53: 1241000 | C53: 1035000 | D53: 742000 | E53: 687000 | F53: 54000 | G53: 500000 | H53: 0.073 | I53: 0.708 | J53: 0.656 | M53: May-Jul 1998 | N53: 595000 | O53: 510000 | P53: 420000 | Q53: 386000 | R53: 34000 | S53: 175000 | T53: 0.08 | U53: 0.807 | V53: 0.741 | Y53: May-Jul 1998 | Z53: 646000 | AA53: 525000 | AB53: 322000 | AC53: 301000 | AD53: 21000 | AE53: 324000 | AF53: 0.064 | AG53: 0.612 | AH53: 0.572
A54: Jun-Aug 1998 | B54: 1242000 | C54: 1035000 | D54: 738000 | E54: 679000 | F54: 59000 | G54: 504000 | H54: 0.08 | I54: 0.705 | J54: 0.648 | M54: Jun-Aug 1998 | N54: 595000 | O54: 510000 | P54: 415000 | Q54: 377000 | R54: 38000 | S54: 180000 | T54: 0.092 | U54: 0.799 | V54: 0.724 | Y54: Jun-Aug 1998 | Z54: 647000 | AA54: 525000 | AB54: 323000 | AC54: 303000 | AD54: 20000 | AE54: 324000 | AF54: 0.063 | AG54: 0.613 | AH54: 0.574
A55: Jul-Sep 1998 | B55: 1243000 | C55: 1036000 | D55: 736000 | E55: 678000 | F55: 58000 | G55: 506000 | H55: 0.079 | I55: 0.701 | J55: 0.645 | M55: Jul-Sep 1998 | N55: 596000 | O55: 511000 | P55: 414000 | Q55: 378000 | R55: 36000 | S55: 181000 | T55: 0.086 | U55: 0.796 | V55: 0.726 | Y55: Jul-Sep 1998 | Z55: 647000 | AA55: 525000 | AB55: 322000 | AC55: 300000 | AD55: 22000 | AE55: 325000 | AF55: 0.069 | AG55: 0.609 | AH55: 0.566
A56: Aug-Oct 1998 | B56: 1243000 | C56: 1036000 | D56: 735000 | E56: 680000 | F56: 54000 | G56: 508000 | H56: 0.074 | I56: 0.7 | J56: 0.647 | M56: Aug-Oct 1998 | N56: 596000 | O56: 511000 | P56: 413000 | Q56: 378000 | R56: 36000 | S56: 183000 | T56: 0.087 | U56: 0.794 | V56: 0.724 | Y56: Aug-Oct 1998 | Z56: 647000 | AA56: 526000 | AB56: 321000 | AC56: 303000 | AD56: 18000 | AE56: 326000 | AF56: 0.057 | AG56: 0.608 | AH56: 0.573
A57: Sep-Nov 1998 | B57: 1244000 | C57: 1037000 | D57: 738000 | E57: 684000 | F57: 54000 | G57: 506000 | H57: 0.073 | I57: 0.701 | J57: 0.649 | M57: Sep-Nov 1998 | N57: 596000 | O57: 511000 | P57: 414000 | Q57: 381000 | R57: 33000 | S57: 182000 | T57: 0.079 | U57: 0.794 | V57: 0.73 | Y57: Sep-Nov 1998 | Z57: 647000 | AA57: 526000 | AB57: 324000 | AC57: 303000 | AD57: 21000 | AE57: 324000 | AF57: 0.065 | AG57: 0.611 | AH57: 0.571
A58: Oct-Dec 1998 | B58: 1244000 | C58: 1037000 | D58: 740000 | E58: 690000 | F58: 50000 | G58: 504000 | H58: 0.068 | I58: 0.702 | J58: 0.654 | M58: Oct-Dec 1998 | N58: 597000 | O58: 511000 | P58: 415000 | Q58: 383000 | R58: 31000 | S58: 182000 | T58: 0.076 | U58: 0.793 | V58: 0.732 | Y58: Oct-Dec 1998 | Z58: 648000 | AA58: 526000 | AB58: 325000 | AC58: 307000 | AD58: 19000 | AE58: 323000 | AF58: 0.057 | AG58: 0.613 | AH58: 0.578
A59: Nov-Jan 1999 | B59: 1245000 | C59: 1038000 | D59: 743000 | E59: 693000 | F59: 50000 | G59: 502000 | H59: 0.068 | I59: 0.705 | J59: 0.656 | M59: Nov-Jan 1999 | N59: 597000 | O59: 511000 | P59: 414000 | Q59: 382000 | R59: 31000 | S59: 183000 | T59: 0.076 | U59: 0.791 | V59: 0.729 | Y59: Nov-Jan 1999 | Z59: 648000 | AA59: 526000 | AB59: 330000 | AC59: 311000 | AD59: 19000 | AE59: 318000 | AF59: 0.057 | AG59: 0.621 | AH59: 0.585
A60: Dec-Feb 1999 | B60: 1245000 | C60: 1038000 | D60: 747000 | E60: 695000 | F60: 52000 | G60: 499000 | H60: 0.069 | I60: 0.706 | J60: 0.657 | M60: Dec-Feb 1999 | N60: 597000 | O60: 511000 | P60: 414000 | Q60: 382000 | R60: 32000 | S60: 183000 | T60: 0.077 | U60: 0.789 | V60: 0.727 | Y60: Dec-Feb 1999 | Z60: 648000 | AA60: 527000 | AB60: 333000 | AC60: 313000 | AD60: 20000 | AE60: 316000 | AF60: 0.06 | AG60: 0.626 | AH60: 0.588
A61: Jan-Mar 1999 | B61: 1246000 | C61: 1039000 | D61: 744000 | E61: 690000 | F61: 54000 | G61: 502000 | H61: 0.072 | I61: 0.702 | J61: 0.651 | M61: Jan-Mar 1999 | N61: 597000 | O61: 512000 | P61: 412000 | Q61: 378000 | R61: 34000 | S61: 185000 | T61: 0.082 | U61: 0.784 | V61: 0.718 | Y61: Jan-Mar 1999 | Z61: 649000 | AA61: 527000 | AB61: 332000 | AC61: 312000 | AD61: 20000 | AE61: 317000 | AF61: 0.06 | AG61: 0.624 | AH61: 0.586
A62: Feb-Apr 1999 | B62: 1246000 | C62: 1039000 | D62: 747000 | E62: 692000 | F62: 55000 | G62: 499000 | H62: 0.074 | I62: 0.705 | J62: 0.652 | M62: Feb-Apr 1999 | N62: 597000 | O62: 512000 | P62: 414000 | Q62: 379000 | R62: 35000 | S62: 183000 | T62: 0.085 | U62: 0.788 | V62: 0.719 | Y62: Feb-Apr 1999 | Z62: 649000 | AA62: 527000 | AB62: 333000 | AC62: 313000 | AD62: 20000 | AE62: 316000 | AF62: 0.059 | AG62: 0.625 | AH62: 0.588
A63: Mar-May 1999 | B63: 1247000 | C63: 1039000 | D63: 748000 | E63: 693000 | F63: 55000 | G63: 499000 | H63: 0.074 | I63: 0.705 | J63: 0.652 | M63: Mar-May 1999 | N63: 598000 | O63: 512000 | P63: 415000 | Q63: 381000 | R63: 35000 | S63: 182000 | T63: 0.083 | U63: 0.79 | V63: 0.722 | Y63: Mar-May 1999 | Z63: 649000 | AA63: 527000 | AB63: 332000 | AC63: 312000 | AD63: 21000 | AE63: 317000 | AF63: 0.062 | AG63: 0.623 | AH63: 0.584
A64: Apr-Jun 1999 | B64: 1247000 | C64: 1040000 | D64: 749000 | E64: 692000 | F64: 57000 | G64: 498000 | H64: 0.076 | I64: 0.706 | J64: 0.651 | M64: Apr-Jun 1999 | N64: 598000 | O64: 512000 | P64: 417000 | Q64: 382000 | R64: 35000 | S64: 181000 | T64: 0.084 | U64: 0.794 | V64: 0.725 | Y64: Apr-Jun 1999 | Z64: 649000 | AA64: 528000 | AB64: 332000 | AC64: 310000 | AD64: 22000 | AE64: 318000 | AF64: 0.066 | AG64: 0.621 | AH64: 0.579
A65: May-Jul 1999 | B65: 1248000 | C65: 1040000 | D65: 748000 | E65: 692000 | F65: 56000 | G65: 500000 | H65: 0.075 | I65: 0.705 | J65: 0.651 | M65: May-Jul 1999 | N65: 598000 | O65: 512000 | P65: 417000 | Q65: 381000 | R65: 35000 | S65: 181000 | T65: 0.085 | U65: 0.791 | V65: 0.723 | Y65: May-Jul 1999 | Z65: 650000 | AA65: 528000 | AB65: 332000 | AC65: 310000 | AD65: 21000 | AE65: 318000 | AF65: 0.064 | AG65: 0.621 | AH65: 0.581
A66: Jun-Aug 1999 | B66: 1248000 | C66: 1041000 | D66: 747000 | E66: 691000 | F66: 56000 | G66: 501000 | H66: 0.075 | I66: 0.704 | J66: 0.65 | M66: Jun-Aug 1999 | N66: 598000 | O66: 513000 | P66: 420000 | Q66: 384000 | R66: 36000 | S66: 178000 | T66: 0.085 | U66: 0.798 | V66: 0.728 | Y66: Jun-Aug 1999 | Z66: 650000 | AA66: 528000 | AB66: 327000 | AC66: 306000 | AD66: 21000 | AE66: 323000 | AF66: 0.063 | AG66: 0.613 | AH66: 0.574
A67: Jul-Sep 1999 | B67: 1249000 | C67: 1042000 | D67: 749000 | E67: 696000 | F67: 53000 | G67: 501000 | H67: 0.071 | I67: 0.704 | J67: 0.654 | M67: Jul-Sep 1999 | N67: 599000 | O67: 513000 | P67: 423000 | Q67: 389000 | R67: 33000 | S67: 176000 | T67: 0.079 | U67: 0.8 | V67: 0.735 | Y67: Jul-Sep 1999 | Z67: 650000 | AA67: 529000 | AB67: 326000 | AC67: 307000 | AD67: 19000 | AE67: 325000 | AF67: 0.059 | AG67: 0.611 | AH67: 0.574
A68: Aug-Oct 1999 | B68: 1250000 | C68: 1042000 | D68: 746000 | E68: 694000 | F68: 52000 | G68: 504000 | H68: 0.07 | I68: 0.702 | J68: 0.652 | M68: Aug-Oct 1999 | N68: 599000 | O68: 513000 | P68: 420000 | Q68: 387000 | R68: 32000 | S68: 180000 | T68: 0.077 | U68: 0.796 | V68: 0.732 | Y68: Aug-Oct 1999 | Z68: 651000 | AA68: 529000 | AB68: 326000 | AC68: 307000 | AD68: 20000 | AE68: 324000 | AF68: 0.06 | AG68: 0.612 | AH68: 0.575
A69: Sep-Nov 1999 | B69: 1251000 | C69: 1043000 | D69: 740000 | E69: 692000 | F69: 48000 | G69: 510000 | H69: 0.065 | I69: 0.697 | J69: 0.651 | M69: Sep-Nov 1999 | N69: 599000 | O69: 513000 | P69: 413000 | Q69: 382000 | R69: 31000 | S69: 186000 | T69: 0.074 | U69: 0.784 | V69: 0.724 | Y69: Sep-Nov 1999 | Z69: 651000 | AA69: 529000 | AB69: 327000 | AC69: 309000 | AD69: 18000 | AE69: 324000 | AF69: 0.054 | AG69: 0.613 | AH69: 0.579
A70: Oct-Dec 1999 | B70: 1251000 | C70: 1043000 | D70: 742000 | E70: 692000 | F70: 49000 | G70: 510000 | H70: 0.066 | I70: 0.699 | J70: 0.652 | M70: Oct-Dec 1999 | N70: 600000 | O70: 514000 | P70: 414000 | Q70: 384000 | R70: 31000 | S70: 186000 | T70: 0.074 | U70: 0.788 | V70: 0.728 | Y70: Oct-Dec 1999 | Z70: 651000 | AA70: 530000 | AB70: 327000 | AC70: 309000 | AD70: 19000 | AE70: 324000 | AF70: 0.057 | AG70: 0.613 | AH70: 0.578
A71: Nov-Jan 2000 | B71: 1252000 | C71: 1044000 | D71: 740000 | E71: 693000 | F71: 47000 | G71: 512000 | H71: 0.064 | I71: 0.699 | J71: 0.654 | M71: Nov-Jan 2000 | N71: 600000 | O71: 514000 | P71: 414000 | Q71: 384000 | R71: 30000 | S71: 186000 | T71: 0.071 | U71: 0.789 | V71: 0.732 | Y71: Nov-Jan 2000 | Z71: 652000 | AA71: 530000 | AB71: 326000 | AC71: 309000 | AD71: 18000 | AE71: 325000 | AF71: 0.054 | AG71: 0.611 | AH71: 0.578
A72: Dec-Feb 2000 | B72: 1253000 | C72: 1045000 | D72: 739000 | E72: 689000 | F72: 50000 | G72: 514000 | H72: 0.068 | I72: 0.698 | J72: 0.649 | M72: Dec-Feb 2000 | N72: 601000 | O72: 514000 | P72: 414000 | Q72: 382000 | R72: 31000 | S72: 187000 | T72: 0.076 | U72: 0.789 | V72: 0.728 | Y72: Dec-Feb 2000 | Z72: 652000 | AA72: 530000 | AB72: 325000 | AC72: 306000 | AD72: 19000 | AE72: 327000 | AF72: 0.058 | AG72: 0.609 | AH72: 0.573
A73: Jan-Mar 2000 | B73: 1253000 | C73: 1045000 | D73: 739000 | E73: 690000 | F73: 49000 | G73: 514000 | H73: 0.066 | I73: 0.697 | J73: 0.65 | M73: Jan-Mar 2000 | N73: 601000 | O73: 515000 | P73: 413000 | Q73: 383000 | R73: 30000 | S73: 188000 | T73: 0.073 | U73: 0.786 | V73: 0.727 | Y73: Jan-Mar 2000 | Z73: 653000 | AA73: 531000 | AB73: 326000 | AC73: 307000 | AD73: 19000 | AE73: 327000 | AF73: 0.057 | AG73: 0.61 | AH73: 0.575
A74: Feb-Apr 2000 | B74: 1254000 | C74: 1046000 | D74: 726000 | E74: 675000 | F74: 51000 | G74: 528000 | H74: 0.07 | I74: 0.683 | J74: 0.635 | M74: Feb-Apr 2000 | N74: 601000 | O74: 515000 | P74: 412000 | Q74: 380000 | R74: 32000 | S74: 189000 | T74: 0.079 | U74: 0.783 | V74: 0.72 | Y74: Feb-Apr 2000 | Z74: 653000 | AA74: 531000 | AB74: 314000 | AC74: 295000 | AD74: 19000 | AE74: 339000 | AF74: 0.059 | AG74: 0.587 | AH74: 0.552
A75: Mar-May 2000 | B75: 1255000 | C75: 1046000 | D75: 730000 | E75: 678000 | F75: 52000 | G75: 525000 | H75: 0.071 | I75: 0.685 | J75: 0.636 | M75: Mar-May 2000 | N75: 602000 | O75: 515000 | P75: 414000 | Q75: 381000 | R75: 33000 | S75: 187000 | T75: 0.08 | U75: 0.782 | V75: 0.718 | Y75: Mar-May 2000 | Z75: 653000 | AA75: 531000 | AB75: 316000 | AC75: 297000 | AD75: 19000 | AE75: 337000 | AF75: 0.059 | AG75: 0.591 | AH75: 0.556
A76: Apr-Jun 2000 | B76: 1256000 | C76: 1047000 | D76: 727000 | E76: 678000 | F76: 49000 | G76: 528000 | H76: 0.067 | I76: 0.683 | J76: 0.637 | M76: Apr-Jun 2000 | N76: 602000 | O76: 515000 | P76: 409000 | Q76: 378000 | R76: 32000 | S76: 193000 | T76: 0.077 | U76: 0.774 | V76: 0.713 | Y76: Apr-Jun 2000 | Z76: 654000 | AA76: 532000 | AB76: 318000 | AC76: 301000 | AD76: 17000 | AE76: 336000 | AF76: 0.054 | AG76: 0.595 | AH76: 0.563
A77: May-Jul 2000 | B77: 1256000 | C77: 1048000 | D77: 726000 | E77: 679000 | F77: 46000 | G77: 531000 | H77: 0.064 | I77: 0.681 | J77: 0.637 | M77: May-Jul 2000 | N77: 602000 | O77: 516000 | P77: 410000 | Q77: 380000 | R77: 30000 | S77: 193000 | T77: 0.073 | U77: 0.775 | V77: 0.717 | Y77: May-Jul 2000 | Z77: 654000 | AA77: 532000 | AB77: 316000 | AC77: 300000 | AD77: 16000 | AE77: 338000 | AF77: 0.052 | AG77: 0.591 | AH77: 0.56
A78: Jun-Aug 2000 | B78: 1257000 | C78: 1048000 | D78: 728000 | E78: 686000 | F78: 43000 | G78: 529000 | H78: 0.058 | I78: 0.683 | J78: 0.642 | M78: Jun-Aug 2000 | N78: 603000 | O78: 516000 | P78: 410000 | Q78: 382000 | R78: 28000 | S78: 193000 | T78: 0.068 | U78: 0.775 | V78: 0.721 | Y78: Jun-Aug 2000 | Z78: 654000 | AA78: 533000 | AB78: 318000 | AC78: 304000 | AD78: 15000 | AE78: 336000 | AF78: 0.046 | AG78: 0.594 | AH78: 0.567
A79: Jul-Sep 2000 | B79: 1258000 | C79: 1049000 | D79: 732000 | E79: 691000 | F79: 41000 | G79: 526000 | H79: 0.055 | I79: 0.687 | J79: 0.649 | M79: Jul-Sep 2000 | N79: 603000 | O79: 516000 | P79: 410000 | Q79: 384000 | R79: 25000 | S79: 194000 | T79: 0.062 | U79: 0.776 | V79: 0.726 | Y79: Jul-Sep 2000 | Z79: 655000 | AA79: 533000 | AB79: 322000 | AC79: 307000 | AD79: 15000 | AE79: 333000 | AF79: 0.047 | AG79: 0.601 | AH79: 0.573
A80: Aug-Oct 2000 | B80: 1259000 | C80: 1050000 | D80: 737000 | E80: 695000 | F80: 42000 | G80: 523000 | H80: 0.057 | I80: 0.691 | J80: 0.651 | M80: Aug-Oct 2000 | N80: 604000 | O80: 517000 | P80: 410000 | Q80: 385000 | R80: 26000 | S80: 194000 | T80: 0.063 | U80: 0.777 | V80: 0.727 | Y80: Aug-Oct 2000 | Z80: 655000 | AA80: 533000 | AB80: 326000 | AC80: 310000 | AD80: 16000 | AE80: 329000 | AF80: 0.049 | AG80: 0.608 | AH80: 0.578
A81: Sep-Nov 2000 | B81: 1260000 | C81: 1051000 | D81: 741000 | E81: 699000 | F81: 42000 | G81: 519000 | H81: 0.056 | I81: 0.695 | J81: 0.655 | M81: Sep-Nov 2000 | N81: 605000 | O81: 517000 | P81: 414000 | Q81: 389000 | R81: 25000 | S81: 191000 | T81: 0.06 | U81: 0.783 | V81: 0.734 | Y81: Sep-Nov 2000 | Z81: 656000 | AA81: 534000 | AB81: 327000 | AC81: 311000 | AD81: 17000 | AE81: 328000 | AF81: 0.051 | AG81: 0.609 | AH81: 0.578
A82: Oct-Dec 2000 | B82: 1262000 | C82: 1052000 | D82: 745000 | E82: 700000 | F82: 45000 | G82: 517000 | H82: 0.06 | I82: 0.697 | J82: 0.655 | M82: Oct-Dec 2000 | N82: 605000 | O82: 518000 | P82: 416000 | Q82: 389000 | R82: 27000 | S82: 189000 | T82: 0.065 | U82: 0.787 | V82: 0.734 | Y82: Oct-Dec 2000 | Z82: 656000 | AA82: 534000 | AB82: 329000 | AC82: 312000 | AD82: 18000 | AE82: 327000 | AF82: 0.053 | AG82: 0.611 | AH82: 0.578
A83: Nov-Jan 2001 | B83: 1263000 | C83: 1053000 | D83: 749000 | E83: 705000 | F83: 44000 | G83: 513000 | H83: 0.059 | I83: 0.701 | J83: 0.658 | M83: Nov-Jan 2001 | N83: 606000 | O83: 518000 | P83: 419000 | Q83: 392000 | R83: 27000 | S83: 187000 | T83: 0.065 | U83: 0.791 | V83: 0.738 | Y83: Nov-Jan 2001 | Z83: 657000 | AA83: 534000 | AB83: 330000 | AC83: 313000 | AD83: 17000 | AE83: 327000 | AF83: 0.052 | AG83: 0.613 | AH83: 0.581
A84: Dec-Feb 2001 | B84: 1264000 | C84: 1054000 | D84: 743000 | E84: 697000 | F84: 45000 | G84: 521000 | H84: 0.061 | I84: 0.694 | J84: 0.651 | M84: Dec-Feb 2001 | N84: 606000 | O84: 519000 | P84: 421000 | Q84: 391000 | R84: 29000 | S84: 186000 | T84: 0.07 | U84: 0.793 | V84: 0.736 | Y84: Dec-Feb 2001 | Z84: 657000 | AA84: 535000 | AB84: 322000 | AC84: 306000 | AD84: 16000 | AE84: 335000 | AF84: 0.049 | AG84: 0.598 | AH84: 0.568
A85: Jan-Mar 2001 | B85: 1265000 | C85: 1055000 | D85: 743000 | E85: 697000 | F85: 47000 | G85: 521000 | H85: 0.063 | I85: 0.694 | J85: 0.65 | M85: Jan-Mar 2001 | N85: 607000 | O85: 519000 | P85: 422000 | Q85: 392000 | R85: 31000 | S85: 185000 | T85: 0.073 | U85: 0.796 | V85: 0.736 | Y85: Jan-Mar 2001 | Z85: 658000 | AA85: 535000 | AB85: 321000 | AC85: 305000 | AD85: 16000 | AE85: 337000 | AF85: 0.05 | AG85: 0.596 | AH85: 0.566
A86: Feb-Apr 2001 | B86: 1266000 | C86: 1055000 | D86: 745000 | E86: 697000 | F86: 47000 | G86: 521000 | H86: 0.064 | I86: 0.695 | J86: 0.65 | M86: Feb-Apr 2001 | N86: 608000 | O86: 520000 | P86: 424000 | Q86: 393000 | R86: 32000 | S86: 184000 | T86: 0.075 | U86: 0.799 | V86: 0.738 | Y86: Feb-Apr 2001 | Z86: 658000 | AA86: 536000 | AB86: 320000 | AC86: 305000 | AD86: 16000 | AE86: 338000 | AF86: 0.049 | AG86: 0.594 | AH86: 0.565
A87: Mar-May 2001 | B87: 1267000 | C87: 1056000 | D87: 753000 | E87: 705000 | F87: 47000 | G87: 514000 | H87: 0.063 | I87: 0.702 | J87: 0.658 | M87: Mar-May 2001 | N87: 608000 | O87: 520000 | P87: 426000 | Q87: 395000 | R87: 31000 | S87: 182000 | T87: 0.074 | U87: 0.802 | V87: 0.742 | Y87: Mar-May 2001 | Z87: 659000 | AA87: 536000 | AB87: 327000 | AC87: 311000 | AD87: 16000 | AE87: 332000 | AF87: 0.048 | AG87: 0.605 | AH87: 0.576
A88: Apr-Jun 2001 | B88: 1268000 | C88: 1057000 | D88: 752000 | E88: 706000 | F88: 45000 | G88: 516000 | H88: 0.06 | I88: 0.702 | J88: 0.659 | M88: Apr-Jun 2001 | N88: 609000 | O88: 521000 | P88: 425000 | Q88: 395000 | R88: 30000 | S88: 184000 | T88: 0.072 | U88: 0.801 | V88: 0.743 | Y88: Apr-Jun 2001 | Z88: 659000 | AA88: 536000 | AB88: 327000 | AC88: 312000 | AD88: 15000 | AE88: 332000 | AF88: 0.046 | AG88: 0.605 | AH88: 0.577
A89: May-Jul 2001 | B89: 1269000 | C89: 1058000 | D89: 760000 | E89: 714000 | F89: 46000 | G89: 510000 | H89: 0.06 | I89: 0.709 | J89: 0.666 | M89: May-Jul 2001 | N89: 610000 | O89: 521000 | P89: 428000 | Q89: 397000 | R89: 31000 | S89: 182000 | T89: 0.072 | U89: 0.806 | V89: 0.748 | Y89: May-Jul 2001 | Z89: 660000 | AA89: 537000 | AB89: 332000 | AC89: 317000 | AD89: 15000 | AE89: 327000 | AF89: 0.045 | AG89: 0.615 | AH89: 0.587
A90: Jun-Aug 2001 | B90: 1271000 | C90: 1059000 | D90: 761000 | E90: 716000 | F90: 45000 | G90: 509000 | H90: 0.059 | I90: 0.71 | J90: 0.667 | M90: Jun-Aug 2001 | N90: 610000 | O90: 522000 | P90: 426000 | Q90: 396000 | R90: 30000 | S90: 184000 | T90: 0.07 | U90: 0.802 | V90: 0.746 | Y90: Jun-Aug 2001 | Z90: 660000 | AA90: 537000 | AB90: 335000 | AC90: 320000 | AD90: 15000 | AE90: 325000 | AF90: 0.045 | AG90: 0.62 | AH90: 0.592
A91: Jul-Sep 2001 | B91: 1272000 | C91: 1060000 | D91: 762000 | E91: 716000 | F91: 45000 | G91: 510000 | H91: 0.06 | I91: 0.709 | J91: 0.666 | M91: Jul-Sep 2001 | N91: 611000 | O91: 522000 | P91: 426000 | Q91: 395000 | R91: 30000 | S91: 185000 | T91: 0.072 | U91: 0.801 | V91: 0.743 | Y91: Jul-Sep 2001 | Z91: 661000 | AA91: 537000 | AB91: 336000 | AC91: 321000 | AD91: 15000 | AE91: 325000 | AF91: 0.044 | AG91: 0.62 | AH91: 0.592
A92: Aug-Oct 2001 | B92: 1273000 | C92: 1061000 | D92: 756000 | E92: 713000 | F92: 43000 | G92: 517000 | H92: 0.057 | I92: 0.705 | J92: 0.664 | M92: Aug-Oct 2001 | N92: 612000 | O92: 523000 | P92: 423000 | Q92: 394000 | R92: 29000 | S92: 189000 | T92: 0.068 | U92: 0.796 | V92: 0.741 | Y92: Aug-Oct 2001 | Z92: 661000 | AA92: 538000 | AB92: 333000 | AC92: 319000 | AD92: 15000 | AE92: 328000 | AF92: 0.044 | AG92: 0.616 | AH92: 0.589
A93: Sep-Nov 2001 | B93: 1274000 | C93: 1062000 | D93: 751000 | E93: 706000 | F93: 45000 | G93: 523000 | H93: 0.06 | I93: 0.699 | J93: 0.657 | M93: Sep-Nov 2001 | N93: 613000 | O93: 524000 | P93: 420000 | Q93: 390000 | R93: 30000 | S93: 193000 | T93: 0.071 | U93: 0.788 | V93: 0.732 | Y93: Sep-Nov 2001 | Z93: 662000 | AA93: 538000 | AB93: 332000 | AC93: 316000 | AD93: 15000 | AE93: 330000 | AF93: 0.046 | AG93: 0.612 | AH93: 0.584
A94: Oct-Dec 2001 | B94: 1276000 | C94: 1063000 | D94: 749000 | E94: 705000 | F94: 44000 | G94: 527000 | H94: 0.058 | I94: 0.695 | J94: 0.654 | M94: Oct-Dec 2001 | N94: 613000 | O94: 524000 | P94: 417000 | Q94: 388000 | R94: 29000 | S94: 196000 | T94: 0.07 | U94: 0.781 | V94: 0.726 | Y94: Oct-Dec 2001 | Z94: 662000 | AA94: 539000 | AB94: 331000 | AC94: 317000 | AD94: 15000 | AE94: 331000 | AF94: 0.044 | AG94: 0.611 | AH94: 0.584
A95: Nov-Jan 2002 | B95: 1277000 | C95: 1064000 | D95: 744000 | E95: 699000 | F95: 45000 | G95: 533000 | H95: 0.061 | I95: 0.69 | J95: 0.648 | M95: Nov-Jan 2002 | N95: 614000 | O95: 525000 | P95: 417000 | Q95: 387000 | R95: 30000 | S95: 197000 | T95: 0.072 | U95: 0.778 | V95: 0.722 | Y95: Nov-Jan 2002 | Z95: 663000 | AA95: 539000 | AB95: 327000 | AC95: 312000 | AD95: 15000 | AE95: 336000 | AF95: 0.047 | AG95: 0.604 | AH95: 0.575
A96: Dec-Feb 2002 | B96: 1278000 | C96: 1065000 | D96: 747000 | E96: 701000 | F96: 45000 | G96: 531000 | H96: 0.061 | I96: 0.692 | J96: 0.65 | M96: Dec-Feb 2002 | N96: 615000 | O96: 525000 | P96: 417000 | Q96: 386000 | R96: 30000 | S96: 198000 | T96: 0.073 | U96: 0.778 | V96: 0.721 | Y96: Dec-Feb 2002 | Z96: 663000 | AA96: 540000 | AB96: 330000 | AC96: 315000 | AD96: 15000 | AE96: 333000 | AF96: 0.046 | AG96: 0.608 | AH96: 0.58
A97: Jan-Mar 2002 | B97: 1279000 | C97: 1066000 | D97: 753000 | E97: 706000 | F97: 46000 | G97: 527000 | H97: 0.062 | I97: 0.696 | J97: 0.653 | M97: Jan-Mar 2002 | N97: 615000 | O97: 526000 | P97: 420000 | Q97: 389000 | R97: 31000 | S97: 195000 | T97: 0.073 | U97: 0.784 | V97: 0.726 | Y97: Jan-Mar 2002 | Z97: 664000 | AA97: 540000 | AB97: 332000 | AC97: 317000 | AD97: 16000 | AE97: 331000 | AF97: 0.047 | AG97: 0.612 | AH97: 0.583
A98: Feb-Apr 2002 | B98: 1281000 | C98: 1067000 | D98: 759000 | E98: 715000 | F98: 44000 | G98: 522000 | H98: 0.059 | I98: 0.7 | J98: 0.659 | M98: Feb-Apr 2002 | N98: 616000 | O98: 526000 | P98: 422000 | Q98: 393000 | R98: 29000 | S98: 194000 | T98: 0.068 | U98: 0.784 | V98: 0.73 | Y98: Feb-Apr 2002 | Z98: 665000 | AA98: 541000 | AB98: 337000 | AC98: 321000 | AD98: 16000 | AE98: 328000 | AF98: 0.046 | AG98: 0.618 | AH98: 0.589
A99: Mar-May 2002 | B99: 1282000 | C99: 1068000 | D99: 760000 | E99: 719000 | F99: 42000 | G99: 521000 | H99: 0.055 | I99: 0.7 | J99: 0.661 | M99: Mar-May 2002 | N99: 617000 | O99: 527000 | P99: 421000 | Q99: 396000 | R99: 26000 | S99: 195000 | T99: 0.061 | U99: 0.781 | V99: 0.732 | Y99: Mar-May 2002 | Z99: 665000 | AA99: 541000 | AB99: 339000 | AC99: 323000 | AD99: 16000 | AE99: 326000 | AF99: 0.047 | AG99: 0.622 | AH99: 0.592
A100: Apr-Jun 2002 | B100: 1283000 | C100: 1069000 | D100: 763000 | E100: 721000 | F100: 42000 | G100: 519000 | H100: 0.055 | I100: 0.701 | J100: 0.661 | M100: Apr-Jun 2002 | N100: 617000 | O100: 527000 | P100: 425000 | Q100: 399000 | R100: 26000 | S100: 192000 | T100: 0.062 | U100: 0.785 | V100: 0.735 | Y100: Apr-Jun 2002 | Z100: 666000 | AA100: 542000 | AB100: 338000 | AC100: 323000 | AD100: 16000 | AE100: 327000 | AF100: 0.047 | AG100: 0.619 | AH100: 0.59
A101: May-Jul 2002 | B101: 1284000 | C101: 1070000 | D101: 762000 | E101: 719000 | F101: 43000 | G101: 522000 | H101: 0.056 | I101: 0.699 | J101: 0.659 | M101: May-Jul 2002 | N101: 618000 | O101: 528000 | P101: 422000 | Q101: 395000 | R101: 27000 | S101: 196000 | T101: 0.064 | U101: 0.78 | V101: 0.729 | Y101: May-Jul 2002 | Z101: 666000 | AA101: 542000 | AB101: 339000 | AC101: 324000 | AD101: 16000 | AE101: 327000 | AF101: 0.047 | AG101: 0.621 | AH101: 0.592
A102: Jun-Aug 2002 | B102: 1285000 | C102: 1071000 | D102: 769000 | E102: 721000 | F102: 47000 | G102: 516000 | H102: 0.062 | I102: 0.703 | J102: 0.659 | M102: Jun-Aug 2002 | N102: 619000 | O102: 528000 | P102: 429000 | Q102: 400000 | R102: 28000 | S102: 190000 | T102: 0.066 | U102: 0.789 | V102: 0.735 | Y102: Jun-Aug 2002 | Z102: 667000 | AA102: 542000 | AB102: 340000 | AC102: 321000 | AD102: 19000 | AE102: 327000 | AF102: 0.057 | AG102: 0.62 | AH102: 0.585
A103: Jul-Sep 2002 | B103: 1286000 | C103: 1072000 | D103: 770000 | E103: 722000 | F103: 47000 | G103: 517000 | H103: 0.062 | I103: 0.704 | J103: 0.66 | M103: Jul-Sep 2002 | N103: 619000 | O103: 529000 | P103: 430000 | Q103: 402000 | R103: 27000 | S103: 189000 | T103: 0.064 | U103: 0.789 | V103: 0.738 | Y103: Jul-Sep 2002 | Z103: 667000 | AA103: 543000 | AB103: 340000 | AC103: 320000 | AD103: 20000 | AE103: 327000 | AF103: 0.059 | AG103: 0.62 | AH103: 0.583
A104: Aug-Oct 2002 | B104: 1287000 | C104: 1072000 | D104: 772000 | E104: 728000 | F104: 45000 | G104: 515000 | H104: 0.058 | I104: 0.705 | J104: 0.663 | M104: Aug-Oct 2002 | N104: 620000 | O104: 529000 | P104: 432000 | Q104: 405000 | R104: 27000 | S104: 188000 | T104: 0.062 | U104: 0.792 | V104: 0.742 | Y104: Aug-Oct 2002 | Z104: 668000 | AA104: 543000 | AB104: 340000 | AC104: 322000 | AD104: 18000 | AE104: 328000 | AF104: 0.053 | AG104: 0.62 | AH104: 0.587
A105: Sep-Nov 2002 | B105: 1289000 | C105: 1073000 | D105: 776000 | E105: 733000 | F105: 43000 | G105: 513000 | H105: 0.055 | I105: 0.707 | J105: 0.667 | M105: Sep-Nov 2002 | N105: 620000 | O105: 530000 | P105: 436000 | Q105: 410000 | R105: 25000 | S105: 185000 | T105: 0.058 | U105: 0.797 | V105: 0.749 | Y105: Sep-Nov 2002 | Z105: 668000 | AA105: 544000 | AB105: 340000 | AC105: 323000 | AD105: 18000 | AE105: 328000 | AF105: 0.052 | AG105: 0.619 | AH105: 0.587
A106: Oct-Dec 2002 | B106: 1290000 | C106: 1074000 | D106: 779000 | E106: 736000 | F106: 43000 | G106: 511000 | H106: 0.056 | I106: 0.711 | J106: 0.671 | M106: Oct-Dec 2002 | N106: 621000 | O106: 530000 | P106: 439000 | Q106: 412000 | R106: 27000 | S106: 182000 | T106: 0.061 | U106: 0.806 | V106: 0.755 | Y106: Oct-Dec 2002 | Z106: 669000 | AA106: 544000 | AB106: 340000 | AC106: 323000 | AD106: 16000 | AE106: 329000 | AF106: 0.048 | AG106: 0.619 | AH106: 0.588
A107: Nov-Jan 2003 | B107: 1291000 | C107: 1075000 | D107: 785000 | E107: 741000 | F107: 44000 | G107: 506000 | H107: 0.056 | I107: 0.716 | J107: 0.675 | M107: Nov-Jan 2003 | N107: 622000 | O107: 531000 | P107: 442000 | Q107: 416000 | R107: 26000 | S107: 180000 | T107: 0.058 | U107: 0.812 | V107: 0.764 | Y107: Nov-Jan 2003 | Z107: 669000 | AA107: 544000 | AB107: 343000 | AC107: 325000 | AD107: 18000 | AE107: 326000 | AF107: 0.054 | AG107: 0.623 | AH107: 0.589
A108: Dec-Feb 2003 | B108: 1292000 | C108: 1076000 | D108: 789000 | E108: 745000 | F108: 44000 | G108: 503000 | H108: 0.056 | I108: 0.719 | J108: 0.678 | M108: Dec-Feb 2003 | N108: 622000 | O108: 531000 | P108: 446000 | Q108: 420000 | R108: 26000 | S108: 176000 | T108: 0.059 | U108: 0.819 | V108: 0.769 | Y108: Dec-Feb 2003 | Z108: 670000 | AA108: 545000 | AB108: 343000 | AC108: 325000 | AD108: 18000 | AE108: 327000 | AF108: 0.053 | AG108: 0.622 | AH108: 0.589
A109: Jan-Mar 2003 | B109: 1293000 | C109: 1077000 | D109: 796000 | E109: 754000 | F109: 42000 | G109: 497000 | H109: 0.053 | I109: 0.725 | J109: 0.687 | M109: Jan-Mar 2003 | N109: 623000 | O109: 532000 | P109: 445000 | Q109: 421000 | R109: 25000 | S109: 177000 | T109: 0.055 | U109: 0.817 | V109: 0.771 | Y109: Jan-Mar 2003 | Z109: 670000 | AA109: 545000 | AB109: 350000 | AC109: 333000 | AD109: 17000 | AE109: 320000 | AF109: 0.049 | AG109: 0.636 | AH109: 0.604
A110: Feb-Apr 2003 | B110: 1294000 | C110: 1078000 | D110: 795000 | E110: 754000 | F110: 42000 | G110: 499000 | H110: 0.052 | I110: 0.725 | J110: 0.686 | M110: Feb-Apr 2003 | N110: 623000 | O110: 532000 | P110: 446000 | Q110: 421000 | R110: 24000 | S110: 178000 | T110: 0.055 | U110: 0.819 | V110: 0.773 | Y110: Feb-Apr 2003 | Z110: 671000 | AA110: 546000 | AB110: 350000 | AC110: 333000 | AD110: 17000 | AE110: 321000 | AF110: 0.05 | AG110: 0.634 | AH110: 0.602
A111: Mar-May 2003 | B111: 1295000 | C111: 1079000 | D111: 791000 | E111: 750000 | F111: 41000 | G111: 504000 | H111: 0.052 | I111: 0.721 | J111: 0.682 | M111: Mar-May 2003 | N111: 624000 | O111: 533000 | P111: 446000 | Q111: 421000 | R111: 25000 | S111: 178000 | T111: 0.056 | U111: 0.817 | V111: 0.77 | Y111: Mar-May 2003 | Z111: 671000 | AA111: 546000 | AB111: 346000 | AC111: 329000 | AD111: 16000 | AE111: 325000 | AF111: 0.047 | AG111: 0.626 | AH111: 0.596
A112: Apr-Jun 2003 | B112: 1296000 | C112: 1080000 | D112: 783000 | E112: 744000 | F112: 40000 | G112: 513000 | H112: 0.051 | I112: 0.713 | J112: 0.676 | M112: Apr-Jun 2003 | N112: 625000 | O112: 533000 | P112: 439000 | Q112: 414000 | R112: 25000 | S112: 186000 | T112: 0.058 | U112: 0.805 | V112: 0.758 | Y112: Apr-Jun 2003 | Z112: 672000 | AA112: 547000 | AB112: 344000 | AC112: 330000 | AD112: 14000 | AE112: 327000 | AF112: 0.042 | AG112: 0.623 | AH112: 0.597
A113: May-Jul 2003 | B113: 1298000 | C113: 1081000 | D113: 779000 | E113: 738000 | F113: 41000 | G113: 519000 | H113: 0.052 | I113: 0.709 | J113: 0.671 | M113: May-Jul 2003 | N113: 625000 | O113: 534000 | P113: 439000 | Q113: 411000 | R113: 28000 | S113: 186000 | T113: 0.063 | U113: 0.807 | V113: 0.755 | Y113: May-Jul 2003 | Z113: 672000 | AA113: 547000 | AB113: 340000 | AC113: 327000 | AD113: 13000 | AE113: 333000 | AF113: 0.038 | AG113: 0.614 | AH113: 0.59
A114: Jun-Aug 2003 | B114: 1299000 | C114: 1081000 | D114: 776000 | E114: 732000 | F114: 44000 | G114: 523000 | H114: 0.056 | I114: 0.706 | J114: 0.665 | M114: Jun-Aug 2003 | N114: 626000 | O114: 534000 | P114: 438000 | Q114: 407000 | R114: 31000 | S114: 188000 | T114: 0.07 | U114: 0.803 | V114: 0.746 | Y114: Jun-Aug 2003 | Z114: 673000 | AA114: 547000 | AB114: 338000 | AC114: 325000 | AD114: 13000 | AE114: 335000 | AF114: 0.039 | AG114: 0.611 | AH114: 0.587
A115: Jul-Sep 2003 | B115: 1300000 | C115: 1082000 | D115: 777000 | E115: 733000 | F115: 44000 | G115: 523000 | H115: 0.056 | I115: 0.707 | J115: 0.666 | M115: Jul-Sep 2003 | N115: 627000 | O115: 535000 | P115: 440000 | Q115: 409000 | R115: 31000 | S115: 187000 | T115: 0.07 | U115: 0.807 | V115: 0.75 | Y115: Jul-Sep 2003 | Z115: 673000 | AA115: 548000 | AB115: 337000 | AC115: 324000 | AD115: 13000 | AE115: 336000 | AF115: 0.039 | AG115: 0.608 | AH115: 0.585
A116: Aug-Oct 2003 | B116: 1301000 | C116: 1083000 | D116: 774000 | E116: 729000 | F116: 45000 | G116: 527000 | H116: 0.058 | I116: 0.705 | J116: 0.663 | M116: Aug-Oct 2003 | N116: 627000 | O116: 535000 | P116: 440000 | Q116: 407000 | R116: 33000 | S116: 187000 | T116: 0.074 | U116: 0.809 | V116: 0.748 | Y116: Aug-Oct 2003 | Z116: 674000 | AA116: 548000 | AB116: 334000 | AC116: 322000 | AD116: 12000 | AE116: 340000 | AF116: 0.037 | AG116: 0.602 | AH116: 0.58
A117: Sep-Nov 2003 | B117: 1302000 | C117: 1084000 | D117: 771000 | E117: 725000 | F117: 46000 | G117: 531000 | H117: 0.06 | I117: 0.702 | J117: 0.659 | M117: Sep-Nov 2003 | N117: 628000 | O117: 535000 | P117: 436000 | Q117: 401000 | R117: 35000 | S117: 191000 | T117: 0.08 | U117: 0.801 | V117: 0.736 | Y117: Sep-Nov 2003 | Z117: 674000 | AA117: 549000 | AB117: 335000 | AC117: 324000 | AD117: 11000 | AE117: 339000 | AF117: 0.034 | AG117: 0.604 | AH117: 0.583
A118: Oct-Dec 2003 | B118: 1303000 | C118: 1085000 | D118: 768000 | E118: 719000 | F118: 49000 | G118: 535000 | H118: 0.063 | I118: 0.697 | J118: 0.652 | M118: Oct-Dec 2003 | N118: 628000 | O118: 536000 | P118: 436000 | Q118: 399000 | R118: 37000 | S118: 192000 | T118: 0.085 | U118: 0.799 | V118: 0.73 | Y118: Oct-Dec 2003 | Z118: 675000 | AA118: 549000 | AB118: 332000 | AC118: 320000 | AD118: 12000 | AE118: 343000 | AF118: 0.035 | AG118: 0.598 | AH118: 0.577
A119: Nov-Jan 2004 | B119: 1305000 | C119: 1086000 | D119: 772000 | E119: 728000 | F119: 43000 | G119: 533000 | H119: 0.056 | I119: 0.7 | J119: 0.66 | M119: Nov-Jan 2004 | N119: 629000 | O119: 536000 | P119: 436000 | Q119: 403000 | R119: 32000 | S119: 193000 | T119: 0.075 | U119: 0.797 | V119: 0.736 | Y119: Nov-Jan 2004 | Z119: 676000 | AA119: 550000 | AB119: 336000 | AC119: 325000 | AD119: 11000 | AE119: 340000 | AF119: 0.032 | AG119: 0.606 | AH119: 0.586
A120: Dec-Feb 2004 | B120: 1306000 | C120: 1087000 | D120: 774000 | E120: 733000 | F120: 41000 | G120: 532000 | H120: 0.053 | I120: 0.702 | J120: 0.664 | M120: Dec-Feb 2004 | N120: 630000 | O120: 537000 | P120: 435000 | Q120: 405000 | R120: 31000 | S120: 194000 | T120: 0.071 | U120: 0.795 | V120: 0.738 | Y120: Dec-Feb 2004 | Z120: 676000 | AA120: 550000 | AB120: 339000 | AC120: 328000 | AD120: 10000 | AE120: 337000 | AF120: 0.03 | AG120: 0.611 | AH120: 0.592
A121: Jan-Mar 2004 | B121: 1307000 | C121: 1088000 | D121: 764000 | E121: 724000 | F121: 40000 | G121: 543000 | H121: 0.052 | I121: 0.692 | J121: 0.655 | M121: Jan-Mar 2004 | N121: 630000 | O121: 537000 | P121: 427000 | Q121: 398000 | R121: 30000 | S121: 203000 | T121: 0.069 | U121: 0.777 | V121: 0.722 | Y121: Jan-Mar 2004 | Z121: 677000 | AA121: 551000 | AB121: 337000 | AC121: 327000 | AD121: 10000 | AE121: 340000 | AF121: 0.031 | AG121: 0.609 | AH121: 0.59
A122: Feb-Apr 2004 | B122: 1308000 | C122: 1089000 | D122: 764000 | E122: 725000 | F122: 39000 | G122: 544000 | H122: 0.051 | I122: 0.692 | J122: 0.656 | M122: Feb-Apr 2004 | N122: 631000 | O122: 538000 | P122: 426000 | Q122: 397000 | R122: 29000 | S122: 204000 | T122: 0.069 | U122: 0.776 | V122: 0.722 | Y122: Feb-Apr 2004 | Z122: 677000 | AA122: 551000 | AB122: 338000 | AC122: 328000 | AD122: 9000 | AE122: 339000 | AF122: 0.028 | AG122: 0.61 | AH122: 0.592
A123: Mar-May 2004 | B123: 1309000 | C123: 1090000 | D123: 758000 | E123: 723000 | F123: 36000 | G123: 551000 | H123: 0.047 | I123: 0.688 | J123: 0.655 | M123: Mar-May 2004 | N123: 631000 | O123: 538000 | P123: 421000 | Q123: 396000 | R123: 26000 | S123: 210000 | T123: 0.061 | U123: 0.771 | V123: 0.723 | Y123: Mar-May 2004 | Z123: 678000 | AA123: 551000 | AB123: 337000 | AC123: 327000 | AD123: 10000 | AE123: 341000 | AF123: 0.03 | AG123: 0.608 | AH123: 0.589
A124: Apr-Jun 2004 | B124: 1310000 | C124: 1091000 | D124: 760000 | E124: 722000 | F124: 38000 | G124: 550000 | H124: 0.05 | I124: 0.688 | J124: 0.654 | M124: Apr-Jun 2004 | N124: 632000 | O124: 539000 | P124: 425000 | Q124: 399000 | R124: 26000 | S124: 207000 | T124: 0.061 | U124: 0.774 | V124: 0.726 | Y124: Apr-Jun 2004 | Z124: 678000 | AA124: 552000 | AB124: 335000 | AC124: 323000 | AD124: 12000 | AE124: 343000 | AF124: 0.036 | AG124: 0.605 | AH124: 0.583
A125: May-Jul 2004 | B125: 1312000 | C125: 1092000 | D125: 761000 | E125: 724000 | F125: 37000 | G125: 550000 | H125: 0.049 | I125: 0.69 | J125: 0.655 | M125: May-Jul 2004 | N125: 633000 | O125: 539000 | P125: 426000 | Q125: 400000 | R125: 27000 | S125: 206000 | T125: 0.063 | U125: 0.777 | V125: 0.728 | Y125: May-Jul 2004 | Z125: 679000 | AA125: 552000 | AB125: 335000 | AC125: 324000 | AD125: 11000 | AE125: 344000 | AF125: 0.032 | AG125: 0.604 | AH125: 0.584
A126: Jun-Aug 2004 | B126: 1313000 | C126: 1093000 | D126: 762000 | E126: 726000 | F126: 36000 | G126: 551000 | H126: 0.047 | I126: 0.689 | J126: 0.656 | M126: Jun-Aug 2004 | N126: 633000 | O126: 540000 | P126: 428000 | Q126: 404000 | R126: 25000 | S126: 205000 | T126: 0.058 | U126: 0.78 | V126: 0.734 | Y126: Jun-Aug 2004 | Z126: 679000 | AA126: 553000 | AB126: 334000 | AC126: 323000 | AD126: 11000 | AE126: 346000 | AF126: 0.034 | AG126: 0.6 | AH126: 0.58
A127: Jul-Sep 2004 | B127: 1314000 | C127: 1094000 | D127: 765000 | E127: 726000 | F127: 39000 | G127: 549000 | H127: 0.051 | I127: 0.691 | J127: 0.655 | M127: Jul-Sep 2004 | N127: 634000 | O127: 540000 | P127: 430000 | Q127: 402000 | R127: 28000 | S127: 204000 | T127: 0.066 | U127: 0.781 | V127: 0.729 | Y127: Jul-Sep 2004 | Z127: 680000 | AA127: 553000 | AB127: 336000 | AC127: 325000 | AD127: 11000 | AE127: 345000 | AF127: 0.032 | AG127: 0.603 | AH127: 0.583
A128: Aug-Oct 2004 | B128: 1316000 | C128: 1095000 | D128: 776000 | E128: 736000 | F128: 40000 | G128: 540000 | H128: 0.052 | I128: 0.699 | J128: 0.663 | M128: Aug-Oct 2004 | N128: 635000 | O128: 541000 | P128: 432000 | Q128: 403000 | R128: 29000 | S128: 203000 | T128: 0.066 | U128: 0.784 | V128: 0.731 | Y128: Aug-Oct 2004 | Z128: 681000 | AA128: 554000 | AB128: 344000 | AC128: 333000 | AD128: 11000 | AE128: 336000 | AF128: 0.033 | AG128: 0.616 | AH128: 0.596
A129: Sep-Nov 2004 | B129: 1317000 | C129: 1096000 | D129: 782000 | E129: 741000 | F129: 41000 | G129: 535000 | H129: 0.053 | I129: 0.703 | J129: 0.666 | M129: Sep-Nov 2004 | N129: 636000 | O129: 542000 | P129: 435000 | Q129: 405000 | R129: 30000 | S129: 200000 | T129: 0.07 | U129: 0.789 | V129: 0.733 | Y129: Sep-Nov 2004 | Z129: 681000 | AA129: 554000 | AB129: 346000 | AC129: 336000 | AD129: 11000 | AE129: 335000 | AF129: 0.031 | AG129: 0.619 | AH129: 0.6
A130: Oct-Dec 2004 | B130: 1318000 | C130: 1097000 | D130: 789000 | E130: 752000 | F130: 37000 | G130: 530000 | H130: 0.047 | I130: 0.709 | J130: 0.675 | M130: Oct-Dec 2004 | N130: 636000 | O130: 542000 | P130: 437000 | Q130: 411000 | R130: 27000 | S130: 199000 | T130: 0.061 | U130: 0.791 | V130: 0.742 | Y130: Oct-Dec 2004 | Z130: 682000 | AA130: 555000 | AB130: 351000 | AC130: 341000 | AD130: 10000 | AE130: 331000 | AF130: 0.029 | AG130: 0.628 | AH130: 0.61
A131: Nov-Jan 2005 | B131: 1320000 | C131: 1098000 | D131: 785000 | E131: 748000 | F131: 36000 | G131: 535000 | H131: 0.046 | I131: 0.704 | J131: 0.67 | M131: Nov-Jan 2005 | N131: 637000 | O131: 543000 | P131: 437000 | Q131: 411000 | R131: 26000 | S131: 200000 | T131: 0.059 | U131: 0.787 | V131: 0.74 | Y131: Nov-Jan 2005 | Z131: 683000 | AA131: 555000 | AB131: 348000 | AC131: 338000 | AD131: 11000 | AE131: 334000 | AF131: 0.031 | AG131: 0.622 | AH131: 0.603
A132: Dec-Feb 2005 | B132: 1321000 | C132: 1099000 | D132: 787000 | E132: 749000 | F132: 38000 | G132: 534000 | H132: 0.048 | I132: 0.705 | J132: 0.671 | M132: Dec-Feb 2005 | N132: 638000 | O132: 543000 | P132: 436000 | Q132: 410000 | R132: 26000 | S132: 202000 | T132: 0.06 | U132: 0.786 | V132: 0.738 | Y132: Dec-Feb 2005 | Z132: 683000 | AA132: 556000 | AB132: 352000 | AC132: 340000 | AD132: 12000 | AE132: 332000 | AF132: 0.034 | AG132: 0.627 | AH132: 0.605
A133: Jan-Mar 2005 | B133: 1322000 | C133: 1101000 | D133: 789000 | E133: 752000 | F133: 37000 | G133: 533000 | H133: 0.047 | I133: 0.706 | J133: 0.672 | M133: Jan-Mar 2005 | N133: 638000 | O133: 544000 | P133: 438000 | Q133: 412000 | R133: 25000 | S133: 201000 | T133: 0.058 | U133: 0.789 | V133: 0.743 | Y133: Jan-Mar 2005 | Z133: 684000 | AA133: 557000 | AB133: 352000 | AC133: 340000 | AD133: 12000 | AE133: 332000 | AF133: 0.034 | AG133: 0.625 | AH133: 0.603
A134: Feb-Apr 2005 | B134: 1324000 | C134: 1102000 | D134: 785000 | E134: 748000 | F134: 37000 | G134: 539000 | H134: 0.047 | I134: 0.7 | J134: 0.667 | M134: Feb-Apr 2005 | N134: 639000 | O134: 545000 | P134: 437000 | Q134: 412000 | R134: 24000 | S134: 203000 | T134: 0.056 | U134: 0.785 | V134: 0.741 | Y134: Feb-Apr 2005 | Z134: 685000 | AA134: 557000 | AB134: 349000 | AC134: 336000 | AD134: 13000 | AE134: 336000 | AF134: 0.037 | AG134: 0.618 | AH134: 0.595
A135: Mar-May 2005 | B135: 1325000 | C135: 1103000 | D135: 787000 | E135: 751000 | F135: 36000 | G135: 538000 | H135: 0.046 | I135: 0.702 | J135: 0.67 | M135: Mar-May 2005 | N135: 640000 | O135: 545000 | P135: 437000 | Q135: 413000 | R135: 24000 | S135: 203000 | T135: 0.054 | U135: 0.787 | V135: 0.743 | Y135: Mar-May 2005 | Z135: 685000 | AA135: 558000 | AB135: 350000 | AC135: 338000 | AD135: 13000 | AE135: 335000 | AF135: 0.036 | AG135: 0.62 | AH135: 0.598
A136: Apr-Jun 2005 | B136: 1326000 | C136: 1104000 | D136: 790000 | E136: 752000 | F136: 38000 | G136: 536000 | H136: 0.049 | I136: 0.704 | J136: 0.669 | M136: Apr-Jun 2005 | N136: 640000 | O136: 546000 | P136: 432000 | Q136: 408000 | R136: 24000 | S136: 208000 | T136: 0.057 | U136: 0.776 | V136: 0.731 | Y136: Apr-Jun 2005 | Z136: 686000 | AA136: 558000 | AB136: 358000 | AC136: 344000 | AD136: 14000 | AE136: 328000 | AF136: 0.039 | AG136: 0.633 | AH136: 0.608
A137: May-Jul 2005 | B137: 1328000 | C137: 1105000 | D137: 801000 | E137: 761000 | F137: 40000 | G137: 527000 | H137: 0.05 | I137: 0.712 | J137: 0.676 | M137: May-Jul 2005 | N137: 641000 | O137: 546000 | P137: 440000 | Q137: 414000 | R137: 26000 | S137: 202000 | T137: 0.059 | U137: 0.788 | V137: 0.74 | Y137: May-Jul 2005 | Z137: 687000 | AA137: 559000 | AB137: 362000 | AC137: 348000 | AD137: 14000 | AE137: 325000 | AF137: 0.038 | AG137: 0.639 | AH137: 0.614
A138: Jun-Aug 2005 | B138: 1329000 | C138: 1106000 | D138: 803000 | E138: 766000 | F138: 37000 | G138: 526000 | H138: 0.046 | I138: 0.713 | J138: 0.68 | M138: Jun-Aug 2005 | N138: 642000 | O138: 547000 | P138: 440000 | Q138: 415000 | R138: 25000 | S138: 202000 | T138: 0.057 | U138: 0.787 | V138: 0.741 | Y138: Jun-Aug 2005 | Z138: 687000 | AA138: 559000 | AB138: 364000 | AC138: 351000 | AD138: 12000 | AE138: 324000 | AF138: 0.034 | AG138: 0.641 | AH138: 0.619
A139: Jul-Sep 2005 | B139: 1331000 | C139: 1107000 | D139: 806000 | E139: 771000 | F139: 35000 | G139: 525000 | H139: 0.043 | I139: 0.715 | J139: 0.683 | M139: Jul-Sep 2005 | N139: 643000 | O139: 547000 | P139: 443000 | Q139: 420000 | R139: 23000 | S139: 199000 | T139: 0.052 | U139: 0.791 | V139: 0.749 | Y139: Jul-Sep 2005 | Z139: 688000 | AA139: 560000 | AB139: 363000 | AC139: 351000 | AD139: 12000 | AE139: 325000 | AF139: 0.033 | AG139: 0.64 | AH139: 0.619
A140: Aug-Oct 2005 | B140: 1332000 | C140: 1109000 | D140: 802000 | E140: 768000 | F140: 34000 | G140: 530000 | H140: 0.042 | I140: 0.71 | J140: 0.68 | M140: Aug-Oct 2005 | N140: 643000 | O140: 548000 | P140: 442000 | Q140: 420000 | R140: 23000 | S140: 201000 | T140: 0.051 | U140: 0.788 | V140: 0.747 | Y140: Aug-Oct 2005 | Z140: 689000 | AA140: 561000 | AB140: 360000 | AC140: 349000 | AD140: 11000 | AE140: 329000 | AF140: 0.031 | AG140: 0.634 | AH140: 0.614
A141: Sep-Nov 2005 | B141: 1333000 | C141: 1110000 | D141: 802000 | E141: 764000 | F141: 38000 | G141: 531000 | H141: 0.048 | I141: 0.709 | J141: 0.675 | M141: Sep-Nov 2005 | N141: 644000 | O141: 549000 | P141: 443000 | Q141: 418000 | R141: 25000 | S141: 201000 | T141: 0.056 | U141: 0.788 | V141: 0.742 | Y141: Sep-Nov 2005 | Z141: 689000 | AA141: 561000 | AB141: 359000 | AC141: 346000 | AD141: 13000 | AE141: 330000 | AF141: 0.037 | AG141: 0.632 | AH141: 0.608
A142: Oct-Dec 2005 | B142: 1335000 | C142: 1111000 | D142: 797000 | E142: 760000 | F142: 37000 | G142: 538000 | H142: 0.046 | I142: 0.703 | J142: 0.671 | M142: Oct-Dec 2005 | N142: 645000 | O142: 549000 | P142: 443000 | Q142: 418000 | R142: 24000 | S142: 202000 | T142: 0.055 | U142: 0.786 | V142: 0.742 | Y142: Oct-Dec 2005 | Z142: 690000 | AA142: 562000 | AB142: 354000 | AC142: 342000 | AD142: 12000 | AE142: 336000 | AF142: 0.034 | AG142: 0.622 | AH142: 0.601
A143: Nov-Jan 2006 | B143: 1336000 | C143: 1112000 | D143: 802000 | E143: 770000 | F143: 32000 | G143: 535000 | H143: 0.04 | I143: 0.707 | J143: 0.678 | M143: Nov-Jan 2006 | N143: 646000 | O143: 550000 | P143: 442000 | Q143: 420000 | R143: 22000 | S143: 204000 | T143: 0.049 | U143: 0.786 | V143: 0.746 | Y143: Nov-Jan 2006 | Z143: 691000 | AA143: 562000 | AB143: 360000 | AC143: 350000 | AD143: 10000 | AE143: 331000 | AF143: 0.028 | AG143: 0.63 | AH143: 0.612
A144: Dec-Feb 2006 | B144: 1338000 | C144: 1113000 | D144: 807000 | E144: 775000 | F144: 32000 | G144: 531000 | H144: 0.04 | I144: 0.711 | J144: 0.682 | M144: Dec-Feb 2006 | N144: 646000 | O144: 550000 | P144: 446000 | Q144: 424000 | R144: 22000 | S144: 200000 | T144: 0.05 | U144: 0.792 | V144: 0.752 | Y144: Dec-Feb 2006 | Z144: 691000 | AA144: 563000 | AB144: 361000 | AC144: 351000 | AD144: 9000 | AE144: 331000 | AF144: 0.026 | AG144: 0.631 | AH144: 0.614
A145: Jan-Mar 2006 | B145: 1339000 | C145: 1114000 | D145: 803000 | E145: 769000 | F145: 34000 | G145: 537000 | H145: 0.042 | I145: 0.705 | J145: 0.675 | M145: Jan-Mar 2006 | N145: 647000 | O145: 551000 | P145: 444000 | Q145: 419000 | R145: 24000 | S145: 203000 | T145: 0.055 | U145: 0.786 | V145: 0.742 | Y145: Jan-Mar 2006 | Z145: 692000 | AA145: 564000 | AB145: 359000 | AC145: 349000 | AD145: 10000 | AE145: 333000 | AF145: 0.027 | AG145: 0.627 | AH145: 0.61
A146: Feb-Apr 2006 | B146: 1341000 | C146: 1115000 | D146: 802000 | E146: 763000 | F146: 39000 | G146: 539000 | H146: 0.048 | I146: 0.704 | J146: 0.67 | M146: Feb-Apr 2006 | N146: 648000 | O146: 551000 | P146: 442000 | Q146: 414000 | R146: 28000 | S146: 206000 | T146: 0.063 | U146: 0.783 | V146: 0.733 | Y146: Feb-Apr 2006 | Z146: 693000 | AA146: 564000 | AB146: 360000 | AC146: 349000 | AD146: 11000 | AE146: 333000 | AF146: 0.03 | AG146: 0.627 | AH146: 0.607
A147: Mar-May 2006 | B147: 1342000 | C147: 1117000 | D147: 803000 | E147: 768000 | F147: 35000 | G147: 539000 | H147: 0.043 | I147: 0.706 | J147: 0.675 | M147: Mar-May 2006 | N147: 649000 | O147: 552000 | P147: 442000 | Q147: 418000 | R147: 24000 | S147: 207000 | T147: 0.053 | U147: 0.783 | V147: 0.741 | Y147: Mar-May 2006 | Z147: 694000 | AA147: 565000 | AB147: 361000 | AC147: 350000 | AD147: 11000 | AE147: 332000 | AF147: 0.03 | AG147: 0.63 | AH147: 0.61
A148: Apr-Jun 2006 | B148: 1343000 | C148: 1118000 | D148: 812000 | E148: 778000 | F148: 34000 | G148: 532000 | H148: 0.042 | I148: 0.712 | J148: 0.683 | M148: Apr-Jun 2006 | N148: 649000 | O148: 553000 | P148: 446000 | Q148: 423000 | R148: 23000 | S148: 203000 | T148: 0.051 | U148: 0.789 | V148: 0.748 | Y148: Apr-Jun 2006 | Z148: 694000 | AA148: 565000 | AB148: 366000 | AC148: 355000 | AD148: 11000 | AE148: 328000 | AF148: 0.029 | AG148: 0.638 | AH148: 0.618
A149: May-Jul 2006 | B149: 1345000 | C149: 1119000 | D149: 815000 | E149: 779000 | F149: 36000 | G149: 530000 | H149: 0.044 | I149: 0.716 | J149: 0.684 | M149: May-Jul 2006 | N149: 650000 | O149: 553000 | P149: 448000 | Q149: 425000 | R149: 24000 | S149: 202000 | T149: 0.053 | U149: 0.794 | V149: 0.752 | Y149: May-Jul 2006 | Z149: 695000 | AA149: 566000 | AB149: 367000 | AC149: 355000 | AD149: 12000 | AE149: 328000 | AF149: 0.033 | AG149: 0.639 | AH149: 0.618
A150: Jun-Aug 2006 | B150: 1346000 | C150: 1120000 | D150: 816000 | E150: 779000 | F150: 37000 | G150: 531000 | H150: 0.045 | I150: 0.715 | J150: 0.682 | M150: Jun-Aug 2006 | N150: 651000 | O150: 554000 | P150: 449000 | Q150: 425000 | R150: 24000 | S150: 202000 | T150: 0.053 | U150: 0.791 | V150: 0.748 | Y150: Jun-Aug 2006 | Z150: 696000 | AA150: 567000 | AB150: 367000 | AC150: 355000 | AD150: 13000 | AE150: 328000 | AF150: 0.034 | AG150: 0.64 | AH150: 0.618
A151: Jul-Sep 2006 | B151: 1348000 | C151: 1122000 | D151: 811000 | E151: 772000 | F151: 39000 | G151: 537000 | H151: 0.048 | I151: 0.709 | J151: 0.675 | M151: Jul-Sep 2006 | N151: 652000 | O151: 554000 | P151: 447000 | Q151: 422000 | R151: 25000 | S151: 205000 | T151: 0.055 | U151: 0.787 | V151: 0.743 | Y151: Jul-Sep 2006 | Z151: 697000 | AA151: 567000 | AB151: 364000 | AC151: 350000 | AD151: 14000 | AE151: 332000 | AF151: 0.039 | AG151: 0.633 | AH151: 0.609
A152: Aug-Oct 2006 | B152: 1350000 | C152: 1123000 | D152: 808000 | E152: 771000 | F152: 38000 | G152: 541000 | H152: 0.047 | I152: 0.707 | J152: 0.674 | M152: Aug-Oct 2006 | N152: 652000 | O152: 555000 | P152: 444000 | Q152: 420000 | R152: 24000 | S152: 208000 | T152: 0.054 | U152: 0.782 | V152: 0.739 | Y152: Aug-Oct 2006 | Z152: 697000 | AA152: 568000 | AB152: 364000 | AC152: 350000 | AD152: 14000 | AE152: 333000 | AF152: 0.037 | AG152: 0.634 | AH152: 0.61
A153: Sep-Nov 2006 | B153: 1351000 | C153: 1124000 | D153: 812000 | E153: 776000 | F153: 35000 | G153: 539000 | H153: 0.044 | I153: 0.709 | J153: 0.677 | M153: Sep-Nov 2006 | N153: 653000 | O153: 555000 | P153: 444000 | Q153: 422000 | R153: 22000 | S153: 209000 | T153: 0.049 | U153: 0.78 | V153: 0.741 | Y153: Sep-Nov 2006 | Z153: 698000 | AA153: 569000 | AB153: 368000 | AC153: 354000 | AD153: 14000 | AE153: 330000 | AF153: 0.037 | AG153: 0.639 | AH153: 0.615
A154: Oct-Dec 2006 | B154: 1353000 | C154: 1125000 | D154: 815000 | E154: 780000 | F154: 35000 | G154: 538000 | H154: 0.043 | I154: 0.711 | J154: 0.68 | M154: Oct-Dec 2006 | N154: 654000 | O154: 556000 | P154: 445000 | Q154: 424000 | R154: 21000 | S154: 209000 | T154: 0.047 | U154: 0.781 | V154: 0.743 | Y154: Oct-Dec 2006 | Z154: 699000 | AA154: 569000 | AB154: 370000 | AC154: 356000 | AD154: 14000 | AE154: 329000 | AF154: 0.038 | AG154: 0.643 | AH154: 0.618
A155: Nov-Jan 2007 | B155: 1354000 | C155: 1126000 | D155: 818000 | E155: 785000 | F155: 33000 | G155: 536000 | H155: 0.041 | I155: 0.714 | J155: 0.685 | M155: Nov-Jan 2007 | N155: 655000 | O155: 557000 | P155: 445000 | Q155: 427000 | R155: 18000 | S155: 209000 | T155: 0.041 | U155: 0.783 | V155: 0.751 | Y155: Nov-Jan 2007 | Z155: 700000 | AA155: 570000 | AB155: 373000 | AC155: 358000 | AD155: 15000 | AE155: 327000 | AF155: 0.041 | AG155: 0.647 | AH155: 0.62
A156: Dec-Feb 2007 | B156: 1356000 | C156: 1128000 | D156: 819000 | E156: 782000 | F156: 37000 | G156: 537000 | H156: 0.045 | I156: 0.714 | J156: 0.682 | M156: Dec-Feb 2007 | N156: 655000 | O156: 557000 | P156: 447000 | Q156: 425000 | R156: 22000 | S156: 208000 | T156: 0.049 | U156: 0.786 | V156: 0.747 | Y156: Dec-Feb 2007 | Z156: 701000 | AA156: 570000 | AB156: 372000 | AC156: 356000 | AD156: 15000 | AE156: 329000 | AF156: 0.041 | AG156: 0.644 | AH156: 0.617
A157: Jan-Mar 2007 | B157: 1357000 | C157: 1129000 | D157: 823000 | E157: 789000 | F157: 34000 | G157: 534000 | H157: 0.041 | I157: 0.717 | J157: 0.688 | M157: Jan-Mar 2007 | N157: 656000 | O157: 558000 | P157: 449000 | Q157: 428000 | R157: 21000 | S157: 207000 | T157: 0.046 | U157: 0.787 | V157: 0.751 | Y157: Jan-Mar 2007 | Z157: 701000 | AA157: 571000 | AB157: 374000 | AC157: 361000 | AD157: 13000 | AE157: 327000 | AF157: 0.035 | AG157: 0.648 | AH157: 0.626
A158: Feb-Apr 2007 | B158: 1359000 | C158: 1130000 | D158: 834000 | E158: 799000 | F158: 35000 | G158: 525000 | H158: 0.042 | I158: 0.724 | J158: 0.693 | M158: Feb-Apr 2007 | N158: 657000 | O158: 558000 | P158: 457000 | Q158: 435000 | R158: 22000 | S158: 200000 | T158: 0.048 | U158: 0.798 | V158: 0.759 | Y158: Feb-Apr 2007 | Z158: 702000 | AA158: 572000 | AB158: 377000 | AC158: 364000 | AD158: 13000 | AE158: 325000 | AF158: 0.035 | AG158: 0.651 | AH158: 0.629
A159: Mar-May 2007 | B159: 1361000 | C159: 1131000 | D159: 832000 | E159: 798000 | F159: 34000 | G159: 529000 | H159: 0.04 | I159: 0.721 | J159: 0.691 | M159: Mar-May 2007 | N159: 658000 | O159: 559000 | P159: 452000 | Q159: 432000 | R159: 20000 | S159: 206000 | T159: 0.044 | U159: 0.791 | V159: 0.755 | Y159: Mar-May 2007 | Z159: 703000 | AA159: 572000 | AB159: 379000 | AC159: 366000 | AD159: 14000 | AE159: 323000 | AF159: 0.036 | AG159: 0.653 | AH159: 0.629
A160: Apr-Jun 2007 | B160: 1362000 | C160: 1133000 | D160: 825000 | E160: 795000 | F160: 29000 | G160: 537000 | H160: 0.036 | I160: 0.715 | J160: 0.689 | M160: Apr-Jun 2007 | N160: 659000 | O160: 560000 | P160: 453000 | Q160: 435000 | R160: 17000 | S160: 206000 | T160: 0.038 | U160: 0.79 | V160: 0.759 | Y160: Apr-Jun 2007 | Z160: 704000 | AA160: 573000 | AB160: 372000 | AC160: 360000 | AD160: 12000 | AE160: 331000 | AF160: 0.033 | AG160: 0.641 | AH160: 0.62
A161: May-Jul 2007 | B161: 1364000 | C161: 1134000 | D161: 820000 | E161: 793000 | F161: 27000 | G161: 544000 | H161: 0.032 | I161: 0.71 | J161: 0.687 | M161: May-Jul 2007 | N161: 659000 | O161: 560000 | P161: 450000 | Q161: 434000 | R161: 16000 | S161: 209000 | T161: 0.035 | U161: 0.786 | V161: 0.758 | Y161: May-Jul 2007 | Z161: 705000 | AA161: 574000 | AB161: 370000 | AC161: 360000 | AD161: 11000 | AE161: 334000 | AF161: 0.028 | AG161: 0.636 | AH161: 0.618
A162: Jun-Aug 2007 | B162: 1365000 | C162: 1135000 | D162: 811000 | E162: 782000 | F162: 29000 | G162: 554000 | H162: 0.036 | I162: 0.704 | J162: 0.678 | M162: Jun-Aug 2007 | N162: 660000 | O162: 561000 | P162: 445000 | Q162: 428000 | R162: 17000 | S162: 215000 | T162: 0.038 | U162: 0.78 | V162: 0.749 | Y162: Jun-Aug 2007 | Z162: 705000 | AA162: 574000 | AB162: 366000 | AC162: 353000 | AD162: 12000 | AE162: 340000 | AF162: 0.033 | AG162: 0.629 | AH162: 0.608
A163: Jul-Sep 2007 | B163: 1367000 | C163: 1136000 | D163: 819000 | E163: 787000 | F163: 32000 | G163: 547000 | H163: 0.039 | I163: 0.709 | J163: 0.681 | M163: Jul-Sep 2007 | N163: 661000 | O163: 561000 | P163: 447000 | Q163: 428000 | R163: 19000 | S163: 214000 | T163: 0.042 | U163: 0.779 | V163: 0.746 | Y163: Jul-Sep 2007 | Z163: 706000 | AA163: 575000 | AB163: 372000 | AC163: 359000 | AD163: 13000 | AE163: 334000 | AF163: 0.035 | AG163: 0.64 | AH163: 0.617
A164: Aug-Oct 2007 | B164: 1368000 | C164: 1137000 | D164: 821000 | E164: 787000 | F164: 34000 | G164: 547000 | H164: 0.041 | I164: 0.71 | J164: 0.68 | M164: Aug-Oct 2007 | N164: 661000 | O164: 561000 | P164: 447000 | Q164: 427000 | R164: 20000 | S164: 214000 | T164: 0.046 | U164: 0.781 | V164: 0.745 | Y164: Aug-Oct 2007 | Z164: 707000 | AA164: 575000 | AB164: 374000 | AC164: 360000 | AD164: 14000 | AE164: 333000 | AF164: 0.036 | AG164: 0.642 | AH164: 0.618
A165: Sep-Nov 2007 | B165: 1369000 | C165: 1137000 | D165: 823000 | E165: 787000 | F165: 36000 | G165: 546000 | H165: 0.044 | I165: 0.711 | J165: 0.679 | M165: Sep-Nov 2007 | N165: 662000 | O165: 562000 | P165: 449000 | Q165: 426000 | R165: 23000 | S165: 214000 | T165: 0.05 | U165: 0.783 | V165: 0.742 | Y165: Sep-Nov 2007 | Z165: 707000 | AA165: 576000 | AB165: 374000 | AC165: 361000 | AD165: 14000 | AE165: 333000 | AF165: 0.037 | AG165: 0.642 | AH165: 0.618
A166: Oct-Dec 2007 | B166: 1371000 | C166: 1138000 | D166: 823000 | E166: 789000 | F166: 35000 | G166: 547000 | H166: 0.042 | I166: 0.711 | J166: 0.681 | M166: Oct-Dec 2007 | N166: 663000 | O166: 562000 | P166: 450000 | Q166: 428000 | R166: 21000 | S166: 213000 | T166: 0.048 | U166: 0.784 | V166: 0.746 | Y166: Oct-Dec 2007 | Z166: 708000 | AA166: 576000 | AB166: 374000 | AC166: 360000 | AD166: 13000 | AE166: 334000 | AF166: 0.036 | AG166: 0.64 | AH166: 0.616
A167: Nov-Jan 2008 | B167: 1372000 | C167: 1139000 | D167: 827000 | E167: 792000 | F167: 35000 | G167: 544000 | H167: 0.042 | I167: 0.712 | J167: 0.681 | M167: Nov-Jan 2008 | N167: 663000 | O167: 563000 | P167: 454000 | Q167: 431000 | R167: 23000 | S167: 210000 | T167: 0.05 | U167: 0.788 | V167: 0.748 | Y167: Nov-Jan 2008 | Z167: 709000 | AA167: 577000 | AB167: 374000 | AC167: 362000 | AD167: 12000 | AE167: 335000 | AF167: 0.033 | AG167: 0.638 | AH167: 0.616
A168: Dec-Feb 2008 | B168: 1373000 | C168: 1140000 | D168: 832000 | E168: 798000 | F168: 35000 | G168: 541000 | H168: 0.041 | I168: 0.715 | J168: 0.685 | M168: Dec-Feb 2008 | N168: 664000 | O168: 563000 | P168: 456000 | Q168: 433000 | R168: 23000 | S168: 208000 | T168: 0.051 | U168: 0.792 | V168: 0.751 | Y168: Dec-Feb 2008 | Z168: 709000 | AA168: 577000 | AB168: 376000 | AC168: 365000 | AD168: 11000 | AE168: 333000 | AF168: 0.03 | AG168: 0.641 | AH168: 0.621
A169: Jan-Mar 2008 | B169: 1375000 | C169: 1141000 | D169: 831000 | E169: 794000 | F169: 38000 | G169: 543000 | H169: 0.045 | I169: 0.715 | J169: 0.682 | M169: Jan-Mar 2008 | N169: 665000 | O169: 564000 | P169: 455000 | Q169: 429000 | R169: 25000 | S169: 210000 | T169: 0.056 | U169: 0.79 | V169: 0.745 | Y169: Jan-Mar 2008 | Z169: 710000 | AA169: 577000 | AB169: 376000 | AC169: 364000 | AD169: 12000 | AE169: 333000 | AF169: 0.032 | AG169: 0.641 | AH169: 0.62
A170: Feb-Apr 2008 | B170: 1376000 | C170: 1142000 | D170: 836000 | E170: 802000 | F170: 34000 | G170: 540000 | H170: 0.041 | I170: 0.719 | J170: 0.689 | M170: Feb-Apr 2008 | N170: 665000 | O170: 564000 | P170: 457000 | Q170: 434000 | R170: 23000 | S170: 208000 | T170: 0.051 | U170: 0.794 | V170: 0.752 | Y170: Feb-Apr 2008 | Z170: 711000 | AA170: 578000 | AB170: 379000 | AC170: 368000 | AD170: 11000 | AE170: 332000 | AF170: 0.028 | AG170: 0.646 | AH170: 0.628
A171: Mar-May 2008 | B171: 1377000 | C171: 1143000 | D171: 840000 | E171: 807000 | F171: 33000 | G171: 537000 | H171: 0.04 | I171: 0.721 | J171: 0.692 | M171: Mar-May 2008 | N171: 666000 | O171: 564000 | P171: 459000 | Q171: 435000 | R171: 24000 | S171: 207000 | T171: 0.052 | U171: 0.796 | V171: 0.754 | Y171: Mar-May 2008 | Z171: 711000 | AA171: 578000 | AB171: 381000 | AC171: 371000 | AD171: 10000 | AE171: 330000 | AF171: 0.025 | AG171: 0.648 | AH171: 0.631
A172: Apr-Jun 2008 | B172: 1379000 | C172: 1144000 | D172: 833000 | E172: 801000 | F172: 32000 | G172: 546000 | H172: 0.039 | I172: 0.715 | J172: 0.687 | M172: Apr-Jun 2008 | N172: 667000 | O172: 565000 | P172: 456000 | Q172: 434000 | R172: 22000 | S172: 211000 | T172: 0.049 | U172: 0.791 | V172: 0.752 | Y172: Apr-Jun 2008 | Z172: 712000 | AA172: 579000 | AB172: 377000 | AC172: 367000 | AD172: 10000 | AE172: 335000 | AF172: 0.026 | AG172: 0.64 | AH172: 0.623
A173: May-Jul 2008 | B173: 1380000 | C173: 1145000 | D173: 831000 | E173: 797000 | F173: 34000 | G173: 549000 | H173: 0.041 | I173: 0.714 | J173: 0.683 | M173: May-Jul 2008 | N173: 668000 | O173: 565000 | P173: 455000 | Q173: 431000 | R173: 24000 | S173: 213000 | T173: 0.052 | U173: 0.789 | V173: 0.747 | Y173: May-Jul 2008 | Z173: 713000 | AA173: 579000 | AB173: 376000 | AC173: 366000 | AD173: 11000 | AE173: 336000 | AF173: 0.028 | AG173: 0.64 | AH173: 0.621
A174: Jun-Aug 2008 | B174: 1381000 | C174: 1145000 | D174: 831000 | E174: 797000 | F174: 34000 | G174: 550000 | H174: 0.041 | I174: 0.714 | J174: 0.684 | M174: Jun-Aug 2008 | N174: 668000 | O174: 566000 | P174: 454000 | Q174: 431000 | R174: 23000 | S174: 214000 | T174: 0.051 | U174: 0.787 | V174: 0.746 | Y174: Jun-Aug 2008 | Z174: 713000 | AA174: 580000 | AB174: 377000 | AC174: 366000 | AD174: 11000 | AE174: 336000 | AF174: 0.03 | AG174: 0.642 | AH174: 0.623
A175: Jul-Sep 2008 | B175: 1382000 | C175: 1146000 | D175: 829000 | E175: 795000 | F175: 34000 | G175: 554000 | H175: 0.041 | I175: 0.711 | J175: 0.681 | M175: Jul-Sep 2008 | N175: 669000 | O175: 566000 | P175: 451000 | Q175: 425000 | R175: 26000 | S175: 218000 | T175: 0.057 | U175: 0.781 | V175: 0.736 | Y175: Jul-Sep 2008 | Z175: 714000 | AA175: 580000 | AB175: 378000 | AC175: 369000 | AD175: 8000 | AE175: 336000 | AF175: 0.022 | AG175: 0.642 | AH175: 0.627
A176: Aug-Oct 2008 | B176: 1383000 | C176: 1146000 | D176: 829000 | E176: 792000 | F176: 37000 | G176: 554000 | H176: 0.044 | I176: 0.71 | J176: 0.678 | M176: Aug-Oct 2008 | N176: 669000 | O176: 566000 | P176: 453000 | Q176: 426000 | R176: 28000 | S176: 216000 | T176: 0.061 | U176: 0.784 | V176: 0.736 | Y176: Aug-Oct 2008 | Z176: 714000 | AA176: 580000 | AB176: 376000 | AC176: 366000 | AD176: 9000 | AE176: 339000 | AF176: 0.024 | AG176: 0.637 | AH176: 0.621
A177: Sep-Nov 2008 | B177: 1385000 | C177: 1147000 | D177: 823000 | E177: 787000 | F177: 36000 | G177: 562000 | H177: 0.043 | I177: 0.704 | J177: 0.674 | M177: Sep-Nov 2008 | N177: 670000 | O177: 567000 | P177: 451000 | Q177: 423000 | R177: 28000 | S177: 219000 | T177: 0.062 | U177: 0.78 | V177: 0.731 | Y177: Sep-Nov 2008 | Z177: 715000 | AA177: 580000 | AB177: 372000 | AC177: 364000 | AD177: 8000 | AE177: 343000 | AF177: 0.021 | AG177: 0.631 | AH177: 0.617
A178: Oct-Dec 2008 | B178: 1386000 | C178: 1148000 | D178: 824000 | E178: 781000 | F178: 43000 | G178: 562000 | H178: 0.052 | I178: 0.705 | J178: 0.668 | M178: Oct-Dec 2008 | N178: 670000 | O178: 567000 | P178: 450000 | Q178: 417000 | R178: 33000 | S178: 221000 | T178: 0.073 | U178: 0.778 | V178: 0.72 | Y178: Oct-Dec 2008 | Z178: 715000 | AA178: 581000 | AB178: 374000 | AC178: 364000 | AD178: 10000 | AE178: 341000 | AF178: 0.027 | AG178: 0.634 | AH178: 0.617
A179: Nov-Jan 2009 | B179: 1387000 | C179: 1148000 | D179: 820000 | E179: 773000 | F179: 47000 | G179: 567000 | H179: 0.057 | I179: 0.7 | J179: 0.66 | M179: Nov-Jan 2009 | N179: 671000 | O179: 567000 | P179: 448000 | Q179: 414000 | R179: 35000 | S179: 223000 | T179: 0.077 | U179: 0.773 | V179: 0.712 | Y179: Nov-Jan 2009 | Z179: 716000 | AA179: 581000 | AB179: 372000 | AC179: 359000 | AD179: 12000 | AE179: 344000 | AF179: 0.033 | AG179: 0.629 | AH179: 0.609
A180: Dec-Feb 2009 | B180: 1388000 | C180: 1149000 | D180: 814000 | E180: 766000 | F180: 48000 | G180: 574000 | H180: 0.059 | I180: 0.695 | J180: 0.654 | M180: Dec-Feb 2009 | N180: 672000 | O180: 568000 | P180: 443000 | Q180: 410000 | R180: 34000 | S180: 228000 | T180: 0.076 | U180: 0.763 | V180: 0.705 | Y180: Dec-Feb 2009 | Z180: 716000 | AA180: 581000 | AB180: 371000 | AC180: 356000 | AD180: 14000 | AE180: 346000 | AF180: 0.039 | AG180: 0.628 | AH180: 0.604
A181: Jan-Mar 2009 | B181: 1389000 | C181: 1150000 | D181: 812000 | E181: 762000 | F181: 50000 | G181: 577000 | H181: 0.062 | I181: 0.692 | J181: 0.648 | M181: Jan-Mar 2009 | N181: 672000 | O181: 568000 | P181: 442000 | Q181: 408000 | R181: 34000 | S181: 230000 | T181: 0.078 | U181: 0.76 | V181: 0.699 | Y181: Jan-Mar 2009 | Z181: 717000 | AA181: 582000 | AB181: 370000 | AC181: 354000 | AD181: 16000 | AE181: 347000 | AF181: 0.043 | AG181: 0.626 | AH181: 0.598
A182: Feb-Apr 2009 | B182: 1390000 | C182: 1150000 | D182: 811000 | E182: 759000 | F182: 51000 | G182: 580000 | H182: 0.063 | I182: 0.69 | J182: 0.646 | M182: Feb-Apr 2009 | N182: 673000 | O182: 568000 | P182: 442000 | Q182: 407000 | R182: 35000 | S182: 231000 | T182: 0.08 | U182: 0.757 | V182: 0.695 | Y182: Feb-Apr 2009 | Z182: 717000 | AA182: 582000 | AB182: 369000 | AC182: 353000 | AD182: 16000 | AE182: 349000 | AF182: 0.044 | AG182: 0.625 | AH182: 0.597
A183: Mar-May 2009 | B183: 1391000 | C183: 1151000 | D183: 801000 | E183: 751000 | F183: 50000 | G183: 590000 | H183: 0.063 | I183: 0.682 | J183: 0.638 | M183: Mar-May 2009 | N183: 673000 | O183: 568000 | P183: 438000 | Q183: 403000 | R183: 35000 | S183: 236000 | T183: 0.08 | U183: 0.75 | V183: 0.688 | Y183: Mar-May 2009 | Z183: 718000 | AA183: 582000 | AB183: 364000 | AC183: 349000 | AD183: 15000 | AE183: 354000 | AF183: 0.041 | AG183: 0.616 | AH183: 0.59
A184: Apr-Jun 2009 | B184: 1392000 | C184: 1151000 | D184: 806000 | E184: 754000 | F184: 52000 | G184: 586000 | H184: 0.065 | I184: 0.685 | J184: 0.64 | M184: Apr-Jun 2009 | N184: 674000 | O184: 569000 | P184: 439000 | Q184: 403000 | R184: 36000 | S184: 235000 | T184: 0.081 | U184: 0.752 | V184: 0.689 | Y184: Apr-Jun 2009 | Z184: 718000 | AA184: 583000 | AB184: 367000 | AC184: 350000 | AD184: 17000 | AE184: 351000 | AF184: 0.046 | AG184: 0.62 | AH184: 0.592
A185: May-Jul 2009 | B185: 1393000 | C185: 1152000 | D185: 808000 | E185: 756000 | F185: 52000 | G185: 585000 | H185: 0.064 | I185: 0.687 | J185: 0.642 | M185: May-Jul 2009 | N185: 674000 | O185: 569000 | P185: 441000 | Q185: 403000 | R185: 37000 | S185: 234000 | T185: 0.085 | U185: 0.754 | V185: 0.688 | Y185: May-Jul 2009 | Z185: 719000 | AA185: 583000 | AB185: 367000 | AC185: 353000 | AD185: 15000 | AE185: 352000 | AF185: 0.04 | AG185: 0.622 | AH185: 0.597
A186: Jun-Aug 2009 | B186: 1394000 | C186: 1152000 | D186: 811000 | E186: 755000 | F186: 55000 | G186: 584000 | H186: 0.068 | I186: 0.689 | J186: 0.641 | M186: Jun-Aug 2009 | N186: 675000 | O186: 569000 | P186: 444000 | Q186: 403000 | R186: 41000 | S186: 231000 | T186: 0.093 | U186: 0.761 | V186: 0.688 | Y186: Jun-Aug 2009 | Z186: 719000 | AA186: 583000 | AB186: 366000 | AC186: 352000 | AD186: 14000 | AE186: 353000 | AF186: 0.038 | AG186: 0.619 | AH186: 0.596
A187: Jul-Sep 2009 | B187: 1395000 | C187: 1153000 | D187: 817000 | E187: 760000 | F187: 58000 | G187: 578000 | H187: 0.07 | I187: 0.694 | J187: 0.645 | M187: Jul-Sep 2009 | N187: 676000 | O187: 570000 | P187: 446000 | Q187: 404000 | R187: 42000 | S187: 229000 | T187: 0.095 | U187: 0.763 | V187: 0.689 | Y187: Jul-Sep 2009 | Z187: 720000 | AA187: 583000 | AB187: 371000 | AC187: 355000 | AD187: 15000 | AE187: 349000 | AF187: 0.042 | AG187: 0.627 | AH187: 0.601
A188: Aug-Oct 2009 | B188: 1396000 | C188: 1153000 | D188: 821000 | E188: 768000 | F188: 54000 | G188: 575000 | H188: 0.065 | I188: 0.698 | J188: 0.652 | M188: Aug-Oct 2009 | N188: 676000 | O188: 570000 | P188: 447000 | Q188: 408000 | R188: 40000 | S188: 229000 | T188: 0.089 | U188: 0.765 | V188: 0.696 | Y188: Aug-Oct 2009 | Z188: 720000 | AA188: 584000 | AB188: 374000 | AC188: 360000 | AD188: 14000 | AE188: 346000 | AF188: 0.038 | AG188: 0.633 | AH188: 0.609
A189: Sep-Nov 2009 | B189: 1397000 | C189: 1154000 | D189: 827000 | E189: 772000 | F189: 55000 | G189: 570000 | H189: 0.067 | I189: 0.703 | J189: 0.655 | M189: Sep-Nov 2009 | N189: 676000 | O189: 570000 | P189: 449000 | Q189: 409000 | R189: 40000 | S189: 227000 | T189: 0.09 | U189: 0.768 | V189: 0.697 | Y189: Sep-Nov 2009 | Z189: 721000 | AA189: 584000 | AB189: 378000 | AC189: 363000 | AD189: 15000 | AE189: 343000 | AF189: 0.04 | AG189: 0.639 | AH189: 0.613
A190: Oct-Dec 2009 | B190: 1398000 | C190: 1154000 | D190: 824000 | E190: 775000 | F190: 49000 | G190: 575000 | H190: 0.059 | I190: 0.699 | J190: 0.656 | M190: Oct-Dec 2009 | N190: 677000 | O190: 570000 | P190: 449000 | Q190: 414000 | R190: 34000 | S190: 228000 | T190: 0.077 | U190: 0.766 | V190: 0.705 | Y190: Oct-Dec 2009 | Z190: 721000 | AA190: 584000 | AB190: 375000 | AC190: 361000 | AD190: 14000 | AE190: 346000 | AF190: 0.039 | AG190: 0.633 | AH190: 0.608
A191: Nov-Jan 2010 | B191: 1399000 | C191: 1154000 | D191: 829000 | E191: 777000 | F191: 52000 | G191: 571000 | H191: 0.063 | I191: 0.7 | J191: 0.656 | M191: Nov-Jan 2010 | N191: 677000 | O191: 570000 | P191: 450000 | Q191: 413000 | R191: 37000 | S191: 227000 | T191: 0.083 | U191: 0.764 | V191: 0.698 | Y191: Nov-Jan 2010 | Z191: 722000 | AA191: 584000 | AB191: 378000 | AC191: 364000 | AD191: 14000 | AE191: 344000 | AF191: 0.038 | AG191: 0.638 | AH191: 0.614
A192: Dec-Feb 2010 | B192: 1400000 | C192: 1155000 | D192: 838000 | E192: 784000 | F192: 54000 | G192: 562000 | H192: 0.065 | I192: 0.709 | J192: 0.662 | M192: Dec-Feb 2010 | N192: 678000 | O192: 571000 | P192: 454000 | Q192: 414000 | R192: 40000 | S192: 224000 | T192: 0.088 | U192: 0.773 | V192: 0.703 | Y192: Dec-Feb 2010 | Z192: 722000 | AA192: 584000 | AB192: 384000 | AC192: 369000 | AD192: 14000 | AE192: 339000 | AF192: 0.037 | AG192: 0.647 | AH192: 0.622
A193: Jan-Mar 2010 | B193: 1401000 | C193: 1155000 | D193: 837000 | E193: 779000 | F193: 58000 | G193: 564000 | H193: 0.069 | I193: 0.708 | J193: 0.659 | M193: Jan-Mar 2010 | N193: 678000 | O193: 571000 | P193: 458000 | Q193: 416000 | R193: 42000 | S193: 220000 | T193: 0.092 | U193: 0.779 | V193: 0.706 | Y193: Jan-Mar 2010 | Z193: 723000 | AA193: 585000 | AB193: 378000 | AC193: 363000 | AD193: 16000 | AE193: 344000 | AF193: 0.041 | AG193: 0.639 | AH193: 0.613
A194: Feb-Apr 2010 | B194: 1402000 | C194: 1156000 | D194: 842000 | E194: 783000 | F194: 60000 | G194: 560000 | H194: 0.071 | I194: 0.713 | J194: 0.661 | M194: Feb-Apr 2010 | N194: 679000 | O194: 571000 | P194: 464000 | Q194: 419000 | R194: 44000 | S194: 215000 | T194: 0.095 | U194: 0.79 | V194: 0.713 | Y194: Feb-Apr 2010 | Z194: 723000 | AA194: 585000 | AB194: 379000 | AC194: 363000 | AD194: 16000 | AE194: 344000 | AF194: 0.041 | AG194: 0.638 | AH194: 0.611
A195: Mar-May 2010 | B195: 1403000 | C195: 1156000 | D195: 838000 | E195: 778000 | F195: 59000 | G195: 565000 | H195: 0.071 | I195: 0.711 | J195: 0.66 | M195: Mar-May 2010 | N195: 679000 | O195: 571000 | P195: 458000 | Q195: 414000 | R195: 44000 | S195: 221000 | T195: 0.095 | U195: 0.783 | V195: 0.707 | Y195: Mar-May 2010 | Z195: 724000 | AA195: 585000 | AB195: 380000 | AC195: 364000 | AD195: 16000 | AE195: 344000 | AF195: 0.041 | AG195: 0.642 | AH195: 0.615
A196: Apr-Jun 2010 | B196: 1404000 | C196: 1157000 | D196: 838000 | E196: 782000 | F196: 56000 | G196: 566000 | H196: 0.066 | I196: 0.711 | J196: 0.663 | M196: Apr-Jun 2010 | N196: 680000 | O196: 571000 | P196: 458000 | Q196: 418000 | R196: 41000 | S196: 221000 | T196: 0.089 | U196: 0.782 | V196: 0.71 | Y196: Apr-Jun 2010 | Z196: 724000 | AA196: 585000 | AB196: 379000 | AC196: 365000 | AD196: 15000 | AE196: 345000 | AF196: 0.039 | AG196: 0.642 | AH196: 0.616
A197: May-Jul 2010 | B197: 1405000 | C197: 1157000 | D197: 842000 | E197: 786000 | F197: 56000 | G197: 563000 | H197: 0.067 | I197: 0.713 | J197: 0.664 | M197: May-Jul 2010 | N197: 680000 | O197: 571000 | P197: 461000 | Q197: 421000 | R197: 40000 | S197: 220000 | T197: 0.087 | U197: 0.783 | V197: 0.713 | Y197: May-Jul 2010 | Z197: 724000 | AA197: 585000 | AB197: 382000 | AC197: 365000 | AD197: 16000 | AE197: 343000 | AF197: 0.042 | AG197: 0.644 | AH197: 0.616
A198: Jun-Aug 2010 | B198: 1406000 | C198: 1157000 | D198: 842000 | E198: 785000 | F198: 58000 | G198: 563000 | H198: 0.069 | I198: 0.714 | J198: 0.664 | M198: Jun-Aug 2010 | N198: 681000 | O198: 572000 | P198: 461000 | Q198: 420000 | R198: 41000 | S198: 220000 | T198: 0.089 | U198: 0.788 | V198: 0.716 | Y198: Jun-Aug 2010 | Z198: 725000 | AA198: 586000 | AB198: 382000 | AC198: 365000 | AD198: 17000 | AE198: 343000 | AF198: 0.044 | AG198: 0.643 | AH198: 0.614
A199: Jul-Sep 2010 | B199: 1406000 | C199: 1157000 | D199: 841000 | E199: 783000 | F199: 58000 | G199: 565000 | H199: 0.069 | I199: 0.712 | J199: 0.662 | M199: Jul-Sep 2010 | N199: 681000 | O199: 572000 | P199: 460000 | Q199: 418000 | R199: 41000 | S199: 222000 | T199: 0.09 | U199: 0.785 | V199: 0.712 | Y199: Jul-Sep 2010 | Z199: 725000 | AA199: 586000 | AB199: 382000 | AC199: 365000 | AD199: 17000 | AE199: 343000 | AF199: 0.044 | AG199: 0.642 | AH199: 0.613
A200: Aug-Oct 2010 | B200: 1407000 | C200: 1158000 | D200: 840000 | E200: 777000 | F200: 63000 | G200: 567000 | H200: 0.075 | I200: 0.712 | J200: 0.657 | M200: Aug-Oct 2010 | N200: 682000 | O200: 572000 | P200: 458000 | Q200: 414000 | R200: 44000 | S200: 223000 | T200: 0.096 | U200: 0.782 | V200: 0.706 | Y200: Aug-Oct 2010 | Z200: 726000 | AA200: 586000 | AB200: 382000 | AC200: 362000 | AD200: 19000 | AE200: 344000 | AF200: 0.051 | AG200: 0.643 | AH200: 0.61
... 98 more rows

Sheet 2.1b
A2: TABLE 2.1b | M2: TABLE 2.1b | Y2: TABLE 2.1b
A3: Northern Ireland Labour Market Structure: UNADJUSTED - Total | J3: (Thousands) | M3: Northern Ireland Labour Market Structure: UNADJUSTED - Males | Y3: Northern Ireland Labour Market Structure: UNADJUSTED - Females
A4: 1 | B4: Total | C4: Total | D4: Active | E4: Employment | F4: Unemployed | G4: Economically Inactive | H4: Unemployment | I4: Activity rate | J4: Employment rate | M4: 1 | N4: Total | O4: Total | P4: Active | Q4: Employment | R4: Unemployed | S4: Economically Inactive | T4: Unemployment | U4: Activity rate | V4: Employment rate | Y4: 1 | Z4: Total | AA4: Total | AB4: Active | AC4: Employment | AD4: Unemployed | AE4: Economically Inactive | AF4: Unemployment | AG4: Activity rate | AH4: Employment rate
A5: 2 | B5: (16+) | C5: (16-64) | D5: (16+) | E5: (16+) | F5: (16+) | G5: (16+) | H5: (16+ Rate) | I5: (16-64 Rate) | J5: (16-64 Rate) | M5: 2 | N5: (16+) | O5: (16-64) | P5: (16+) | Q5: (16+) | R5: (16+) | S5: (16+) | T5: (16+ Rate) | U5: (16-64 Rate) | V5: (16-64 Rate) | Y5: 2 | Z5: (16+) | AA5: (16-64) | AB5: (16+) | AC5: (16+) | AD5: (16+) | AE5: (16+) | AF5: (16+ Rate) | AG5: (16-64 Rate) | AH5: (16-64 Rate)
A6: 3 | B6: A | C6: B | D6: C | E6: D | F6: E | G6: F | H6: G | I6: H | J6: I | M6: 3 | N6: A | O6: B | P6: C | Q6: D | R6: E | S6: F | T6: G | U6: H | V6: I | Y6: 3 | Z6: A | AA6: B | AB6: C | AC6: D | AD6: E | AE6: F | AF6: G | AG6: H | AH6: I
A7: ALL PERSONS | M7: MEN | Y7: WOMEN
A8: Mar-May 1992 | B8: 1176000 | C8: 979000 | D8: 702000 | E8: 617000 | F8: 85000 | G8: 475000 | H8: 0.121 | I8: 0.705 | J8: 0.618 | M8: Mar-May 1992 | N8: 563000 | O8: 482000 | P8: 403000 | Q8: 343000 | R8: 60000 | S8: 160000 | T8: 0.15 | U8: 0.818 | V8: 0.693 | Y8: Mar-May 1992 | Z8: 613000 | AA8: 496000 | AB8: 299000 | AC8: 274000 | AD8: 25000 | AE8: 315000 | AF8: 0.082 | AG8: 0.595 | AH8: 0.545
A9: Mar-May 1993 | B9: 1189000 | C9: 990000 | D9: 692000 | E9: 604000 | F9: 88000 | G9: 497000 | H9: 0.127 | I9: 0.688 | J9: 0.6 | M9: Mar-May 1993 | N9: 570000 | O9: 489000 | P9: 407000 | Q9: 343000 | R9: 64000 | S9: 162000 | T9: 0.157 | U9: 0.818 | V9: 0.687 | Y9: Mar-May 1993 | Z9: 619000 | AA9: 501000 | AB9: 285000 | AC9: 261000 | AD9: 24000 | AE9: 335000 | AF9: 0.083 | AG9: 0.562 | AH9: 0.515
A10: Mar-May 1994 | B10: 1198000 | C10: 998000 | D10: 688000 | E10: 608000 | F10: 79000 | G10: 511000 | H10: 0.115 | I10: 0.678 | J10: 0.599 | M10: Mar-May 1994 | N10: 574000 | O10: 493000 | P10: 400000 | Q10: 339000 | R10: 61000 | S10: 174000 | T10: 0.152 | U10: 0.795 | V10: 0.672 | Y10: Mar-May 1994 | Z10: 624000 | AA10: 505000 | AB10: 288000 | AC10: 269000 | AD10: 19000 | AE10: 336000 | AF10: 0.065 | AG10: 0.564 | AH10: 0.527
A11: Nov-Jan 1995 | B11: - | C11: - | D11: - | E11: - | F11: - | G11: - | H11: - | I11: - | J11: - | M11: Nov-Jan 1995 | N11: - | O11: - | P11: - | Q11: - | R11: - | S11: - | T11: - | U11: - | V11: - | Y11: Nov-Jan 1995 | Z11: - | AA11: - | AB11: - | AC11: - | AD11: - | AE11: - | AF11: - | AG11: - | AH11: -
A12: Dec-Feb 1995 | B12: 1204000 | C12: 1003000 | D12: 692000 | E12: 615000 | F12: 78000 | G12: 512000 | H12: 0.112 | I12: 0.677 | J12: 0.6 | M12: Dec-Feb 1995 | N12: 577000 | O12: 495000 | P12: 402000 | Q12: 345000 | R12: 57000 | S12: 175000 | T12: 0.142 | U12: 0.793 | V12: 0.678 | Y12: Dec-Feb 1995 | Z12: 628000 | AA12: 508000 | AB12: 291000 | AC12: 270000 | AD12: 21000 | AE12: 337000 | AF12: 0.072 | AG12: 0.565 | AH12: 0.524
A13: Jan-Mar 1995 | B13: 1205000 | C13: 1003000 | D13: 696000 | E13: 619000 | F13: 77000 | G13: 509000 | H13: 0.111 | I13: 0.681 | J13: 0.604 | M13: Jan-Mar 1995 | N13: 577000 | O13: 495000 | P13: 402000 | Q13: 346000 | R13: 55000 | S13: 175000 | T13: 0.138 | U13: 0.793 | V13: 0.682 | Y13: Jan-Mar 1995 | Z13: 628000 | AA13: 508000 | AB13: 294000 | AC13: 272000 | AD13: 22000 | AE13: 334000 | AF13: 0.075 | AG13: 0.571 | AH13: 0.528
A14: Feb-Apr 1995 | B14: 1206000 | C14: 1004000 | D14: 705000 | E14: 627000 | F14: 79000 | G14: 501000 | H14: 0.111 | I14: 0.688 | J14: 0.61 | M14: Feb-Apr 1995 | N14: 578000 | O14: 495000 | P14: 406000 | Q14: 348000 | R14: 58000 | S14: 172000 | T14: 0.144 | U14: 0.799 | V14: 0.682 | Y14: Feb-Apr 1995 | Z14: 628000 | AA14: 509000 | AB14: 299000 | AC14: 279000 | AD14: 20000 | AE14: 329000 | AF14: 0.068 | AG14: 0.58 | AH14: 0.54
A15: Mar-May 1995 | B15: 1206000 | C15: 1005000 | D15: 706000 | E15: 629000 | F15: 77000 | G15: 501000 | H15: 0.109 | I15: 0.688 | J15: 0.612 | M15: Mar-May 1995 | N15: 578000 | O15: 495000 | P15: 404000 | Q15: 347000 | R15: 57000 | S15: 173000 | T15: 0.141 | U15: 0.796 | V15: 0.681 | Y15: Mar-May 1995 | Z15: 629000 | AA15: 509000 | AB15: 301000 | AC15: 281000 | AD15: 20000 | AE15: 327000 | AF15: 0.066 | AG15: 0.583 | AH15: 0.544
A16: Apr-Jun 1995 | B16: 1207000 | C16: 1005000 | D16: 704000 | E16: 628000 | F16: 76000 | G16: 503000 | H16: 0.108 | I16: 0.686 | J16: 0.611 | M16: Apr-Jun 1995 | N16: 578000 | O16: 496000 | P16: 405000 | Q16: 348000 | R16: 57000 | S16: 173000 | T16: 0.141 | U16: 0.796 | V16: 0.681 | Y16: Apr-Jun 1995 | Z16: 629000 | AA16: 509000 | AB16: 299000 | AC16: 280000 | AD16: 19000 | AE16: 330000 | AF16: 0.063 | AG16: 0.579 | AH16: 0.542
A17: May-Jul 1995 | B17: 1208000 | C17: 1005000 | D17: 708000 | E17: 635000 | F17: 73000 | G17: 500000 | H17: 0.104 | I17: 0.692 | J17: 0.619 | M17: May-Jul 1995 | N17: 578000 | O17: 496000 | P17: 404000 | Q17: 351000 | R17: 54000 | S17: 174000 | T17: 0.133 | U17: 0.798 | V17: 0.69 | Y17: May-Jul 1995 | Z17: 629000 | AA17: 510000 | AB17: 304000 | AC17: 284000 | AD17: 20000 | AE17: 326000 | AF17: 0.065 | AG17: 0.588 | AH17: 0.549
A18: Jun-Aug 1995 | B18: 1208000 | C18: 1006000 | D18: 713000 | E18: 634000 | F18: 79000 | G18: 495000 | H18: 0.11 | I18: 0.696 | J18: 0.618 | M18: Jun-Aug 1995 | N18: 579000 | O18: 496000 | P18: 408000 | Q18: 352000 | R18: 56000 | S18: 171000 | T18: 0.137 | U18: 0.805 | V18: 0.693 | Y18: Jun-Aug 1995 | Z18: 630000 | AA18: 510000 | AB18: 305000 | AC18: 283000 | AD18: 23000 | AE18: 324000 | AF18: 0.074 | AG18: 0.59 | AH18: 0.546
A19: Jul-Sep 1995 | B19: 1209000 | C19: 1007000 | D19: 713000 | E19: 638000 | F19: 75000 | G19: 497000 | H19: 0.105 | I19: 0.696 | J19: 0.622 | M19: Jul-Sep 1995 | N19: 579000 | O19: 496000 | P19: 404000 | Q19: 350000 | R19: 55000 | S19: 175000 | T19: 0.135 | U19: 0.798 | V19: 0.688 | Y19: Jul-Sep 1995 | Z19: 630000 | AA19: 510000 | AB19: 308000 | AC19: 288000 | AD19: 20000 | AE19: 322000 | AF19: 0.065 | AG19: 0.596 | AH19: 0.557
A20: Aug-Oct 1995 | B20: 1211000 | C20: 1008000 | D20: 722000 | E20: 641000 | F20: 80000 | G20: 489000 | H20: 0.111 | I20: 0.703 | J20: 0.624 | M20: Aug-Oct 1995 | N20: 580000 | O20: 497000 | P20: 409000 | Q20: 351000 | R20: 57000 | S20: 171000 | T20: 0.141 | U20: 0.805 | V20: 0.69 | Y20: Aug-Oct 1995 | Z20: 631000 | AA20: 511000 | AB20: 313000 | AC20: 290000 | AD20: 23000 | AE20: 318000 | AF20: 0.072 | AG20: 0.604 | AH20: 0.56
A21: Sep-Nov 1995 | B21: 1212000 | C21: 1009000 | D21: 725000 | E21: 649000 | F21: 76000 | G21: 487000 | H21: 0.105 | I21: 0.705 | J21: 0.63 | M21: Sep-Nov 1995 | N21: 580000 | O21: 498000 | P21: 410000 | Q21: 355000 | R21: 55000 | S21: 170000 | T21: 0.135 | U21: 0.806 | V21: 0.695 | Y21: Sep-Nov 1995 | Z21: 631000 | AA21: 511000 | AB21: 315000 | AC21: 294000 | AD21: 21000 | AE21: 317000 | AF21: 0.065 | AG21: 0.606 | AH21: 0.566
A22: Oct-Dec 1995 | B22: 1213000 | C22: 1010000 | D22: 729000 | E22: 656000 | F22: 73000 | G22: 484000 | H22: 0.1 | I22: 0.708 | J22: 0.636 | M22: Oct-Dec 1995 | N22: 581000 | O22: 498000 | P22: 412000 | Q22: 360000 | R22: 52000 | S22: 169000 | T22: 0.127 | U22: 0.809 | V22: 0.704 | Y22: Oct-Dec 1995 | Z22: 632000 | AA22: 512000 | AB22: 317000 | AC22: 296000 | AD22: 21000 | AE22: 315000 | AF22: 0.065 | AG22: 0.61 | AH22: 0.569
A23: Nov-Jan 1996 | B23: 1214000 | C23: 1011000 | D23: 733000 | E23: 664000 | F23: 69000 | G23: 481000 | H23: 0.094 | I23: 0.711 | J23: 0.643 | M23: Nov-Jan 1996 | N23: 582000 | O23: 498000 | P23: 413000 | Q23: 363000 | R23: 50000 | S23: 169000 | T23: 0.122 | U23: 0.809 | V23: 0.709 | Y23: Nov-Jan 1996 | Z23: 632000 | AA23: 512000 | AB23: 320000 | AC23: 302000 | AD23: 18000 | AE23: 312000 | AF23: 0.058 | AG23: 0.615 | AH23: 0.579
A24: Dec-Feb 1996 | B24: 1215000 | C24: 1012000 | D24: 729000 | E24: 661000 | F24: 68000 | G24: 486000 | H24: 0.093 | I24: 0.705 | J24: 0.638 | M24: Dec-Feb 1996 | N24: 582000 | O24: 499000 | P24: 412000 | Q24: 361000 | R24: 50000 | S24: 170000 | T24: 0.123 | U24: 0.805 | V24: 0.704 | Y24: Dec-Feb 1996 | Z24: 633000 | AA24: 513000 | AB24: 317000 | AC24: 300000 | AD24: 17000 | AE24: 316000 | AF24: 0.055 | AG24: 0.608 | AH24: 0.574
A25: Jan-Mar 1996 | B25: 1216000 | C25: 1013000 | D25: 728000 | E25: 662000 | F25: 66000 | G25: 488000 | H25: 0.091 | I25: 0.703 | J25: 0.638 | M25: Jan-Mar 1996 | N25: 583000 | O25: 500000 | P25: 416000 | Q25: 365000 | R25: 50000 | S25: 167000 | T25: 0.121 | U25: 0.81 | V25: 0.709 | Y25: Jan-Mar 1996 | Z25: 634000 | AA25: 513000 | AB25: 312000 | AC25: 296000 | AD25: 16000 | AE25: 321000 | AF25: 0.051 | AG25: 0.6 | AH25: 0.569
A26: Feb-Apr 1996 | B26: 1218000 | C26: 1014000 | D26: 722000 | E26: 654000 | F26: 68000 | G26: 495000 | H26: 0.095 | I26: 0.699 | J26: 0.631 | M26: Feb-Apr 1996 | N26: 583000 | O26: 500000 | P26: 414000 | Q26: 362000 | R26: 52000 | S26: 170000 | T26: 0.125 | U26: 0.807 | V26: 0.704 | Y26: Feb-Apr 1996 | Z26: 634000 | AA26: 514000 | AB26: 309000 | AC26: 292000 | AD26: 17000 | AE26: 326000 | AF26: 0.054 | AG26: 0.593 | AH26: 0.56
A27: Mar-May 1996 | B27: 1219000 | C27: 1015000 | D27: 719000 | E27: 651000 | F27: 68000 | G27: 500000 | H27: 0.094 | I27: 0.697 | J27: 0.63 | M27: Mar-May 1996 | N27: 584000 | O27: 501000 | P27: 411000 | Q27: 360000 | R27: 50000 | S27: 173000 | T27: 0.123 | U27: 0.802 | V27: 0.701 | Y27: Mar-May 1996 | Z27: 635000 | AA27: 514000 | AB27: 308000 | AC27: 291000 | AD27: 17000 | AE27: 326000 | AF27: 0.056 | AG27: 0.594 | AH27: 0.56
A28: Apr-Jun 1996 | B28: 1220000 | C28: 1016000 | D28: 719000 | E28: 643000 | F28: 76000 | G28: 501000 | H28: 0.105 | I28: 0.696 | J28: 0.621 | M28: Apr-Jun 1996 | N28: 585000 | O28: 501000 | P28: 410000 | Q28: 356000 | R28: 55000 | S28: 174000 | T28: 0.133 | U28: 0.801 | V28: 0.692 | Y28: Apr-Jun 1996 | Z28: 635000 | AA28: 515000 | AB28: 309000 | AC28: 288000 | AD28: 21000 | AE28: 327000 | AF28: 0.068 | AG28: 0.593 | AH28: 0.553
A29: May-Jul 1996 | B29: 1221000 | C29: 1017000 | D29: 724000 | E29: 651000 | F29: 73000 | G29: 497000 | H29: 0.1 | I29: 0.7 | J29: 0.628 | M29: May-Jul 1996 | N29: 585000 | O29: 502000 | P29: 412000 | Q29: 361000 | R29: 51000 | S29: 173000 | T29: 0.124 | U29: 0.803 | V29: 0.702 | Y29: May-Jul 1996 | Z29: 636000 | AA29: 516000 | AB29: 312000 | AC29: 291000 | AD29: 22000 | AE29: 324000 | AF29: 0.069 | AG29: 0.599 | AH29: 0.557
A30: Jun-Aug 1996 | B30: 1222000 | C30: 1018000 | D30: 731000 | E30: 656000 | F30: 75000 | G30: 491000 | H30: 0.102 | I30: 0.706 | J30: 0.633 | M30: Jun-Aug 1996 | N30: 586000 | O30: 502000 | P30: 415000 | Q30: 365000 | R30: 50000 | S30: 171000 | T30: 0.119 | U30: 0.809 | V30: 0.71 | Y30: Jun-Aug 1996 | Z30: 637000 | AA30: 516000 | AB30: 316000 | AC30: 291000 | AD30: 25000 | AE30: 321000 | AF30: 0.08 | AG30: 0.606 | AH30: 0.557
A31: Jul-Sep 1996 | B31: 1223000 | C31: 1019000 | D31: 733000 | E31: 658000 | F31: 75000 | G31: 490000 | H31: 0.102 | I31: 0.707 | J31: 0.633 | M31: Jul-Sep 1996 | N31: 586000 | O31: 502000 | P31: 414000 | Q31: 365000 | R31: 49000 | S31: 172000 | T31: 0.118 | U31: 0.805 | V31: 0.708 | Y31: Jul-Sep 1996 | Z31: 637000 | AA31: 516000 | AB31: 319000 | AC31: 293000 | AD31: 26000 | AE31: 318000 | AF31: 0.082 | AG31: 0.611 | AH31: 0.56
A32: Aug-Oct 1996 | B32: 1224000 | C32: 1020000 | D32: 732000 | E32: 659000 | F32: 73000 | G32: 492000 | H32: 0.1 | I32: 0.704 | J32: 0.633 | M32: Aug-Oct 1996 | N32: 587000 | O32: 503000 | P32: 414000 | Q32: 366000 | R32: 48000 | S32: 173000 | T32: 0.115 | U32: 0.803 | V32: 0.709 | Y32: Aug-Oct 1996 | Z32: 637000 | AA32: 517000 | AB32: 318000 | AC32: 293000 | AD32: 25000 | AE32: 320000 | AF32: 0.079 | AG32: 0.608 | AH32: 0.559
A33: Sep-Nov 1996 | B33: 1225000 | C33: 1021000 | D33: 729000 | E33: 657000 | F33: 72000 | G33: 496000 | H33: 0.099 | I33: 0.7 | J33: 0.63 | M33: Sep-Nov 1996 | N33: 587000 | O33: 503000 | P33: 416000 | Q33: 367000 | R33: 49000 | S33: 171000 | T33: 0.118 | U33: 0.805 | V33: 0.708 | Y33: Sep-Nov 1996 | Z33: 638000 | AA33: 517000 | AB33: 313000 | AC33: 290000 | AD33: 23000 | AE33: 325000 | AF33: 0.074 | AG33: 0.598 | AH33: 0.553
A34: Oct-Dec 1996 | B34: 1226000 | C34: 1021000 | D34: 730000 | E34: 663000 | F34: 67000 | G34: 496000 | H34: 0.092 | I34: 0.7 | J34: 0.634 | M34: Oct-Dec 1996 | N34: 588000 | O34: 504000 | P34: 418000 | Q34: 371000 | R34: 47000 | S34: 170000 | T34: 0.111 | U34: 0.807 | V34: 0.715 | Y34: Oct-Dec 1996 | Z34: 638000 | AA34: 518000 | AB34: 312000 | AC34: 292000 | AD34: 21000 | AE34: 326000 | AF34: 0.067 | AG34: 0.596 | AH34: 0.556
A35: Nov-Jan 1997 | B35: 1227000 | C35: 1022000 | D35: 733000 | E35: 667000 | F35: 66000 | G35: 493000 | H35: 0.09 | I35: 0.704 | J35: 0.639 | M35: Nov-Jan 1997 | N35: 588000 | O35: 504000 | P35: 420000 | Q35: 373000 | R35: 47000 | S35: 168000 | T35: 0.112 | U35: 0.811 | V35: 0.718 | Y35: Nov-Jan 1997 | Z35: 639000 | AA35: 518000 | AB35: 314000 | AC35: 295000 | AD35: 19000 | AE35: 325000 | AF35: 0.06 | AG35: 0.599 | AH35: 0.562
A36: Dec-Feb 1997 | B36: 1228000 | C36: 1023000 | D36: 734000 | E36: 666000 | F36: 68000 | G36: 494000 | H36: 0.093 | I36: 0.705 | J36: 0.638 | M36: Dec-Feb 1997 | N36: 589000 | O36: 505000 | P36: 415000 | Q36: 367000 | R36: 48000 | S36: 173000 | T36: 0.117 | U36: 0.804 | V36: 0.708 | Y36: Dec-Feb 1997 | Z36: 639000 | AA36: 518000 | AB36: 319000 | AC36: 299000 | AD36: 20000 | AE36: 320000 | AF36: 0.062 | AG36: 0.608 | AH36: 0.57
A37: Jan-Mar 1997 | B37: 1229000 | C37: 1024000 | D37: 733000 | E37: 670000 | F37: 64000 | G37: 495000 | H37: 0.087 | I37: 0.704 | J37: 0.642 | M37: Jan-Mar 1997 | N37: 589000 | O37: 505000 | P37: 413000 | Q37: 369000 | R37: 44000 | S37: 176000 | T37: 0.107 | U37: 0.8 | V37: 0.713 | Y37: Jan-Mar 1997 | Z37: 640000 | AA37: 519000 | AB37: 320000 | AC37: 301000 | AD37: 20000 | AE37: 319000 | AF37: 0.061 | AG37: 0.611 | AH37: 0.573
A38: Feb-Apr 1997 | B38: 1230000 | C38: 1025000 | D38: 733000 | E38: 673000 | F38: 60000 | G38: 497000 | H38: 0.082 | I38: 0.704 | J38: 0.645 | M38: Feb-Apr 1997 | N38: 589000 | O38: 505000 | P38: 412000 | Q38: 370000 | R38: 41000 | S38: 178000 | T38: 0.1 | U38: 0.798 | V38: 0.716 | Y38: Feb-Apr 1997 | Z38: 640000 | AA38: 519000 | AB38: 321000 | AC38: 302000 | AD38: 19000 | AE38: 319000 | AF38: 0.059 | AG38: 0.611 | AH38: 0.575
A39: Mar-May 1997 | B39: 1231000 | C39: 1025000 | D39: 731000 | E39: 676000 | F39: 54000 | G39: 500000 | H39: 0.074 | I39: 0.701 | J39: 0.648 | M39: Mar-May 1997 | N39: 590000 | O39: 506000 | P39: 412000 | Q39: 373000 | R39: 39000 | S39: 178000 | T39: 0.094 | U39: 0.796 | V39: 0.721 | Y39: Mar-May 1997 | Z39: 641000 | AA39: 520000 | AB39: 319000 | AC39: 303000 | AD39: 16000 | AE39: 321000 | AF39: 0.05 | AG39: 0.608 | AH39: 0.578
A40: Apr-Jun 1997 | B40: 1232000 | C40: 1026000 | D40: 740000 | E40: 681000 | F40: 59000 | G40: 491000 | H40: 0.08 | I40: 0.71 | J40: 0.652 | M40: Apr-Jun 1997 | N40: 590000 | O40: 506000 | P40: 419000 | Q40: 376000 | R40: 43000 | S40: 171000 | T40: 0.103 | U40: 0.809 | V40: 0.725 | Y40: Apr-Jun 1997 | Z40: 641000 | AA40: 520000 | AB40: 321000 | AC40: 305000 | AD40: 16000 | AE40: 320000 | AF40: 0.051 | AG40: 0.612 | AH40: 0.581
A41: May-Jul 1997 | B41: 1232000 | C41: 1027000 | D41: 744000 | E41: 683000 | F41: 61000 | G41: 489000 | H41: 0.082 | I41: 0.712 | J41: 0.653 | M41: May-Jul 1997 | N41: 591000 | O41: 507000 | P41: 422000 | Q41: 377000 | R41: 45000 | S41: 169000 | T41: 0.106 | U41: 0.813 | V41: 0.726 | Y41: May-Jul 1997 | Z41: 641000 | AA41: 520000 | AB41: 322000 | AC41: 306000 | AD41: 17000 | AE41: 319000 | AF41: 0.051 | AG41: 0.614 | AH41: 0.582
A42: Jun-Aug 1997 | B42: 1233000 | C42: 1028000 | D42: 753000 | E42: 690000 | F42: 63000 | G42: 480000 | H42: 0.084 | I42: 0.719 | J42: 0.658 | M42: Jun-Aug 1997 | N42: 591000 | O42: 507000 | P42: 427000 | Q42: 382000 | R42: 45000 | S42: 164000 | T42: 0.105 | U42: 0.822 | V42: 0.734 | Y42: Jun-Aug 1997 | Z42: 642000 | AA42: 521000 | AB42: 326000 | AC42: 307000 | AD42: 19000 | AE42: 316000 | AF42: 0.057 | AG42: 0.62 | AH42: 0.584
A43: Jul-Sep 1997 | B43: 1234000 | C43: 1029000 | D43: 756000 | E43: 689000 | F43: 67000 | G43: 478000 | H43: 0.088 | I43: 0.723 | J43: 0.658 | M43: Jul-Sep 1997 | N43: 592000 | O43: 507000 | P43: 428000 | Q43: 382000 | R43: 46000 | S43: 163000 | T43: 0.107 | U43: 0.826 | V43: 0.736 | Y43: Jul-Sep 1997 | Z43: 642000 | AA43: 521000 | AB43: 327000 | AC43: 307000 | AD43: 21000 | AE43: 315000 | AF43: 0.063 | AG43: 0.622 | AH43: 0.583
A44: Aug-Oct 1997 | B44: 1235000 | C44: 1029000 | D44: 758000 | E44: 689000 | F44: 69000 | G44: 476000 | H44: 0.091 | I44: 0.724 | J44: 0.657 | M44: Aug-Oct 1997 | N44: 592000 | O44: 508000 | P44: 433000 | Q44: 387000 | R44: 46000 | S44: 159000 | T44: 0.107 | U44: 0.834 | V44: 0.743 | Y44: Aug-Oct 1997 | Z44: 643000 | AA44: 522000 | AB44: 325000 | AC44: 303000 | AD44: 22000 | AE44: 317000 | AF44: 0.069 | AG44: 0.617 | AH44: 0.574
A45: Sep-Nov 1997 | B45: 1235000 | C45: 1030000 | D45: 760000 | E45: 693000 | F45: 67000 | G45: 476000 | H45: 0.088 | I45: 0.726 | J45: 0.661 | M45: Sep-Nov 1997 | N45: 592000 | O45: 508000 | P45: 434000 | Q45: 389000 | R45: 45000 | S45: 159000 | T45: 0.103 | U45: 0.836 | V45: 0.748 | Y45: Sep-Nov 1997 | Z45: 643000 | AA45: 522000 | AB45: 326000 | AC45: 304000 | AD45: 22000 | AE45: 317000 | AF45: 0.067 | AG45: 0.619 | AH45: 0.577
A46: Oct-Dec 1997 | B46: 1236000 | C46: 1030000 | D46: 758000 | E46: 692000 | F46: 66000 | G46: 478000 | H46: 0.087 | I46: 0.723 | J46: 0.659 | M46: Oct-Dec 1997 | N46: 593000 | O46: 508000 | P46: 432000 | Q46: 387000 | R46: 45000 | S46: 161000 | T46: 0.103 | U46: 0.83 | V46: 0.743 | Y46: Oct-Dec 1997 | Z46: 643000 | AA46: 522000 | AB46: 326000 | AC46: 304000 | AD46: 21000 | AE46: 318000 | AF46: 0.066 | AG46: 0.619 | AH46: 0.578
A47: Nov-Jan 1998 | B47: 1237000 | C47: 1031000 | D47: 754000 | E47: 691000 | F47: 64000 | G47: 483000 | H47: 0.084 | I47: 0.718 | J47: 0.657 | M47: Nov-Jan 1998 | N47: 593000 | O47: 508000 | P47: 431000 | Q47: 388000 | R47: 43000 | S47: 162000 | T47: 0.099 | U47: 0.825 | V47: 0.741 | Y47: Nov-Jan 1998 | Z47: 644000 | AA47: 523000 | AB47: 324000 | AC47: 303000 | AD47: 21000 | AE47: 320000 | AF47: 0.064 | AG47: 0.614 | AH47: 0.575
A48: Dec-Feb 1998 | B48: 1238000 | C48: 1032000 | D48: 748000 | E48: 686000 | F48: 61000 | G48: 490000 | H48: 0.082 | I48: 0.712 | J48: 0.653 | M48: Dec-Feb 1998 | N48: 593000 | O48: 509000 | P48: 427000 | Q48: 385000 | R48: 42000 | S48: 166000 | T48: 0.099 | U48: 0.819 | V48: 0.736 | Y48: Dec-Feb 1998 | Z48: 644000 | AA48: 523000 | AB48: 321000 | AC48: 302000 | AD48: 19000 | AE48: 324000 | AF48: 0.06 | AG48: 0.608 | AH48: 0.572
A49: Jan-Mar 1998 | B49: 1239000 | C49: 1032000 | D49: 743000 | E49: 680000 | F49: 63000 | G49: 495000 | H49: 0.085 | I49: 0.709 | J49: 0.648 | M49: Jan-Mar 1998 | N49: 594000 | O49: 509000 | P49: 426000 | Q49: 381000 | R49: 44000 | S49: 168000 | T49: 0.104 | U49: 0.816 | V49: 0.73 | Y49: Jan-Mar 1998 | Z49: 645000 | AA49: 523000 | AB49: 318000 | AC49: 299000 | AD49: 19000 | AE49: 327000 | AF49: 0.059 | AG49: 0.604 | AH49: 0.568
A50: Feb-Apr 1998 | B50: 1239000 | C50: 1033000 | D50: 737000 | E50: 676000 | F50: 61000 | G50: 502000 | H50: 0.082 | I50: 0.703 | J50: 0.645 | M50: Feb-Apr 1998 | N50: 594000 | O50: 509000 | P50: 421000 | Q50: 378000 | R50: 43000 | S50: 173000 | T50: 0.102 | U50: 0.808 | V50: 0.724 | Y50: Feb-Apr 1998 | Z50: 645000 | AA50: 523000 | AB50: 316000 | AC50: 298000 | AD50: 18000 | AE50: 329000 | AF50: 0.055 | AG50: 0.601 | AH50: 0.568
A51: Mar-May 1998 | B51: 1240000 | C51: 1034000 | D51: 734000 | E51: 681000 | F51: 53000 | G51: 506000 | H51: 0.072 | I51: 0.702 | J51: 0.651 | M51: Mar-May 1998 | N51: 595000 | O51: 510000 | P51: 418000 | Q51: 381000 | R51: 38000 | S51: 176000 | T51: 0.09 | U51: 0.806 | V51: 0.733 | Y51: Mar-May 1998 | Z51: 645000 | AA51: 524000 | AB51: 315000 | AC51: 300000 | AD51: 15000 | AE51: 330000 | AF51: 0.048 | AG51: 0.6 | AH51: 0.571
A52: Apr-Jun 1998 | B52: 1241000 | C52: 1034000 | D52: 735000 | E52: 684000 | F52: 50000 | G52: 506000 | H52: 0.069 | I52: 0.702 | J52: 0.653 | M52: Apr-Jun 1998 | N52: 595000 | O52: 510000 | P52: 420000 | Q52: 384000 | R52: 35000 | S52: 175000 | T52: 0.084 | U52: 0.807 | V52: 0.738 | Y52: Apr-Jun 1998 | Z52: 646000 | AA52: 524000 | AB52: 315000 | AC52: 300000 | AD52: 15000 | AE52: 331000 | AF52: 0.048 | AG52: 0.599 | AH52: 0.57
A53: May-Jul 1998 | B53: 1241000 | C53: 1035000 | D53: 740000 | E53: 686000 | F53: 54000 | G53: 501000 | H53: 0.073 | I53: 0.707 | J53: 0.655 | M53: May-Jul 1998 | N53: 595000 | O53: 510000 | P53: 419000 | Q53: 385000 | R53: 34000 | S53: 176000 | T53: 0.081 | U53: 0.806 | V53: 0.739 | Y53: May-Jul 1998 | Z53: 646000 | AA53: 525000 | AB53: 322000 | AC53: 301000 | AD53: 20000 | AE53: 324000 | AF53: 0.063 | AG53: 0.612 | AH53: 0.573
A54: Jun-Aug 1998 | B54: 1242000 | C54: 1035000 | D54: 742000 | E54: 681000 | F54: 60000 | G54: 500000 | H54: 0.082 | I54: 0.708 | J54: 0.65 | M54: Jun-Aug 1998 | N54: 595000 | O54: 510000 | P54: 417000 | Q54: 379000 | R54: 38000 | S54: 178000 | T54: 0.092 | U54: 0.803 | V54: 0.728 | Y54: Jun-Aug 1998 | Z54: 647000 | AA54: 525000 | AB54: 325000 | AC54: 302000 | AD54: 22000 | AE54: 322000 | AF54: 0.068 | AG54: 0.616 | AH54: 0.574
A55: Jul-Sep 1998 | B55: 1243000 | C55: 1036000 | D55: 739000 | E55: 679000 | F55: 60000 | G55: 504000 | H55: 0.081 | I55: 0.704 | J55: 0.646 | M55: Jul-Sep 1998 | N55: 596000 | O55: 511000 | P55: 415000 | Q55: 379000 | R55: 36000 | S55: 181000 | T55: 0.086 | U55: 0.799 | V55: 0.728 | Y55: Jul-Sep 1998 | Z55: 647000 | AA55: 525000 | AB55: 324000 | AC55: 300000 | AD55: 24000 | AE55: 323000 | AF55: 0.074 | AG55: 0.612 | AH55: 0.566
A56: Aug-Oct 1998 | B56: 1243000 | C56: 1036000 | D56: 737000 | E56: 681000 | F56: 57000 | G56: 506000 | H56: 0.077 | I56: 0.702 | J56: 0.647 | M56: Aug-Oct 1998 | N56: 596000 | O56: 511000 | P56: 415000 | Q56: 379000 | R56: 36000 | S56: 181000 | T56: 0.086 | U56: 0.797 | V56: 0.727 | Y56: Aug-Oct 1998 | Z56: 647000 | AA56: 526000 | AB56: 322000 | AC56: 301000 | AD56: 21000 | AE56: 325000 | AF56: 0.065 | AG56: 0.609 | AH56: 0.569
A57: Sep-Nov 1998 | B57: 1244000 | C57: 1037000 | D57: 742000 | E57: 686000 | F57: 55000 | G57: 502000 | H57: 0.075 | I57: 0.705 | J57: 0.651 | M57: Sep-Nov 1998 | N57: 596000 | O57: 511000 | P57: 417000 | Q57: 384000 | R57: 33000 | S57: 180000 | T57: 0.079 | U57: 0.799 | V57: 0.734 | Y57: Sep-Nov 1998 | Z57: 647000 | AA57: 526000 | AB57: 325000 | AC57: 303000 | AD57: 22000 | AE57: 322000 | AF57: 0.069 | AG57: 0.613 | AH57: 0.57
A58: Oct-Dec 1998 | B58: 1244000 | C58: 1037000 | D58: 744000 | E58: 694000 | F58: 50000 | G58: 501000 | H58: 0.067 | I58: 0.706 | J58: 0.657 | M58: Oct-Dec 1998 | N58: 597000 | O58: 511000 | P58: 416000 | Q58: 385000 | R58: 31000 | S58: 180000 | T58: 0.075 | U58: 0.796 | V58: 0.735 | Y58: Oct-Dec 1998 | Z58: 648000 | AA58: 526000 | AB58: 327000 | AC58: 309000 | AD58: 19000 | AE58: 320000 | AF58: 0.057 | AG58: 0.618 | AH58: 0.582
A59: Nov-Jan 1999 | B59: 1245000 | C59: 1038000 | D59: 747000 | E59: 697000 | F59: 50000 | G59: 498000 | H59: 0.067 | I59: 0.708 | J59: 0.66 | M59: Nov-Jan 1999 | N59: 597000 | O59: 511000 | P59: 415000 | Q59: 384000 | R59: 31000 | S59: 182000 | T59: 0.076 | U59: 0.793 | V59: 0.731 | Y59: Nov-Jan 1999 | Z59: 648000 | AA59: 526000 | AB59: 332000 | AC59: 314000 | AD59: 18000 | AE59: 316000 | AF59: 0.055 | AG59: 0.625 | AH59: 0.59
A60: Dec-Feb 1999 | B60: 1245000 | C60: 1038000 | D60: 747000 | E60: 697000 | F60: 50000 | G60: 498000 | H60: 0.068 | I60: 0.707 | J60: 0.658 | M60: Dec-Feb 1999 | N60: 597000 | O60: 511000 | P60: 414000 | Q60: 382000 | R60: 32000 | S60: 183000 | T60: 0.077 | U60: 0.788 | V60: 0.726 | Y60: Dec-Feb 1999 | Z60: 648000 | AA60: 527000 | AB60: 333000 | AC60: 315000 | AD60: 19000 | AE60: 315000 | AF60: 0.056 | AG60: 0.627 | AH60: 0.592
A61: Jan-Mar 1999 | B61: 1246000 | C61: 1039000 | D61: 741000 | E61: 688000 | F61: 53000 | G61: 504000 | H61: 0.072 | I61: 0.7 | J61: 0.649 | M61: Jan-Mar 1999 | N61: 597000 | O61: 512000 | P61: 411000 | Q61: 377000 | R61: 34000 | S61: 186000 | T61: 0.082 | U61: 0.782 | V61: 0.716 | Y61: Jan-Mar 1999 | Z61: 649000 | AA61: 527000 | AB61: 330000 | AC61: 311000 | AD61: 19000 | AE61: 318000 | AF61: 0.058 | AG61: 0.62 | AH61: 0.584
A62: Feb-Apr 1999 | B62: 1246000 | C62: 1039000 | D62: 743000 | E62: 689000 | F62: 54000 | G62: 503000 | H62: 0.072 | I62: 0.701 | J62: 0.649 | M62: Feb-Apr 1999 | N62: 597000 | O62: 512000 | P62: 412000 | Q62: 377000 | R62: 35000 | S62: 185000 | T62: 0.086 | U62: 0.784 | V62: 0.714 | Y62: Feb-Apr 1999 | Z62: 649000 | AA62: 527000 | AB62: 331000 | AC62: 312000 | AD62: 18000 | AE62: 318000 | AF62: 0.055 | AG62: 0.621 | AH62: 0.586
A63: Mar-May 1999 | B63: 1247000 | C63: 1039000 | D63: 740000 | E63: 687000 | F63: 53000 | G63: 507000 | H63: 0.071 | I63: 0.699 | J63: 0.648 | M63: Mar-May 1999 | N63: 598000 | O63: 512000 | P63: 411000 | Q63: 377000 | R63: 35000 | S63: 186000 | T63: 0.084 | U63: 0.784 | V63: 0.717 | Y63: Mar-May 1999 | Z63: 649000 | AA63: 527000 | AB63: 329000 | AC63: 310000 | AD63: 18000 | AE63: 320000 | AF63: 0.056 | AG63: 0.617 | AH63: 0.582
A64: Apr-Jun 1999 | B64: 1247000 | C64: 1040000 | D64: 743000 | E64: 687000 | F64: 56000 | G64: 504000 | H64: 0.075 | I64: 0.7 | J64: 0.646 | M64: Apr-Jun 1999 | N64: 598000 | O64: 512000 | P64: 415000 | Q64: 380000 | R64: 35000 | S64: 183000 | T64: 0.084 | U64: 0.789 | V64: 0.721 | Y64: Apr-Jun 1999 | Z64: 649000 | AA64: 528000 | AB64: 328000 | AC64: 307000 | AD64: 21000 | AE64: 322000 | AF64: 0.064 | AG64: 0.614 | AH64: 0.574
A65: May-Jul 1999 | B65: 1248000 | C65: 1040000 | D65: 748000 | E65: 691000 | F65: 56000 | G65: 500000 | H65: 0.075 | I65: 0.704 | J65: 0.65 | M65: May-Jul 1999 | N65: 598000 | O65: 512000 | P65: 416000 | Q65: 380000 | R65: 35000 | S65: 182000 | T65: 0.085 | U65: 0.79 | V65: 0.721 | Y65: May-Jul 1999 | Z65: 650000 | AA65: 528000 | AB65: 332000 | AC65: 311000 | AD65: 21000 | AE65: 318000 | AF65: 0.063 | AG65: 0.621 | AH65: 0.582
A66: Jun-Aug 1999 | B66: 1248000 | C66: 1041000 | D66: 751000 | E66: 693000 | F66: 58000 | G66: 497000 | H66: 0.077 | I66: 0.708 | J66: 0.652 | M66: Jun-Aug 1999 | N66: 598000 | O66: 513000 | P66: 422000 | Q66: 387000 | R66: 36000 | S66: 176000 | T66: 0.085 | U66: 0.801 | V66: 0.732 | Y66: Jun-Aug 1999 | Z66: 650000 | AA66: 528000 | AB66: 329000 | AC66: 307000 | AD66: 22000 | AE66: 321000 | AF66: 0.068 | AG66: 0.616 | AH66: 0.574
A67: Jul-Sep 1999 | B67: 1249000 | C67: 1042000 | D67: 752000 | E67: 698000 | F67: 54000 | G67: 497000 | H67: 0.072 | I67: 0.708 | J67: 0.656 | M67: Jul-Sep 1999 | N67: 599000 | O67: 513000 | P67: 424000 | Q67: 391000 | R67: 33000 | S67: 175000 | T67: 0.079 | U67: 0.804 | V67: 0.738 | Y67: Jul-Sep 1999 | Z67: 650000 | AA67: 529000 | AB67: 328000 | AC67: 307000 | AD67: 21000 | AE67: 322000 | AF67: 0.064 | AG67: 0.615 | AH67: 0.576
A68: Aug-Oct 1999 | B68: 1250000 | C68: 1042000 | D68: 748000 | E68: 694000 | F68: 54000 | G68: 501000 | H68: 0.073 | I68: 0.705 | J68: 0.652 | M68: Aug-Oct 1999 | N68: 599000 | O68: 513000 | P68: 421000 | Q68: 389000 | R68: 32000 | S68: 178000 | T68: 0.077 | U68: 0.798 | V68: 0.735 | Y68: Aug-Oct 1999 | Z68: 651000 | AA68: 529000 | AB68: 327000 | AC68: 305000 | AD68: 22000 | AE68: 323000 | AF68: 0.067 | AG68: 0.614 | AH68: 0.572
A69: Sep-Nov 1999 | B69: 1251000 | C69: 1043000 | D69: 743000 | E69: 694000 | F69: 50000 | G69: 507000 | H69: 0.067 | I69: 0.7 | J69: 0.653 | M69: Sep-Nov 1999 | N69: 599000 | O69: 513000 | P69: 415000 | Q69: 384000 | R69: 31000 | S69: 184000 | T69: 0.074 | U69: 0.788 | V69: 0.728 | Y69: Sep-Nov 1999 | Z69: 651000 | AA69: 529000 | AB69: 328000 | AC69: 310000 | AD69: 19000 | AE69: 323000 | AF69: 0.057 | AG69: 0.615 | AH69: 0.58
A70: Oct-Dec 1999 | B70: 1251000 | C70: 1043000 | D70: 745000 | E70: 696000 | F70: 49000 | G70: 507000 | H70: 0.066 | I70: 0.702 | J70: 0.655 | M70: Oct-Dec 1999 | N70: 600000 | O70: 514000 | P70: 415000 | Q70: 385000 | R70: 30000 | S70: 185000 | T70: 0.073 | U70: 0.79 | V70: 0.731 | Y70: Oct-Dec 1999 | Z70: 651000 | AA70: 530000 | AB70: 329000 | AC70: 311000 | AD70: 19000 | AE70: 322000 | AF70: 0.056 | AG70: 0.617 | AH70: 0.582
A71: Nov-Jan 2000 | B71: 1252000 | C71: 1044000 | D71: 743000 | E71: 696000 | F71: 47000 | G71: 509000 | H71: 0.063 | I71: 0.701 | J71: 0.656 | M71: Nov-Jan 2000 | N71: 600000 | O71: 514000 | P71: 415000 | Q71: 386000 | R71: 29000 | S71: 185000 | T71: 0.071 | U71: 0.791 | V71: 0.734 | Y71: Nov-Jan 2000 | Z71: 652000 | AA71: 530000 | AB71: 328000 | AC71: 311000 | AD71: 17000 | AE71: 324000 | AF71: 0.053 | AG71: 0.614 | AH71: 0.581
A72: Dec-Feb 2000 | B72: 1253000 | C72: 1045000 | D72: 739000 | E72: 690000 | F72: 49000 | G72: 513000 | H72: 0.066 | I72: 0.697 | J72: 0.65 | M72: Dec-Feb 2000 | N72: 601000 | O72: 514000 | P72: 414000 | Q72: 382000 | R72: 31000 | S72: 187000 | T72: 0.076 | U72: 0.789 | V72: 0.728 | Y72: Dec-Feb 2000 | Z72: 652000 | AA72: 530000 | AB72: 325000 | AC72: 308000 | AD72: 18000 | AE72: 327000 | AF72: 0.054 | AG72: 0.608 | AH72: 0.575
A73: Jan-Mar 2000 | B73: 1253000 | C73: 1045000 | D73: 737000 | E73: 688000 | F73: 48000 | G73: 517000 | H73: 0.066 | I73: 0.694 | J73: 0.648 | M73: Jan-Mar 2000 | N73: 601000 | O73: 515000 | P73: 412000 | Q73: 382000 | R73: 30000 | S73: 189000 | T73: 0.074 | U73: 0.785 | V73: 0.726 | Y73: Jan-Mar 2000 | Z73: 653000 | AA73: 531000 | AB73: 324000 | AC73: 306000 | AD73: 18000 | AE73: 328000 | AF73: 0.055 | AG73: 0.606 | AH73: 0.572
A74: Feb-Apr 2000 | B74: 1254000 | C74: 1046000 | D74: 723000 | E74: 673000 | F74: 50000 | G74: 531000 | H74: 0.069 | I74: 0.68 | J74: 0.632 | M74: Feb-Apr 2000 | N74: 601000 | O74: 515000 | P74: 411000 | Q74: 378000 | R74: 33000 | S74: 190000 | T74: 0.079 | U74: 0.779 | V74: 0.716 | Y74: Feb-Apr 2000 | Z74: 653000 | AA74: 531000 | AB74: 312000 | AC74: 295000 | AD74: 17000 | AE74: 341000 | AF74: 0.055 | AG74: 0.583 | AH74: 0.551
A75: Mar-May 2000 | B75: 1255000 | C75: 1046000 | D75: 723000 | E75: 673000 | F75: 50000 | G75: 532000 | H75: 0.069 | I75: 0.68 | J75: 0.632 | M75: Mar-May 2000 | N75: 602000 | O75: 515000 | P75: 410000 | Q75: 377000 | R75: 33000 | S75: 191000 | T75: 0.081 | U75: 0.777 | V75: 0.713 | Y75: Mar-May 2000 | Z75: 653000 | AA75: 531000 | AB75: 313000 | AC75: 296000 | AD75: 17000 | AE75: 340000 | AF75: 0.055 | AG75: 0.586 | AH75: 0.554
A76: Apr-Jun 2000 | B76: 1256000 | C76: 1047000 | D76: 721000 | E76: 673000 | F76: 48000 | G76: 535000 | H76: 0.067 | I76: 0.678 | J76: 0.632 | M76: Apr-Jun 2000 | N76: 602000 | O76: 515000 | P76: 407000 | Q76: 375000 | R76: 32000 | S76: 195000 | T76: 0.078 | U76: 0.769 | V76: 0.707 | Y76: Apr-Jun 2000 | Z76: 654000 | AA76: 532000 | AB76: 314000 | AC76: 298000 | AD76: 16000 | AE76: 339000 | AF76: 0.052 | AG76: 0.589 | AH76: 0.558
A77: May-Jul 2000 | B77: 1256000 | C77: 1048000 | D77: 725000 | E77: 679000 | F77: 46000 | G77: 531000 | H77: 0.064 | I77: 0.681 | J77: 0.637 | M77: May-Jul 2000 | N77: 602000 | O77: 516000 | P77: 409000 | Q77: 379000 | R77: 30000 | S77: 194000 | T77: 0.074 | U77: 0.773 | V77: 0.714 | Y77: May-Jul 2000 | Z77: 654000 | AA77: 532000 | AB77: 317000 | AC77: 300000 | AD77: 16000 | AE77: 338000 | AF77: 0.051 | AG77: 0.591 | AH77: 0.561
A78: Jun-Aug 2000 | B78: 1257000 | C78: 1048000 | D78: 732000 | E78: 688000 | F78: 44000 | G78: 525000 | H78: 0.06 | I78: 0.687 | J78: 0.645 | M78: Jun-Aug 2000 | N78: 603000 | O78: 516000 | P78: 412000 | Q78: 384000 | R78: 28000 | S78: 190000 | T78: 0.068 | U78: 0.779 | V78: 0.724 | Y78: Jun-Aug 2000 | Z78: 654000 | AA78: 533000 | AB78: 320000 | AC78: 304000 | AD78: 16000 | AE78: 334000 | AF78: 0.051 | AG78: 0.598 | AH78: 0.567
A79: Jul-Sep 2000 | B79: 1258000 | C79: 1049000 | D79: 736000 | E79: 694000 | F79: 42000 | G79: 522000 | H79: 0.057 | I79: 0.692 | J79: 0.652 | M79: Jul-Sep 2000 | N79: 603000 | O79: 516000 | P79: 412000 | Q79: 386000 | R79: 25000 | S79: 192000 | T79: 0.062 | U79: 0.78 | V79: 0.731 | Y79: Jul-Sep 2000 | Z79: 655000 | AA79: 533000 | AB79: 325000 | AC79: 308000 | AD79: 17000 | AE79: 330000 | AF79: 0.051 | AG79: 0.606 | AH79: 0.575
A80: Aug-Oct 2000 | B80: 1259000 | C80: 1050000 | D80: 739000 | E80: 695000 | F80: 44000 | G80: 520000 | H80: 0.059 | I80: 0.693 | J80: 0.651 | M80: Aug-Oct 2000 | N80: 604000 | O80: 517000 | P80: 412000 | Q80: 386000 | R80: 26000 | S80: 192000 | T80: 0.062 | U80: 0.779 | V80: 0.73 | Y80: Aug-Oct 2000 | Z80: 655000 | AA80: 533000 | AB80: 328000 | AC80: 309000 | AD80: 18000 | AE80: 328000 | AF80: 0.056 | AG80: 0.61 | AH80: 0.575
A81: Sep-Nov 2000 | B81: 1260000 | C81: 1051000 | D81: 744000 | E81: 701000 | F81: 43000 | G81: 517000 | H81: 0.057 | I81: 0.697 | J81: 0.657 | M81: Sep-Nov 2000 | N81: 605000 | O81: 517000 | P81: 415000 | Q81: 390000 | R81: 25000 | S81: 190000 | T81: 0.06 | U81: 0.786 | V81: 0.738 | Y81: Sep-Nov 2000 | Z81: 656000 | AA81: 534000 | AB81: 329000 | AC81: 311000 | AD81: 18000 | AE81: 327000 | AF81: 0.054 | AG81: 0.612 | AH81: 0.579
A82: Oct-Dec 2000 | B82: 1262000 | C82: 1052000 | D82: 747000 | E82: 702000 | F82: 45000 | G82: 515000 | H82: 0.06 | I82: 0.7 | J82: 0.657 | M82: Oct-Dec 2000 | N82: 605000 | O82: 518000 | P82: 417000 | Q82: 390000 | R82: 27000 | S82: 189000 | T82: 0.065 | U82: 0.788 | V82: 0.736 | Y82: Oct-Dec 2000 | Z82: 656000 | AA82: 534000 | AB82: 330000 | AC82: 313000 | AD82: 17000 | AE82: 326000 | AF82: 0.053 | AG82: 0.614 | AH82: 0.581
A83: Nov-Jan 2001 | B83: 1263000 | C83: 1053000 | D83: 751000 | E83: 707000 | F83: 44000 | G83: 512000 | H83: 0.059 | I83: 0.702 | J83: 0.66 | M83: Nov-Jan 2001 | N83: 606000 | O83: 518000 | P83: 421000 | Q83: 393000 | R83: 27000 | S83: 185000 | T83: 0.065 | U83: 0.793 | V83: 0.74 | Y83: Nov-Jan 2001 | Z83: 657000 | AA83: 534000 | AB83: 330000 | AC83: 314000 | AD83: 17000 | AE83: 326000 | AF83: 0.05 | AG83: 0.614 | AH83: 0.583
A84: Dec-Feb 2001 | B84: 1264000 | C84: 1054000 | D84: 742000 | E84: 699000 | F84: 44000 | G84: 521000 | H84: 0.059 | I84: 0.693 | J84: 0.652 | M84: Dec-Feb 2001 | N84: 606000 | O84: 519000 | P84: 421000 | Q84: 392000 | R84: 29000 | S84: 185000 | T84: 0.07 | U84: 0.793 | V84: 0.736 | Y84: Dec-Feb 2001 | Z84: 657000 | AA84: 535000 | AB84: 321000 | AC84: 307000 | AD84: 14000 | AE84: 336000 | AF84: 0.044 | AG84: 0.596 | AH84: 0.57
A85: Jan-Mar 2001 | B85: 1265000 | C85: 1055000 | D85: 741000 | E85: 695000 | F85: 46000 | G85: 523000 | H85: 0.062 | I85: 0.692 | J85: 0.648 | M85: Jan-Mar 2001 | N85: 607000 | O85: 519000 | P85: 422000 | Q85: 391000 | R85: 31000 | S85: 185000 | T85: 0.073 | U85: 0.795 | V85: 0.736 | Y85: Jan-Mar 2001 | Z85: 658000 | AA85: 535000 | AB85: 319000 | AC85: 304000 | AD85: 15000 | AE85: 338000 | AF85: 0.048 | AG85: 0.592 | AH85: 0.564
A86: Feb-Apr 2001 | B86: 1266000 | C86: 1055000 | D86: 742000 | E86: 696000 | F86: 46000 | G86: 524000 | H86: 0.062 | I86: 0.693 | J86: 0.649 | M86: Feb-Apr 2001 | N86: 608000 | O86: 520000 | P86: 423000 | Q86: 391000 | R86: 32000 | S86: 185000 | T86: 0.075 | U86: 0.797 | V86: 0.736 | Y86: Feb-Apr 2001 | Z86: 658000 | AA86: 536000 | AB86: 319000 | AC86: 305000 | AD86: 14000 | AE86: 339000 | AF86: 0.045 | AG86: 0.592 | AH86: 0.565
A87: Mar-May 2001 | B87: 1267000 | C87: 1056000 | D87: 747000 | E87: 701000 | F87: 46000 | G87: 520000 | H87: 0.062 | I87: 0.697 | J87: 0.654 | M87: Mar-May 2001 | N87: 608000 | O87: 520000 | P87: 422000 | Q87: 391000 | R87: 31000 | S87: 186000 | T87: 0.074 | U87: 0.796 | V87: 0.736 | Y87: Mar-May 2001 | Z87: 659000 | AA87: 536000 | AB87: 324000 | AC87: 309000 | AD87: 15000 | AE87: 334000 | AF87: 0.045 | AG87: 0.601 | AH87: 0.574
A88: Apr-Jun 2001 | B88: 1268000 | C88: 1057000 | D88: 746000 | E88: 701000 | F88: 45000 | G88: 522000 | H88: 0.06 | I88: 0.696 | J88: 0.654 | M88: Apr-Jun 2001 | N88: 609000 | O88: 521000 | P88: 422000 | Q88: 391000 | R88: 31000 | S88: 187000 | T88: 0.072 | U88: 0.796 | V88: 0.737 | Y88: Apr-Jun 2001 | Z88: 659000 | AA88: 536000 | AB88: 324000 | AC88: 310000 | AD88: 14000 | AE88: 335000 | AF88: 0.043 | AG88: 0.599 | AH88: 0.573
A89: May-Jul 2001 | B89: 1269000 | C89: 1058000 | D89: 759000 | E89: 714000 | F89: 45000 | G89: 510000 | H89: 0.06 | I89: 0.708 | J89: 0.666 | M89: May-Jul 2001 | N89: 610000 | O89: 521000 | P89: 426000 | Q89: 396000 | R89: 31000 | S89: 183000 | T89: 0.072 | U89: 0.804 | V89: 0.745 | Y89: May-Jul 2001 | Z89: 660000 | AA89: 537000 | AB89: 332000 | AC89: 318000 | AD89: 14000 | AE89: 327000 | AF89: 0.043 | AG89: 0.615 | AH89: 0.589
A90: Jun-Aug 2001 | B90: 1271000 | C90: 1059000 | D90: 765000 | E90: 718000 | F90: 47000 | G90: 506000 | H90: 0.061 | I90: 0.713 | J90: 0.669 | M90: Jun-Aug 2001 | N90: 610000 | O90: 522000 | P90: 428000 | Q90: 398000 | R90: 30000 | S90: 182000 | T90: 0.07 | U90: 0.806 | V90: 0.749 | Y90: Jun-Aug 2001 | Z90: 660000 | AA90: 537000 | AB90: 337000 | AC90: 320000 | AD90: 17000 | AE90: 323000 | AF90: 0.05 | AG90: 0.623 | AH90: 0.592
A91: Jul-Sep 2001 | B91: 1272000 | C91: 1060000 | D91: 767000 | E91: 720000 | F91: 47000 | G91: 505000 | H91: 0.061 | I91: 0.714 | J91: 0.67 | M91: Jul-Sep 2001 | N91: 611000 | O91: 522000 | P91: 428000 | Q91: 398000 | R91: 30000 | S91: 183000 | T91: 0.071 | U91: 0.805 | V91: 0.747 | Y91: Jul-Sep 2001 | Z91: 661000 | AA91: 537000 | AB91: 339000 | AC91: 322000 | AD91: 16000 | AE91: 322000 | AF91: 0.049 | AG91: 0.626 | AH91: 0.595
A92: Aug-Oct 2001 | B92: 1273000 | C92: 1061000 | D92: 759000 | E92: 713000 | F92: 46000 | G92: 514000 | H92: 0.06 | I92: 0.707 | J92: 0.664 | M92: Aug-Oct 2001 | N92: 612000 | O92: 523000 | P92: 424000 | Q92: 395000 | R92: 29000 | S92: 188000 | T92: 0.068 | U92: 0.797 | V92: 0.743 | Y92: Aug-Oct 2001 | Z92: 661000 | AA92: 538000 | AB92: 335000 | AC92: 318000 | AD92: 17000 | AE92: 327000 | AF92: 0.051 | AG92: 0.618 | AH92: 0.587
A93: Sep-Nov 2001 | B93: 1274000 | C93: 1062000 | D93: 753000 | E93: 708000 | F93: 46000 | G93: 521000 | H93: 0.061 | I93: 0.701 | J93: 0.658 | M93: Sep-Nov 2001 | N93: 613000 | O93: 524000 | P93: 421000 | Q93: 391000 | R93: 30000 | S93: 192000 | T93: 0.07 | U93: 0.79 | V93: 0.734 | Y93: Sep-Nov 2001 | Z93: 662000 | AA93: 538000 | AB93: 332000 | AC93: 316000 | AD93: 16000 | AE93: 329000 | AF93: 0.048 | AG93: 0.614 | AH93: 0.585
A94: Oct-Dec 2001 | B94: 1276000 | C94: 1063000 | D94: 750000 | E94: 707000 | F94: 43000 | G94: 525000 | H94: 0.058 | I94: 0.697 | J94: 0.656 | M94: Oct-Dec 2001 | N94: 613000 | O94: 524000 | P94: 419000 | Q94: 389000 | R94: 29000 | S94: 195000 | T94: 0.07 | U94: 0.783 | V94: 0.729 | Y94: Oct-Dec 2001 | Z94: 662000 | AA94: 539000 | AB94: 332000 | AC94: 318000 | AD94: 14000 | AE94: 330000 | AF94: 0.043 | AG94: 0.613 | AH94: 0.586
A95: Nov-Jan 2002 | B95: 1277000 | C95: 1064000 | D95: 745000 | E95: 700000 | F95: 45000 | G95: 532000 | H95: 0.06 | I95: 0.69 | J95: 0.648 | M95: Nov-Jan 2002 | N95: 614000 | O95: 525000 | P95: 418000 | Q95: 388000 | R95: 30000 | S95: 196000 | T95: 0.071 | U95: 0.78 | V95: 0.724 | Y95: Nov-Jan 2002 | Z95: 663000 | AA95: 539000 | AB95: 327000 | AC95: 312000 | AD95: 15000 | AE95: 336000 | AF95: 0.046 | AG95: 0.602 | AH95: 0.574
A96: Dec-Feb 2002 | B96: 1278000 | C96: 1065000 | D96: 747000 | E96: 702000 | F96: 44000 | G96: 531000 | H96: 0.059 | I96: 0.691 | J96: 0.65 | M96: Dec-Feb 2002 | N96: 615000 | O96: 525000 | P96: 417000 | Q96: 387000 | R96: 30000 | S96: 197000 | T96: 0.073 | U96: 0.779 | V96: 0.722 | Y96: Dec-Feb 2002 | Z96: 663000 | AA96: 540000 | AB96: 329000 | AC96: 316000 | AD96: 14000 | AE96: 334000 | AF96: 0.042 | AG96: 0.606 | AH96: 0.581
A97: Jan-Mar 2002 | B97: 1279000 | C97: 1066000 | D97: 751000 | E97: 706000 | F97: 46000 | G97: 528000 | H97: 0.061 | I97: 0.695 | J97: 0.652 | M97: Jan-Mar 2002 | N97: 615000 | O97: 526000 | P97: 420000 | Q97: 389000 | R97: 31000 | S97: 195000 | T97: 0.073 | U97: 0.783 | V97: 0.725 | Y97: Jan-Mar 2002 | Z97: 664000 | AA97: 540000 | AB97: 332000 | AC97: 317000 | AD97: 15000 | AE97: 332000 | AF97: 0.045 | AG97: 0.609 | AH97: 0.582
A98: Feb-Apr 2002 | B98: 1281000 | C98: 1067000 | D98: 757000 | E98: 714000 | F98: 43000 | G98: 523000 | H98: 0.057 | I98: 0.699 | J98: 0.658 | M98: Feb-Apr 2002 | N98: 616000 | O98: 526000 | P98: 421000 | Q98: 392000 | R98: 29000 | S98: 195000 | T98: 0.068 | U98: 0.782 | V98: 0.728 | Y98: Feb-Apr 2002 | Z98: 665000 | AA98: 541000 | AB98: 336000 | AC98: 322000 | AD98: 15000 | AE98: 328000 | AF98: 0.043 | AG98: 0.617 | AH98: 0.59
A99: Mar-May 2002 | B99: 1282000 | C99: 1068000 | D99: 755000 | E99: 714000 | F99: 41000 | G99: 526000 | H99: 0.054 | I99: 0.696 | J99: 0.657 | M99: Mar-May 2002 | N99: 617000 | O99: 527000 | P99: 418000 | Q99: 392000 | R99: 26000 | S99: 199000 | T99: 0.061 | U99: 0.775 | V99: 0.726 | Y99: Mar-May 2002 | Z99: 665000 | AA99: 541000 | AB99: 337000 | AC99: 322000 | AD99: 15000 | AE99: 328000 | AF99: 0.045 | AG99: 0.619 | AH99: 0.591
A100: Apr-Jun 2002 | B100: 1283000 | C100: 1069000 | D100: 758000 | E100: 717000 | F100: 41000 | G100: 525000 | H100: 0.054 | I100: 0.696 | J100: 0.657 | M100: Apr-Jun 2002 | N100: 617000 | O100: 527000 | P100: 422000 | Q100: 395000 | R100: 26000 | S100: 195000 | T100: 0.063 | U100: 0.779 | V100: 0.729 | Y100: Apr-Jun 2002 | Z100: 666000 | AA100: 542000 | AB100: 336000 | AC100: 321000 | AD100: 15000 | AE100: 330000 | AF100: 0.044 | AG100: 0.615 | AH100: 0.588
A101: May-Jul 2002 | B101: 1284000 | C101: 1070000 | D101: 761000 | E101: 719000 | F101: 42000 | G101: 523000 | H101: 0.056 | I101: 0.699 | J101: 0.659 | M101: May-Jul 2002 | N101: 618000 | O101: 528000 | P101: 421000 | Q101: 394000 | R101: 27000 | S101: 197000 | T101: 0.064 | U101: 0.778 | V101: 0.727 | Y101: May-Jul 2002 | Z101: 666000 | AA101: 542000 | AB101: 340000 | AC101: 324000 | AD101: 16000 | AE101: 326000 | AF101: 0.046 | AG101: 0.622 | AH101: 0.593
A102: Jun-Aug 2002 | B102: 1285000 | C102: 1071000 | D102: 772000 | E102: 723000 | F102: 49000 | G102: 513000 | H102: 0.064 | I102: 0.706 | J102: 0.66 | M102: Jun-Aug 2002 | N102: 619000 | O102: 528000 | P102: 430000 | Q102: 402000 | R102: 28000 | S102: 189000 | T102: 0.066 | U102: 0.791 | V102: 0.738 | Y102: Jun-Aug 2002 | Z102: 667000 | AA102: 542000 | AB102: 342000 | AC102: 321000 | AD102: 21000 | AE102: 325000 | AF102: 0.061 | AG102: 0.623 | AH102: 0.585
A103: Jul-Sep 2002 | B103: 1286000 | C103: 1072000 | D103: 775000 | E103: 726000 | F103: 49000 | G103: 511000 | H103: 0.063 | I103: 0.709 | J103: 0.663 | M103: Jul-Sep 2002 | N103: 619000 | O103: 529000 | P103: 432000 | Q103: 405000 | R103: 27000 | S103: 187000 | T103: 0.063 | U103: 0.795 | V103: 0.743 | Y103: Jul-Sep 2002 | Z103: 667000 | AA103: 543000 | AB103: 343000 | AC103: 321000 | AD103: 22000 | AE103: 324000 | AF103: 0.063 | AG103: 0.626 | AH103: 0.586
A104: Aug-Oct 2002 | B104: 1287000 | C104: 1072000 | D104: 774000 | E104: 727000 | F104: 47000 | G104: 513000 | H104: 0.06 | I104: 0.707 | J104: 0.663 | M104: Aug-Oct 2002 | N104: 620000 | O104: 529000 | P104: 433000 | Q104: 406000 | R104: 27000 | S104: 187000 | T104: 0.061 | U104: 0.793 | V104: 0.743 | Y104: Aug-Oct 2002 | Z104: 668000 | AA104: 543000 | AB104: 341000 | AC104: 321000 | AD104: 20000 | AE104: 327000 | AF104: 0.059 | AG104: 0.622 | AH104: 0.585
A105: Sep-Nov 2002 | B105: 1289000 | C105: 1073000 | D105: 777000 | E105: 734000 | F105: 43000 | G105: 512000 | H105: 0.056 | I105: 0.709 | J105: 0.668 | M105: Sep-Nov 2002 | N105: 620000 | O105: 530000 | P105: 437000 | Q105: 411000 | R105: 25000 | S105: 184000 | T105: 0.058 | U105: 0.8 | V105: 0.752 | Y105: Sep-Nov 2002 | Z105: 668000 | AA105: 544000 | AB105: 340000 | AC105: 322000 | AD105: 18000 | AE105: 328000 | AF105: 0.053 | AG105: 0.62 | AH105: 0.587
A106: Oct-Dec 2002 | B106: 1290000 | C106: 1074000 | D106: 780000 | E106: 737000 | F106: 43000 | G106: 510000 | H106: 0.055 | I106: 0.712 | J106: 0.672 | M106: Oct-Dec 2002 | N106: 621000 | O106: 530000 | P106: 441000 | Q106: 414000 | R106: 27000 | S106: 180000 | T106: 0.061 | U106: 0.809 | V106: 0.758 | Y106: Oct-Dec 2002 | Z106: 669000 | AA106: 544000 | AB106: 339000 | AC106: 323000 | AD106: 16000 | AE106: 329000 | AF106: 0.047 | AG106: 0.618 | AH106: 0.589
A107: Nov-Jan 2003 | B107: 1291000 | C107: 1075000 | D107: 785000 | E107: 741000 | F107: 44000 | G107: 506000 | H107: 0.055 | I107: 0.716 | J107: 0.675 | M107: Nov-Jan 2003 | N107: 622000 | O107: 531000 | P107: 443000 | Q107: 417000 | R107: 26000 | S107: 178000 | T107: 0.058 | U107: 0.814 | V107: 0.766 | Y107: Nov-Jan 2003 | Z107: 669000 | AA107: 544000 | AB107: 342000 | AC107: 324000 | AD107: 18000 | AE107: 328000 | AF107: 0.052 | AG107: 0.62 | AH107: 0.587
A108: Dec-Feb 2003 | B108: 1292000 | C108: 1076000 | D108: 789000 | E108: 746000 | F108: 43000 | G108: 503000 | H108: 0.054 | I108: 0.719 | J108: 0.679 | M108: Dec-Feb 2003 | N108: 622000 | O108: 531000 | P108: 447000 | Q108: 420000 | R108: 26000 | S108: 176000 | T108: 0.059 | U108: 0.819 | V108: 0.77 | Y108: Dec-Feb 2003 | Z108: 670000 | AA108: 545000 | AB108: 343000 | AC108: 326000 | AD108: 17000 | AE108: 327000 | AF108: 0.049 | AG108: 0.621 | AH108: 0.59
A109: Jan-Mar 2003 | B109: 1293000 | C109: 1077000 | D109: 796000 | E109: 755000 | F109: 41000 | G109: 497000 | H109: 0.052 | I109: 0.725 | J109: 0.687 | M109: Jan-Mar 2003 | N109: 623000 | O109: 532000 | P109: 445000 | Q109: 421000 | R109: 24000 | S109: 177000 | T109: 0.055 | U109: 0.817 | V109: 0.771 | Y109: Jan-Mar 2003 | Z109: 670000 | AA109: 545000 | AB109: 350000 | AC109: 334000 | AD109: 17000 | AE109: 320000 | AF109: 0.048 | AG109: 0.635 | AH109: 0.604
A110: Feb-Apr 2003 | B110: 1294000 | C110: 1078000 | D110: 794000 | E110: 753000 | F110: 41000 | G110: 500000 | H110: 0.051 | I110: 0.724 | J110: 0.686 | M110: Feb-Apr 2003 | N110: 623000 | O110: 532000 | P110: 444000 | Q110: 420000 | R110: 24000 | S110: 179000 | T110: 0.055 | U110: 0.816 | V110: 0.77 | Y110: Feb-Apr 2003 | Z110: 671000 | AA110: 546000 | AB110: 350000 | AC110: 333000 | AD110: 17000 | AE110: 321000 | AF110: 0.047 | AG110: 0.634 | AH110: 0.604
A111: Mar-May 2003 | B111: 1295000 | C111: 1079000 | D111: 787000 | E111: 746000 | F111: 41000 | G111: 509000 | H111: 0.052 | I111: 0.716 | J111: 0.678 | M111: Mar-May 2003 | N111: 624000 | O111: 533000 | P111: 442000 | Q111: 417000 | R111: 25000 | S111: 182000 | T111: 0.057 | U111: 0.81 | V111: 0.763 | Y111: Mar-May 2003 | Z111: 671000 | AA111: 546000 | AB111: 344000 | AC111: 329000 | AD111: 16000 | AE111: 327000 | AF111: 0.046 | AG111: 0.624 | AH111: 0.595
A112: Apr-Jun 2003 | B112: 1296000 | C112: 1080000 | D112: 779000 | E112: 740000 | F112: 39000 | G112: 518000 | H112: 0.05 | I112: 0.709 | J112: 0.673 | M112: Apr-Jun 2003 | N112: 625000 | O112: 533000 | P112: 436000 | Q112: 410000 | R112: 25000 | S112: 189000 | T112: 0.058 | U112: 0.8 | V112: 0.752 | Y112: Apr-Jun 2003 | Z112: 672000 | AA112: 547000 | AB112: 343000 | AC112: 330000 | AD112: 13000 | AE112: 329000 | AF112: 0.039 | AG112: 0.621 | AH112: 0.596
A113: May-Jul 2003 | B113: 1298000 | C113: 1081000 | D113: 778000 | E113: 738000 | F113: 40000 | G113: 519000 | H113: 0.052 | I113: 0.709 | J113: 0.671 | M113: May-Jul 2003 | N113: 625000 | O113: 534000 | P113: 438000 | Q113: 411000 | R113: 28000 | S113: 187000 | T113: 0.063 | U113: 0.805 | V113: 0.753 | Y113: May-Jul 2003 | Z113: 672000 | AA113: 547000 | AB113: 340000 | AC113: 327000 | AD113: 13000 | AE113: 332000 | AF113: 0.038 | AG113: 0.615 | AH113: 0.591
A114: Jun-Aug 2003 | B114: 1299000 | C114: 1081000 | D114: 778000 | E114: 733000 | F114: 45000 | G114: 520000 | H114: 0.058 | I114: 0.708 | J114: 0.667 | M114: Jun-Aug 2003 | N114: 626000 | O114: 534000 | P114: 439000 | Q114: 408000 | R114: 31000 | S114: 187000 | T114: 0.07 | U114: 0.805 | V114: 0.748 | Y114: Jun-Aug 2003 | Z114: 673000 | AA114: 547000 | AB114: 340000 | AC114: 325000 | AD114: 15000 | AE114: 333000 | AF114: 0.043 | AG114: 0.614 | AH114: 0.587
A115: Jul-Sep 2003 | B115: 1300000 | C115: 1082000 | D115: 782000 | E115: 736000 | F115: 46000 | G115: 518000 | H115: 0.058 | I115: 0.712 | J115: 0.67 | M115: Jul-Sep 2003 | N115: 627000 | O115: 535000 | P115: 442000 | Q115: 412000 | R115: 31000 | S115: 184000 | T115: 0.069 | U115: 0.813 | V115: 0.756 | Y115: Jul-Sep 2003 | Z115: 673000 | AA115: 548000 | AB115: 340000 | AC115: 325000 | AD115: 15000 | AE115: 334000 | AF115: 0.044 | AG115: 0.613 | AH115: 0.585
A116: Aug-Oct 2003 | B116: 1301000 | C116: 1083000 | D116: 775000 | E116: 728000 | F116: 47000 | G116: 526000 | H116: 0.06 | I116: 0.705 | J116: 0.662 | M116: Aug-Oct 2003 | N116: 627000 | O116: 535000 | P116: 441000 | Q116: 408000 | R116: 33000 | S116: 186000 | T116: 0.074 | U116: 0.81 | V116: 0.749 | Y116: Aug-Oct 2003 | Z116: 674000 | AA116: 548000 | AB116: 335000 | AC116: 320000 | AD116: 14000 | AE116: 339000 | AF116: 0.043 | AG116: 0.603 | AH116: 0.577
A117: Sep-Nov 2003 | B117: 1302000 | C117: 1084000 | D117: 772000 | E117: 725000 | F117: 47000 | G117: 530000 | H117: 0.06 | I117: 0.703 | J117: 0.66 | M117: Sep-Nov 2003 | N117: 628000 | O117: 535000 | P117: 438000 | Q117: 402000 | R117: 35000 | S117: 190000 | T117: 0.08 | U117: 0.804 | V117: 0.738 | Y117: Sep-Nov 2003 | Z117: 674000 | AA117: 549000 | AB117: 334000 | AC117: 323000 | AD117: 12000 | AE117: 340000 | AF117: 0.034 | AG117: 0.604 | AH117: 0.583
A118: Oct-Dec 2003 | B118: 1303000 | C118: 1085000 | D118: 769000 | E118: 721000 | F118: 48000 | G118: 535000 | H118: 0.063 | I118: 0.698 | J118: 0.654 | M118: Oct-Dec 2003 | N118: 628000 | O118: 536000 | P118: 438000 | Q118: 401000 | R118: 37000 | S118: 190000 | T118: 0.085 | U118: 0.802 | V118: 0.733 | Y118: Oct-Dec 2003 | Z118: 675000 | AA118: 549000 | AB118: 331000 | AC118: 320000 | AD118: 11000 | AE118: 344000 | AF118: 0.033 | AG118: 0.596 | AH118: 0.577
A119: Nov-Jan 2004 | B119: 1305000 | C119: 1086000 | D119: 771000 | E119: 729000 | F119: 43000 | G119: 533000 | H119: 0.055 | I119: 0.699 | J119: 0.66 | M119: Nov-Jan 2004 | N119: 629000 | O119: 536000 | P119: 437000 | Q119: 405000 | R119: 32000 | S119: 192000 | T119: 0.074 | U119: 0.799 | V119: 0.738 | Y119: Nov-Jan 2004 | Z119: 676000 | AA119: 550000 | AB119: 334000 | AC119: 324000 | AD119: 10000 | AE119: 341000 | AF119: 0.03 | AG119: 0.602 | AH119: 0.584
A120: Dec-Feb 2004 | B120: 1306000 | C120: 1087000 | D120: 775000 | E120: 735000 | F120: 40000 | G120: 531000 | H120: 0.051 | I120: 0.702 | J120: 0.665 | M120: Dec-Feb 2004 | N120: 630000 | O120: 537000 | P120: 436000 | Q120: 405000 | R120: 31000 | S120: 194000 | T120: 0.071 | U120: 0.795 | V120: 0.738 | Y120: Dec-Feb 2004 | Z120: 676000 | AA120: 550000 | AB120: 339000 | AC120: 330000 | AD120: 9000 | AE120: 337000 | AF120: 0.026 | AG120: 0.61 | AH120: 0.594
A121: Jan-Mar 2004 | B121: 1307000 | C121: 1088000 | D121: 765000 | E121: 726000 | F121: 39000 | G121: 542000 | H121: 0.051 | I121: 0.692 | J121: 0.656 | M121: Jan-Mar 2004 | N121: 630000 | O121: 537000 | P121: 427000 | Q121: 398000 | R121: 30000 | S121: 203000 | T121: 0.069 | U121: 0.777 | V121: 0.722 | Y121: Jan-Mar 2004 | Z121: 677000 | AA121: 551000 | AB121: 338000 | AC121: 328000 | AD121: 10000 | AE121: 339000 | AF121: 0.029 | AG121: 0.609 | AH121: 0.591
A122: Feb-Apr 2004 | B122: 1308000 | C122: 1089000 | D122: 763000 | E122: 725000 | F122: 38000 | G122: 545000 | H122: 0.05 | I122: 0.691 | J122: 0.656 | M122: Feb-Apr 2004 | N122: 631000 | O122: 538000 | P122: 424000 | Q122: 395000 | R122: 29000 | S122: 207000 | T122: 0.069 | U122: 0.773 | V122: 0.719 | Y122: Feb-Apr 2004 | Z122: 677000 | AA122: 551000 | AB122: 338000 | AC122: 330000 | AD122: 9000 | AE122: 339000 | AF122: 0.026 | AG122: 0.611 | AH122: 0.595
A123: Mar-May 2004 | B123: 1309000 | C123: 1090000 | D123: 753000 | E123: 718000 | F123: 35000 | G123: 556000 | H123: 0.047 | I123: 0.684 | J123: 0.651 | M123: Mar-May 2004 | N123: 631000 | O123: 538000 | P123: 418000 | Q123: 392000 | R123: 26000 | S123: 213000 | T123: 0.061 | U123: 0.763 | V123: 0.716 | Y123: Mar-May 2004 | Z123: 678000 | AA123: 551000 | AB123: 336000 | AC123: 326000 | AD123: 10000 | AE123: 342000 | AF123: 0.029 | AG123: 0.606 | AH123: 0.588
A124: Apr-Jun 2004 | B124: 1310000 | C124: 1091000 | D124: 757000 | E124: 719000 | F124: 37000 | G124: 554000 | H124: 0.049 | I124: 0.686 | J124: 0.651 | M124: Apr-Jun 2004 | N124: 632000 | O124: 539000 | P124: 422000 | Q124: 396000 | R124: 26000 | S124: 210000 | T124: 0.062 | U124: 0.77 | V124: 0.721 | Y124: Apr-Jun 2004 | Z124: 678000 | AA124: 552000 | AB124: 335000 | AC124: 323000 | AD124: 11000 | AE124: 344000 | AF124: 0.034 | AG124: 0.604 | AH124: 0.583
A125: May-Jul 2004 | B125: 1312000 | C125: 1092000 | D125: 762000 | E125: 724000 | F125: 37000 | G125: 550000 | H125: 0.049 | I125: 0.69 | J125: 0.655 | M125: May-Jul 2004 | N125: 633000 | O125: 539000 | P125: 426000 | Q125: 399000 | R125: 27000 | S125: 207000 | T125: 0.063 | U125: 0.777 | V125: 0.727 | Y125: May-Jul 2004 | Z125: 679000 | AA125: 552000 | AB125: 336000 | AC125: 325000 | AD125: 11000 | AE125: 343000 | AF125: 0.032 | AG125: 0.605 | AH125: 0.585
A126: Jun-Aug 2004 | B126: 1313000 | C126: 1093000 | D126: 765000 | E126: 728000 | F126: 37000 | G126: 548000 | H126: 0.049 | I126: 0.692 | J126: 0.657 | M126: Jun-Aug 2004 | N126: 633000 | O126: 540000 | P126: 429000 | Q126: 405000 | R126: 25000 | S126: 204000 | T126: 0.058 | U126: 0.782 | V126: 0.736 | Y126: Jun-Aug 2004 | Z126: 679000 | AA126: 553000 | AB126: 336000 | AC126: 323000 | AD126: 13000 | AE126: 344000 | AF126: 0.037 | AG126: 0.603 | AH126: 0.581
A127: Jul-Sep 2004 | B127: 1314000 | C127: 1094000 | D127: 770000 | E127: 729000 | F127: 41000 | G127: 545000 | H127: 0.053 | I127: 0.695 | J127: 0.658 | M127: Jul-Sep 2004 | N127: 634000 | O127: 540000 | P127: 432000 | Q127: 404000 | R127: 28000 | S127: 202000 | T127: 0.065 | U127: 0.786 | V127: 0.734 | Y127: Jul-Sep 2004 | Z127: 680000 | AA127: 553000 | AB127: 337000 | AC127: 325000 | AD127: 13000 | AE127: 343000 | AF127: 0.038 | AG127: 0.606 | AH127: 0.583
A128: Aug-Oct 2004 | B128: 1316000 | C128: 1095000 | D128: 776000 | E128: 734000 | F128: 42000 | G128: 540000 | H128: 0.054 | I128: 0.699 | J128: 0.661 | M128: Aug-Oct 2004 | N128: 635000 | O128: 541000 | P128: 432000 | Q128: 403000 | R128: 29000 | S128: 203000 | T128: 0.066 | U128: 0.784 | V128: 0.731 | Y128: Aug-Oct 2004 | Z128: 681000 | AA128: 554000 | AB128: 344000 | AC128: 331000 | AD128: 13000 | AE128: 337000 | AF128: 0.038 | AG128: 0.616 | AH128: 0.593
A129: Sep-Nov 2004 | B129: 1317000 | C129: 1096000 | D129: 782000 | E129: 741000 | F129: 41000 | G129: 535000 | H129: 0.053 | I129: 0.704 | J129: 0.666 | M129: Sep-Nov 2004 | N129: 636000 | O129: 542000 | P129: 437000 | Q129: 406000 | R129: 30000 | S129: 199000 | T129: 0.07 | U129: 0.792 | V129: 0.736 | Y129: Sep-Nov 2004 | Z129: 681000 | AA129: 554000 | AB129: 345000 | AC129: 334000 | AD129: 11000 | AE129: 336000 | AF129: 0.032 | AG129: 0.618 | AH129: 0.599
A130: Oct-Dec 2004 | B130: 1318000 | C130: 1097000 | D130: 789000 | E130: 753000 | F130: 36000 | G130: 529000 | H130: 0.046 | I130: 0.709 | J130: 0.676 | M130: Oct-Dec 2004 | N130: 636000 | O130: 542000 | P130: 439000 | Q130: 412000 | R130: 27000 | S130: 197000 | T130: 0.061 | U130: 0.794 | V130: 0.745 | Y130: Oct-Dec 2004 | Z130: 682000 | AA130: 555000 | AB130: 350000 | AC130: 340000 | AD130: 10000 | AE130: 332000 | AF130: 0.027 | AG130: 0.626 | AH130: 0.609
A131: Nov-Jan 2005 | B131: 1320000 | C131: 1098000 | D131: 784000 | E131: 749000 | F131: 36000 | G131: 535000 | H131: 0.046 | I131: 0.703 | J131: 0.67 | M131: Nov-Jan 2005 | N131: 637000 | O131: 543000 | P131: 438000 | Q131: 412000 | R131: 26000 | S131: 199000 | T131: 0.059 | U131: 0.789 | V131: 0.741 | Y131: Nov-Jan 2005 | Z131: 683000 | AA131: 555000 | AB131: 347000 | AC131: 337000 | AD131: 10000 | AE131: 336000 | AF131: 0.029 | AG131: 0.619 | AH131: 0.601
A132: Dec-Feb 2005 | B132: 1321000 | C132: 1099000 | D132: 788000 | E132: 752000 | F132: 37000 | G132: 533000 | H132: 0.047 | I132: 0.705 | J132: 0.672 | M132: Dec-Feb 2005 | N132: 638000 | O132: 543000 | P132: 436000 | Q132: 410000 | R132: 26000 | S132: 202000 | T132: 0.06 | U132: 0.785 | V132: 0.737 | Y132: Dec-Feb 2005 | Z132: 683000 | AA132: 556000 | AB132: 352000 | AC132: 342000 | AD132: 11000 | AE132: 331000 | AF132: 0.03 | AG132: 0.627 | AH132: 0.608
A133: Jan-Mar 2005 | B133: 1322000 | C133: 1101000 | D133: 790000 | E133: 754000 | F133: 36000 | G133: 532000 | H133: 0.046 | I133: 0.706 | J133: 0.673 | M133: Jan-Mar 2005 | N133: 638000 | O133: 544000 | P133: 438000 | Q133: 412000 | R133: 25000 | S133: 201000 | T133: 0.058 | U133: 0.789 | V133: 0.743 | Y133: Jan-Mar 2005 | Z133: 684000 | AA133: 557000 | AB133: 353000 | AC133: 341000 | AD133: 11000 | AE133: 331000 | AF133: 0.032 | AG133: 0.625 | AH133: 0.605
A134: Feb-Apr 2005 | B134: 1324000 | C134: 1102000 | D134: 784000 | E134: 747000 | F134: 36000 | G134: 540000 | H134: 0.047 | I134: 0.7 | J134: 0.667 | M134: Feb-Apr 2005 | N134: 639000 | O134: 545000 | P134: 434000 | Q134: 410000 | R134: 24000 | S134: 205000 | T134: 0.056 | U134: 0.782 | V134: 0.737 | Y134: Feb-Apr 2005 | Z134: 685000 | AA134: 557000 | AB134: 350000 | AC134: 337000 | AD134: 12000 | AE134: 335000 | AF134: 0.035 | AG134: 0.619 | AH134: 0.597
A135: Mar-May 2005 | B135: 1325000 | C135: 1103000 | D135: 783000 | E135: 747000 | F135: 36000 | G135: 542000 | H135: 0.046 | I135: 0.698 | J135: 0.666 | M135: Mar-May 2005 | N135: 640000 | O135: 545000 | P135: 434000 | Q135: 410000 | R135: 24000 | S135: 206000 | T135: 0.054 | U135: 0.78 | V135: 0.737 | Y135: Mar-May 2005 | Z135: 685000 | AA135: 558000 | AB135: 349000 | AC135: 337000 | AD135: 12000 | AE135: 336000 | AF135: 0.035 | AG135: 0.619 | AH135: 0.597
A136: Apr-Jun 2005 | B136: 1326000 | C136: 1104000 | D136: 788000 | E136: 750000 | F136: 38000 | G136: 539000 | H136: 0.048 | I136: 0.702 | J136: 0.668 | M136: Apr-Jun 2005 | N136: 640000 | O136: 546000 | P136: 430000 | Q136: 405000 | R136: 24000 | S136: 211000 | T136: 0.057 | U136: 0.773 | V136: 0.728 | Y136: Apr-Jun 2005 | Z136: 686000 | AA136: 558000 | AB136: 358000 | AC136: 345000 | AD136: 13000 | AE136: 328000 | AF136: 0.037 | AG136: 0.632 | AH136: 0.608
A137: May-Jul 2005 | B137: 1328000 | C137: 1105000 | D137: 802000 | E137: 762000 | F137: 40000 | G137: 526000 | H137: 0.05 | I137: 0.713 | J137: 0.676 | M137: May-Jul 2005 | N137: 641000 | O137: 546000 | P137: 440000 | Q137: 414000 | R137: 26000 | S137: 201000 | T137: 0.059 | U137: 0.788 | V137: 0.74 | Y137: May-Jul 2005 | Z137: 687000 | AA137: 559000 | AB137: 362000 | AC137: 348000 | AD137: 14000 | AE137: 325000 | AF137: 0.039 | AG137: 0.639 | AH137: 0.614
A138: Jun-Aug 2005 | B138: 1329000 | C138: 1106000 | D138: 806000 | E138: 768000 | F138: 38000 | G138: 523000 | H138: 0.048 | I138: 0.716 | J138: 0.681 | M138: Jun-Aug 2005 | N138: 642000 | O138: 547000 | P138: 441000 | Q138: 416000 | R138: 25000 | S138: 201000 | T138: 0.057 | U138: 0.79 | V138: 0.744 | Y138: Jun-Aug 2005 | Z138: 687000 | AA138: 559000 | AB138: 365000 | AC138: 352000 | AD138: 13000 | AE138: 322000 | AF138: 0.037 | AG138: 0.644 | AH138: 0.62
A139: Jul-Sep 2005 | B139: 1331000 | C139: 1107000 | D139: 810000 | E139: 773000 | F139: 37000 | G139: 521000 | H139: 0.045 | I139: 0.718 | J139: 0.685 | M139: Jul-Sep 2005 | N139: 643000 | O139: 547000 | P139: 446000 | Q139: 422000 | R139: 23000 | S139: 197000 | T139: 0.052 | U139: 0.796 | V139: 0.753 | Y139: Jul-Sep 2005 | Z139: 688000 | AA139: 560000 | AB139: 364000 | AC139: 350000 | AD139: 14000 | AE139: 324000 | AF139: 0.038 | AG139: 0.643 | AH139: 0.618
A140: Aug-Oct 2005 | B140: 1332000 | C140: 1109000 | D140: 801000 | E140: 766000 | F140: 35000 | G140: 531000 | H140: 0.044 | I140: 0.71 | J140: 0.678 | M140: Aug-Oct 2005 | N140: 643000 | O140: 548000 | P140: 442000 | Q140: 420000 | R140: 23000 | S140: 201000 | T140: 0.051 | U140: 0.788 | V140: 0.747 | Y140: Aug-Oct 2005 | Z140: 689000 | AA140: 561000 | AB140: 359000 | AC140: 347000 | AD140: 12000 | AE140: 330000 | AF140: 0.035 | AG140: 0.634 | AH140: 0.611
A141: Sep-Nov 2005 | B141: 1333000 | C141: 1110000 | D141: 802000 | E141: 764000 | F141: 38000 | G141: 531000 | H141: 0.048 | I141: 0.71 | J141: 0.675 | M141: Sep-Nov 2005 | N141: 644000 | O141: 549000 | P141: 445000 | Q141: 420000 | R141: 25000 | S141: 199000 | T141: 0.056 | U141: 0.791 | V141: 0.745 | Y141: Sep-Nov 2005 | Z141: 689000 | AA141: 561000 | AB141: 357000 | AC141: 344000 | AD141: 13000 | AE141: 332000 | AF141: 0.037 | AG141: 0.63 | AH141: 0.606
A142: Oct-Dec 2005 | B142: 1335000 | C142: 1111000 | D142: 797000 | E142: 761000 | F142: 36000 | G142: 538000 | H142: 0.045 | I142: 0.704 | J142: 0.671 | M142: Oct-Dec 2005 | N142: 645000 | O142: 549000 | P142: 444000 | Q142: 419000 | R142: 25000 | S142: 201000 | T142: 0.055 | U142: 0.789 | V142: 0.744 | Y142: Oct-Dec 2005 | Z142: 690000 | AA142: 562000 | AB142: 353000 | AC142: 341000 | AD142: 11000 | AE142: 337000 | AF142: 0.032 | AG142: 0.62 | AH142: 0.6
A143: Nov-Jan 2006 | B143: 1336000 | C143: 1112000 | D143: 801000 | E143: 770000 | F143: 31000 | G143: 535000 | H143: 0.039 | I143: 0.706 | J143: 0.678 | M143: Nov-Jan 2006 | N143: 646000 | O143: 550000 | P143: 443000 | Q143: 421000 | R143: 22000 | S143: 203000 | T143: 0.049 | U143: 0.787 | V143: 0.747 | Y143: Nov-Jan 2006 | Z143: 691000 | AA143: 562000 | AB143: 358000 | AC143: 349000 | AD143: 9000 | AE143: 332000 | AF143: 0.026 | AG143: 0.627 | AH143: 0.61
A144: Dec-Feb 2006 | B144: 1338000 | C144: 1113000 | D144: 807000 | E144: 776000 | F144: 31000 | G144: 530000 | H144: 0.038 | I144: 0.71 | J144: 0.683 | M144: Dec-Feb 2006 | N144: 646000 | O144: 550000 | P144: 446000 | Q144: 423000 | R144: 23000 | S144: 201000 | T144: 0.05 | U144: 0.791 | V144: 0.75 | Y144: Dec-Feb 2006 | Z144: 691000 | AA144: 563000 | AB144: 361000 | AC144: 353000 | AD144: 8000 | AE144: 330000 | AF144: 0.023 | AG144: 0.632 | AH144: 0.617
A145: Jan-Mar 2006 | B145: 1339000 | C145: 1114000 | D145: 804000 | E145: 771000 | F145: 34000 | G145: 535000 | H145: 0.042 | I145: 0.706 | J145: 0.676 | M145: Jan-Mar 2006 | N145: 647000 | O145: 551000 | P145: 444000 | Q145: 419000 | R145: 24000 | S145: 203000 | T145: 0.055 | U145: 0.786 | V145: 0.742 | Y145: Jan-Mar 2006 | Z145: 692000 | AA145: 564000 | AB145: 360000 | AC145: 351000 | AD145: 9000 | AE145: 332000 | AF145: 0.025 | AG145: 0.628 | AH145: 0.612
A146: Feb-Apr 2006 | B146: 1341000 | C146: 1115000 | D146: 800000 | E146: 763000 | F146: 38000 | G146: 540000 | H146: 0.047 | I146: 0.703 | J146: 0.67 | M146: Feb-Apr 2006 | N146: 648000 | O146: 551000 | P146: 440000 | Q146: 412000 | R146: 28000 | S146: 208000 | T146: 0.063 | U146: 0.78 | V146: 0.73 | Y146: Feb-Apr 2006 | Z146: 693000 | AA146: 564000 | AB146: 361000 | AC146: 350000 | AD146: 10000 | AE146: 332000 | AF146: 0.029 | AG146: 0.629 | AH146: 0.61
A147: Mar-May 2006 | B147: 1342000 | C147: 1117000 | D147: 799000 | E147: 765000 | F147: 34000 | G147: 543000 | H147: 0.043 | I147: 0.702 | J147: 0.672 | M147: Mar-May 2006 | N147: 649000 | O147: 552000 | P147: 439000 | Q147: 415000 | R147: 24000 | S147: 210000 | T147: 0.054 | U147: 0.777 | V147: 0.735 | Y147: Mar-May 2006 | Z147: 694000 | AA147: 565000 | AB147: 360000 | AC147: 350000 | AD147: 11000 | AE147: 333000 | AF147: 0.029 | AG147: 0.628 | AH147: 0.61
A148: Apr-Jun 2006 | B148: 1343000 | C148: 1118000 | D148: 810000 | E148: 777000 | F148: 33000 | G148: 534000 | H148: 0.041 | I148: 0.711 | J148: 0.682 | M148: Apr-Jun 2006 | N148: 649000 | O148: 553000 | P148: 445000 | Q148: 422000 | R148: 23000 | S148: 205000 | T148: 0.051 | U148: 0.787 | V148: 0.746 | Y148: Apr-Jun 2006 | Z148: 694000 | AA148: 565000 | AB148: 365000 | AC148: 355000 | AD148: 10000 | AE148: 329000 | AF148: 0.028 | AG148: 0.636 | AH148: 0.618
A149: May-Jul 2006 | B149: 1345000 | C149: 1119000 | D149: 816000 | E149: 780000 | F149: 36000 | G149: 529000 | H149: 0.044 | I149: 0.716 | J149: 0.684 | M149: May-Jul 2006 | N149: 650000 | O149: 553000 | P149: 449000 | Q149: 426000 | R149: 24000 | S149: 201000 | T149: 0.053 | U149: 0.795 | V149: 0.753 | Y149: May-Jul 2006 | Z149: 695000 | AA149: 566000 | AB149: 366000 | AC149: 354000 | AD149: 12000 | AE149: 328000 | AF149: 0.034 | AG149: 0.639 | AH149: 0.617
A150: Jun-Aug 2006 | B150: 1346000 | C150: 1120000 | D150: 819000 | E150: 781000 | F150: 37000 | G150: 528000 | H150: 0.046 | I150: 0.717 | J150: 0.684 | M150: Jun-Aug 2006 | N150: 651000 | O150: 554000 | P150: 450000 | Q150: 426000 | R150: 24000 | S150: 201000 | T150: 0.053 | U150: 0.794 | V150: 0.751 | Y150: Jun-Aug 2006 | Z150: 696000 | AA150: 567000 | AB150: 369000 | AC150: 355000 | AD150: 13000 | AE150: 327000 | AF150: 0.036 | AG150: 0.643 | AH150: 0.619
A151: Jul-Sep 2006 | B151: 1348000 | C151: 1122000 | D151: 814000 | E151: 773000 | F151: 40000 | G151: 534000 | H151: 0.05 | I151: 0.712 | J151: 0.677 | M151: Jul-Sep 2006 | N151: 652000 | O151: 554000 | P151: 448000 | Q151: 424000 | R151: 25000 | S151: 203000 | T151: 0.055 | U151: 0.79 | V151: 0.746 | Y151: Jul-Sep 2006 | Z151: 697000 | AA151: 567000 | AB151: 365000 | AC151: 350000 | AD151: 16000 | AE151: 331000 | AF151: 0.043 | AG151: 0.636 | AH151: 0.609
A152: Aug-Oct 2006 | B152: 1350000 | C152: 1123000 | D152: 808000 | E152: 769000 | F152: 39000 | G152: 542000 | H152: 0.048 | I152: 0.707 | J152: 0.673 | M152: Aug-Oct 2006 | N152: 652000 | O152: 555000 | P152: 444000 | Q152: 420000 | R152: 24000 | S152: 208000 | T152: 0.054 | U152: 0.782 | V152: 0.739 | Y152: Aug-Oct 2006 | Z152: 697000 | AA152: 568000 | AB152: 363000 | AC152: 349000 | AD152: 15000 | AE152: 334000 | AF152: 0.041 | AG152: 0.634 | AH152: 0.608
A153: Sep-Nov 2006 | B153: 1351000 | C153: 1124000 | D153: 812000 | E153: 776000 | F153: 36000 | G153: 539000 | H153: 0.044 | I153: 0.709 | J153: 0.678 | M153: Sep-Nov 2006 | N153: 653000 | O153: 555000 | P153: 446000 | Q153: 424000 | R153: 22000 | S153: 207000 | T153: 0.049 | U153: 0.783 | V153: 0.744 | Y153: Sep-Nov 2006 | Z153: 698000 | AA153: 569000 | AB153: 366000 | AC153: 352000 | AD153: 14000 | AE153: 332000 | AF153: 0.038 | AG153: 0.637 | AH153: 0.613
A154: Oct-Dec 2006 | B154: 1353000 | C154: 1125000 | D154: 814000 | E154: 780000 | F154: 34000 | G154: 538000 | H154: 0.042 | I154: 0.71 | J154: 0.68 | M154: Oct-Dec 2006 | N154: 654000 | O154: 556000 | P154: 446000 | Q154: 424000 | R154: 21000 | S154: 208000 | T154: 0.047 | U154: 0.782 | V154: 0.744 | Y154: Oct-Dec 2006 | Z154: 699000 | AA154: 569000 | AB154: 369000 | AC154: 356000 | AD154: 13000 | AE154: 330000 | AF154: 0.035 | AG154: 0.64 | AH154: 0.617
A155: Nov-Jan 2007 | B155: 1354000 | C155: 1126000 | D155: 817000 | E155: 785000 | F155: 33000 | G155: 537000 | H155: 0.04 | I155: 0.713 | J155: 0.684 | M155: Nov-Jan 2007 | N155: 655000 | O155: 557000 | P155: 445000 | Q155: 427000 | R155: 18000 | S155: 209000 | T155: 0.041 | U155: 0.783 | V155: 0.751 | Y155: Nov-Jan 2007 | Z155: 700000 | AA155: 570000 | AB155: 372000 | AC155: 357000 | AD155: 15000 | AE155: 328000 | AF155: 0.04 | AG155: 0.645 | AH155: 0.619
A156: Dec-Feb 2007 | B156: 1356000 | C156: 1128000 | D156: 819000 | E156: 783000 | F156: 36000 | G156: 537000 | H156: 0.044 | I156: 0.713 | J156: 0.682 | M156: Dec-Feb 2007 | N156: 655000 | O156: 557000 | P156: 446000 | Q156: 425000 | R156: 22000 | S156: 209000 | T156: 0.049 | U156: 0.784 | V156: 0.745 | Y156: Dec-Feb 2007 | Z156: 701000 | AA156: 570000 | AB156: 372000 | AC156: 358000 | AD156: 14000 | AE156: 328000 | AF156: 0.038 | AG156: 0.644 | AH156: 0.619
A157: Jan-Mar 2007 | B157: 1357000 | C157: 1129000 | D157: 825000 | E157: 791000 | F157: 33000 | G157: 533000 | H157: 0.041 | I157: 0.717 | J157: 0.688 | M157: Jan-Mar 2007 | N157: 656000 | O157: 558000 | P157: 449000 | Q157: 429000 | R157: 21000 | S157: 207000 | T157: 0.046 | U157: 0.787 | V157: 0.751 | Y157: Jan-Mar 2007 | Z157: 701000 | AA157: 571000 | AB157: 375000 | AC157: 362000 | AD157: 13000 | AE157: 326000 | AF157: 0.034 | AG157: 0.649 | AH157: 0.627
A158: Feb-Apr 2007 | B158: 1359000 | C158: 1130000 | D158: 833000 | E158: 799000 | F158: 35000 | G158: 526000 | H158: 0.042 | I158: 0.724 | J158: 0.694 | M158: Feb-Apr 2007 | N158: 657000 | O158: 558000 | P158: 455000 | Q158: 433000 | R158: 22000 | S158: 202000 | T158: 0.048 | U158: 0.795 | V158: 0.756 | Y158: Feb-Apr 2007 | Z158: 702000 | AA158: 572000 | AB158: 379000 | AC158: 366000 | AD158: 13000 | AE158: 324000 | AF158: 0.033 | AG158: 0.654 | AH158: 0.632
A159: Mar-May 2007 | B159: 1361000 | C159: 1131000 | D159: 828000 | E159: 795000 | F159: 33000 | G159: 532000 | H159: 0.04 | I159: 0.718 | J159: 0.689 | M159: Mar-May 2007 | N159: 658000 | O159: 559000 | P159: 449000 | Q159: 429000 | R159: 20000 | S159: 208000 | T159: 0.045 | U159: 0.786 | V159: 0.75 | Y159: Mar-May 2007 | Z159: 703000 | AA159: 572000 | AB159: 379000 | AC159: 366000 | AD159: 13000 | AE159: 324000 | AF159: 0.035 | AG159: 0.652 | AH159: 0.629
A160: Apr-Jun 2007 | B160: 1362000 | C160: 1133000 | D160: 823000 | E160: 794000 | F160: 29000 | G160: 539000 | H160: 0.035 | I160: 0.713 | J160: 0.688 | M160: Apr-Jun 2007 | N160: 659000 | O160: 560000 | P160: 451000 | Q160: 434000 | R160: 17000 | S160: 207000 | T160: 0.038 | U160: 0.788 | V160: 0.758 | Y160: Apr-Jun 2007 | Z160: 704000 | AA160: 573000 | AB160: 371000 | AC160: 360000 | AD160: 12000 | AE160: 332000 | AF160: 0.032 | AG160: 0.64 | AH160: 0.619
A161: May-Jul 2007 | B161: 1364000 | C161: 1134000 | D161: 821000 | E161: 794000 | F161: 27000 | G161: 543000 | H161: 0.033 | I161: 0.71 | J161: 0.687 | M161: May-Jul 2007 | N161: 659000 | O161: 560000 | P161: 451000 | Q161: 435000 | R161: 16000 | S161: 208000 | T161: 0.035 | U161: 0.788 | V161: 0.759 | Y161: May-Jul 2007 | Z161: 705000 | AA161: 574000 | AB161: 370000 | AC161: 358000 | AD161: 11000 | AE161: 335000 | AF161: 0.03 | AG161: 0.634 | AH161: 0.616
A162: Jun-Aug 2007 | B162: 1365000 | C162: 1135000 | D162: 814000 | E162: 784000 | F162: 30000 | G162: 551000 | H162: 0.037 | I162: 0.706 | J162: 0.68 | M162: Jun-Aug 2007 | N162: 660000 | O162: 561000 | P162: 447000 | Q162: 430000 | R162: 17000 | S162: 213000 | T162: 0.038 | U162: 0.782 | V162: 0.752 | Y162: Jun-Aug 2007 | Z162: 705000 | AA162: 574000 | AB162: 367000 | AC162: 354000 | AD162: 13000 | AE162: 338000 | AF162: 0.035 | AG162: 0.632 | AH162: 0.609
A163: Jul-Sep 2007 | B163: 1367000 | C163: 1136000 | D163: 822000 | E163: 789000 | F163: 33000 | G163: 544000 | H163: 0.04 | I163: 0.712 | J163: 0.683 | M163: Jul-Sep 2007 | N163: 661000 | O163: 561000 | P163: 448000 | Q163: 429000 | R163: 19000 | S163: 212000 | T163: 0.042 | U163: 0.782 | V163: 0.748 | Y163: Jul-Sep 2007 | Z163: 706000 | AA163: 575000 | AB163: 374000 | AC163: 359000 | AD163: 14000 | AE163: 332000 | AF163: 0.038 | AG163: 0.643 | AH163: 0.618
A164: Aug-Oct 2007 | B164: 1368000 | C164: 1137000 | D164: 820000 | E164: 786000 | F164: 35000 | G164: 547000 | H164: 0.042 | I164: 0.711 | J164: 0.68 | M164: Aug-Oct 2007 | N164: 661000 | O164: 561000 | P164: 447000 | Q164: 427000 | R164: 20000 | S164: 214000 | T164: 0.046 | U164: 0.781 | V164: 0.745 | Y164: Aug-Oct 2007 | Z164: 707000 | AA164: 575000 | AB164: 373000 | AC164: 359000 | AD164: 14000 | AE164: 333000 | AF164: 0.039 | AG164: 0.642 | AH164: 0.617
A165: Sep-Nov 2007 | B165: 1369000 | C165: 1137000 | D165: 823000 | E165: 787000 | F165: 37000 | G165: 546000 | H165: 0.045 | I165: 0.712 | J165: 0.68 | M165: Sep-Nov 2007 | N165: 662000 | O165: 562000 | P165: 450000 | Q165: 428000 | R165: 23000 | S165: 212000 | T165: 0.05 | U165: 0.786 | V165: 0.745 | Y165: Sep-Nov 2007 | Z165: 707000 | AA165: 576000 | AB165: 373000 | AC165: 359000 | AD165: 14000 | AE165: 334000 | AF165: 0.038 | AG165: 0.641 | AH165: 0.616
A166: Oct-Dec 2007 | B166: 1371000 | C166: 1138000 | D166: 822000 | E166: 788000 | F166: 34000 | G166: 549000 | H166: 0.041 | I166: 0.71 | J166: 0.68 | M166: Oct-Dec 2007 | N166: 663000 | O166: 562000 | P166: 450000 | Q166: 428000 | R166: 22000 | S166: 213000 | T166: 0.048 | U166: 0.784 | V166: 0.746 | Y166: Oct-Dec 2007 | Z166: 708000 | AA166: 576000 | AB166: 372000 | AC166: 360000 | AD166: 12000 | AE166: 336000 | AF166: 0.033 | AG166: 0.637 | AH166: 0.616
A167: Nov-Jan 2008 | B167: 1372000 | C167: 1139000 | D167: 826000 | E167: 792000 | F167: 35000 | G167: 546000 | H167: 0.042 | I167: 0.711 | J167: 0.681 | M167: Nov-Jan 2008 | N167: 663000 | O167: 563000 | P167: 453000 | Q167: 430000 | R167: 23000 | S167: 210000 | T167: 0.05 | U167: 0.787 | V167: 0.748 | Y167: Nov-Jan 2008 | Z167: 709000 | AA167: 577000 | AB167: 373000 | AC167: 361000 | AD167: 12000 | AE167: 335000 | AF167: 0.032 | AG167: 0.636 | AH167: 0.615
A168: Dec-Feb 2008 | B168: 1373000 | C168: 1140000 | D168: 832000 | E168: 798000 | F168: 34000 | G168: 542000 | H168: 0.041 | I168: 0.714 | J168: 0.684 | M168: Dec-Feb 2008 | N168: 664000 | O168: 563000 | P168: 455000 | Q168: 432000 | R168: 23000 | S168: 209000 | T168: 0.051 | U168: 0.789 | V168: 0.748 | Y168: Dec-Feb 2008 | Z168: 709000 | AA168: 577000 | AB168: 377000 | AC168: 366000 | AD168: 10000 | AE168: 333000 | AF168: 0.028 | AG168: 0.64 | AH168: 0.622
A169: Jan-Mar 2008 | B169: 1375000 | C169: 1141000 | D169: 833000 | E169: 796000 | F169: 38000 | G169: 541000 | H169: 0.045 | I169: 0.716 | J169: 0.683 | M169: Jan-Mar 2008 | N169: 665000 | O169: 564000 | P169: 455000 | Q169: 430000 | R169: 25000 | S169: 209000 | T169: 0.056 | U169: 0.791 | V169: 0.746 | Y169: Jan-Mar 2008 | Z169: 710000 | AA169: 577000 | AB169: 378000 | AC169: 366000 | AD169: 12000 | AE169: 332000 | AF169: 0.032 | AG169: 0.643 | AH169: 0.622
A170: Feb-Apr 2008 | B170: 1376000 | C170: 1142000 | D170: 835000 | E170: 802000 | F170: 33000 | G170: 541000 | H170: 0.04 | I170: 0.719 | J170: 0.69 | M170: Feb-Apr 2008 | N170: 665000 | O170: 564000 | P170: 455000 | Q170: 432000 | R170: 23000 | S170: 210000 | T170: 0.051 | U170: 0.792 | V170: 0.751 | Y170: Feb-Apr 2008 | Z170: 711000 | AA170: 578000 | AB170: 380000 | AC170: 370000 | AD170: 10000 | AE170: 331000 | AF170: 0.026 | AG170: 0.648 | AH170: 0.631
A171: Mar-May 2008 | B171: 1377000 | C171: 1143000 | D171: 838000 | E171: 804000 | F171: 33000 | G171: 540000 | H171: 0.04 | I171: 0.719 | J171: 0.69 | M171: Mar-May 2008 | N171: 666000 | O171: 564000 | P171: 457000 | Q171: 433000 | R171: 24000 | S171: 209000 | T171: 0.052 | U171: 0.793 | V171: 0.751 | Y171: Mar-May 2008 | Z171: 711000 | AA171: 578000 | AB171: 381000 | AC171: 372000 | AD171: 9000 | AE171: 330000 | AF171: 0.025 | AG171: 0.647 | AH171: 0.631
A172: Apr-Jun 2008 | B172: 1379000 | C172: 1144000 | D172: 831000 | E172: 799000 | F172: 32000 | G172: 548000 | H172: 0.038 | I172: 0.714 | J172: 0.686 | M172: Apr-Jun 2008 | N172: 667000 | O172: 565000 | P172: 456000 | Q172: 433000 | R172: 22000 | S172: 211000 | T172: 0.049 | U172: 0.791 | V172: 0.752 | Y172: Apr-Jun 2008 | Z172: 712000 | AA172: 579000 | AB172: 375000 | AC172: 366000 | AD172: 9000 | AE172: 337000 | AF172: 0.025 | AG172: 0.638 | AH172: 0.622
A173: May-Jul 2008 | B173: 1380000 | C173: 1145000 | D173: 832000 | E173: 797000 | F173: 35000 | G173: 548000 | H173: 0.042 | I173: 0.713 | J173: 0.683 | M173: May-Jul 2008 | N173: 668000 | O173: 565000 | P173: 456000 | Q173: 433000 | R173: 24000 | S173: 211000 | T173: 0.052 | U173: 0.79 | V173: 0.749 | Y173: May-Jul 2008 | Z173: 713000 | AA173: 579000 | AB173: 375000 | AC173: 364000 | AD173: 11000 | AE173: 337000 | AF173: 0.03 | AG173: 0.637 | AH173: 0.618
A174: Jun-Aug 2008 | B174: 1381000 | C174: 1145000 | D174: 834000 | E174: 799000 | F174: 35000 | G174: 548000 | H174: 0.042 | I174: 0.716 | J174: 0.685 | M174: Jun-Aug 2008 | N174: 668000 | O174: 566000 | P174: 455000 | Q174: 433000 | R174: 23000 | S174: 213000 | T174: 0.05 | U174: 0.789 | V174: 0.749 | Y174: Jun-Aug 2008 | Z174: 713000 | AA174: 580000 | AB174: 378000 | AC174: 366000 | AD174: 12000 | AE174: 335000 | AF174: 0.032 | AG174: 0.644 | AH174: 0.623
A175: Jul-Sep 2008 | B175: 1382000 | C175: 1146000 | D175: 831000 | E175: 796000 | F175: 35000 | G175: 551000 | H175: 0.043 | I175: 0.713 | J175: 0.683 | M175: Jul-Sep 2008 | N175: 669000 | O175: 566000 | P175: 452000 | Q175: 426000 | R175: 26000 | S175: 217000 | T175: 0.057 | U175: 0.783 | V175: 0.738 | Y175: Jul-Sep 2008 | Z175: 714000 | AA175: 580000 | AB175: 380000 | AC175: 370000 | AD175: 10000 | AE175: 334000 | AF175: 0.026 | AG175: 0.646 | AH175: 0.629
A176: Aug-Oct 2008 | B176: 1383000 | C176: 1146000 | D176: 829000 | E176: 792000 | F176: 37000 | G176: 554000 | H176: 0.045 | I176: 0.71 | J176: 0.678 | M176: Aug-Oct 2008 | N176: 669000 | O176: 566000 | P176: 454000 | Q176: 426000 | R176: 28000 | S176: 216000 | T176: 0.061 | U176: 0.785 | V176: 0.737 | Y176: Aug-Oct 2008 | Z176: 714000 | AA176: 580000 | AB176: 376000 | AC176: 366000 | AD176: 10000 | AE176: 338000 | AF176: 0.026 | AG176: 0.638 | AH176: 0.621
A177: Sep-Nov 2008 | B177: 1385000 | C177: 1147000 | D177: 824000 | E177: 788000 | F177: 36000 | G177: 561000 | H177: 0.044 | I177: 0.706 | J177: 0.675 | M177: Sep-Nov 2008 | N177: 670000 | O177: 567000 | P177: 452000 | Q177: 425000 | R177: 28000 | S177: 217000 | T177: 0.062 | U177: 0.783 | V177: 0.734 | Y177: Sep-Nov 2008 | Z177: 715000 | AA177: 580000 | AB177: 371000 | AC177: 363000 | AD177: 8000 | AE177: 343000 | AF177: 0.022 | AG177: 0.631 | AH177: 0.617
A178: Oct-Dec 2008 | B178: 1386000 | C178: 1148000 | D178: 822000 | E178: 779000 | F178: 42000 | G178: 564000 | H178: 0.051 | I178: 0.703 | J178: 0.667 | M178: Oct-Dec 2008 | N178: 670000 | O178: 567000 | P178: 450000 | Q178: 417000 | R178: 33000 | S178: 221000 | T178: 0.074 | U178: 0.777 | V178: 0.719 | Y178: Oct-Dec 2008 | Z178: 715000 | AA178: 581000 | AB178: 372000 | AC178: 363000 | AD178: 9000 | AE178: 343000 | AF178: 0.025 | AG178: 0.632 | AH178: 0.616
A179: Nov-Jan 2009 | B179: 1387000 | C179: 1148000 | D179: 818000 | E179: 772000 | F179: 46000 | G179: 569000 | H179: 0.056 | I179: 0.699 | J179: 0.659 | M179: Nov-Jan 2009 | N179: 671000 | O179: 567000 | P179: 447000 | Q179: 413000 | R179: 35000 | S179: 224000 | T179: 0.077 | U179: 0.772 | V179: 0.711 | Y179: Nov-Jan 2009 | Z179: 716000 | AA179: 581000 | AB179: 371000 | AC179: 359000 | AD179: 12000 | AE179: 345000 | AF179: 0.031 | AG179: 0.628 | AH179: 0.608
A180: Dec-Feb 2009 | B180: 1388000 | C180: 1149000 | D180: 813000 | E180: 765000 | F180: 47000 | G180: 575000 | H180: 0.058 | I180: 0.693 | J180: 0.652 | M180: Dec-Feb 2009 | N180: 672000 | O180: 568000 | P180: 442000 | Q180: 408000 | R180: 34000 | S180: 230000 | T180: 0.076 | U180: 0.761 | V180: 0.702 | Y180: Dec-Feb 2009 | Z180: 716000 | AA180: 581000 | AB180: 370000 | AC180: 357000 | AD180: 13000 | AE180: 346000 | AF180: 0.036 | AG180: 0.627 | AH180: 0.604
A181: Jan-Mar 2009 | B181: 1389000 | C181: 1150000 | D181: 814000 | E181: 763000 | F181: 51000 | G181: 575000 | H181: 0.062 | I181: 0.693 | J181: 0.649 | M181: Jan-Mar 2009 | N181: 672000 | O181: 568000 | P181: 443000 | Q181: 408000 | R181: 34000 | S181: 229000 | T181: 0.078 | U181: 0.761 | V181: 0.7 | Y181: Jan-Mar 2009 | Z181: 717000 | AA181: 582000 | AB181: 371000 | AC181: 355000 | AD181: 16000 | AE181: 346000 | AF181: 0.044 | AG181: 0.628 | AH181: 0.6
A182: Feb-Apr 2009 | B182: 1390000 | C182: 1150000 | D182: 809000 | E182: 759000 | F182: 50000 | G182: 581000 | H182: 0.062 | I182: 0.69 | J182: 0.646 | M182: Feb-Apr 2009 | N182: 673000 | O182: 568000 | P182: 440000 | Q182: 405000 | R182: 35000 | S182: 233000 | T182: 0.08 | U182: 0.756 | V182: 0.694 | Y182: Feb-Apr 2009 | Z182: 717000 | AA182: 582000 | AB182: 369000 | AC182: 354000 | AD182: 15000 | AE182: 348000 | AF182: 0.041 | AG182: 0.626 | AH182: 0.6
A183: Mar-May 2009 | B183: 1391000 | C183: 1151000 | D183: 800000 | E183: 750000 | F183: 50000 | G183: 591000 | H183: 0.062 | I183: 0.681 | J183: 0.638 | M183: Mar-May 2009 | N183: 673000 | O183: 568000 | P183: 436000 | Q183: 401000 | R183: 35000 | S183: 237000 | T183: 0.081 | U183: 0.748 | V183: 0.686 | Y183: Mar-May 2009 | Z183: 718000 | AA183: 582000 | AB183: 364000 | AC183: 349000 | AD183: 15000 | AE183: 354000 | AF183: 0.04 | AG183: 0.616 | AH183: 0.591
A184: Apr-Jun 2009 | B184: 1392000 | C184: 1151000 | D184: 804000 | E184: 752000 | F184: 52000 | G184: 588000 | H184: 0.064 | I184: 0.684 | J184: 0.639 | M184: Apr-Jun 2009 | N184: 674000 | O184: 569000 | P184: 439000 | Q184: 403000 | R184: 35000 | S184: 235000 | T184: 0.081 | U184: 0.752 | V184: 0.689 | Y184: Apr-Jun 2009 | Z184: 718000 | AA184: 583000 | AB184: 365000 | AC184: 349000 | AD184: 16000 | AE184: 353000 | AF184: 0.045 | AG184: 0.618 | AH184: 0.59
A185: May-Jul 2009 | B185: 1393000 | C185: 1152000 | D185: 809000 | E185: 756000 | F185: 52000 | G185: 585000 | H185: 0.065 | I185: 0.687 | J185: 0.641 | M185: May-Jul 2009 | N185: 674000 | O185: 569000 | P185: 442000 | Q185: 405000 | R185: 37000 | S185: 232000 | T185: 0.084 | U185: 0.755 | V185: 0.69 | Y185: May-Jul 2009 | Z185: 719000 | AA185: 583000 | AB185: 366000 | AC185: 351000 | AD185: 15000 | AE185: 353000 | AF185: 0.042 | AG185: 0.62 | AH185: 0.593
A186: Jun-Aug 2009 | B186: 1394000 | C186: 1152000 | D186: 813000 | E186: 757000 | F186: 56000 | G186: 581000 | H186: 0.069 | I186: 0.691 | J186: 0.642 | M186: Jun-Aug 2009 | N186: 675000 | O186: 569000 | P186: 446000 | Q186: 404000 | R186: 41000 | S186: 229000 | T186: 0.093 | U186: 0.762 | V186: 0.69 | Y186: Jun-Aug 2009 | Z186: 719000 | AA186: 583000 | AB186: 367000 | AC186: 353000 | AD186: 15000 | AE186: 352000 | AF186: 0.04 | AG186: 0.621 | AH186: 0.596
A187: Jul-Sep 2009 | B187: 1395000 | C187: 1153000 | D187: 820000 | E187: 761000 | F187: 59000 | G187: 576000 | H187: 0.072 | I187: 0.697 | J187: 0.646 | M187: Jul-Sep 2009 | N187: 676000 | O187: 570000 | P187: 447000 | Q187: 404000 | R187: 42000 | S187: 229000 | T187: 0.095 | U187: 0.764 | V187: 0.69 | Y187: Jul-Sep 2009 | Z187: 720000 | AA187: 583000 | AB187: 373000 | AC187: 357000 | AD187: 17000 | AE187: 347000 | AF187: 0.044 | AG187: 0.632 | AH187: 0.603
A188: Aug-Oct 2009 | B188: 1396000 | C188: 1153000 | D188: 823000 | E188: 768000 | F188: 54000 | G188: 574000 | H188: 0.066 | I188: 0.7 | J188: 0.653 | M188: Aug-Oct 2009 | N188: 676000 | O188: 570000 | P188: 448000 | Q188: 408000 | R188: 40000 | S188: 228000 | T188: 0.088 | U188: 0.766 | V188: 0.697 | Y188: Aug-Oct 2009 | Z188: 720000 | AA188: 584000 | AB188: 375000 | AC188: 360000 | AD188: 15000 | AE188: 345000 | AF188: 0.039 | AG188: 0.635 | AH188: 0.609
A189: Sep-Nov 2009 | B189: 1397000 | C189: 1154000 | D189: 829000 | E189: 773000 | F189: 56000 | G189: 568000 | H189: 0.067 | I189: 0.704 | J189: 0.656 | M189: Sep-Nov 2009 | N189: 676000 | O189: 570000 | P189: 451000 | Q189: 411000 | R189: 40000 | S189: 225000 | T189: 0.09 | U189: 0.771 | V189: 0.699 | Y189: Sep-Nov 2009 | Z189: 721000 | AA189: 584000 | AB189: 378000 | AC189: 362000 | AD189: 15000 | AE189: 343000 | AF189: 0.041 | AG189: 0.639 | AH189: 0.613
A190: Oct-Dec 2009 | B190: 1398000 | C190: 1154000 | D190: 822000 | E190: 773000 | F190: 48000 | G190: 577000 | H190: 0.059 | I190: 0.697 | J190: 0.655 | M190: Oct-Dec 2009 | N190: 677000 | O190: 570000 | P190: 448000 | Q190: 414000 | R190: 35000 | S190: 229000 | T190: 0.077 | U190: 0.765 | V190: 0.704 | Y190: Oct-Dec 2009 | Z190: 721000 | AA190: 584000 | AB190: 373000 | AC190: 359000 | AD190: 14000 | AE190: 348000 | AF190: 0.037 | AG190: 0.63 | AH190: 0.607
A191: Nov-Jan 2010 | B191: 1399000 | C191: 1154000 | D191: 826000 | E191: 775000 | F191: 51000 | G191: 573000 | H191: 0.062 | I191: 0.699 | J191: 0.654 | M191: Nov-Jan 2010 | N191: 677000 | O191: 570000 | P191: 449000 | Q191: 412000 | R191: 37000 | S191: 228000 | T191: 0.083 | U191: 0.763 | V191: 0.697 | Y191: Nov-Jan 2010 | Z191: 722000 | AA191: 584000 | AB191: 377000 | AC191: 363000 | AD191: 14000 | AE191: 345000 | AF191: 0.037 | AG191: 0.636 | AH191: 0.613
A192: Dec-Feb 2010 | B192: 1400000 | C192: 1155000 | D192: 836000 | E192: 782000 | F192: 53000 | G192: 565000 | H192: 0.064 | I192: 0.707 | J192: 0.661 | M192: Dec-Feb 2010 | N192: 678000 | O192: 571000 | P192: 453000 | Q192: 413000 | R192: 40000 | S192: 225000 | T192: 0.088 | U192: 0.77 | V192: 0.7 | Y192: Dec-Feb 2010 | Z192: 722000 | AA192: 584000 | AB192: 383000 | AC192: 369000 | AD192: 13000 | AE192: 339000 | AF192: 0.035 | AG192: 0.645 | AH192: 0.622
A193: Jan-Mar 2010 | B193: 1401000 | C193: 1155000 | D193: 839000 | E193: 781000 | F193: 58000 | G193: 563000 | H193: 0.069 | I193: 0.71 | J193: 0.66 | M193: Jan-Mar 2010 | N193: 678000 | O193: 571000 | P193: 458000 | Q193: 416000 | R193: 42000 | S193: 220000 | T193: 0.092 | U193: 0.78 | V193: 0.706 | Y193: Jan-Mar 2010 | Z193: 723000 | AA193: 585000 | AB193: 380000 | AC193: 364000 | AD193: 16000 | AE193: 343000 | AF193: 0.041 | AG193: 0.641 | AH193: 0.615
A194: Feb-Apr 2010 | B194: 1402000 | C194: 1156000 | D194: 840000 | E194: 782000 | F194: 59000 | G194: 562000 | H194: 0.07 | I194: 0.712 | J194: 0.662 | M194: Feb-Apr 2010 | N194: 679000 | O194: 571000 | P194: 462000 | Q194: 418000 | R194: 44000 | S194: 217000 | T194: 0.095 | U194: 0.788 | V194: 0.711 | Y194: Feb-Apr 2010 | Z194: 723000 | AA194: 585000 | AB194: 379000 | AC194: 364000 | AD194: 15000 | AE194: 345000 | AF194: 0.038 | AG194: 0.638 | AH194: 0.614
A195: Mar-May 2010 | B195: 1403000 | C195: 1156000 | D195: 838000 | E195: 779000 | F195: 59000 | G195: 565000 | H195: 0.07 | I195: 0.711 | J195: 0.66 | M195: Mar-May 2010 | N195: 679000 | O195: 571000 | P195: 457000 | Q195: 414000 | R195: 44000 | S195: 222000 | T195: 0.095 | U195: 0.781 | V195: 0.705 | Y195: Mar-May 2010 | Z195: 724000 | AA195: 585000 | AB195: 380000 | AC195: 365000 | AD195: 15000 | AE195: 343000 | AF195: 0.04 | AG195: 0.642 | AH195: 0.616
A196: Apr-Jun 2010 | B196: 1404000 | C196: 1157000 | D196: 836000 | E196: 781000 | F196: 55000 | G196: 568000 | H196: 0.066 | I196: 0.71 | J196: 0.662 | M196: Apr-Jun 2010 | N196: 680000 | O196: 571000 | P196: 459000 | Q196: 418000 | R196: 41000 | S196: 221000 | T196: 0.089 | U196: 0.782 | V196: 0.711 | Y196: Apr-Jun 2010 | Z196: 724000 | AA196: 585000 | AB196: 378000 | AC196: 363000 | AD196: 14000 | AE196: 346000 | AF196: 0.038 | AG196: 0.639 | AH196: 0.614
A197: May-Jul 2010 | B197: 1405000 | C197: 1157000 | D197: 843000 | E197: 786000 | F197: 57000 | G197: 562000 | H197: 0.067 | I197: 0.712 | J197: 0.663 | M197: May-Jul 2010 | N197: 680000 | O197: 571000 | P197: 462000 | Q197: 423000 | R197: 40000 | S197: 218000 | T197: 0.086 | U197: 0.785 | V197: 0.715 | Y197: May-Jul 2010 | Z197: 724000 | AA197: 585000 | AB197: 381000 | AC197: 364000 | AD197: 17000 | AE197: 344000 | AF197: 0.044 | AG197: 0.642 | AH197: 0.613
A198: Jun-Aug 2010 | B198: 1406000 | C198: 1157000 | D198: 844000 | E198: 785000 | F198: 59000 | G198: 561000 | H198: 0.07 | I198: 0.715 | J198: 0.664 | M198: Jun-Aug 2010 | N198: 681000 | O198: 572000 | P198: 462000 | Q198: 421000 | R198: 41000 | S198: 219000 | T198: 0.089 | U198: 0.788 | V198: 0.717 | Y198: Jun-Aug 2010 | Z198: 725000 | AA198: 586000 | AB198: 383000 | AC198: 365000 | AD198: 18000 | AE198: 342000 | AF198: 0.047 | AG198: 0.644 | AH198: 0.613
A199: Jul-Sep 2010 | B199: 1406000 | C199: 1157000 | D199: 844000 | E199: 785000 | F199: 59000 | G199: 562000 | H199: 0.07 | I199: 0.715 | J199: 0.663 | M199: Jul-Sep 2010 | N199: 681000 | O199: 572000 | P199: 460000 | Q199: 418000 | R199: 41000 | S199: 221000 | T199: 0.09 | U199: 0.785 | V199: 0.713 | Y199: Jul-Sep 2010 | Z199: 725000 | AA199: 586000 | AB199: 385000 | AC199: 367000 | AD199: 18000 | AE199: 340000 | AF199: 0.047 | AG199: 0.646 | AH199: 0.615
A200: Aug-Oct 2010 | B200: 1407000 | C200: 1158000 | D200: 842000 | E200: 778000 | F200: 64000 | G200: 565000 | H200: 0.076 | I200: 0.713 | J200: 0.658 | M200: Aug-Oct 2010 | N200: 682000 | O200: 572000 | P200: 459000 | Q200: 415000 | R200: 44000 | S200: 222000 | T200: 0.095 | U200: 0.784 | V200: 0.707 | Y200: Aug-Oct 2010 | Z200: 726000 | AA200: 586000 | AB200: 383000 | AC200: 363000 | AD200: 20000 | AE200: 343000 | AF200: 0.052 | AG200: 0.644 | AH200: 0.61
A201: Sep-Nov 2010 | B201: 1408000 | C201: 1158000 | D201: 839000 | E201: 773000 | F201: 66000 | G201: 569000 | H201: 0.078 | I201: 0.711 | J201: 0.654 | M201: Sep-Nov 2010 | N201: 682000 | O201: 572000 | P201: 462000 | Q201: 417000 | R201: 45000 | S201: 220000 | T201: 0.098 | U201: 0.787 | V201: 0.707 | Y201: Sep-Nov 2010 | Z201: 726000 | AA201: 586000 | AB201: 377000 | AC201: 356000 | AD201: 20000 | AE201: 349000 | AF201: 0.054 | AG201: 0.636 | AH201: 0.601
... 97 more rows

Sheet 2.2
A2: TABLE 2.2
M3: TABLE 2.2 | Y3: TABLE 2.2
A4: ECONOMIC ACTIVITY BY AGE - All Persons | M4: ECONOMIC ACTIVITY BY AGE - Males | Y4: ECONOMIC ACTIVITY BY AGE - Females
A5: 1 | M5: 1 | Y5: 1
A6: 2 | B6: 16+ | C6: 16-64 | D6: 16-17 | E6: 18-24 | F6: 25-49 | G6: 50+ | H6: 50-64 | I6: 65+ | M6: 2 | N6: 16+ | O6: 16-64 | P6: 16-17 | Q6: 18-24 | R6: 25-49 | S6: 50+ | T6: 50-64 | U6: 65+ | Y6: 2 | Z6: 16+ | AA6: 16-64 | AB6: 16-17 | AC6: 18-24 | AD6: 25-49 | AE6: 50+ | AF6: 50-64 | AG6: 65+
A7: 3 | B7: A | C7: B | D7: C | E7: D | F7: E | G7: F | H7: G | I7: H | M7: 3 | N7: A | O7: B | P7: C | Q7: D | R7: E | S7: F | T7: G | U7: H | Y7: 3 | Z7: A | AA7: B | AB7: C | AC7: D | AD7: E | AE7: F | AF7: G | AG7: H
A8: All PERSONS | M8: MEN | Y8: WOMEN
A9: Mar-May 1992 | B9: 702000 | C9: 690000 | D9: 18000 | E9: 125000 | F9: 422000 | G9: 136000 | H9: 124000 | I9: 12000 | M9: Mar-May 1992 | N9: 403000 | O9: 395000 | P9: 10000 | Q9: 67000 | R9: 243000 | S9: 82000 | T9: 74000 | U9: 8000 | Y9: Mar-May 1992 | Z9: 299000 | AA9: 295000 | AB9: * | AC9: 58000 | AD9: 179000 | AE9: 54000 | AF9: 50000 | AG9: *
A10: Mar-May 1993 | B10: 692000 | C10: 681000 | D10: 16000 | E10: 120000 | F10: 423000 | G10: 133000 | H10: 123000 | I10: 11000 | M10: Mar-May 1993 | N10: 407000 | O10: 399000 | P10: 10000 | Q10: 68000 | R10: 247000 | S10: 82000 | T10: 74000 | U10: * | Y10: Mar-May 1993 | Z10: 285000 | AA10: 282000 | AB10: * | AC10: 52000 | AD10: 176000 | AE10: 51000 | AF10: 49000 | AG10: *
A11: Mar-May 1994 | B11: 688000 | C11: 677000 | D11: 15000 | E11: 111000 | F11: 432000 | G11: 131000 | H11: 120000 | I11: 11000 | M11: Mar-May 1994 | N11: 400000 | O11: 392000 | P11: * | Q11: 64000 | R11: 247000 | S11: 81000 | T11: 73000 | U11: 8000 | Y11: Mar-May 1994 | Z11: 288000 | AA11: 285000 | AB11: * | AC11: 47000 | AD11: 185000 | AE11: 49000 | AF11: 47000 | AG11: *
A12: Nov-Jan 1995 | B12: - | C12: - | D12: - | E12: - | F12: - | G12: - | H12: - | I12: - | M12: Nov-Jan 1995 | N12: - | O12: - | P12: - | Q12: - | R12: - | S12: - | T12: - | U12: - | Y12: Nov-Jan 1995 | Z12: - | AA12: - | AB12: - | AC12: - | AD12: - | AE12: - | AF12: - | AG12: -
A13: Dec-Feb 1995 | B13: 692000 | C13: 679000 | D13: 15000 | E13: 115000 | F13: 434000 | G13: 129000 | H13: 116000 | I13: 13000 | M13: Dec-Feb 1995 | N13: 402000 | O13: 392000 | P13: 9000 | Q13: 65000 | R13: 246000 | S13: 82000 | T13: 72000 | U13: 10000 | Y13: Dec-Feb 1995 | Z13: 291000 | AA13: 287000 | AB13: * | AC13: 50000 | AD13: 187000 | AE13: 47000 | AF13: 44000 | AG13: *
A14: Jan-Mar 1995 | B14: 696000 | C14: 683000 | D14: 14000 | E14: 114000 | F14: 437000 | G14: 131000 | H14: 118000 | I14: 13000 | M14: Jan-Mar 1995 | N14: 402000 | O14: 393000 | P14: 9000 | Q14: 64000 | R14: 246000 | S14: 82000 | T14: 73000 | U14: 9000 | Y14: Jan-Mar 1995 | Z14: 294000 | AA14: 290000 | AB14: * | AC14: 50000 | AD14: 191000 | AE14: 49000 | AF14: 45000 | AG14: *
A15: Feb-Apr 1995 | B15: 705000 | C15: 691000 | D15: 15000 | E15: 113000 | F15: 440000 | G15: 138000 | H15: 123000 | I15: 14000 | M15: Feb-Apr 1995 | N15: 406000 | O15: 396000 | P15: 9000 | Q15: 64000 | R15: 247000 | S15: 85000 | T15: 75000 | U15: 10000 | Y15: Feb-Apr 1995 | Z15: 299000 | AA15: 295000 | AB15: * | AC15: 48000 | AD15: 193000 | AE15: 52000 | AF15: 48000 | AG15: *
A16: Mar-May 1995 | B16: 706000 | C16: 691000 | D16: 16000 | E16: 111000 | F16: 441000 | G16: 138000 | H16: 123000 | I16: 15000 | M16: Mar-May 1995 | N16: 404000 | O16: 394000 | P16: 9000 | Q16: 63000 | R16: 248000 | S16: 85000 | T16: 74000 | U16: 10000 | Y16: Mar-May 1995 | Z16: 301000 | AA16: 297000 | AB16: * | AC16: 48000 | AD16: 193000 | AE16: 53000 | AF16: 49000 | AG16: *
A17: Apr-Jun 1995 | B17: 704000 | C17: 690000 | D17: 17000 | E17: 109000 | F17: 441000 | G17: 138000 | H17: 123000 | I17: 14000 | M17: Apr-Jun 1995 | N17: 405000 | O17: 395000 | P17: 10000 | Q17: 63000 | R17: 248000 | S17: 85000 | T17: 74000 | U17: 11000 | Y17: Apr-Jun 1995 | Z17: 299000 | AA17: 295000 | AB17: * | AC17: 46000 | AD17: 193000 | AE17: 53000 | AF17: 49000 | AG17: *
A18: May-Jul 1995 | B18: 708000 | C18: 695000 | D18: 17000 | E18: 115000 | F18: 441000 | G18: 135000 | H18: 122000 | I18: 13000 | M18: May-Jul 1995 | N18: 404000 | O18: 396000 | P18: 9000 | Q18: 64000 | R18: 249000 | S18: 82000 | T18: 73000 | U18: 9000 | Y18: May-Jul 1995 | Z18: 304000 | AA18: 300000 | AB18: 8000 | AC18: 51000 | AD18: 192000 | AE18: 53000 | AF18: 49000 | AG18: *
A19: Jun-Aug 1995 | B19: 713000 | C19: 700000 | D19: 18000 | E19: 117000 | F19: 440000 | G19: 138000 | H19: 125000 | I19: 12000 | M19: Jun-Aug 1995 | N19: 408000 | O19: 399000 | P19: 10000 | Q19: 65000 | R19: 250000 | S19: 83000 | T19: 75000 | U19: 8000 | Y19: Jun-Aug 1995 | Z19: 305000 | AA19: 301000 | AB19: 8000 | AC19: 52000 | AD19: 191000 | AE19: 55000 | AF19: 51000 | AG19: *
A20: Jul-Sep 1995 | B20: 713000 | C20: 701000 | D20: 18000 | E20: 116000 | F20: 439000 | G20: 140000 | H20: 128000 | I20: 12000 | M20: Jul-Sep 1995 | N20: 404000 | O20: 396000 | P20: 10000 | Q20: 64000 | R20: 248000 | S20: 82000 | T20: 74000 | U20: 8000 | Y20: Jul-Sep 1995 | Z20: 308000 | AA20: 304000 | AB20: * | AC20: 52000 | AD20: 191000 | AE20: 58000 | AF20: 54000 | AG20: *
A21: Aug-Oct 1995 | B21: 722000 | C21: 709000 | D21: 18000 | E21: 119000 | F21: 444000 | G21: 140000 | H21: 127000 | I21: 13000 | M21: Aug-Oct 1995 | N21: 409000 | O21: 400000 | P21: 10000 | Q21: 66000 | R21: 248000 | S21: 84000 | T21: 75000 | U21: 9000 | Y21: Aug-Oct 1995 | Z21: 313000 | AA21: 309000 | AB21: * | AC21: 53000 | AD21: 196000 | AE21: 56000 | AF21: 52000 | AG21: *
A22: Sep-Nov 1995 | B22: 725000 | C22: 711000 | D22: 16000 | E22: 121000 | F22: 445000 | G22: 142000 | H22: 129000 | I22: 14000 | M22: Sep-Nov 1995 | N22: 410000 | O22: 401000 | P22: 10000 | Q22: 67000 | R22: 249000 | S22: 84000 | T22: 75000 | U22: 9000 | Y22: Sep-Nov 1995 | Z22: 315000 | AA22: 310000 | AB22: * | AC22: 54000 | AD22: 197000 | AE22: 58000 | AF22: 53000 | AG22: *
A23: Oct-Dec 1995 | B23: 729000 | C23: 715000 | D23: 16000 | E23: 121000 | F23: 450000 | G23: 143000 | H23: 129000 | I23: 14000 | M23: Oct-Dec 1995 | N23: 412000 | O23: 403000 | P23: 9000 | Q23: 66000 | R23: 250000 | S23: 86000 | T23: 77000 | U23: 9000 | Y23: Oct-Dec 1995 | Z23: 317000 | AA23: 312000 | AB23: * | AC23: 54000 | AD23: 199000 | AE23: 57000 | AF23: 52000 | AG23: *
A24: Nov-Jan 1996 | B24: 733000 | C24: 718000 | D24: 16000 | E24: 121000 | F24: 451000 | G24: 145000 | H24: 130000 | I24: 14000 | M24: Nov-Jan 1996 | N24: 413000 | O24: 403000 | P24: 9000 | Q24: 65000 | R24: 251000 | S24: 88000 | T24: 78000 | U24: 9000 | Y24: Nov-Jan 1996 | Z24: 320000 | AA24: 315000 | AB24: * | AC24: 56000 | AD24: 200000 | AE24: 57000 | AF24: 52000 | AG24: *
A25: Dec-Feb 1996 | B25: 729000 | C25: 714000 | D25: 16000 | E25: 119000 | F25: 452000 | G25: 142000 | H25: 127000 | I25: 15000 | M25: Dec-Feb 1996 | N25: 412000 | O25: 402000 | P25: 9000 | Q25: 64000 | R25: 253000 | S25: 86000 | T25: 76000 | U25: 10000 | Y25: Dec-Feb 1996 | Z25: 317000 | AA25: 312000 | AB25: * | AC25: 55000 | AD25: 200000 | AE25: 55000 | AF25: 50000 | AG25: *
A26: Jan-Mar 1996 | B26: 728000 | C26: 712000 | D26: 17000 | E26: 116000 | F26: 454000 | G26: 142000 | H26: 126000 | I26: 16000 | M26: Jan-Mar 1996 | N26: 416000 | O26: 405000 | P26: 9000 | Q26: 64000 | R26: 254000 | S26: 88000 | T26: 77000 | U26: 11000 | Y26: Jan-Mar 1996 | Z26: 312000 | AA26: 308000 | AB26: * | AC26: 51000 | AD26: 199000 | AE26: 54000 | AF26: 50000 | AG26: *
A27: Feb-Apr 1996 | B27: 722000 | C27: 708000 | D27: 15000 | E27: 115000 | F27: 453000 | G27: 139000 | H27: 125000 | I27: 14000 | M27: Feb-Apr 1996 | N27: 414000 | O27: 404000 | P27: 8000 | Q27: 65000 | R27: 255000 | S27: 86000 | T27: 76000 | U27: 10000 | Y27: Feb-Apr 1996 | Z27: 309000 | AA27: 305000 | AB27: * | AC27: 50000 | AD27: 199000 | AE27: 53000 | AF27: 49000 | AG27: *
A28: Mar-May 1996 | B28: 719000 | C28: 707000 | D28: 16000 | E28: 116000 | F28: 451000 | G28: 136000 | H28: 124000 | I28: 12000 | M28: Mar-May 1996 | N28: 411000 | O28: 402000 | P28: 8000 | Q28: 63000 | R28: 254000 | S28: 85000 | T28: 76000 | U28: 9000 | Y28: Mar-May 1996 | Z28: 308000 | AA28: 305000 | AB28: * | AC28: 53000 | AD28: 196000 | AE28: 51000 | AF28: 48000 | AG28: *
A29: Apr-Jun 1996 | B29: 719000 | C29: 707000 | D29: 15000 | E29: 117000 | F29: 453000 | G29: 134000 | H29: 122000 | I29: 12000 | M29: Apr-Jun 1996 | N29: 410000 | O29: 402000 | P29: * | Q29: 64000 | R29: 256000 | S29: 83000 | T29: 75000 | U29: 9000 | Y29: Apr-Jun 1996 | Z29: 309000 | AA29: 305000 | AB29: * | AC29: 53000 | AD29: 197000 | AE29: 51000 | AF29: 48000 | AG29: *
A30: May-Jul 1996 | B30: 724000 | C30: 712000 | D30: 17000 | E30: 115000 | F30: 453000 | G30: 139000 | H30: 126000 | I30: 12000 | M30: May-Jul 1996 | N30: 412000 | O30: 403000 | P30: 9000 | Q30: 63000 | R30: 256000 | S30: 84000 | T30: 75000 | U30: 9000 | Y30: May-Jul 1996 | Z30: 312000 | AA30: 309000 | AB30: 8000 | AC30: 52000 | AD30: 197000 | AE30: 54000 | AF30: 51000 | AG30: *
A31: Jun-Aug 1996 | B31: 731000 | C31: 719000 | D31: 18000 | E31: 118000 | F31: 457000 | G31: 138000 | H31: 126000 | I31: 12000 | M31: Jun-Aug 1996 | N31: 415000 | O31: 406000 | P31: 9000 | Q31: 65000 | R31: 258000 | S31: 83000 | T31: 74000 | U31: 9000 | Y31: Jun-Aug 1996 | Z31: 316000 | AA31: 313000 | AB31: 9000 | AC31: 54000 | AD31: 199000 | AE31: 55000 | AF31: 51000 | AG31: *
A32: Jul-Sep 1996 | B32: 733000 | C32: 720000 | D32: 19000 | E32: 116000 | F32: 456000 | G32: 141000 | H32: 128000 | I32: 13000 | M32: Jul-Sep 1996 | N32: 414000 | O32: 404000 | P32: 10000 | Q32: 63000 | R32: 257000 | S32: 84000 | T32: 75000 | U32: 9000 | Y32: Jul-Sep 1996 | Z32: 319000 | AA32: 315000 | AB32: 9000 | AC32: 54000 | AD32: 199000 | AE32: 57000 | AF32: 53000 | AG32: *
A33: Aug-Oct 1996 | B33: 732000 | C33: 718000 | D33: 20000 | E33: 115000 | F33: 455000 | G33: 142000 | H33: 128000 | I33: 14000 | M33: Aug-Oct 1996 | N33: 414000 | O33: 404000 | P33: 11000 | Q33: 61000 | R33: 258000 | S33: 84000 | T33: 74000 | U33: 10000 | Y33: Aug-Oct 1996 | Z33: 318000 | AA33: 314000 | AB33: 9000 | AC33: 54000 | AD33: 197000 | AE33: 58000 | AF33: 54000 | AG33: *
A34: Sep-Nov 1996 | B34: 729000 | C34: 715000 | D34: 19000 | E34: 111000 | F34: 457000 | G34: 142000 | H34: 127000 | I34: 14000 | M34: Sep-Nov 1996 | N34: 416000 | O34: 405000 | P34: 11000 | Q34: 61000 | R34: 259000 | S34: 85000 | T34: 75000 | U34: 11000 | Y34: Sep-Nov 1996 | Z34: 313000 | AA34: 309000 | AB34: 9000 | AC34: 49000 | AD34: 199000 | AE34: 56000 | AF34: 53000 | AG34: *
A35: Oct-Dec 1996 | B35: 730000 | C35: 715000 | D35: 21000 | E35: 110000 | F35: 458000 | G35: 142000 | H35: 126000 | I35: 15000 | M35: Oct-Dec 1996 | N35: 418000 | O35: 406000 | P35: 11000 | Q35: 61000 | R35: 260000 | S35: 86000 | T35: 75000 | U35: 11000 | Y35: Oct-Dec 1996 | Z35: 312000 | AA35: 308000 | AB35: 10000 | AC35: 49000 | AD35: 198000 | AE35: 56000 | AF35: 52000 | AG35: *
A36: Nov-Jan 1997 | B36: 733000 | C36: 719000 | D36: 22000 | E36: 110000 | F36: 458000 | G36: 144000 | H36: 129000 | I36: 14000 | M36: Nov-Jan 1997 | N36: 420000 | O36: 409000 | P36: 11000 | Q36: 60000 | R36: 261000 | S36: 88000 | T36: 77000 | U36: 11000 | Y36: Nov-Jan 1997 | Z36: 314000 | AA36: 310000 | AB36: 11000 | AC36: 50000 | AD36: 197000 | AE36: 56000 | AF36: 53000 | AG36: *
A37: Dec-Feb 1997 | B37: 734000 | C37: 721000 | D37: 21000 | E37: 111000 | F37: 460000 | G37: 143000 | H37: 130000 | I37: 13000 | M37: Dec-Feb 1997 | N37: 415000 | O37: 406000 | P37: 10000 | Q37: 59000 | R37: 259000 | S37: 87000 | T37: 77000 | U37: 10000 | Y37: Dec-Feb 1997 | Z37: 319000 | AA37: 315000 | AB37: 10000 | AC37: 52000 | AD37: 201000 | AE37: 56000 | AF37: 53000 | AG37: *
A38: Jan-Mar 1997 | B38: 733000 | C38: 721000 | D38: 19000 | E38: 110000 | F38: 460000 | G38: 143000 | H38: 131000 | I38: 13000 | M38: Jan-Mar 1997 | N38: 413000 | O38: 404000 | P38: 9000 | Q38: 59000 | R38: 259000 | S38: 86000 | T38: 77000 | U38: 9000 | Y38: Jan-Mar 1997 | Z38: 320000 | AA38: 317000 | AB38: 10000 | AC38: 52000 | AD38: 201000 | AE38: 58000 | AF38: 54000 | AG38: *
A39: Feb-Apr 1997 | B39: 733000 | C39: 721000 | D39: 18000 | E39: 110000 | F39: 464000 | G39: 142000 | H39: 130000 | I39: 12000 | M39: Feb-Apr 1997 | N39: 412000 | O39: 403000 | P39: 8000 | Q39: 59000 | R39: 259000 | S39: 85000 | T39: 77000 | U39: 8000 | Y39: Feb-Apr 1997 | Z39: 321000 | AA39: 317000 | AB39: 9000 | AC39: 51000 | AD39: 204000 | AE39: 57000 | AF39: 53000 | AG39: *
A40: Mar-May 1997 | B40: 731000 | C40: 719000 | D40: 18000 | E40: 107000 | F40: 462000 | G40: 144000 | H40: 132000 | I40: 12000 | M40: Mar-May 1997 | N40: 412000 | O40: 403000 | P40: 8000 | Q40: 58000 | R40: 258000 | S40: 88000 | T40: 79000 | U40: 9000 | Y40: Mar-May 1997 | Z40: 319000 | AA40: 316000 | AB40: 9000 | AC40: 49000 | AD40: 205000 | AE40: 56000 | AF40: 53000 | AG40: *
A41: Apr-Jun 1997 | B41: 740000 | C41: 728000 | D41: 19000 | E41: 110000 | F41: 463000 | G41: 148000 | H41: 136000 | I41: 12000 | M41: Apr-Jun 1997 | N41: 419000 | O41: 410000 | P41: 10000 | Q41: 59000 | R41: 260000 | S41: 91000 | T41: 81000 | U41: 9000 | Y41: Apr-Jun 1997 | Z41: 321000 | AA41: 318000 | AB41: 9000 | AC41: 51000 | AD41: 204000 | AE41: 57000 | AF41: 54000 | AG41: *
A42: May-Jul 1997 | B42: 744000 | C42: 732000 | D42: 20000 | E42: 114000 | F42: 463000 | G42: 147000 | H42: 135000 | I42: 12000 | M42: May-Jul 1997 | N42: 422000 | O42: 412000 | P42: 11000 | Q42: 61000 | R42: 258000 | S42: 91000 | T42: 82000 | U42: 9000 | Y42: May-Jul 1997 | Z42: 322000 | AA42: 320000 | AB42: 9000 | AC42: 52000 | AD42: 205000 | AE42: 56000 | AF42: 53000 | AG42: *
A43: Jun-Aug 1997 | B43: 753000 | C43: 739000 | D43: 21000 | E43: 118000 | F43: 465000 | G43: 149000 | H43: 135000 | I43: 14000 | M43: Jun-Aug 1997 | N43: 427000 | O43: 417000 | P43: 12000 | Q43: 63000 | R43: 258000 | S43: 93000 | T43: 83000 | U43: 11000 | Y43: Jun-Aug 1997 | Z43: 326000 | AA43: 323000 | AB43: 9000 | AC43: 55000 | AD43: 206000 | AE43: 55000 | AF43: 52000 | AG43: *
A44: Jul-Sep 1997 | B44: 756000 | C44: 743000 | D44: 21000 | E44: 123000 | F44: 465000 | G44: 147000 | H44: 135000 | I44: 12000 | M44: Jul-Sep 1997 | N44: 428000 | O44: 419000 | P44: 12000 | Q44: 66000 | R44: 258000 | S44: 92000 | T44: 83000 | U44: 9000 | Y44: Jul-Sep 1997 | Z44: 327000 | AA44: 324000 | AB44: 9000 | AC44: 56000 | AD44: 207000 | AE44: 55000 | AF44: 52000 | AG44: *
A45: Aug-Oct 1997 | B45: 758000 | C45: 745000 | D45: 22000 | E45: 123000 | F45: 464000 | G45: 149000 | H45: 136000 | I45: 13000 | M45: Aug-Oct 1997 | N45: 433000 | O45: 423000 | P45: 12000 | Q45: 67000 | R45: 260000 | S45: 93000 | T45: 83000 | U45: 10000 | Y45: Aug-Oct 1997 | Z45: 325000 | AA45: 322000 | AB45: 10000 | AC45: 55000 | AD45: 204000 | AE45: 56000 | AF45: 52000 | AG45: *
A46: Sep-Nov 1997 | B46: 760000 | C46: 747000 | D46: 24000 | E46: 124000 | F46: 465000 | G46: 147000 | H46: 134000 | I46: 13000 | M46: Sep-Nov 1997 | N46: 434000 | O46: 424000 | P46: 13000 | Q46: 69000 | R46: 261000 | S46: 91000 | T46: 81000 | U46: 9000 | Y46: Sep-Nov 1997 | Z46: 326000 | AA46: 323000 | AB46: 11000 | AC46: 55000 | AD46: 204000 | AE46: 56000 | AF46: 53000 | AG46: *
A47: Oct-Dec 1997 | B47: 758000 | C47: 745000 | D47: 23000 | E47: 124000 | F47: 465000 | G47: 146000 | H47: 133000 | I47: 13000 | M47: Oct-Dec 1997 | N47: 432000 | O47: 422000 | P47: 13000 | Q47: 69000 | R47: 260000 | S47: 90000 | T47: 80000 | U47: 10000 | Y47: Oct-Dec 1997 | Z47: 326000 | AA47: 323000 | AB47: 10000 | AC47: 55000 | AD47: 205000 | AE47: 56000 | AF47: 53000 | AG47: *
A48: Nov-Jan 1998 | B48: 754000 | C48: 741000 | D48: 21000 | E48: 124000 | F48: 466000 | G48: 143000 | H48: 129000 | I48: 14000 | M48: Nov-Jan 1998 | N48: 431000 | O48: 420000 | P48: 13000 | Q48: 68000 | R48: 260000 | S48: 90000 | T48: 79000 | U48: 11000 | Y48: Nov-Jan 1998 | Z48: 324000 | AA48: 321000 | AB48: 9000 | AC48: 56000 | AD48: 206000 | AE48: 53000 | AF48: 51000 | AG48: *
A49: Dec-Feb 1998 | B49: 748000 | C49: 734000 | D49: 20000 | E49: 122000 | F49: 463000 | G49: 143000 | H49: 129000 | I49: 13000 | M49: Dec-Feb 1998 | N49: 427000 | O49: 416000 | P49: 12000 | Q49: 67000 | R49: 259000 | S49: 90000 | T49: 79000 | U49: 11000 | Y49: Dec-Feb 1998 | Z49: 321000 | AA49: 318000 | AB49: * | AC49: 55000 | AD49: 205000 | AE49: 53000 | AF49: 51000 | AG49: *
A50: Jan-Mar 1998 | B50: 743000 | C50: 732000 | D50: 20000 | E50: 122000 | F50: 462000 | G50: 140000 | H50: 128000 | I50: 12000 | M50: Jan-Mar 1998 | N50: 426000 | O50: 416000 | P50: 12000 | Q50: 67000 | R50: 259000 | S50: 87000 | T50: 77000 | U50: 10000 | Y50: Jan-Mar 1998 | Z50: 318000 | AA50: 316000 | AB50: * | AC50: 55000 | AD50: 203000 | AE50: 53000 | AF50: 51000 | AG50: *
A51: Feb-Apr 1998 | B51: 737000 | C51: 726000 | D51: 19000 | E51: 120000 | F51: 461000 | G51: 137000 | H51: 127000 | I51: 10000 | M51: Feb-Apr 1998 | N51: 421000 | O51: 412000 | P51: 11000 | Q51: 66000 | R51: 258000 | S51: 85000 | T51: 76000 | U51: 9000 | Y51: Feb-Apr 1998 | Z51: 316000 | AA51: 315000 | AB51: * | AC51: 54000 | AD51: 203000 | AE51: 52000 | AF51: 51000 | AG51: *
A52: Mar-May 1998 | B52: 734000 | C52: 725000 | D52: 18000 | E52: 118000 | F52: 462000 | G52: 136000 | H52: 127000 | I52: 9000 | M52: Mar-May 1998 | N52: 418000 | O52: 411000 | P52: 11000 | Q52: 66000 | R52: 258000 | S52: 84000 | T52: 76000 | U52: * | Y52: Mar-May 1998 | Z52: 315000 | AA52: 314000 | AB52: * | AC52: 52000 | AD52: 204000 | AE52: 52000 | AF52: 51000 | AG52: *
A53: Apr-Jun 1998 | B53: 735000 | C53: 725000 | D53: 19000 | E53: 118000 | F53: 461000 | G53: 135000 | H53: 126000 | I53: 9000 | M53: Apr-Jun 1998 | N53: 420000 | O53: 412000 | P53: 12000 | Q53: 66000 | R53: 257000 | S53: 84000 | T53: 76000 | U53: * | Y53: Apr-Jun 1998 | Z53: 315000 | AA53: 314000 | AB53: * | AC53: 52000 | AD53: 204000 | AE53: 51000 | AF53: 50000 | AG53: *
A54: May-Jul 1998 | B54: 740000 | C54: 732000 | D54: 21000 | E54: 119000 | F54: 465000 | G54: 136000 | H54: 127000 | I54: 9000 | M54: May-Jul 1998 | N54: 419000 | O54: 411000 | P54: 12000 | Q54: 66000 | R54: 256000 | S54: 84000 | T54: 76000 | U54: * | Y54: May-Jul 1998 | Z54: 322000 | AA54: 321000 | AB54: 8000 | AC54: 53000 | AD54: 209000 | AE54: 51000 | AF54: 51000 | AG54: *
A55: Jun-Aug 1998 | B55: 742000 | C55: 733000 | D55: 23000 | E55: 122000 | F55: 462000 | G55: 136000 | H55: 127000 | I55: 9000 | M55: Jun-Aug 1998 | N55: 417000 | O55: 410000 | P55: 12000 | Q55: 67000 | R55: 256000 | S55: 83000 | T55: 75000 | U55: * | Y55: Jun-Aug 1998 | Z55: 325000 | AA55: 323000 | AB55: 11000 | AC55: 55000 | AD55: 206000 | AE55: 53000 | AF55: 51000 | AG55: *
A56: Jul-Sep 1998 | B56: 739000 | C56: 729000 | D56: 23000 | E56: 119000 | F56: 461000 | G56: 136000 | H56: 126000 | I56: 10000 | M56: Jul-Sep 1998 | N56: 415000 | O56: 408000 | P56: 11000 | Q56: 65000 | R56: 256000 | S56: 83000 | T56: 76000 | U56: * | Y56: Jul-Sep 1998 | Z56: 324000 | AA56: 321000 | AB56: 12000 | AC56: 54000 | AD56: 205000 | AE56: 52000 | AF56: 50000 | AG56: *
A57: Aug-Oct 1998 | B57: 737000 | C57: 727000 | D57: 20000 | E57: 116000 | F57: 464000 | G57: 136000 | H57: 126000 | I57: 10000 | M57: Aug-Oct 1998 | N57: 415000 | O57: 407000 | P57: 10000 | Q57: 63000 | R57: 258000 | S57: 84000 | T57: 76000 | U57: 8000 | Y57: Aug-Oct 1998 | Z57: 322000 | AA57: 320000 | AB57: 11000 | AC57: 53000 | AD57: 206000 | AE57: 53000 | AF57: 50000 | AG57: *
A58: Sep-Nov 1998 | B58: 742000 | C58: 730000 | D58: 19000 | E58: 114000 | F58: 469000 | G58: 140000 | H58: 129000 | I58: 11000 | M58: Sep-Nov 1998 | N58: 417000 | O58: 408000 | P58: 10000 | Q58: 62000 | R58: 260000 | S58: 85000 | T58: 77000 | U58: 9000 | Y58: Sep-Nov 1998 | Z58: 325000 | AA58: 322000 | AB58: 9000 | AC58: 52000 | AD58: 209000 | AE58: 55000 | AF58: 52000 | AG58: *
A59: Oct-Dec 1998 | B59: 744000 | C59: 732000 | D59: 19000 | E59: 115000 | F59: 470000 | G59: 140000 | H59: 128000 | I59: 12000 | M59: Oct-Dec 1998 | N59: 416000 | O59: 407000 | P59: 10000 | Q59: 62000 | R59: 260000 | S59: 85000 | T59: 75000 | U59: 9000 | Y59: Oct-Dec 1998 | Z59: 327000 | AA59: 325000 | AB59: 9000 | AC59: 53000 | AD59: 211000 | AE59: 55000 | AF59: 53000 | AG59: *
A60: Nov-Jan 1999 | B60: 747000 | C60: 734000 | D60: 19000 | E60: 113000 | F60: 473000 | G60: 142000 | H60: 129000 | I60: 13000 | M60: Nov-Jan 1999 | N60: 415000 | O60: 405000 | P60: 10000 | Q60: 61000 | R60: 259000 | S60: 85000 | T60: 76000 | U60: 10000 | Y60: Nov-Jan 1999 | Z60: 332000 | AA60: 329000 | AB60: 10000 | AC60: 52000 | AD60: 214000 | AE60: 57000 | AF60: 54000 | AG60: *
A61: Dec-Feb 1999 | B61: 747000 | C61: 733000 | D61: 19000 | E61: 109000 | F61: 474000 | G61: 145000 | H61: 131000 | I61: 14000 | M61: Dec-Feb 1999 | N61: 414000 | O61: 403000 | P61: 10000 | Q61: 59000 | R61: 259000 | S61: 86000 | T61: 75000 | U61: 11000 | Y61: Dec-Feb 1999 | Z61: 333000 | AA61: 330000 | AB61: 10000 | AC61: 50000 | AD61: 215000 | AE61: 59000 | AF61: 55000 | AG61: *
A62: Jan-Mar 1999 | B62: 741000 | C62: 727000 | D62: 18000 | E62: 107000 | F62: 471000 | G62: 145000 | H62: 131000 | I62: 14000 | M62: Jan-Mar 1999 | N62: 411000 | O62: 400000 | P62: 9000 | Q62: 58000 | R62: 258000 | S62: 86000 | T62: 75000 | U62: 11000 | Y62: Jan-Mar 1999 | Z62: 330000 | AA62: 327000 | AB62: 9000 | AC62: 49000 | AD62: 213000 | AE62: 59000 | AF62: 56000 | AG62: *
A63: Feb-Apr 1999 | B63: 743000 | C63: 728000 | D63: 17000 | E63: 109000 | F63: 470000 | G63: 147000 | H63: 133000 | I63: 15000 | M63: Feb-Apr 1999 | N63: 412000 | O63: 401000 | P63: 8000 | Q63: 59000 | R63: 257000 | S63: 88000 | T63: 77000 | U63: 11000 | Y63: Feb-Apr 1999 | Z63: 331000 | AA63: 327000 | AB63: 9000 | AC63: 49000 | AD63: 214000 | AE63: 59000 | AF63: 56000 | AG63: *
A64: Mar-May 1999 | B64: 740000 | C64: 727000 | D64: 17000 | E64: 108000 | F64: 468000 | G64: 148000 | H64: 135000 | I64: 13000 | M64: Mar-May 1999 | N64: 411000 | O64: 401000 | P64: * | Q64: 59000 | R64: 257000 | S64: 88000 | T64: 79000 | U64: 10000 | Y64: Mar-May 1999 | Z64: 329000 | AA64: 325000 | AB64: 9000 | AC64: 49000 | AD64: 211000 | AE64: 60000 | AF64: 56000 | AG64: *
A65: Apr-Jun 1999 | B65: 743000 | C65: 728000 | D65: 16000 | E65: 110000 | F65: 466000 | G65: 151000 | H65: 136000 | I65: 15000 | M65: Apr-Jun 1999 | N65: 415000 | O65: 404000 | P65: * | Q65: 60000 | R65: 257000 | S65: 91000 | T65: 79000 | U65: 11000 | Y65: Apr-Jun 1999 | Z65: 328000 | AA65: 324000 | AB65: 9000 | AC65: 50000 | AD65: 209000 | AE65: 60000 | AF65: 56000 | AG65: *
A66: May-Jul 1999 | B66: 748000 | C66: 733000 | D66: 18000 | E66: 111000 | F66: 467000 | G66: 151000 | H66: 136000 | I66: 15000 | M66: May-Jul 1999 | N66: 416000 | O66: 405000 | P66: 8000 | Q66: 59000 | R66: 257000 | S66: 91000 | T66: 80000 | U66: 11000 | Y66: May-Jul 1999 | Z66: 332000 | AA66: 328000 | AB66: 10000 | AC66: 52000 | AD66: 210000 | AE66: 60000 | AF66: 56000 | AG66: *
A67: Jun-Aug 1999 | B67: 751000 | C67: 736000 | D67: 17000 | E67: 116000 | F67: 468000 | G67: 150000 | H67: 135000 | I67: 15000 | M67: Jun-Aug 1999 | N67: 422000 | O67: 411000 | P67: * | Q67: 63000 | R67: 260000 | S67: 92000 | T67: 80000 | U67: 12000 | Y67: Jun-Aug 1999 | Z67: 329000 | AA67: 326000 | AB67: 10000 | AC67: 53000 | AD67: 208000 | AE67: 58000 | AF67: 55000 | AG67: *
A68: Jul-Sep 1999 | B68: 752000 | C68: 738000 | D68: 17000 | E68: 114000 | F68: 469000 | G68: 152000 | H68: 137000 | I68: 15000 | M68: Jul-Sep 1999 | N68: 424000 | O68: 412000 | P68: 8000 | Q68: 61000 | R68: 261000 | S68: 94000 | T68: 82000 | U68: 12000 | Y68: Jul-Sep 1999 | Z68: 328000 | AA68: 325000 | AB68: 9000 | AC68: 53000 | AD68: 208000 | AE68: 58000 | AF68: 55000 | AG68: *
A69: Aug-Oct 1999 | B69: 748000 | C69: 734000 | D69: 17000 | E69: 113000 | F69: 465000 | G69: 154000 | H69: 139000 | I69: 14000 | M69: Aug-Oct 1999 | N69: 421000 | O69: 410000 | P69: 9000 | Q69: 61000 | R69: 258000 | S69: 93000 | T69: 82000 | U69: 12000 | Y69: Aug-Oct 1999 | Z69: 327000 | AA69: 325000 | AB69: 8000 | AC69: 52000 | AD69: 207000 | AE69: 60000 | AF69: 58000 | AG69: *
A70: Sep-Nov 1999 | B70: 743000 | C70: 730000 | D70: 18000 | E70: 110000 | F70: 465000 | G70: 151000 | H70: 138000 | I70: 13000 | M70: Sep-Nov 1999 | N70: 415000 | O70: 405000 | P70: 9000 | Q70: 58000 | R70: 257000 | S70: 91000 | T70: 81000 | U70: 10000 | Y70: Sep-Nov 1999 | Z70: 328000 | AA70: 326000 | AB70: 9000 | AC70: 52000 | AD70: 208000 | AE70: 60000 | AF70: 57000 | AG70: *
A71: Oct-Dec 1999 | B71: 745000 | C71: 733000 | D71: 17000 | E71: 112000 | F71: 466000 | G71: 150000 | H71: 138000 | I71: 12000 | M71: Oct-Dec 1999 | N71: 415000 | O71: 406000 | P71: 9000 | Q71: 59000 | R71: 256000 | S71: 91000 | T71: 81000 | U71: 10000 | Y71: Oct-Dec 1999 | Z71: 329000 | AA71: 327000 | AB71: 8000 | AC71: 53000 | AD71: 209000 | AE71: 59000 | AF71: 56000 | AG71: *
A72: Nov-Jan 2000 | B72: 743000 | C72: 732000 | D72: 17000 | E72: 112000 | F72: 464000 | G72: 151000 | H72: 139000 | I72: 11000 | M72: Nov-Jan 2000 | N72: 415000 | O72: 407000 | P72: 9000 | Q72: 59000 | R72: 257000 | S72: 91000 | T72: 82000 | U72: 9000 | Y72: Nov-Jan 2000 | Z72: 328000 | AA72: 325000 | AB72: * | AC72: 53000 | AD72: 207000 | AE72: 60000 | AF72: 58000 | AG72: *
A73: Dec-Feb 2000 | B73: 739000 | C73: 728000 | D73: 15000 | E73: 110000 | F73: 464000 | G73: 150000 | H73: 140000 | I73: 11000 | M73: Dec-Feb 2000 | N73: 414000 | O73: 406000 | P73: 8000 | Q73: 58000 | R73: 257000 | S73: 90000 | T73: 82000 | U73: 8000 | Y73: Dec-Feb 2000 | Z73: 325000 | AA73: 323000 | AB73: * | AC73: 52000 | AD73: 206000 | AE73: 60000 | AF73: 57000 | AG73: *
A74: Jan-Mar 2000 | B74: 737000 | C74: 726000 | D74: 14000 | E74: 109000 | F74: 465000 | G74: 147000 | H74: 137000 | I74: 11000 | M74: Jan-Mar 2000 | N74: 412000 | O74: 404000 | P74: * | Q74: 58000 | R74: 258000 | S74: 88000 | T74: 80000 | U74: 8000 | Y74: Jan-Mar 2000 | Z74: 324000 | AA74: 322000 | AB74: * | AC74: 51000 | AD74: 207000 | AE74: 59000 | AF74: 57000 | AG74: *
A75: Feb-Apr 2000 | B75: 723000 | C75: 711000 | D75: 13000 | E75: 107000 | F75: 458000 | G75: 145000 | H75: 134000 | I75: 12000 | M75: Feb-Apr 2000 | N75: 411000 | O75: 401000 | P75: * | Q75: 58000 | R75: 257000 | S75: 88000 | T75: 78000 | U75: 10000 | Y75: Feb-Apr 2000 | Z75: 312000 | AA75: 310000 | AB75: * | AC75: 48000 | AD75: 201000 | AE75: 57000 | AF75: 55000 | AG75: *
A76: Mar-May 2000 | B76: 723000 | C76: 711000 | D76: 12000 | E76: 107000 | F76: 456000 | G76: 149000 | H76: 137000 | I76: 12000 | M76: Mar-May 2000 | N76: 410000 | O76: 400000 | P76: * | Q76: 58000 | R76: 257000 | S76: 88000 | T76: 78000 | U76: 10000 | Y76: Mar-May 2000 | Z76: 313000 | AA76: 311000 | AB76: * | AC76: 48000 | AD76: 199000 | AE76: 61000 | AF76: 59000 | AG76: *
A77: Apr-Jun 2000 | B77: 721000 | C77: 709000 | D77: 12000 | E77: 105000 | F77: 454000 | G77: 150000 | H77: 138000 | I77: 12000 | M77: Apr-Jun 2000 | N77: 407000 | O77: 396000 | P77: * | Q77: 58000 | R77: 254000 | S77: 88000 | T77: 78000 | U77: 10000 | Y77: Apr-Jun 2000 | Z77: 314000 | AA77: 313000 | AB77: * | AC77: 47000 | AD77: 201000 | AE77: 62000 | AF77: 61000 | AG77: *
A78: May-Jul 2000 | B78: 725000 | C78: 713000 | D78: 12000 | E78: 106000 | F78: 456000 | G78: 151000 | H78: 139000 | I78: 12000 | M78: May-Jul 2000 | N78: 409000 | O78: 398000 | P78: * | Q78: 58000 | R78: 255000 | S78: 89000 | T78: 79000 | U78: 10000 | Y78: May-Jul 2000 | Z78: 317000 | AA78: 315000 | AB78: * | AC78: 47000 | AD78: 202000 | AE78: 62000 | AF78: 60000 | AG78: *
A79: Jun-Aug 2000 | B79: 732000 | C79: 720000 | D79: 13000 | E79: 107000 | F79: 462000 | G79: 150000 | H79: 138000 | I79: 12000 | M79: Jun-Aug 2000 | N79: 412000 | O79: 402000 | P79: * | Q79: 59000 | R79: 256000 | S79: 90000 | T79: 79000 | U79: 11000 | Y79: Jun-Aug 2000 | Z79: 320000 | AA79: 318000 | AB79: * | AC79: 48000 | AD79: 206000 | AE79: 60000 | AF79: 59000 | AG79: *
A80: Jul-Sep 2000 | B80: 736000 | C80: 726000 | D80: 15000 | E80: 108000 | F80: 465000 | G80: 149000 | H80: 139000 | I80: 11000 | M80: Jul-Sep 2000 | N80: 412000 | O80: 403000 | P80: 8000 | Q80: 58000 | R80: 257000 | S80: 88000 | T80: 79000 | U80: 9000 | Y80: Jul-Sep 2000 | Z80: 325000 | AA80: 323000 | AB80: * | AC80: 49000 | AD80: 208000 | AE80: 61000 | AF80: 59000 | AG80: *
A81: Aug-Oct 2000 | B81: 739000 | C81: 728000 | D81: 15000 | E81: 104000 | F81: 470000 | G81: 150000 | H81: 138000 | I81: 11000 | M81: Aug-Oct 2000 | N81: 412000 | O81: 403000 | P81: * | Q81: 56000 | R81: 259000 | S81: 89000 | T81: 80000 | U81: 9000 | Y81: Aug-Oct 2000 | Z81: 328000 | AA81: 325000 | AB81: * | AC81: 48000 | AD81: 212000 | AE81: 60000 | AF81: 58000 | AG81: *
A82: Sep-Nov 2000 | B82: 744000 | C82: 733000 | D82: 17000 | E82: 106000 | F82: 470000 | G82: 151000 | H82: 140000 | I82: 11000 | M82: Sep-Nov 2000 | N82: 415000 | O82: 407000 | P82: 10000 | Q82: 58000 | R82: 258000 | S82: 89000 | T82: 81000 | U82: 8000 | Y82: Sep-Nov 2000 | Z82: 329000 | AA82: 326000 | AB82: * | AC82: 47000 | AD82: 212000 | AE82: 62000 | AF82: 60000 | AG82: *
A83: Oct-Dec 2000 | B83: 747000 | C83: 736000 | D83: 17000 | E83: 105000 | F83: 472000 | G83: 152000 | H83: 141000 | I83: 11000 | M83: Oct-Dec 2000 | N83: 417000 | O83: 408000 | P83: 10000 | Q83: 59000 | R83: 258000 | S83: 90000 | T83: 82000 | U83: 8000 | Y83: Oct-Dec 2000 | Z83: 330000 | AA83: 328000 | AB83: * | AC83: 47000 | AD83: 214000 | AE83: 62000 | AF83: 59000 | AG83: *
A84: Nov-Jan 2001 | B84: 751000 | C84: 739000 | D84: 19000 | E84: 107000 | F84: 473000 | G84: 152000 | H84: 140000 | I84: 12000 | M84: Nov-Jan 2001 | N84: 421000 | O84: 411000 | P84: 10000 | Q84: 60000 | R84: 260000 | S84: 91000 | T84: 81000 | U84: 10000 | Y84: Nov-Jan 2001 | Z84: 330000 | AA84: 328000 | AB84: 9000 | AC84: 47000 | AD84: 213000 | AE84: 61000 | AF84: 59000 | AG84: *
A85: Dec-Feb 2001 | B85: 742000 | C85: 730000 | D85: 17000 | E85: 105000 | F85: 470000 | G85: 150000 | H85: 138000 | I85: 12000 | M85: Dec-Feb 2001 | N85: 421000 | O85: 411000 | P85: 10000 | Q85: 61000 | R85: 260000 | S85: 91000 | T85: 81000 | U85: 10000 | Y85: Dec-Feb 2001 | Z85: 321000 | AA85: 319000 | AB85: * | AC85: 44000 | AD85: 210000 | AE85: 60000 | AF85: 57000 | AG85: *
A86: Jan-Mar 2001 | B86: 741000 | C86: 730000 | D86: 17000 | E86: 105000 | F86: 472000 | G86: 147000 | H86: 136000 | I86: 12000 | M86: Jan-Mar 2001 | N86: 422000 | O86: 413000 | P86: 11000 | Q86: 62000 | R86: 261000 | S86: 89000 | T86: 79000 | U86: 9000 | Y86: Jan-Mar 2001 | Z86: 319000 | AA86: 317000 | AB86: * | AC86: 44000 | AD86: 211000 | AE86: 59000 | AF86: 57000 | AG86: *
A87: Feb-Apr 2001 | B87: 742000 | C87: 731000 | D87: 16000 | E87: 108000 | F87: 471000 | G87: 147000 | H87: 136000 | I87: 11000 | M87: Feb-Apr 2001 | N87: 423000 | O87: 414000 | P87: 11000 | Q87: 63000 | R87: 261000 | S87: 88000 | T87: 79000 | U87: 9000 | Y87: Feb-Apr 2001 | Z87: 319000 | AA87: 317000 | AB87: * | AC87: 45000 | AD87: 211000 | AE87: 59000 | AF87: 57000 | AG87: *
A88: Mar-May 2001 | B88: 747000 | C88: 736000 | D88: 18000 | E88: 108000 | F88: 471000 | G88: 149000 | H88: 139000 | I88: 10000 | M88: Mar-May 2001 | N88: 422000 | O88: 414000 | P88: 12000 | Q88: 62000 | R88: 259000 | S88: 90000 | T88: 82000 | U88: 8000 | Y88: Mar-May 2001 | Z88: 324000 | AA88: 322000 | AB88: * | AC88: 47000 | AD88: 212000 | AE88: 59000 | AF88: 57000 | AG88: *
A89: Apr-Jun 2001 | B89: 746000 | C89: 736000 | D89: 17000 | E89: 110000 | F89: 471000 | G89: 149000 | H89: 139000 | I89: 10000 | M89: Apr-Jun 2001 | N89: 422000 | O89: 414000 | P89: 11000 | Q89: 61000 | R89: 261000 | S89: 89000 | T89: 82000 | U89: * | Y89: Apr-Jun 2001 | Z89: 324000 | AA89: 321000 | AB89: * | AC89: 48000 | AD89: 210000 | AE89: 59000 | AF89: 57000 | AG89: *
A90: May-Jul 2001 | B90: 759000 | C90: 750000 | D90: 18000 | E90: 115000 | F90: 473000 | G90: 153000 | H90: 143000 | I90: 9000 | M90: May-Jul 2001 | N90: 427000 | O90: 419000 | P90: 11000 | Q90: 63000 | R90: 262000 | S90: 90000 | T90: 83000 | U90: * | Y90: May-Jul 2001 | Z90: 333000 | AA90: 330000 | AB90: * | AC90: 52000 | AD90: 212000 | AE90: 62000 | AF90: 60000 | AG90: *
A91: Jun-Aug 2001 | B91: 765000 | C91: 755000 | D91: 16000 | E91: 118000 | F91: 480000 | G91: 151000 | H91: 141000 | I91: 10000 | M91: Jun-Aug 2001 | N91: 428000 | O91: 421000 | P91: 10000 | Q91: 65000 | R91: 262000 | S91: 91000 | T91: 83000 | U91: * | Y91: Jun-Aug 2001 | Z91: 337000 | AA91: 334000 | AB91: * | AC91: 53000 | AD91: 218000 | AE91: 60000 | AF91: 58000 | AG91: *
A92: Jul-Sep 2001 | B92: 767000 | C92: 757000 | D92: 16000 | E92: 117000 | F92: 482000 | G92: 152000 | H92: 142000 | I92: 10000 | M92: Jul-Sep 2001 | N92: 428000 | O92: 421000 | P92: 9000 | Q92: 64000 | R92: 263000 | S92: 91000 | T92: 84000 | U92: * | Y92: Jul-Sep 2001 | Z92: 339000 | AA92: 336000 | AB92: * | AC92: 53000 | AD92: 219000 | AE92: 60000 | AF92: 58000 | AG92: *
A93: Aug-Oct 2001 | B93: 759000 | C93: 750000 | D93: 16000 | E93: 113000 | F93: 480000 | G93: 150000 | H93: 140000 | I93: 9000 | M93: Aug-Oct 2001 | N93: 424000 | O93: 417000 | P93: 9000 | Q93: 63000 | R93: 263000 | S93: 90000 | T93: 83000 | U93: * | Y93: Aug-Oct 2001 | Z93: 335000 | AA93: 333000 | AB93: * | AC93: 51000 | AD93: 218000 | AE93: 60000 | AF93: 58000 | AG93: *
A94: Sep-Nov 2001 | B94: 753000 | C94: 744000 | D94: 17000 | E94: 112000 | F94: 476000 | G94: 148000 | H94: 139000 | I94: 9000 | M94: Sep-Nov 2001 | N94: 421000 | O94: 414000 | P94: 9000 | Q94: 59000 | R94: 264000 | S94: 89000 | T94: 81000 | U94: * | Y94: Sep-Nov 2001 | Z94: 332000 | AA94: 331000 | AB94: * | AC94: 53000 | AD94: 213000 | AE94: 60000 | AF94: 58000 | AG94: *
A95: Oct-Dec 2001 | B95: 750000 | C95: 741000 | D95: 16000 | E95: 111000 | F95: 473000 | G95: 150000 | H95: 140000 | I95: 10000 | M95: Oct-Dec 2001 | N95: 419000 | O95: 411000 | P95: 9000 | Q95: 59000 | R95: 261000 | S95: 90000 | T95: 82000 | U95: * | Y95: Oct-Dec 2001 | Z95: 332000 | AA95: 330000 | AB95: * | AC95: 52000 | AD95: 212000 | AE95: 60000 | AF95: 58000 | AG95: *
A96: Nov-Jan 2002 | B96: 745000 | C96: 734000 | D96: 16000 | E96: 107000 | F96: 473000 | G96: 149000 | H96: 138000 | I96: 11000 | M96: Nov-Jan 2002 | N96: 418000 | O96: 409000 | P96: 9000 | Q96: 59000 | R96: 261000 | S96: 90000 | T96: 81000 | U96: 9000 | Y96: Nov-Jan 2002 | Z96: 327000 | AA96: 325000 | AB96: * | AC96: 49000 | AD96: 212000 | AE96: 59000 | AF96: 57000 | AG96: *
A97: Dec-Feb 2002 | B97: 747000 | C97: 736000 | D97: 16000 | E97: 107000 | F97: 474000 | G97: 150000 | H97: 139000 | I97: 10000 | M97: Dec-Feb 2002 | N97: 417000 | O97: 409000 | P97: * | Q97: 59000 | R97: 260000 | S97: 90000 | T97: 82000 | U97: * | Y97: Dec-Feb 2002 | Z97: 329000 | AA97: 327000 | AB97: * | AC97: 48000 | AD97: 214000 | AE97: 60000 | AF97: 58000 | AG97: *
A98: Jan-Mar 2002 | B98: 751000 | C98: 741000 | D98: 15000 | E98: 108000 | F98: 474000 | G98: 154000 | H98: 144000 | I98: 11000 | M98: Jan-Mar 2002 | N98: 420000 | O98: 412000 | P98: * | Q98: 59000 | R98: 261000 | S98: 92000 | T98: 84000 | U98: * | Y98: Jan-Mar 2002 | Z98: 332000 | AA98: 329000 | AB98: * | AC98: 50000 | AD98: 213000 | AE98: 62000 | AF98: 59000 | AG98: *
A99: Feb-Apr 2002 | B99: 757000 | C99: 745000 | D99: 13000 | E99: 108000 | F99: 478000 | G99: 158000 | H99: 146000 | I99: 12000 | M99: Feb-Apr 2002 | N99: 421000 | O99: 412000 | P99: * | Q99: 58000 | R99: 261000 | S99: 94000 | T99: 85000 | U99: 9000 | Y99: Feb-Apr 2002 | Z99: 336000 | AA99: 334000 | AB99: * | AC99: 50000 | AD99: 216000 | AE99: 64000 | AF99: 61000 | AG99: *
A100: Mar-May 2002 | B100: 755000 | C100: 743000 | D100: 12000 | E100: 106000 | F100: 476000 | G100: 161000 | H100: 149000 | I100: 12000 | M100: Mar-May 2002 | N100: 418000 | O100: 408000 | P100: * | Q100: 58000 | R100: 259000 | S100: 95000 | T100: 85000 | U100: 10000 | Y100: Mar-May 2002 | Z100: 337000 | AA100: 335000 | AB100: * | AC100: 49000 | AD100: 217000 | AE100: 66000 | AF100: 64000 | AG100: *
A101: Apr-Jun 2002 | B101: 758000 | C101: 744000 | D101: 12000 | E101: 107000 | F101: 476000 | G101: 164000 | H101: 149000 | I101: 14000 | M101: Apr-Jun 2002 | N101: 422000 | O101: 411000 | P101: * | Q101: 59000 | R101: 260000 | S101: 96000 | T101: 85000 | U101: 11000 | Y101: Apr-Jun 2002 | Z101: 336000 | AA101: 333000 | AB101: * | AC101: 48000 | AD101: 215000 | AE101: 68000 | AF101: 65000 | AG101: *
A102: May-Jul 2002 | B102: 761000 | C102: 747000 | D102: 14000 | E102: 108000 | F102: 474000 | G102: 164000 | H102: 150000 | I102: 14000 | M102: May-Jul 2002 | N102: 421000 | O102: 410000 | P102: * | Q102: 60000 | R102: 259000 | S102: 95000 | T102: 84000 | U102: 11000 | Y102: May-Jul 2002 | Z102: 340000 | AA102: 337000 | AB102: * | AC102: 48000 | AD102: 215000 | AE102: 69000 | AF102: 66000 | AG102: *
A103: Jun-Aug 2002 | B103: 772000 | C103: 756000 | D103: 15000 | E103: 111000 | F103: 475000 | G103: 171000 | H103: 155000 | I103: 16000 | M103: Jun-Aug 2002 | N103: 430000 | O103: 418000 | P103: * | Q103: 63000 | R103: 260000 | S103: 100000 | T103: 88000 | U103: 12000 | Y103: Jun-Aug 2002 | Z103: 342000 | AA103: 338000 | AB103: * | AC103: 48000 | AD103: 216000 | AE103: 72000 | AF103: 68000 | AG103: *
A104: Jul-Sep 2002 | B104: 775000 | C104: 760000 | D104: 15000 | E104: 110000 | F104: 477000 | G104: 174000 | H104: 158000 | I104: 16000 | M104: Jul-Sep 2002 | N104: 432000 | O104: 420000 | P104: * | Q104: 63000 | R104: 260000 | S104: 102000 | T104: 90000 | U104: 12000 | Y104: Jul-Sep 2002 | Z104: 343000 | AA104: 340000 | AB104: * | AC104: 48000 | AD104: 216000 | AE104: 72000 | AF104: 68000 | AG104: *
A105: Aug-Oct 2002 | B105: 774000 | C105: 758000 | D105: 15000 | E105: 110000 | F105: 478000 | G105: 172000 | H105: 155000 | I105: 16000 | M105: Aug-Oct 2002 | N105: 433000 | O105: 420000 | P105: * | Q105: 62000 | R105: 261000 | S105: 102000 | T105: 89000 | U105: 13000 | Y105: Aug-Oct 2002 | Z105: 341000 | AA105: 338000 | AB105: * | AC105: 48000 | AD105: 216000 | AE105: 69000 | AF105: 66000 | AG105: *
A106: Sep-Nov 2002 | B106: 777000 | C106: 761000 | D106: 17000 | E106: 110000 | F106: 476000 | G106: 174000 | H106: 157000 | I106: 17000 | M106: Sep-Nov 2002 | N106: 437000 | O106: 424000 | P106: 10000 | Q106: 62000 | R106: 262000 | S106: 104000 | T106: 91000 | U106: 13000 | Y106: Sep-Nov 2002 | Z106: 340000 | AA106: 337000 | AB106: * | AC106: 48000 | AD106: 215000 | AE106: 70000 | AF106: 66000 | AG106: *
A107: Oct-Dec 2002 | B107: 780000 | C107: 765000 | D107: 19000 | E107: 113000 | F107: 474000 | G107: 174000 | H107: 159000 | I107: 15000 | M107: Oct-Dec 2002 | N107: 441000 | O107: 429000 | P107: 11000 | Q107: 65000 | R107: 261000 | S107: 104000 | T107: 92000 | U107: 12000 | Y107: Oct-Dec 2002 | Z107: 339000 | AA107: 336000 | AB107: 9000 | AC107: 48000 | AD107: 213000 | AE107: 70000 | AF107: 67000 | AG107: *
A108: Nov-Jan 2003 | B108: 785000 | C108: 770000 | D108: 21000 | E108: 113000 | F108: 474000 | G108: 177000 | H108: 162000 | I108: 15000 | M108: Nov-Jan 2003 | N108: 443000 | O108: 432000 | P108: 12000 | Q108: 65000 | R108: 260000 | S108: 106000 | T108: 95000 | U108: 11000 | Y108: Nov-Jan 2003 | Z108: 342000 | AA108: 338000 | AB108: 9000 | AC108: 48000 | AD108: 214000 | AE108: 71000 | AF108: 67000 | AG108: *
A109: Dec-Feb 2003 | B109: 789000 | C109: 773000 | D109: 21000 | E109: 117000 | F109: 475000 | G109: 176000 | H109: 160000 | I109: 16000 | M109: Dec-Feb 2003 | N109: 447000 | O109: 435000 | P109: 11000 | Q109: 68000 | R109: 262000 | S109: 106000 | T109: 94000 | U109: 11000 | Y109: Dec-Feb 2003 | Z109: 343000 | AA109: 338000 | AB109: 10000 | AC109: 49000 | AD109: 213000 | AE109: 70000 | AF109: 66000 | AG109: *
A110: Jan-Mar 2003 | B110: 796000 | C110: 780000 | D110: 21000 | E110: 120000 | F110: 482000 | G110: 173000 | H110: 158000 | I110: 15000 | M110: Jan-Mar 2003 | N110: 445000 | O110: 434000 | P110: 11000 | Q110: 68000 | R110: 263000 | S110: 102000 | T110: 91000 | U110: 11000 | Y110: Jan-Mar 2003 | Z110: 350000 | AA110: 346000 | AB110: 10000 | AC110: 52000 | AD110: 218000 | AE110: 71000 | AF110: 66000 | AG110: *
A111: Feb-Apr 2003 | B111: 794000 | C111: 780000 | D111: 18000 | E111: 121000 | F111: 480000 | G111: 174000 | H111: 160000 | I111: 14000 | M111: Feb-Apr 2003 | N111: 444000 | O111: 434000 | P111: 10000 | Q111: 68000 | R111: 263000 | S111: 103000 | T111: 93000 | U111: 10000 | Y111: Feb-Apr 2003 | Z111: 350000 | AA111: 346000 | AB111: 9000 | AC111: 53000 | AD111: 217000 | AE111: 71000 | AF111: 67000 | AG111: *
A112: Mar-May 2003 | B112: 787000 | C112: 772000 | D112: 16000 | E112: 121000 | F112: 474000 | G112: 175000 | H112: 160000 | I112: 14000 | M112: Mar-May 2003 | N112: 442000 | O112: 432000 | P112: 9000 | Q112: 68000 | R112: 262000 | S112: 103000 | T112: 93000 | U112: 11000 | Y112: Mar-May 2003 | Z112: 344000 | AA112: 341000 | AB112: * | AC112: 54000 | AD112: 212000 | AE112: 71000 | AF112: 68000 | AG112: *
A113: Apr-Jun 2003 | B113: 779000 | C113: 766000 | D113: 17000 | E113: 118000 | F113: 471000 | G113: 172000 | H113: 159000 | I113: 13000 | M113: Apr-Jun 2003 | N113: 436000 | O113: 426000 | P113: 9000 | Q113: 67000 | R113: 260000 | S113: 100000 | T113: 91000 | U113: 9000 | Y113: Apr-Jun 2003 | Z113: 343000 | AA113: 339000 | AB113: * | AC113: 52000 | AD113: 211000 | AE113: 72000 | AF113: 68000 | AG113: *
A114: May-Jul 2003 | B114: 778000 | C114: 766000 | D114: 19000 | E114: 120000 | F114: 471000 | G114: 169000 | H114: 157000 | I114: 12000 | M114: May-Jul 2003 | N114: 438000 | O114: 429000 | P114: 11000 | Q114: 66000 | R114: 262000 | S114: 99000 | T114: 91000 | U114: 9000 | Y114: May-Jul 2003 | Z114: 340000 | AA114: 336000 | AB114: * | AC114: 53000 | AD114: 209000 | AE114: 70000 | AF114: 66000 | AG114: *
A115: Jun-Aug 2003 | B115: 778000 | C115: 766000 | D115: 19000 | E115: 120000 | F115: 471000 | G115: 169000 | H115: 157000 | I115: 12000 | M115: Jun-Aug 2003 | N115: 439000 | O115: 430000 | P115: 10000 | Q115: 66000 | R115: 264000 | S115: 99000 | T115: 90000 | U115: 9000 | Y115: Jun-Aug 2003 | Z115: 340000 | AA115: 336000 | AB115: * | AC115: 54000 | AD115: 207000 | AE115: 71000 | AF115: 67000 | AG115: *
A116: Jul-Sep 2003 | B116: 782000 | C116: 770000 | D116: 17000 | E116: 119000 | F116: 474000 | G116: 173000 | H116: 161000 | I116: 12000 | M116: Jul-Sep 2003 | N116: 442000 | O116: 435000 | P116: 9000 | Q116: 67000 | R116: 266000 | S116: 100000 | T116: 92000 | U116: * | Y116: Jul-Sep 2003 | Z116: 340000 | AA116: 336000 | AB116: * | AC116: 52000 | AD116: 208000 | AE116: 73000 | AF116: 69000 | AG116: *
A117: Aug-Oct 2003 | B117: 775000 | C117: 764000 | D117: 17000 | E117: 117000 | F117: 471000 | G117: 171000 | H117: 160000 | I117: 11000 | M117: Aug-Oct 2003 | N117: 441000 | O117: 433000 | P117: 10000 | Q117: 66000 | R117: 265000 | S117: 99000 | T117: 92000 | U117: * | Y117: Aug-Oct 2003 | Z117: 335000 | AA117: 331000 | AB117: * | AC117: 50000 | AD117: 206000 | AE117: 71000 | AF117: 68000 | AG117: *
A118: Sep-Nov 2003 | B118: 772000 | C118: 762000 | D118: 19000 | E118: 115000 | F118: 467000 | G118: 171000 | H118: 161000 | I118: 10000 | M118: Sep-Nov 2003 | N118: 438000 | O118: 431000 | P118: 11000 | Q118: 66000 | R118: 262000 | S118: 99000 | T118: 92000 | U118: * | Y118: Sep-Nov 2003 | Z118: 334000 | AA118: 331000 | AB118: * | AC118: 50000 | AD118: 205000 | AE118: 72000 | AF118: 69000 | AG118: *
A119: Oct-Dec 2003 | B119: 769000 | C119: 758000 | D119: 17000 | E119: 115000 | F119: 466000 | G119: 171000 | H119: 159000 | I119: 11000 | M119: Oct-Dec 2003 | N119: 438000 | O119: 430000 | P119: 10000 | Q119: 65000 | R119: 262000 | S119: 101000 | T119: 93000 | U119: * | Y119: Oct-Dec 2003 | Z119: 331000 | AA119: 328000 | AB119: * | AC119: 50000 | AD119: 204000 | AE119: 70000 | AF119: 66000 | AG119: *
A120: Nov-Jan 2004 | B120: 771000 | C120: 760000 | D120: 15000 | E120: 117000 | F120: 466000 | G120: 174000 | H120: 162000 | I120: 12000 | M120: Nov-Jan 2004 | N120: 437000 | O120: 429000 | P120: 9000 | Q120: 66000 | R120: 261000 | S120: 101000 | T120: 93000 | U120: * | Y120: Nov-Jan 2004 | Z120: 334000 | AA120: 331000 | AB120: * | AC120: 51000 | AD120: 205000 | AE120: 72000 | AF120: 69000 | AG120: *
A121: Dec-Feb 2004 | B121: 775000 | C121: 763000 | D121: 14000 | E121: 116000 | F121: 470000 | G121: 174000 | H121: 162000 | I121: 12000 | M121: Dec-Feb 2004 | N121: 436000 | O121: 427000 | P121: * | Q121: 64000 | R121: 262000 | S121: 101000 | T121: 93000 | U121: 9000 | Y121: Dec-Feb 2004 | Z121: 339000 | AA121: 336000 | AB121: * | AC121: 52000 | AD121: 208000 | AE121: 73000 | AF121: 70000 | AG121: *
A122: Jan-Mar 2004 | B122: 765000 | C122: 753000 | D122: 14000 | E122: 116000 | F122: 466000 | G122: 169000 | H122: 157000 | I122: 12000 | M122: Jan-Mar 2004 | N122: 427000 | O122: 417000 | P122: * | Q122: 62000 | R122: 257000 | S122: 100000 | T122: 90000 | U122: 10000 | Y122: Jan-Mar 2004 | Z122: 338000 | AA122: 335000 | AB122: * | AC122: 53000 | AD122: 209000 | AE122: 69000 | AF122: 67000 | AG122: *
A123: Feb-Apr 2004 | B123: 763000 | C123: 752000 | D123: 14000 | E123: 115000 | F123: 465000 | G123: 169000 | H123: 158000 | I123: 11000 | M123: Feb-Apr 2004 | N123: 424000 | O123: 416000 | P123: * | Q123: 63000 | R123: 255000 | S123: 99000 | T123: 90000 | U123: 9000 | Y123: Feb-Apr 2004 | Z123: 338000 | AA123: 336000 | AB123: * | AC123: 52000 | AD123: 211000 | AE123: 70000 | AF123: 68000 | AG123: *
A124: Mar-May 2004 | B124: 753000 | C124: 745000 | D124: 12000 | E124: 111000 | F124: 467000 | G124: 164000 | H124: 156000 | I124: * | M124: Mar-May 2004 | N124: 418000 | O124: 411000 | P124: * | Q124: 59000 | R124: 255000 | S124: 98000 | T124: 91000 | U124: * | Y124: Mar-May 2004 | Z124: 336000 | AA124: 334000 | AB124: * | AC124: 52000 | AD124: 212000 | AE124: 66000 | AF124: 64000 | AG124: *
A125: Apr-Jun 2004 | B125: 757000 | C125: 748000 | D125: 13000 | E125: 111000 | F125: 466000 | G125: 166000 | H125: 157000 | I125: 9000 | M125: Apr-Jun 2004 | N125: 422000 | O125: 415000 | P125: * | Q125: 60000 | R125: 254000 | S125: 101000 | T125: 94000 | U125: * | Y125: Apr-Jun 2004 | Z125: 335000 | AA125: 333000 | AB125: * | AC125: 51000 | AD125: 212000 | AE125: 65000 | AF125: 64000 | AG125: *
A126: May-Jul 2004 | B126: 762000 | C126: 753000 | D126: 13000 | E126: 112000 | F126: 471000 | G126: 165000 | H126: 157000 | I126: 9000 | M126: May-Jul 2004 | N126: 426000 | O126: 419000 | P126: * | Q126: 61000 | R126: 257000 | S126: 102000 | T126: 94000 | U126: * | Y126: May-Jul 2004 | Z126: 336000 | AA126: 334000 | AB126: * | AC126: 51000 | AD126: 214000 | AE126: 64000 | AF126: 62000 | AG126: *
A127: Jun-Aug 2004 | B127: 765000 | C127: 756000 | D127: 13000 | E127: 115000 | F127: 470000 | G127: 167000 | H127: 157000 | I127: 9000 | M127: Jun-Aug 2004 | N127: 429000 | O127: 422000 | P127: * | Q127: 63000 | R127: 256000 | S127: 103000 | T127: 95000 | U127: * | Y127: Jun-Aug 2004 | Z127: 336000 | AA127: 334000 | AB127: * | AC127: 52000 | AD127: 214000 | AE127: 64000 | AF127: 62000 | AG127: *
A128: Jul-Sep 2004 | B128: 770000 | C128: 760000 | D128: 16000 | E128: 116000 | F128: 472000 | G128: 166000 | H128: 156000 | I128: 9000 | M128: Jul-Sep 2004 | N128: 432000 | O128: 425000 | P128: 10000 | Q128: 64000 | R128: 257000 | S128: 103000 | T128: 95000 | U128: * | Y128: Jul-Sep 2004 | Z128: 337000 | AA128: 335000 | AB128: * | AC128: 52000 | AD128: 216000 | AE128: 63000 | AF128: 61000 | AG128: *
A129: Aug-Oct 2004 | B129: 776000 | C129: 766000 | D129: 15000 | E129: 115000 | F129: 477000 | G129: 168000 | H129: 158000 | I129: 10000 | M129: Aug-Oct 2004 | N129: 432000 | O129: 424000 | P129: 10000 | Q129: 62000 | R129: 258000 | S129: 103000 | T129: 95000 | U129: * | Y129: Aug-Oct 2004 | Z129: 344000 | AA129: 341000 | AB129: * | AC129: 54000 | AD129: 219000 | AE129: 66000 | AF129: 63000 | AG129: *
A130: Sep-Nov 2004 | B130: 782000 | C130: 772000 | D130: 17000 | E130: 115000 | F130: 482000 | G130: 168000 | H130: 158000 | I130: 10000 | M130: Sep-Nov 2004 | N130: 437000 | O130: 429000 | P130: 10000 | Q130: 64000 | R130: 260000 | S130: 104000 | T130: 96000 | U130: * | Y130: Sep-Nov 2004 | Z130: 345000 | AA130: 343000 | AB130: * | AC130: 52000 | AD130: 223000 | AE130: 64000 | AF130: 62000 | AG130: *
A131: Oct-Dec 2004 | B131: 789000 | C131: 778000 | D131: 17000 | E131: 116000 | F131: 488000 | G131: 169000 | H131: 158000 | I131: 11000 | M131: Oct-Dec 2004 | N131: 439000 | O131: 431000 | P131: 9000 | Q131: 63000 | R131: 262000 | S131: 105000 | T131: 96000 | U131: * | Y131: Oct-Dec 2004 | Z131: 350000 | AA131: 348000 | AB131: * | AC131: 53000 | AD131: 226000 | AE131: 64000 | AF131: 62000 | AG131: *
A132: Nov-Jan 2005 | B132: 784000 | C132: 772000 | D132: 18000 | E132: 112000 | F132: 483000 | G132: 172000 | H132: 159000 | I132: 13000 | M132: Nov-Jan 2005 | N132: 438000 | O132: 428000 | P132: 10000 | Q132: 59000 | R132: 262000 | S132: 107000 | T132: 97000 | U132: 10000 | Y132: Nov-Jan 2005 | Z132: 347000 | AA132: 344000 | AB132: * | AC132: 52000 | AD132: 222000 | AE132: 65000 | AF132: 62000 | AG132: *
A133: Dec-Feb 2005 | B133: 788000 | C133: 775000 | D133: 17000 | E133: 111000 | F133: 487000 | G133: 173000 | H133: 160000 | I133: 13000 | M133: Dec-Feb 2005 | N133: 436000 | O133: 427000 | P133: 10000 | Q133: 59000 | R133: 260000 | S133: 107000 | T133: 98000 | U133: 9000 | Y133: Dec-Feb 2005 | Z133: 352000 | AA133: 349000 | AB133: * | AC133: 52000 | AD133: 227000 | AE133: 66000 | AF133: 62000 | AG133: *
A134: Jan-Mar 2005 | B134: 790000 | C134: 777000 | D134: 16000 | E134: 110000 | F134: 489000 | G134: 175000 | H134: 162000 | I134: 13000 | M134: Jan-Mar 2005 | N134: 438000 | O134: 429000 | P134: 10000 | Q134: 59000 | R134: 262000 | S134: 107000 | T134: 98000 | U134: 9000 | Y134: Jan-Mar 2005 | Z134: 353000 | AA134: 348000 | AB134: * | AC134: 51000 | AD134: 227000 | AE134: 69000 | AF134: 64000 | AG134: *
A135: Feb-Apr 2005 | B135: 784000 | C135: 771000 | D135: 15000 | E135: 108000 | F135: 491000 | G135: 171000 | H135: 158000 | I135: 13000 | M135: Feb-Apr 2005 | N135: 434000 | O135: 426000 | P135: 9000 | Q135: 59000 | R135: 262000 | S135: 104000 | T135: 96000 | U135: 9000 | Y135: Feb-Apr 2005 | Z135: 350000 | AA135: 345000 | AB135: * | AC135: 48000 | AD135: 229000 | AE135: 66000 | AF135: 62000 | AG135: *
A136: Mar-May 2005 | B136: 783000 | C136: 770000 | D136: 16000 | E136: 108000 | F136: 490000 | G136: 170000 | H136: 157000 | I136: 13000 | M136: Mar-May 2005 | N136: 434000 | O136: 425000 | P136: 9000 | Q136: 60000 | R136: 262000 | S136: 103000 | T136: 95000 | U136: 9000 | Y136: Mar-May 2005 | Z136: 349000 | AA136: 345000 | AB136: * | AC136: 48000 | AD136: 228000 | AE136: 67000 | AF136: 62000 | AG136: *
A137: Apr-Jun 2005 | B137: 788000 | C137: 775000 | D137: 15000 | E137: 112000 | F137: 490000 | G137: 171000 | H137: 158000 | I137: 13000 | M137: Apr-Jun 2005 | N137: 430000 | O137: 422000 | P137: 9000 | Q137: 60000 | R137: 260000 | S137: 101000 | T137: 93000 | U137: * | Y137: Apr-Jun 2005 | Z137: 358000 | AA137: 353000 | AB137: * | AC137: 52000 | AD137: 231000 | AE137: 70000 | AF137: 65000 | AG137: *
A138: May-Jul 2005 | B138: 802000 | C138: 787000 | D138: 15000 | E138: 119000 | F138: 494000 | G138: 173000 | H138: 159000 | I138: 14000 | M138: May-Jul 2005 | N138: 440000 | O138: 430000 | P138: 9000 | Q138: 64000 | R138: 262000 | S138: 104000 | T138: 95000 | U138: 9000 | Y138: May-Jul 2005 | Z138: 362000 | AA138: 357000 | AB138: * | AC138: 55000 | AD138: 232000 | AE138: 69000 | AF138: 64000 | AG138: *
A139: Jun-Aug 2005 | B139: 806000 | C139: 792000 | D139: 13000 | E139: 123000 | F139: 496000 | G139: 174000 | H139: 160000 | I139: 14000 | M139: Jun-Aug 2005 | N139: 441000 | O139: 432000 | P139: * | Q139: 66000 | R139: 264000 | S139: 103000 | T139: 94000 | U139: 9000 | Y139: Jun-Aug 2005 | Z139: 365000 | AA139: 360000 | AB139: * | AC139: 58000 | AD139: 232000 | AE139: 71000 | AF139: 66000 | AG139: *
A140: Jul-Sep 2005 | B140: 810000 | C140: 795000 | D140: 14000 | E140: 122000 | F140: 498000 | G140: 174000 | H140: 160000 | I140: 14000 | M140: Jul-Sep 2005 | N140: 446000 | O140: 436000 | P140: * | Q140: 66000 | R140: 267000 | S140: 105000 | T140: 95000 | U140: 10000 | Y140: Jul-Sep 2005 | Z140: 364000 | AA140: 360000 | AB140: * | AC140: 57000 | AD140: 231000 | AE140: 70000 | AF140: 66000 | AG140: *
A141: Aug-Oct 2005 | B141: 801000 | C141: 787000 | D141: 14000 | E141: 122000 | F141: 494000 | G141: 171000 | H141: 157000 | I141: 14000 | M141: Aug-Oct 2005 | N141: 442000 | O141: 432000 | P141: * | Q141: 65000 | R141: 266000 | S141: 103000 | T141: 92000 | U141: 11000 | Y141: Aug-Oct 2005 | Z141: 359000 | AA141: 355000 | AB141: * | AC141: 56000 | AD141: 228000 | AE141: 68000 | AF141: 65000 | AG141: *
A142: Sep-Nov 2005 | B142: 802000 | C142: 788000 | D142: 14000 | E142: 123000 | F142: 492000 | G142: 173000 | H142: 158000 | I142: 15000 | M142: Sep-Nov 2005 | N142: 445000 | O142: 434000 | P142: * | Q142: 67000 | R142: 265000 | S142: 105000 | T142: 94000 | U142: 11000 | Y142: Sep-Nov 2005 | Z142: 357000 | AA142: 354000 | AB142: * | AC142: 57000 | AD142: 228000 | AE142: 67000 | AF142: 64000 | AG142: *
A143: Oct-Dec 2005 | B143: 797000 | C143: 782000 | D143: 13000 | E143: 124000 | F143: 486000 | G143: 173000 | H143: 158000 | I143: 15000 | M143: Oct-Dec 2005 | N143: 444000 | O143: 433000 | P143: 9000 | Q143: 67000 | R143: 263000 | S143: 105000 | T143: 94000 | U143: 11000 | Y143: Oct-Dec 2005 | Z143: 353000 | AA143: 349000 | AB143: * | AC143: 56000 | AD143: 223000 | AE143: 68000 | AF143: 64000 | AG143: *
A144: Nov-Jan 2006 | B144: 801000 | C144: 785000 | D144: 12000 | E144: 124000 | F144: 490000 | G144: 176000 | H144: 159000 | I144: 16000 | M144: Nov-Jan 2006 | N144: 443000 | O144: 432000 | P144: * | Q144: 68000 | R144: 264000 | S144: 103000 | T144: 93000 | U144: 10000 | Y144: Nov-Jan 2006 | Z144: 358000 | AA144: 353000 | AB144: * | AC144: 56000 | AD144: 226000 | AE144: 72000 | AF144: 66000 | AG144: *
A145: Dec-Feb 2006 | B145: 807000 | C145: 791000 | D145: 11000 | E145: 123000 | F145: 496000 | G145: 178000 | H145: 161000 | I145: 17000 | M145: Dec-Feb 2006 | N145: 446000 | O145: 435000 | P145: * | Q145: 69000 | R145: 268000 | S145: 103000 | T145: 93000 | U145: 11000 | Y145: Dec-Feb 2006 | Z145: 361000 | AA145: 356000 | AB145: * | AC145: 55000 | AD145: 228000 | AE145: 74000 | AF145: 68000 | AG145: *
A146: Jan-Mar 2006 | B146: 804000 | C146: 787000 | D146: 11000 | E146: 122000 | F146: 493000 | G146: 178000 | H146: 161000 | I146: 18000 | M146: Jan-Mar 2006 | N146: 444000 | O146: 433000 | P146: * | Q146: 68000 | R146: 265000 | S146: 103000 | T146: 92000 | U146: 11000 | Y146: Jan-Mar 2006 | Z146: 360000 | AA146: 354000 | AB146: * | AC146: 54000 | AD146: 227000 | AE146: 75000 | AF146: 68000 | AG146: *
A147: Feb-Apr 2006 | B147: 800000 | C147: 785000 | D147: 11000 | E147: 120000 | F147: 494000 | G147: 175000 | H147: 159000 | I147: 16000 | M147: Feb-Apr 2006 | N147: 440000 | O147: 430000 | P147: * | Q147: 65000 | R147: 265000 | S147: 103000 | T147: 93000 | U147: 10000 | Y147: Feb-Apr 2006 | Z147: 361000 | AA147: 355000 | AB147: * | AC147: 55000 | AD147: 229000 | AE147: 72000 | AF147: 66000 | AG147: *
A148: Mar-May 2006 | B148: 799000 | C148: 784000 | D148: 10000 | E148: 119000 | F148: 495000 | G148: 174000 | H148: 159000 | I148: 15000 | M148: Mar-May 2006 | N148: 439000 | O148: 429000 | P148: * | Q148: 64000 | R148: 265000 | S148: 103000 | T148: 94000 | U148: 10000 | Y148: Mar-May 2006 | Z148: 360000 | AA148: 355000 | AB148: * | AC148: 55000 | AD148: 230000 | AE148: 71000 | AF148: 66000 | AG148: *
A149: Apr-Jun 2006 | B149: 810000 | C149: 795000 | D149: 10000 | E149: 120000 | F149: 500000 | G149: 180000 | H149: 165000 | I149: 15000 | M149: Apr-Jun 2006 | N149: 445000 | O149: 435000 | P149: * | Q149: 64000 | R149: 269000 | S149: 106000 | T149: 96000 | U149: 10000 | Y149: Apr-Jun 2006 | Z149: 365000 | AA149: 360000 | AB149: * | AC149: 57000 | AD149: 231000 | AE149: 74000 | AF149: 68000 | AG149: *
A150: May-Jul 2006 | B150: 816000 | C150: 801000 | D150: 11000 | E150: 125000 | F150: 500000 | G150: 180000 | H150: 166000 | I150: 14000 | M150: May-Jul 2006 | N150: 449000 | O150: 440000 | P150: * | Q150: 68000 | R150: 268000 | S150: 105000 | T150: 96000 | U150: 9000 | Y150: May-Jul 2006 | Z150: 366000 | AA150: 361000 | AB150: * | AC150: 57000 | AD150: 231000 | AE150: 75000 | AF150: 70000 | AG150: *
A151: Jun-Aug 2006 | B151: 819000 | C151: 803000 | D151: 12000 | E151: 125000 | F151: 499000 | G151: 183000 | H151: 168000 | I151: 15000 | M151: Jun-Aug 2006 | N151: 450000 | O151: 439000 | P151: * | Q151: 67000 | R151: 268000 | S151: 107000 | T151: 97000 | U151: 10000 | Y151: Jun-Aug 2006 | Z151: 369000 | AA151: 364000 | AB151: * | AC151: 58000 | AD151: 231000 | AE151: 76000 | AF151: 71000 | AG151: *
A152: Jul-Sep 2006 | B152: 814000 | C152: 799000 | D152: 12000 | E152: 122000 | F152: 501000 | G152: 179000 | H152: 164000 | I152: 15000 | M152: Jul-Sep 2006 | N152: 448000 | O152: 438000 | P152: * | Q152: 67000 | R152: 268000 | S152: 106000 | T152: 96000 | U152: 10000 | Y152: Jul-Sep 2006 | Z152: 365000 | AA152: 361000 | AB152: * | AC152: 55000 | AD152: 233000 | AE152: 72000 | AF152: 68000 | AG152: *
A153: Aug-Oct 2006 | B153: 808000 | C153: 794000 | D153: 12000 | E153: 116000 | F153: 499000 | G153: 180000 | H153: 167000 | I153: 14000 | M153: Aug-Oct 2006 | N153: 444000 | O153: 434000 | P153: * | Q153: 63000 | R153: 268000 | S153: 106000 | T153: 96000 | U153: 11000 | Y153: Aug-Oct 2006 | Z153: 363000 | AA153: 360000 | AB153: * | AC153: 54000 | AD153: 231000 | AE153: 74000 | AF153: 71000 | AG153: *
A154: Sep-Nov 2006 | B154: 812000 | C154: 797000 | D154: 14000 | E154: 117000 | F154: 502000 | G154: 179000 | H154: 165000 | I154: 14000 | M154: Sep-Nov 2006 | N154: 446000 | O154: 435000 | P154: * | Q154: 65000 | R154: 268000 | S154: 105000 | T154: 94000 | U154: 11000 | Y154: Sep-Nov 2006 | Z154: 366000 | AA154: 362000 | AB154: * | AC154: 52000 | AD154: 235000 | AE154: 74000 | AF154: 70000 | AG154: *
A155: Oct-Dec 2006 | B155: 814000 | C155: 799000 | D155: 13000 | E155: 115000 | F155: 505000 | G155: 181000 | H155: 166000 | I155: 15000 | M155: Oct-Dec 2006 | N155: 446000 | O155: 435000 | P155: * | Q155: 64000 | R155: 269000 | S155: 105000 | T155: 94000 | U155: 11000 | Y155: Oct-Dec 2006 | Z155: 369000 | AA155: 364000 | AB155: * | AC155: 52000 | AD155: 236000 | AE155: 76000 | AF155: 71000 | AG155: *
A156: Nov-Jan 2007 | B156: 817000 | C156: 803000 | D156: 13000 | E156: 116000 | F156: 510000 | G156: 178000 | H156: 164000 | I156: 14000 | M156: Nov-Jan 2007 | N156: 445000 | O156: 436000 | P156: * | Q156: 65000 | R156: 270000 | S156: 103000 | T156: 94000 | U156: 10000 | Y156: Nov-Jan 2007 | Z156: 372000 | AA156: 368000 | AB156: * | AC156: 51000 | AD156: 240000 | AE156: 75000 | AF156: 70000 | AG156: *
A157: Dec-Feb 2007 | B157: 819000 | C157: 804000 | D157: 13000 | E157: 118000 | F157: 509000 | G157: 179000 | H157: 164000 | I157: 15000 | M157: Dec-Feb 2007 | N157: 446000 | O157: 437000 | P157: * | Q157: 65000 | R157: 272000 | S157: 104000 | T157: 94000 | U157: 10000 | Y157: Dec-Feb 2007 | Z157: 372000 | AA157: 367000 | AB157: * | AC157: 54000 | AD157: 237000 | AE157: 75000 | AF157: 70000 | AG157: *
A158: Jan-Mar 2007 | B158: 825000 | C158: 810000 | D158: 13000 | E158: 120000 | F158: 515000 | G158: 177000 | H158: 163000 | I158: 15000 | M158: Jan-Mar 2007 | N158: 449000 | O158: 439000 | P158: * | Q158: 65000 | R158: 273000 | S158: 103000 | T158: 93000 | U158: 10000 | Y158: Jan-Mar 2007 | Z158: 375000 | AA158: 371000 | AB158: * | AC158: 55000 | AD158: 242000 | AE158: 74000 | AF158: 69000 | AG158: *
A159: Feb-Apr 2007 | B159: 833000 | C159: 818000 | D159: 13000 | E159: 124000 | F159: 516000 | G159: 180000 | H159: 165000 | I159: 15000 | M159: Feb-Apr 2007 | N159: 455000 | O159: 444000 | P159: * | Q159: 68000 | R159: 273000 | S159: 106000 | T159: 96000 | U159: 11000 | Y159: Feb-Apr 2007 | Z159: 379000 | AA159: 374000 | AB159: * | AC159: 56000 | AD159: 243000 | AE159: 74000 | AF159: 69000 | AG159: *
A160: Mar-May 2007 | B160: 828000 | C160: 812000 | D160: 13000 | E160: 120000 | F160: 515000 | G160: 179000 | H160: 163000 | I160: 16000 | M160: Mar-May 2007 | N160: 449000 | O160: 439000 | P160: * | Q160: 65000 | R160: 272000 | S160: 104000 | T160: 94000 | U160: 10000 | Y160: Mar-May 2007 | Z160: 379000 | AA160: 373000 | AB160: * | AC160: 55000 | AD160: 244000 | AE160: 75000 | AF160: 69000 | AG160: *
A161: Apr-Jun 2007 | B161: 823000 | C161: 808000 | D161: 12000 | E161: 120000 | F161: 516000 | G161: 175000 | H161: 159000 | I161: 15000 | M161: Apr-Jun 2007 | N161: 451000 | O161: 441000 | P161: * | Q161: 67000 | R161: 273000 | S161: 104000 | T161: 94000 | U161: 10000 | Y161: Apr-Jun 2007 | Z161: 371000 | AA161: 366000 | AB161: * | AC161: 53000 | AD161: 243000 | AE161: 70000 | AF161: 65000 | AG161: *
A162: May-Jul 2007 | B162: 821000 | C162: 805000 | D162: 11000 | E162: 118000 | F162: 516000 | G162: 176000 | H162: 160000 | I162: 16000 | M162: May-Jul 2007 | N162: 451000 | O162: 441000 | P162: * | Q162: 66000 | R162: 275000 | S162: 103000 | T162: 93000 | U162: 10000 | Y162: May-Jul 2007 | Z162: 370000 | AA162: 364000 | AB162: * | AC162: 52000 | AD162: 241000 | AE162: 73000 | AF162: 67000 | AG162: *
A163: Jun-Aug 2007 | B163: 814000 | C163: 801000 | D163: 11000 | E163: 120000 | F163: 511000 | G163: 171000 | H163: 158000 | I163: 13000 | M163: Jun-Aug 2007 | N163: 447000 | O163: 439000 | P163: * | Q163: 67000 | R163: 273000 | S163: 100000 | T163: 91000 | U163: * | Y163: Jun-Aug 2007 | Z163: 367000 | AA163: 363000 | AB163: * | AC163: 53000 | AD163: 238000 | AE163: 71000 | AF163: 67000 | AG163: *
A164: Jul-Sep 2007 | B164: 822000 | C164: 808000 | D164: 13000 | E164: 124000 | F164: 512000 | G164: 174000 | H164: 160000 | I164: 14000 | M164: Jul-Sep 2007 | N164: 448000 | O164: 439000 | P164: * | Q164: 68000 | R164: 272000 | S164: 101000 | T164: 91000 | U164: 10000 | Y164: Jul-Sep 2007 | Z164: 374000 | AA164: 370000 | AB164: * | AC164: 56000 | AD164: 240000 | AE164: 73000 | AF164: 69000 | AG164: *
A165: Aug-Oct 2007 | B165: 820000 | C165: 808000 | D165: 13000 | E165: 125000 | F165: 509000 | G165: 173000 | H165: 161000 | I165: 13000 | M165: Aug-Oct 2007 | N165: 447000 | O165: 438000 | P165: * | Q165: 69000 | R165: 272000 | S165: 100000 | T165: 92000 | U165: 9000 | Y165: Aug-Oct 2007 | Z165: 373000 | AA165: 369000 | AB165: * | AC165: 57000 | AD165: 237000 | AE165: 73000 | AF165: 69000 | AG165: *
A166: Sep-Nov 2007 | B166: 823000 | C166: 810000 | D166: 12000 | E166: 125000 | F166: 511000 | G166: 176000 | H166: 163000 | I166: 13000 | M166: Sep-Nov 2007 | N166: 450000 | O166: 441000 | P166: * | Q166: 71000 | R166: 271000 | S166: 102000 | T166: 93000 | U166: 9000 | Y166: Sep-Nov 2007 | Z166: 373000 | AA166: 369000 | AB166: * | AC166: 54000 | AD166: 240000 | AE166: 74000 | AF166: 70000 | AG166: *
A167: Oct-Dec 2007 | B167: 822000 | C167: 808000 | D167: 12000 | E167: 123000 | F167: 509000 | G167: 178000 | H167: 164000 | I167: 14000 | M167: Oct-Dec 2007 | N167: 450000 | O167: 441000 | P167: * | Q167: 68000 | R167: 272000 | S167: 102000 | T167: 93000 | U167: 9000 | Y167: Oct-Dec 2007 | Z167: 372000 | AA167: 367000 | AB167: * | AC167: 55000 | AD167: 237000 | AE167: 76000 | AF167: 71000 | AG167: *
A168: Nov-Jan 2008 | B168: 826000 | C168: 810000 | D168: 11000 | E168: 123000 | F168: 511000 | G168: 181000 | H168: 164000 | I168: 17000 | M168: Nov-Jan 2008 | N168: 453000 | O168: 443000 | P168: * | Q168: 67000 | R168: 274000 | S168: 103000 | T168: 93000 | U168: 10000 | Y168: Nov-Jan 2008 | Z168: 373000 | AA168: 367000 | AB168: * | AC168: 56000 | AD168: 237000 | AE168: 77000 | AF168: 71000 | AG168: *
A169: Dec-Feb 2008 | B169: 832000 | C169: 814000 | D169: 11000 | E169: 123000 | F169: 512000 | G169: 186000 | H169: 168000 | I169: 18000 | M169: Dec-Feb 2008 | N169: 455000 | O169: 444000 | P169: * | Q169: 67000 | R169: 275000 | S169: 106000 | T169: 96000 | U169: 11000 | Y169: Dec-Feb 2008 | Z169: 377000 | AA169: 369000 | AB169: * | AC169: 56000 | AD169: 238000 | AE169: 79000 | AF169: 72000 | AG169: *
A170: Jan-Mar 2008 | B170: 833000 | C170: 817000 | D170: 11000 | E170: 125000 | F170: 513000 | G170: 184000 | H170: 168000 | I170: 16000 | M170: Jan-Mar 2008 | N170: 455000 | O170: 446000 | P170: * | Q170: 68000 | R170: 276000 | S170: 104000 | T170: 95000 | U170: 10000 | Y170: Jan-Mar 2008 | Z170: 378000 | AA170: 371000 | AB170: * | AC170: 57000 | AD170: 237000 | AE170: 79000 | AF170: 73000 | AG170: *
A171: Feb-Apr 2008 | B171: 835000 | C171: 821000 | D171: 11000 | E171: 123000 | F171: 519000 | G171: 182000 | H171: 168000 | I171: 14000 | M171: Feb-Apr 2008 | N171: 455000 | O171: 447000 | P171: * | Q171: 67000 | R171: 277000 | S171: 104000 | T171: 96000 | U171: 9000 | Y171: Feb-Apr 2008 | Z171: 380000 | AA171: 375000 | AB171: * | AC171: 56000 | AD171: 242000 | AE171: 77000 | AF171: 72000 | AG171: *
A172: Mar-May 2008 | B172: 838000 | C172: 822000 | D172: 12000 | E172: 122000 | F172: 521000 | G172: 182000 | H172: 167000 | I172: 16000 | M172: Mar-May 2008 | N172: 457000 | O172: 447000 | P172: * | Q172: 66000 | R172: 279000 | S172: 105000 | T172: 96000 | U172: 9000 | Y172: Mar-May 2008 | Z172: 381000 | AA172: 374000 | AB172: * | AC172: 57000 | AD172: 242000 | AE172: 77000 | AF172: 71000 | AG172: *
A173: Apr-Jun 2008 | B173: 831000 | C173: 816000 | D173: 11000 | E173: 118000 | F173: 522000 | G173: 180000 | H173: 165000 | I173: 15000 | M173: Apr-Jun 2008 | N173: 456000 | O173: 447000 | P173: * | Q173: 64000 | R173: 282000 | S173: 103000 | T173: 95000 | U173: 9000 | Y173: Apr-Jun 2008 | Z173: 375000 | AA173: 369000 | AB173: * | AC173: 54000 | AD173: 240000 | AE173: 76000 | AF173: 70000 | AG173: *
A174: May-Jul 2008 | B174: 832000 | C174: 816000 | D174: 11000 | E174: 121000 | F174: 522000 | G174: 178000 | H174: 162000 | I174: 16000 | M174: May-Jul 2008 | N174: 456000 | O174: 447000 | P174: * | Q174: 65000 | R174: 280000 | S174: 104000 | T174: 95000 | U174: 10000 | Y174: May-Jul 2008 | Z174: 375000 | AA174: 369000 | AB174: * | AC174: 56000 | AD174: 241000 | AE174: 74000 | AF174: 68000 | AG174: *
A175: Jun-Aug 2008 | B175: 834000 | C175: 820000 | D175: 12000 | E175: 123000 | F175: 521000 | G175: 177000 | H175: 163000 | I175: 14000 | M175: Jun-Aug 2008 | N175: 455000 | O175: 446000 | P175: * | Q175: 66000 | R175: 279000 | S175: 104000 | T175: 95000 | U175: 9000 | Y175: Jun-Aug 2008 | Z175: 378000 | AA175: 373000 | AB175: * | AC175: 57000 | AD175: 242000 | AE175: 73000 | AF175: 68000 | AG175: *
A176: Jul-Sep 2008 | B176: 831000 | C176: 817000 | D176: 12000 | E176: 123000 | F176: 521000 | G176: 175000 | H176: 161000 | I176: 14000 | M176: Jul-Sep 2008 | N176: 452000 | O176: 443000 | P176: * | Q176: 66000 | R176: 275000 | S176: 103000 | T176: 94000 | U176: 9000 | Y176: Jul-Sep 2008 | Z176: 380000 | AA176: 375000 | AB176: * | AC176: 56000 | AD176: 246000 | AE176: 72000 | AF176: 67000 | AG176: *
A177: Aug-Oct 2008 | B177: 829000 | C177: 814000 | D177: 13000 | E177: 122000 | F177: 515000 | G177: 179000 | H177: 164000 | I177: 15000 | M177: Aug-Oct 2008 | N177: 454000 | O177: 444000 | P177: * | Q177: 67000 | R177: 274000 | S177: 105000 | T177: 96000 | U177: 9000 | Y177: Aug-Oct 2008 | Z177: 376000 | AA177: 370000 | AB177: * | AC177: 56000 | AD177: 241000 | AE177: 74000 | AF177: 68000 | AG177: *
A178: Sep-Nov 2008 | B178: 824000 | C178: 810000 | D178: 13000 | E178: 123000 | F178: 511000 | G178: 177000 | H178: 163000 | I178: 14000 | M178: Sep-Nov 2008 | N178: 452000 | O178: 443000 | P178: * | Q178: 67000 | R178: 273000 | S178: 104000 | T178: 95000 | U178: 9000 | Y178: Sep-Nov 2008 | Z178: 371000 | AA178: 366000 | AB178: * | AC178: 56000 | AD178: 238000 | AE178: 73000 | AF178: 68000 | AG178: *
A179: Oct-Dec 2008 | B179: 822000 | C179: 807000 | D179: 13000 | E179: 120000 | F179: 511000 | G179: 178000 | H179: 163000 | I179: 14000 | M179: Oct-Dec 2008 | N179: 450000 | O179: 440000 | P179: * | Q179: 66000 | R179: 273000 | S179: 103000 | T179: 94000 | U179: 9000 | Y179: Oct-Dec 2008 | Z179: 372000 | AA179: 367000 | AB179: * | AC179: 54000 | AD179: 239000 | AE179: 75000 | AF179: 70000 | AG179: *
A180: Nov-Jan 2009 | B180: 818000 | C180: 803000 | D180: 11000 | E180: 118000 | F180: 510000 | G180: 179000 | H180: 164000 | I180: 15000 | M180: Nov-Jan 2009 | N180: 447000 | O180: 438000 | P180: * | Q180: 65000 | R180: 273000 | S180: 104000 | T180: 94000 | U180: 9000 | Y180: Nov-Jan 2009 | Z180: 371000 | AA180: 365000 | AB180: * | AC180: 53000 | AD180: 238000 | AE180: 75000 | AF180: 69000 | AG180: *
A181: Dec-Feb 2009 | B181: 813000 | C181: 796000 | D181: 11000 | E181: 113000 | F181: 510000 | G181: 179000 | H181: 163000 | I181: 16000 | M181: Dec-Feb 2009 | N181: 442000 | O181: 432000 | P181: * | Q181: 62000 | R181: 272000 | S181: 104000 | T181: 93000 | U181: 10000 | Y181: Dec-Feb 2009 | Z181: 370000 | AA181: 365000 | AB181: * | AC181: 51000 | AD181: 238000 | AE181: 75000 | AF181: 69000 | AG181: *
A182: Jan-Mar 2009 | B182: 814000 | C182: 797000 | D182: 12000 | E182: 113000 | F182: 508000 | G182: 182000 | H182: 165000 | I182: 17000 | M182: Jan-Mar 2009 | N182: 443000 | O182: 432000 | P182: * | Q182: 62000 | R182: 270000 | S182: 106000 | T182: 95000 | U182: 11000 | Y182: Jan-Mar 2009 | Z182: 371000 | AA182: 365000 | AB182: * | AC182: 51000 | AD182: 237000 | AE182: 77000 | AF182: 70000 | AG182: *
A183: Feb-Apr 2009 | B183: 809000 | C183: 794000 | D183: 11000 | E183: 113000 | F183: 506000 | G183: 180000 | H183: 164000 | I183: 16000 | M183: Feb-Apr 2009 | N183: 440000 | O183: 429000 | P183: * | Q183: 62000 | R183: 268000 | S183: 105000 | T183: 94000 | U183: 11000 | Y183: Feb-Apr 2009 | Z183: 369000 | AA183: 365000 | AB183: * | AC183: 50000 | AD183: 238000 | AE183: 75000 | AF183: 70000 | AG183: *
A184: Mar-May 2009 | B184: 800000 | C184: 784000 | D184: 9000 | E184: 108000 | F184: 503000 | G184: 181000 | H184: 164000 | I184: 17000 | M184: Mar-May 2009 | N184: 436000 | O184: 425000 | P184: * | Q184: 61000 | R184: 265000 | S184: 106000 | T184: 95000 | U184: 11000 | Y184: Mar-May 2009 | Z184: 364000 | AA184: 359000 | AB184: * | AC184: 47000 | AD184: 238000 | AE184: 75000 | AF184: 70000 | AG184: *
A185: Apr-Jun 2009 | B185: 804000 | C185: 787000 | D185: 9000 | E185: 107000 | F185: 506000 | G185: 182000 | H185: 166000 | I185: 17000 | M185: Apr-Jun 2009 | N185: 439000 | O185: 428000 | P185: * | Q185: 61000 | R185: 268000 | S185: 106000 | T185: 95000 | U185: 11000 | Y185: Apr-Jun 2009 | Z185: 365000 | AA185: 360000 | AB185: * | AC185: 46000 | AD185: 238000 | AE185: 76000 | AF185: 70000 | AG185: *
A186: May-Jul 2009 | B186: 809000 | C186: 791000 | D186: 9000 | E186: 110000 | F186: 507000 | G186: 184000 | H186: 166000 | I186: 18000 | M186: May-Jul 2009 | N186: 442000 | O186: 430000 | P186: * | Q186: 63000 | R186: 269000 | S186: 107000 | T186: 94000 | U186: 13000 | Y186: May-Jul 2009 | Z186: 366000 | AA186: 361000 | AB186: * | AC186: 47000 | AD186: 237000 | AE186: 77000 | AF186: 72000 | AG186: *
A187: Jun-Aug 2009 | B187: 813000 | C187: 796000 | D187: * | E187: 109000 | F187: 511000 | G187: 185000 | H187: 168000 | I187: 17000 | M187: Jun-Aug 2009 | N187: 446000 | O187: 434000 | P187: * | Q187: 63000 | R187: 271000 | S187: 108000 | T187: 96000 | U187: 12000 | Y187: Jun-Aug 2009 | Z187: 367000 | AA187: 362000 | AB187: * | AC187: 45000 | AD187: 240000 | AE187: 77000 | AF187: 72000 | AG187: *
A188: Jul-Sep 2009 | B188: 820000 | C188: 803000 | D188: 9000 | E188: 112000 | F188: 514000 | G188: 186000 | H188: 169000 | I188: 16000 | M188: Jul-Sep 2009 | N188: 447000 | O188: 435000 | P188: * | Q188: 63000 | R188: 273000 | S188: 107000 | T188: 96000 | U188: 11000 | Y188: Jul-Sep 2009 | Z188: 373000 | AA188: 368000 | AB188: * | AC188: 49000 | AD188: 241000 | AE188: 78000 | AF188: 73000 | AG188: *
A189: Aug-Oct 2009 | B189: 823000 | C189: 807000 | D189: 9000 | E189: 107000 | F189: 520000 | G189: 187000 | H189: 171000 | I189: 16000 | M189: Aug-Oct 2009 | N189: 448000 | O189: 437000 | P189: * | Q189: 60000 | R189: 275000 | S189: 108000 | T189: 97000 | U189: 11000 | Y189: Aug-Oct 2009 | Z189: 375000 | AA189: 370000 | AB189: * | AC189: 47000 | AD189: 245000 | AE189: 79000 | AF189: 74000 | AG189: *
A190: Sep-Nov 2009 | B190: 829000 | C190: 812000 | D190: 10000 | E190: 106000 | F190: 526000 | G190: 187000 | H190: 170000 | I190: 17000 | M190: Sep-Nov 2009 | N190: 451000 | O190: 439000 | P190: * | Q190: 58000 | R190: 280000 | S190: 107000 | T190: 95000 | U190: 12000 | Y190: Sep-Nov 2009 | Z190: 378000 | AA190: 373000 | AB190: * | AC190: 48000 | AD190: 246000 | AE190: 79000 | AF190: 75000 | AG190: *
A191: Oct-Dec 2009 | B191: 822000 | C191: 804000 | D191: * | E191: 104000 | F191: 524000 | G191: 185000 | H191: 168000 | I191: 17000 | M191: Oct-Dec 2009 | N191: 448000 | O191: 436000 | P191: * | Q191: 57000 | R191: 281000 | S191: 107000 | T191: 94000 | U191: 12000 | Y191: Oct-Dec 2009 | Z191: 373000 | AA191: 368000 | AB191: * | AC191: 48000 | AD191: 244000 | AE191: 79000 | AF191: 74000 | AG191: *
A192: Nov-Jan 2010 | B192: 826000 | C192: 807000 | D192: * | E192: 104000 | F192: 524000 | G192: 191000 | H192: 172000 | I192: 19000 | M192: Nov-Jan 2010 | N192: 449000 | O192: 435000 | P192: * | Q192: 56000 | R192: 279000 | S192: 110000 | T192: 96000 | U192: 14000 | Y192: Nov-Jan 2010 | Z192: 377000 | AA192: 372000 | AB192: * | AC192: 49000 | AD192: 244000 | AE192: 81000 | AF192: 76000 | AG192: *
A193: Dec-Feb 2010 | B193: 836000 | C193: 817000 | D193: * | E193: 109000 | F193: 524000 | G193: 196000 | H193: 177000 | I193: 19000 | M193: Dec-Feb 2010 | N193: 453000 | O193: 439000 | P193: * | Q193: 57000 | R193: 278000 | S193: 113000 | T193: 100000 | U193: 13000 | Y193: Dec-Feb 2010 | Z193: 383000 | AA193: 377000 | AB193: * | AC193: 52000 | AD193: 245000 | AE193: 83000 | AF193: 77000 | AG193: *
A194: Jan-Mar 2010 | B194: 839000 | C194: 820000 | D194: * | E194: 113000 | F194: 523000 | G194: 195000 | H194: 177000 | I194: 18000 | M194: Jan-Mar 2010 | N194: 458000 | O194: 445000 | P194: * | Q194: 61000 | R194: 279000 | S194: 113000 | T194: 100000 | U194: 13000 | Y194: Jan-Mar 2010 | Z194: 380000 | AA194: 375000 | AB194: * | AC194: 51000 | AD194: 244000 | AE194: 82000 | AF194: 77000 | AG194: *
A195: Feb-Apr 2010 | B195: 840000 | C195: 823000 | D195: * | E195: 115000 | F195: 527000 | G195: 191000 | H195: 174000 | I195: 17000 | M195: Feb-Apr 2010 | N195: 462000 | O195: 450000 | P195: * | Q195: 64000 | R195: 282000 | S195: 112000 | T195: 100000 | U195: 12000 | Y195: Feb-Apr 2010 | Z195: 379000 | AA195: 373000 | AB195: * | AC195: 51000 | AD195: 246000 | AE195: 79000 | AF195: 74000 | AG195: *
A196: Mar-May 2010 | B196: 838000 | C196: 822000 | D196: * | E196: 114000 | F196: 528000 | G196: 191000 | H196: 175000 | I196: 16000 | M196: Mar-May 2010 | N196: 457000 | O196: 446000 | P196: * | Q196: 63000 | R196: 280000 | S196: 113000 | T196: 101000 | U196: 11000 | Y196: Mar-May 2010 | Z196: 380000 | AA196: 376000 | AB196: * | AC196: 51000 | AD196: 248000 | AE196: 78000 | AF196: 73000 | AG196: *
A197: Apr-Jun 2010 | B197: 836000 | C197: 821000 | D197: * | E197: 114000 | F197: 526000 | G197: 190000 | H197: 175000 | I197: 16000 | M197: Apr-Jun 2010 | N197: 459000 | O197: 447000 | P197: * | Q197: 63000 | R197: 280000 | S197: 114000 | T197: 102000 | U197: 12000 | Y197: Apr-Jun 2010 | Z197: 378000 | AA197: 374000 | AB197: * | AC197: 50000 | AD197: 246000 | AE197: 77000 | AF197: 73000 | AG197: *
A198: May-Jul 2010 | B198: 843000 | C198: 824000 | D198: * | E198: 115000 | F198: 525000 | G198: 196000 | H198: 177000 | I198: 19000 | M198: May-Jul 2010 | N198: 462000 | O198: 449000 | P198: * | Q198: 63000 | R198: 280000 | S198: 117000 | T198: 103000 | U198: 14000 | Y198: May-Jul 2010 | Z198: 381000 | AA198: 376000 | AB198: * | AC198: 52000 | AD198: 246000 | AE198: 79000 | AF198: 74000 | AG198: *
A199: Jun-Aug 2010 | B199: 844000 | C199: 828000 | D199: * | E199: 118000 | F199: 528000 | G199: 191000 | H199: 174000 | I199: 17000 | M199: Jun-Aug 2010 | N199: 462000 | O199: 451000 | P199: * | Q199: 66000 | R199: 282000 | S199: 111000 | T199: 100000 | U199: 11000 | Y199: Jun-Aug 2010 | Z199: 383000 | AA199: 377000 | AB199: * | AC199: 52000 | AD199: 246000 | AE199: 80000 | AF199: 74000 | AG199: *
A200: Jul-Sep 2010 | B200: 844000 | C200: 827000 | D200: * | E200: 116000 | F200: 528000 | G200: 194000 | H200: 177000 | I200: 17000 | M200: Jul-Sep 2010 | N200: 460000 | O200: 449000 | P200: * | Q200: 63000 | R200: 281000 | S200: 113000 | T200: 102000 | U200: 11000 | Y200: Jul-Sep 2010 | Z200: 385000 | AA200: 378000 | AB200: * | AC200: 53000 | AD200: 247000 | AE200: 81000 | AF200: 75000 | AG200: *
A201: Aug-Oct 2010 | B201: 842000 | C201: 826000 | D201: * | E201: 114000 | F201: 525000 | G201: 196000 | H201: 179000 | I201: 16000 | M201: Aug-Oct 2010 | N201: 459000 | O201: 448000 | P201: * | Q201: 63000 | R201: 280000 | S201: 114000 | T201: 103000 | U201: 11000 | Y201: Aug-Oct 2010 | Z201: 383000 | AA201: 377000 | AB201: * | AC201: 52000 | AD201: 245000 | AE201: 82000 | AF201: 77000 | AG201: *
... 98 more rows

Sheet 2.3
A3: TABLE 2.3
A5: ECONOMIC ACTIVITY RATES BY AGE All Persons | M5: TABLE 2.3 | Y5: TABLE 2.3
M6: ECONOMIC ACTIVITY RATES BY AGE Males | Y6: ECONOMIC ACTIVITY RATES BY AGE Females
A7: 1 | M7: 1 | Y7: 1
A8: 2 | B8: 16+ | C8: 16-64 | D8: 16-17 | E8: 18-24 | F8: 25-49 | G8: 50+ | H8: 50-64 | I8: 65+ | M8: 2 | N8: 16+ | O8: 16-64 | P8: 16-17 | Q8: 18-24 | R8: 25-49 | S8: 50+ | T8: 50-64 | U8: 65+ | Y8: 2 | Z8: 16+ | AA8: 16-64 | AB8: 16-17 | AC8: 18-24 | AD8: 25-49 | AE8: 50+ | AF8: 50-64 | AG8: 65+
A9: 3 | M9: 3 | Y9: 3
A10: ALL PERSONS | M10: MEN | Y10: WOMEN
A11: Mar-May 1992 | B11: 0.597 | C11: 0.705 | D11: 0.364 | E11: 0.712 | F11: 0.79 | G11: 0.327 | H11: 0.566 | I11: 0.061 | M11: Mar-May 1992 | N11: 0.716 | O11: 0.818 | P11: 0.4 | Q11: 0.755 | R11: 0.924 | S11: 0.444 | T11: 0.705 | U11: 0.105 | Y11: Mar-May 1992 | Z11: 0.487 | AA11: 0.595 | AB11: * | AC11: 0.669 | AD11: 0.661 | AE11: 0.233 | AF11: 0.44 | AG11: *
A12: Mar-May 1993 | B12: 0.582 | C12: 0.688 | D12: 0.329 | E12: 0.684 | F12: 0.779 | G12: 0.316 | H12: 0.55 | I12: 0.053 | M12: Mar-May 1993 | N12: 0.715 | O12: 0.818 | P12: 0.42 | Q12: 0.765 | R12: 0.921 | S12: 0.436 | T12: 0.693 | U12: * | Y12: Mar-May 1993 | Z12: 0.46 | AA12: 0.562 | AB12: * | AC12: 0.601 | AD12: 0.64 | AE12: 0.22 | AF12: 0.419 | AG12: *
A13: Mar-May 1994 | B13: 0.574 | C13: 0.678 | D13: 0.298 | E13: 0.647 | F13: 0.783 | G13: 0.306 | H13: 0.528 | I13: 0.054 | M13: Mar-May 1994 | N13: 0.697 | O13: 0.795 | P13: * | Q13: 0.734 | R13: 0.908 | S13: 0.426 | T13: 0.668 | U13: 0.102 | Y13: Mar-May 1994 | Z13: 0.461 | AA13: 0.564 | AB13: * | AC13: 0.558 | AD13: 0.662 | AE13: 0.209 | AF13: 0.399 | AG13: *
A14: Nov-Jan 1995 | B14: - | C14: - | D14: - | E14: - | F14: - | G14: - | H14: - | I14: - | M14: Nov-Jan 1995 | N14: - | O14: - | P14: - | Q14: - | R14: - | S14: - | T14: - | U14: - | Y14: Nov-Jan 1995 | Z14: - | AA14: - | AB14: - | AC14: - | AD14: - | AE14: - | AF14: - | AG14: -
A15: Dec-Feb 1995 | B15: 0.575 | C15: 0.677 | D15: 0.306 | E15: 0.685 | F15: 0.779 | G15: 0.299 | H15: 0.505 | I15: 0.064 | M15: Dec-Feb 1995 | N15: 0.696 | O15: 0.793 | P15: 0.361 | Q15: 0.767 | R15: 0.896 | S15: 0.423 | T15: 0.651 | U15: 0.116 | Y15: Dec-Feb 1995 | Z15: 0.463 | AA15: 0.565 | AB15: * | AC15: 0.601 | AD15: 0.665 | AE15: 0.198 | AF15: 0.369 | AG15: *
A16: Jan-Mar 1995 | B16: 0.578 | C16: 0.681 | D16: 0.288 | E16: 0.68 | F16: 0.784 | G16: 0.304 | H16: 0.514 | I16: 0.065 | M16: Jan-Mar 1995 | N16: 0.696 | O16: 0.793 | P16: 0.377 | Q16: 0.76 | R16: 0.895 | S16: 0.425 | T16: 0.659 | U16: 0.11 | Y16: Jan-Mar 1995 | Z16: 0.469 | AA16: 0.571 | AB16: * | AC16: 0.599 | AD16: 0.676 | AE16: 0.206 | AF16: 0.38 | AG16: *
A17: Feb-Apr 1995 | B17: 0.585 | C17: 0.688 | D17: 0.305 | E17: 0.676 | F17: 0.788 | G17: 0.319 | H17: 0.537 | I17: 0.071 | M17: Feb-Apr 1995 | N17: 0.703 | O17: 0.799 | P17: 0.377 | Q17: 0.766 | R17: 0.896 | S17: 0.441 | T17: 0.677 | U17: 0.123 | Y17: Feb-Apr 1995 | Z17: 0.476 | AA17: 0.58 | AB17: * | AC17: 0.585 | AD17: 0.682 | AE17: 0.22 | AF17: 0.406 | AG17: *
A18: Mar-May 1995 | B18: 0.585 | C18: 0.688 | D18: 0.319 | E18: 0.666 | F18: 0.79 | G18: 0.319 | H18: 0.536 | I18: 0.072 | M18: Mar-May 1995 | N18: 0.7 | O18: 0.796 | P18: 0.356 | Q18: 0.755 | R18: 0.899 | S18: 0.437 | T18: 0.668 | U18: 0.125 | Y18: Mar-May 1995 | Z18: 0.479 | AA18: 0.583 | AB18: * | AC18: 0.576 | AD18: 0.684 | AE18: 0.224 | AF18: 0.413 | AG18: *
A19: Apr-Jun 1995 | B19: 0.583 | C19: 0.686 | D19: 0.344 | E19: 0.654 | F19: 0.789 | G19: 0.318 | H19: 0.534 | I19: 0.072 | M19: Apr-Jun 1995 | N19: 0.701 | O19: 0.796 | P19: 0.388 | Q19: 0.749 | R19: 0.899 | S19: 0.438 | T19: 0.668 | U19: 0.129 | Y19: Apr-Jun 1995 | Z19: 0.475 | AA19: 0.579 | AB19: * | AC19: 0.558 | AD19: 0.682 | AE19: 0.22 | AF19: 0.409 | AG19: *
A20: May-Jul 1995 | B20: 0.586 | C20: 0.692 | D20: 0.35 | E20: 0.692 | F20: 0.788 | G20: 0.312 | H20: 0.531 | I20: 0.063 | M20: May-Jul 1995 | N20: 0.699 | O20: 0.798 | P20: 0.376 | Q20: 0.765 | R20: 0.902 | S20: 0.423 | T20: 0.658 | U20: 0.106 | Y20: May-Jul 1995 | Z20: 0.483 | AA20: 0.588 | AB20: 0.325 | AC20: 0.618 | AD20: 0.677 | AE20: 0.222 | AF20: 0.411 | AG20: *
A21: Jun-Aug 1995 | B21: 0.59 | C21: 0.696 | D21: 0.367 | E21: 0.707 | F21: 0.786 | G21: 0.318 | H21: 0.543 | I21: 0.062 | M21: Jun-Aug 1995 | N21: 0.704 | O21: 0.805 | P21: 0.405 | Q21: 0.784 | R21: 0.902 | S21: 0.427 | T21: 0.67 | U21: 0.098 | Y21: Jun-Aug 1995 | Z21: 0.485 | AA21: 0.59 | AB21: 0.329 | AC21: 0.63 | AD21: 0.672 | AE21: 0.23 | AF21: 0.424 | AG21: *
A22: Jul-Sep 1995 | B22: 0.589 | C22: 0.696 | D22: 0.356 | E22: 0.704 | F22: 0.782 | G22: 0.323 | H22: 0.553 | I22: 0.06 | M22: Jul-Sep 1995 | N22: 0.698 | O22: 0.798 | P22: 0.401 | Q22: 0.771 | R22: 0.896 | S22: 0.423 | T22: 0.664 | U22: 0.097 | Y22: Jul-Sep 1995 | Z22: 0.489 | AA22: 0.596 | AB22: * | AC22: 0.636 | AD22: 0.671 | AE22: 0.241 | AF22: 0.45 | AG22: *
A23: Aug-Oct 1995 | B23: 0.596 | C23: 0.703 | D23: 0.364 | E23: 0.726 | F23: 0.79 | G23: 0.322 | H23: 0.549 | I23: 0.063 | M23: Aug-Oct 1995 | N23: 0.705 | O23: 0.805 | P23: 0.412 | Q23: 0.804 | R23: 0.895 | S23: 0.43 | T23: 0.671 | U23: 0.104 | Y23: Aug-Oct 1995 | Z23: 0.496 | AA23: 0.604 | AB23: * | AC23: 0.647 | AD23: 0.688 | AE23: 0.235 | AF23: 0.435 | AG23: *
A24: Sep-Nov 1995 | B24: 0.598 | C24: 0.705 | D24: 0.317 | E24: 0.738 | F24: 0.792 | G24: 0.327 | H24: 0.555 | I24: 0.067 | M24: Sep-Nov 1995 | N24: 0.706 | O24: 0.806 | P24: 0.386 | Q24: 0.819 | R24: 0.895 | S24: 0.432 | T24: 0.672 | U24: 0.107 | Y24: Sep-Nov 1995 | Z24: 0.498 | AA24: 0.606 | AB24: * | AC24: 0.657 | AD24: 0.691 | AE24: 0.242 | AF24: 0.446 | AG24: *
A25: Oct-Dec 1995 | B25: 0.601 | C25: 0.708 | D25: 0.313 | E25: 0.736 | F25: 0.798 | G25: 0.328 | H25: 0.556 | I25: 0.068 | M25: Oct-Dec 1995 | N25: 0.709 | O25: 0.809 | P25: 0.355 | Q25: 0.808 | R25: 0.899 | S25: 0.442 | T25: 0.689 | U25: 0.107 | Y25: Oct-Dec 1995 | Z25: 0.502 | AA25: 0.61 | AB25: * | AC25: 0.664 | AD25: 0.699 | AE25: 0.236 | AF25: 0.431 | AG25: *
A26: Nov-Jan 1996 | B26: 0.604 | C26: 0.711 | D26: 0.311 | E26: 0.742 | F26: 0.8 | G26: 0.332 | H26: 0.559 | I26: 0.071 | M26: Nov-Jan 1996 | N26: 0.71 | O26: 0.809 | P26: 0.35 | Q26: 0.798 | R26: 0.901 | S26: 0.447 | T26: 0.693 | U26: 0.114 | Y26: Nov-Jan 1996 | Z26: 0.506 | AA26: 0.615 | AB26: * | AC26: 0.685 | AD26: 0.701 | AE26: 0.238 | AF26: 0.434 | AG26: *
A27: Dec-Feb 1996 | B27: 0.6 | C27: 0.705 | D27: 0.317 | E27: 0.728 | F27: 0.8 | G27: 0.325 | H27: 0.543 | I27: 0.075 | M27: Dec-Feb 1996 | N27: 0.707 | O27: 0.805 | P27: 0.357 | Q27: 0.781 | R27: 0.905 | S27: 0.441 | T27: 0.675 | U27: 0.123 | Y27: Dec-Feb 1996 | Z27: 0.501 | AA27: 0.608 | AB27: * | AC27: 0.675 | AD27: 0.698 | AE27: 0.231 | AF27: 0.419 | AG27: *
A28: Jan-Mar 1996 | B28: 0.598 | C28: 0.703 | D28: 0.331 | E28: 0.711 | F28: 0.801 | G28: 0.325 | H28: 0.542 | I28: 0.076 | M28: Jan-Mar 1996 | N28: 0.713 | O28: 0.81 | P28: 0.368 | Q28: 0.79 | R28: 0.909 | S28: 0.446 | T28: 0.678 | U28: 0.131 | Y28: Jan-Mar 1996 | Z28: 0.493 | AA28: 0.6 | AB28: * | AC28: 0.632 | AD28: 0.696 | AE28: 0.226 | AF28: 0.413 | AG28: *
A29: Feb-Apr 1996 | B29: 0.593 | C29: 0.699 | D29: 0.289 | E29: 0.709 | F29: 0.8 | G29: 0.318 | H29: 0.536 | I29: 0.068 | M29: Feb-Apr 1996 | N29: 0.709 | O29: 0.807 | P29: 0.318 | Q29: 0.799 | R29: 0.91 | S29: 0.437 | T29: 0.671 | U29: 0.12 | Y29: Feb-Apr 1996 | Z29: 0.486 | AA29: 0.593 | AB29: * | AC29: 0.619 | AD29: 0.692 | AE29: 0.22 | AF29: 0.408 | AG29: *
A30: Mar-May 1996 | B30: 0.59 | C30: 0.697 | D30: 0.308 | E30: 0.718 | F30: 0.794 | G30: 0.311 | H30: 0.531 | I30: 0.06 | M30: Mar-May 1996 | N30: 0.703 | O30: 0.802 | P30: 0.324 | Q30: 0.781 | R30: 0.906 | S30: 0.431 | T30: 0.667 | U30: 0.11 | Y30: Mar-May 1996 | Z30: 0.486 | AA30: 0.594 | AB30: * | AC30: 0.655 | AD30: 0.684 | AE30: 0.213 | AF30: 0.402 | AG30: *
A31: Apr-Jun 1996 | B31: 0.589 | C31: 0.696 | D31: 0.296 | E31: 0.723 | F31: 0.796 | G31: 0.306 | H31: 0.523 | I31: 0.057 | M31: Apr-Jun 1996 | N31: 0.702 | O31: 0.801 | P31: * | Q31: 0.787 | R31: 0.909 | S31: 0.423 | T31: 0.658 | U31: 0.103 | Y31: Apr-Jun 1996 | Z31: 0.485 | AA31: 0.593 | AB31: * | AC31: 0.659 | AD31: 0.685 | AE31: 0.21 | AF31: 0.396 | AG31: *
A32: May-Jul 1996 | B32: 0.593 | C32: 0.7 | D32: 0.332 | E32: 0.711 | F32: 0.796 | G32: 0.316 | H32: 0.538 | I32: 0.06 | M32: May-Jul 1996 | N32: 0.704 | O32: 0.803 | P32: 0.341 | Q32: 0.779 | R32: 0.91 | S32: 0.427 | T32: 0.661 | U32: 0.107 | Y32: May-Jul 1996 | Z32: 0.491 | AA32: 0.599 | AB32: 0.322 | AC32: 0.643 | AD32: 0.685 | AE32: 0.226 | AF32: 0.423 | AG32: *
A33: Jun-Aug 1996 | B33: 0.598 | C33: 0.706 | D33: 0.353 | E33: 0.734 | F33: 0.8 | G33: 0.314 | H33: 0.535 | I33: 0.059 | M33: Jun-Aug 1996 | N33: 0.708 | O33: 0.809 | P33: 0.354 | Q33: 0.805 | R33: 0.914 | S33: 0.421 | T33: 0.652 | U33: 0.106 | Y33: Jun-Aug 1996 | Z33: 0.496 | AA33: 0.606 | AB33: 0.351 | AC33: 0.662 | AD33: 0.689 | AE33: 0.226 | AF33: 0.425 | AG33: *
A34: Jul-Sep 1996 | B34: 0.599 | C34: 0.707 | D34: 0.369 | E34: 0.723 | F34: 0.799 | G34: 0.321 | H34: 0.544 | I34: 0.064 | M34: Jul-Sep 1996 | N34: 0.706 | O34: 0.805 | P34: 0.386 | Q34: 0.783 | R34: 0.911 | S34: 0.425 | T34: 0.654 | U34: 0.111 | Y34: Jul-Sep 1996 | Z34: 0.501 | AA34: 0.611 | AB34: 0.352 | AC34: 0.663 | AD34: 0.691 | AE34: 0.236 | AF34: 0.441 | AG34: *
A35: Aug-Oct 1996 | B35: 0.598 | C35: 0.704 | D35: 0.378 | E35: 0.716 | F35: 0.797 | G35: 0.323 | H35: 0.543 | I35: 0.068 | M35: Aug-Oct 1996 | N35: 0.706 | O35: 0.803 | P35: 0.405 | Q35: 0.764 | R35: 0.913 | S35: 0.425 | T35: 0.648 | U35: 0.12 | Y35: Aug-Oct 1996 | Z35: 0.499 | AA35: 0.608 | AB35: 0.35 | AC35: 0.667 | AD35: 0.683 | AE35: 0.238 | AF35: 0.444 | AG35: *
A36: Sep-Nov 1996 | B36: 0.595 | C36: 0.7 | D36: 0.376 | E36: 0.689 | F36: 0.8 | G36: 0.321 | H36: 0.538 | I36: 0.07 | M36: Sep-Nov 1996 | N36: 0.708 | O36: 0.805 | P36: 0.415 | Q36: 0.766 | R36: 0.915 | S36: 0.43 | T36: 0.65 | U36: 0.128 | Y36: Sep-Nov 1996 | Z36: 0.491 | AA36: 0.598 | AB36: 0.337 | AC36: 0.612 | AD36: 0.687 | AE36: 0.232 | AF36: 0.433 | AG36: *
